Workbook

Sheet Gruppendritte-FIFA
C1: ABCD | D1: ABCE | E1: ABCF | F1: ABDE | G1: ABDF | H1: ABEF | I1: ACDE | J1: ACDF | K1: ACEF | L1: ADEF | M1: BCDE | N1: BCDF | O1: BCEF | P1: BDEF | Q1: CDEF | Y1: 1B | AB1: 1A | AE1: 1D | AH1: 1C
A2: 1B | B2: 3ACD | C2: D | D2: A | E2: A | F2: A | G2: A | H2: A | I2: D | J2: D | K2: A | L2: A | M2: D | N2: D | O2: C | P2: D | Q2: D | S2: A | T2: wenn | U2: ABCE,ABCF,ABDE,ABDF,ABEF,ACEF,ADEF | Y2: A | Z2: C | AA2: D | AB2: C | AC2: D | AD2: E | AE2: B | AF2: E | AG2: F | AH2: A | AI2: B | AJ2: F
A3: 2A | B3: 2C | S3: C | T3: wenn | U3: ABCD,ACDE,ACDF,BCDE,BCDF.BCEF,CDEF | Y3: ABCE | Z3: BCEF | AA3: ABCD | AB3: ABCD | AC3: ABDE | AD3: ABEF | AE3: ABCD | AF3: ABCE | AG3: ABCF | AH3: ABCD | AI3: ABCE | AJ3: ACEF
A4: 1E | B4: 2D | S4: D | T4: wenn | U4: BDEF | Y4: ABCF | AA4: ACDE | AB4: ABCE | AC4: ABDF | AD4: BCEF | AF4: ABDE | AG4: ABDF | AH4: ACDE | AI4: ABCF | AJ4: ADEF
A5: 1F | B5: 2E | Y5: ABDE | AA5: ACDF | AB5: ABCF | AC5: ADEF | AD5: BDEF | AF5: ACDE | AG5: ABEF | AH5: ACDF | AI5: ABDE | AJ5: CDEF
A6: 1A | B6: 3CDE | C6: C | D6: C | E6: C | F6: D | G6: D | H6: E | I6: C | J6: C | K6: C | L6: D | M6: C | N6: C | O6: E | P6: E | Q6: C | S6: C | T6: wenn | U6: ABCE,ABCF,ACEF | Y6: ABDF | AA6: BCDE | AB6: ACDE | AF6: ACEF | AG6: ACDF | AI6: ABDF
A7: 2B | B7: 2F | S7: D | T7: wenn | U7: ABCD,ABDE,ABDF,ACDE,ACDF,ADEF,BCDE,BCDF,CDEF | Y7: ABEF | AA7: BCDF | AB7: ACDF | AF7: ADEF | AG7: BCDF | AI7: ABEF
A8: 1D | B8: 3BEF | C8: B | D8: E | E8: F | F8: E | G8: F | H8: F | I8: E | J8: F | K8: E | L8: E | M8: E | N8: F | O8: F | P8: F | Q8: E | S8: E | T8: wenn | U8: ABEF,BCEF,BDEF | Y8: ACEF | AA8: BDEF | AB8: ACEF | AF8: BCDE | AG8: BCEF | AI8: BCDE
A9: 1C | B9: 3ABF | C9: A | D9: B | E9: B | F9: B | G9: B | H9: B | I9: A | J9: A | K9: F | L9: F | M9: B | N9: B | O9: B | P9: B | Q9: F | Y9: ADEF | AA9: CDEF | AB9: BCDE | AF9: CDEF | AG9: BDEF | AI9: BCDF
S10: B | T10: wenn | U10: ABCD,ABCF,ABDF,ABEF,BCDF,BCEF,BDEF | AB10: BCDF | AI10: BCEF
S11: E | T11: wenn | U11: ABCE,ABDE,ACDE,ACEF,ADEF,BCDE,CDEF | AB11: CDEF | AI11: BDEF
A12: Formel:
C13: ABCD | D13: ABCE | E13: ABCF | F13: ABDE | G13: ABDF | H13: ABEF | I13: ACDE | J13: ACDF | K13: ACEF | L13: ADEF | M13: BCDE | N13: BCDF | O13: BCEF | P13: BDEF | Q13: CDEF
A14: 1B | B14: 3ACD | C14: =IF(COUNTIF($Y$3:$Y$11,C$13)>0,$Y$2,IF(COUNTIF($Z$3:$Z$11,C$13)>0,$Z$2,IF(COUNTIF($AA$3:$AA$11,C$13)>0,$AA$2,CONCATENATE("??? ",C$13)))) -> D | D14: A | E14: A | F14: A | G14: A | H14: A | I14: D | J14: D | K14: A | L14: A | M14: D | N14: D | O14: C | P14: D | Q14: D
A15: 2A | B15: 2C
A16: 1E | B16: 2D
A17: 1F | B17: 2E
A18: 1A | B18: 3CDE | C18: =IF(COUNTIF($AB$3:$AB$11,C$13)>0,$AB$2,IF(COUNTIF($AC$3:$AC$11,C$13)>0,$AC$2,IF(COUNTIF($AD$3:$AD$11,C$13)>0,$AD$2,CONCATENATE("??? ",C$13)))) -> C | D18: C | E18: C | F18: D | G18: D | H18: E | I18: C | J18: C | K18: C | L18: D | M18: C | N18: C | O18: E | P18: E | Q18: C
A19: 2B | B19: 2F
A20: 1D | B20: 3BEF | C20: =IF(COUNTIF($AE$3:$AE$11,C$13)>0,$AE$2,IF(COUNTIF($AF$3:$AF$11,C$13)>0,$AF$2,IF(COUNTIF($AG$3:$AG$11,C$13)>0,$AG$2,CONCATENATE("??? ",C$13)))) -> B | D20: E | E20: F | F20: E | G20: F | H20: F | I20: E | J20: F | K20: E | L20: E | M20: E | N20: F | O20: F | P20: F | Q20: E
A21: 1C | B21: 3ABF | C21: =IF(COUNTIF($AH$3:$AH$11,C$13)>0,$AH$2,IF(COUNTIF($AI$3:$AI$11,C$13)>0,$AI$2,IF(COUNTIF($AJ$3:$AJ$11,C$13)>0,$AJ$2,CONCATENATE("??? ",C$13)))) -> A | D21: B | E21: B | F21: B | G21: B | H21: B | I21: A | J21: A | K21: F | L21: F | M21: B | N21: B | O21: B | P21: B | Q21: F
A25: =IF(A1=A13,"ok","Mist") -> ok | B25: ok | C25: ok | D25: ok | E25: ok | F25: ok | G25: ok | H25: ok | I25: ok | J25: ok | K25: ok | L25: ok | M25: ok | N25: ok | O25: ok | P25: ok | Q25: ok
A26: =IF(A2=A14,"ok","Mist") -> ok | B26: ok | C26: ok | D26: ok | E26: ok | F26: ok | G26: ok | H26: ok | I26: ok | J26: ok | K26: ok | L26: ok | M26: ok | N26: ok | O26: ok | P26: ok | Q26: ok
A27: =IF(A3=A15,"ok","Mist") -> ok | B27: ok | C27: ok | D27: ok | E27: ok | F27: ok | G27: ok | H27: ok | I27: ok | J27: ok | K27: ok | L27: ok | M27: ok | N27: ok | O27: ok | P27: ok | Q27: ok
A28: =IF(A4=A16,"ok","Mist") -> ok | B28: ok | C28: ok | D28: ok | E28: ok | F28: ok | G28: ok | H28: ok | I28: ok | J28: ok | K28: ok | L28: ok | M28: ok | N28: ok | O28: ok | P28: ok | Q28: ok
A29: =IF(A5=A17,"ok","Mist") -> ok | B29: ok | C29: ok | D29: ok | E29: ok | F29: ok | G29: ok | H29: ok | I29: ok | J29: ok | K29: ok | L29: ok | M29: ok | N29: ok | O29: ok | P29: ok | Q29: ok
A30: =IF(A6=A18,"ok","Mist") -> ok | B30: ok | C30: ok | D30: ok | E30: ok | F30: ok | G30: ok | H30: ok | I30: ok | J30: ok | K30: ok | L30: ok | M30: ok | N30: ok | O30: ok | P30: ok | Q30: ok
A31: =IF(A7=A19,"ok","Mist") -> ok | B31: ok | C31: ok | D31: ok | E31: ok | F31: ok | G31: ok | H31: ok | I31: ok | J31: ok | K31: ok | L31: ok | M31: ok | N31: ok | O31: ok | P31: ok | Q31: ok
A32: =IF(A8=A20,"ok","Mist") -> ok | B32: ok | C32: ok | D32: ok | E32: ok | F32: ok | G32: ok | H32: ok | I32: ok | J32: ok | K32: ok | L32: ok | M32: ok | N32: ok | O32: ok | P32: ok | Q32: ok
A33: =IF(A9=A21,"ok","Mist") -> ok | B33: ok | C33: ok | D33: ok | E33: ok | F33: ok | G33: ok | H33: ok | I33: ok | J33: ok | K33: ok | L33: ok | M33: ok | N33: ok | O33: ok | P33: ok | Q33: ok
A37: Annix
C38: ABCD | D38: ABCE | E38: ABCF | F38: ABDE | G38: ABDF | H38: ABEF | I38: ACDE | J38: ACDF | K38: ACEF | L38: ADEF | M38: BCDE | N38: BCDF | O38: BCEF | P38: BDEF | Q38: CDEF
A39: 1B | B39: 3ACD | C39: =INDEX(#REF!, MATCH(C$38,#REF!, 0)) ->  | D39: =INDEX(#REF!, MATCH(D$38,#REF!, 0)) ->  | E39: =INDEX(#REF!, MATCH(E$38,#REF!, 0)) ->  | F39: =INDEX(#REF!, MATCH(F$38,#REF!, 0)) ->  | G39: =INDEX(#REF!, MATCH(G$38,#REF!, 0)) ->  | H39: =INDEX(#REF!, MATCH(H$38,#REF!, 0)) ->  | I39: =INDEX(#REF!, MATCH(I$38,#REF!, 0)) ->  | J39: =INDEX(#REF!, MATCH(J$38,#REF!, 0)) ->  | K39: =INDEX(#REF!, MATCH(K$38,#REF!, 0)) ->  | L39: =INDEX(#REF!, MATCH(L$38,#REF!, 0)) ->  | M39: =INDEX(#REF!, MATCH(M$38,#REF!, 0)) ->  | N39: =INDEX(#REF!, MATCH(N$38,#REF!, 0)) ->  | O39: =INDEX(#REF!, MATCH(O$38,#REF!, 0)) ->  | P39: =INDEX(#REF!, MATCH(P$38,#REF!, 0)) ->  | Q39: =INDEX(#REF!, MATCH(Q$38,#REF!, 0)) -> 
A40: 2A | B40: 2C
A41: 1E | B41: 2D
A42: 1F | B42: 2E
A43: 1A | B43: 3CDE | C43: =INDEX(#REF!, MATCH(C$38,#REF!, 0)) ->  | D43: =INDEX(#REF!, MATCH(D$38,#REF!, 0)) ->  | E43: =INDEX(#REF!, MATCH(E$38,#REF!, 0)) ->  | F43: =INDEX(#REF!, MATCH(F$38,#REF!, 0)) ->  | G43: =INDEX(#REF!, MATCH(G$38,#REF!, 0)) ->  | H43: =INDEX(#REF!, MATCH(H$38,#REF!, 0)) ->  | I43: =INDEX(#REF!, MATCH(I$38,#REF!, 0)) ->  | J43: =INDEX(#REF!, MATCH(J$38,#REF!, 0)) ->  | K43: =INDEX(#REF!, MATCH(K$38,#REF!, 0)) ->  | L43: =INDEX(#REF!, MATCH(L$38,#REF!, 0)) ->  | M43: =INDEX(#REF!, MATCH(M$38,#REF!, 0)) ->  | N43: =INDEX(#REF!, MATCH(N$38,#REF!, 0)) ->  | O43: =INDEX(#REF!, MATCH(O$38,#REF!, 0)) ->  | P43: =INDEX(#REF!, MATCH(P$38,#REF!, 0)) ->  | Q43: =INDEX(#REF!, MATCH(Q$38,#REF!, 0)) -> 
A44: 2B | B44: 2F
A45: 1D | B45: 3BEF | C45: =INDEX(#REF!, MATCH(C$38,#REF!, 0)) ->  | D45: =INDEX(#REF!, MATCH(D$38,#REF!, 0)) ->  | E45: =INDEX(#REF!, MATCH(E$38,#REF!, 0)) ->  | F45: =INDEX(#REF!, MATCH(F$38,#REF!, 0)) ->  | G45: =INDEX(#REF!, MATCH(G$38,#REF!, 0)) ->  | H45: =INDEX(#REF!, MATCH(H$38,#REF!, 0)) ->  | I45: =INDEX(#REF!, MATCH(I$38,#REF!, 0)) ->  | J45: =INDEX(#REF!, MATCH(J$38,#REF!, 0)) ->  | K45: =INDEX(#REF!, MATCH(K$38,#REF!, 0)) ->  | L45: =INDEX(#REF!, MATCH(L$38,#REF!, 0)) ->  | M45: =INDEX(#REF!, MATCH(M$38,#REF!, 0)) ->  | N45: =INDEX(#REF!, MATCH(N$38,#REF!, 0)) ->  | O45: =INDEX(#REF!, MATCH(O$38,#REF!, 0)) ->  | P45: =INDEX(#REF!, MATCH(P$38,#REF!, 0)) ->  | Q45: =INDEX(#REF!, MATCH(Q$38,#REF!, 0)) -> 
A46: 1C | B46: 3ABF | C46: =INDEX(#REF!, MATCH(C$38,#REF!, 0)) ->  | D46: =INDEX(#REF!, MATCH(D$38,#REF!, 0)) ->  | E46: =INDEX(#REF!, MATCH(E$38,#REF!, 0)) ->  | F46: =INDEX(#REF!, MATCH(F$38,#REF!, 0)) ->  | G46: =INDEX(#REF!, MATCH(G$38,#REF!, 0)) ->  | H46: =INDEX(#REF!, MATCH(H$38,#REF!, 0)) ->  | I46: =INDEX(#REF!, MATCH(I$38,#REF!, 0)) ->  | J46: =INDEX(#REF!, MATCH(J$38,#REF!, 0)) ->  | K46: =INDEX(#REF!, MATCH(K$38,#REF!, 0)) ->  | L46: =INDEX(#REF!, MATCH(L$38,#REF!, 0)) ->  | M46: =INDEX(#REF!, MATCH(M$38,#REF!, 0)) ->  | N46: =INDEX(#REF!, MATCH(N$38,#REF!, 0)) ->  | O46: =INDEX(#REF!, MATCH(O$38,#REF!, 0)) ->  | P46: =INDEX(#REF!, MATCH(P$38,#REF!, 0)) ->  | Q46: =INDEX(#REF!, MATCH(Q$38,#REF!, 0)) -> 
A50: =IF(A3=A40,"ok","Mist") -> ok | B50: ok | C50: ok | D50: ok | E50: ok | F50: ok | G50: ok | H50: ok | I50: ok | J50: ok | K50: ok | L50: ok | M50: ok | N50: ok | O50: ok | P50: ok | Q50: ok
A51: =IF(A4=A41,"ok","Mist") -> ok | B51: ok | C51: ok | D51: ok | E51: ok | F51: ok | G51: ok | H51: ok | I51: ok | J51: ok | K51: ok | L51: ok | M51: ok | N51: ok | O51: ok | P51: ok | Q51: ok
A52: =IF(A5=A42,"ok","Mist") -> ok | B52: ok | C52: ok | D52: ok | E52: ok | F52: ok | G52: ok | H52: ok | I52: ok | J52: ok | K52: ok | L52: ok | M52: ok | N52: ok | O52: ok | P52: ok | Q52: ok
A53: =IF(A6=A43,"ok","Mist") -> ok | B53: ok
A54: =IF(A7=A44,"ok","Mist") -> ok | B54: ok | C54: ok | D54: ok | E54: ok | F54: ok | G54: ok | H54: ok | I54: ok | J54: ok | K54: ok | L54: ok | M54: ok | N54: ok | O54: ok | P54: ok | Q54: ok
A55: =IF(A8=A45,"ok","Mist") -> ok | B55: ok
A56: =IF(A9=A46,"ok","Mist") -> ok | B56: ok
A57: =IF(A10=A47,"ok","Mist") -> ok | B57: =IF(B10=B47,"ok","Mist") -> ok | C57: =IF(C10=C47,"ok","Mist") -> ok | D57: ok | E57: ok | F57: ok | G57: ok | H57: ok | I57: ok | J57: ok | K57: ok | L57: ok | M57: ok | N57: ok | O57: ok | P57: ok | Q57: ok
A58: =IF(A11=A48,"ok","Mist") -> ok | B58: =IF(B11=B48,"ok","Mist") -> ok | C58: =IF(C11=C48,"ok","Mist") -> ok | D58: ok | E58: ok | F58: ok | G58: ok | H58: ok | I58: ok | J58: ok | K58: ok | L58: ok | M58: ok | N58: ok | O58: ok | P58: ok | Q58: ok
C60: =CODE(C39) -> 
C61: =CODE(C43) -> 
C62: =CODE(C45) ->  | D62: =CODE(D45) -> 
C63: =CODE(C46) -> 
C65: =SMALL(C$60:C$63,1) ->  | D65: =SMALL(D$60:D$63,1) -> 
C66: =SMALL(C$60:C$63,2) ->  | D66: =SMALL(D$60:D$63,2) -> 
C67: =SMALL(C$60:C$63,3) ->  | D67: =SMALL(D$60:D$63,3) -> 
C68: =SMALL(C$60:C$63,4) ->  | D68: =SMALL(D$60:D$63,4) -> 
C70: =CHAR(C65)&CHAR(C66)&CHAR(C67)&CHAR(C68) ->  | D70: =CHAR(D65)&CHAR(D66)&CHAR(D67)&CHAR(D68) -> 
C72: =IF(C38=C70,"ok","???") ->  | D72: =IF(D38=D70,"ok","???") -> 

Sheet Gruppendritte-UEFA
C1: ABCD | D1: ABCE | E1: ABCF | F1: ABDE | G1: ABDF | H1: ABEF | I1: ACDE | J1: ACDF | K1: ACEF | L1: ADEF | M1: BCDE | N1: BCDF | O1: BCEF | P1: BDEF | Q1: CDEF | Y1: 1B | AC1: 1C | AF1: 1E | AJ1: 1F
A2: 1A | B2: 2C | S2: A | T2: wenn | U2: ABCE,ABCF,ABDE,ABDF,ABEF,ACEF,ADEF | Y2: A | Z2: D | AA2: E | AB2: F | AC2: D | AD2: E | AE2: F | AF2: A | AG2: B | AH2: C | AI2: D | AJ2: A | AK2: B | AL2: C
A3: 2A | B3: 2B | S3: C | T3: wenn | U3: ABCD,ACDE,ACDF,BCDE,BCDF.BCEF,CDEF | Y3: ABCD | Z3: ABDE | AA3: ABEF | AB3: ACDF | AC3: ABCD | AD3: ABCE | AE3: ABCF | AF3: ABDE | AG3: ABCD | AH3: ACDE | AI3: ADEF | AJ3: ABEF | AK3: ABDE | AL3: ABCD
A4: 1B | B4: 3ADEF | C4: A | D4: A | E4: A | F4: D | G4: D | H4: E | I4: E | J4: F | K4: E | L4: E | M4: E | N4: F | O4: F | P4: F | Q4: F | S4: D | T4: wenn | U4: BDEF | Y4: ABCE | Z4: ABDF | AA4: ACDE | AB4: BCDF | AC4: ACDE | AD4: ABDE | AE4: ABDF | AF4: ABDF | AG4: ABCE | AH4: ACDF | AI4: BDEF | AJ4: ACDE | AK4: ABDF | AL4: ABCE
A5: 1C | B5: 3DEF | C5: D | D5: E | E5: F | F5: E | G5: F | H5: F | I5: D | J5: D | K5: F | L5: F | M5: D | N5: D | O5: E | P5: E | Q5: E | Y5: ABCF | AA5: ACEF | AB5: BCEF | AC5: ACDF | AD5: BCEF | AE5: ABEF | AG5: ABCF | AH5: ACEF | AI5: CDEF | AJ5: ACDF | AK5: BCDF | AL5: ABCF
A6: 1D | B6: 2F | S6: C | T6: wenn | U6: ABCE,ABCF,ACEF | AA6: ADEF | AB6: BDEF | AC6: BCDE | AD6: BDEF | AE6: ACEF | AG6: ABEF | AH6: BCDF | AJ6: ACEF | AK6: BCEF | AL6: BCDE
A7: 2D | B7: 2E | S7: D | T7: wenn | U7: ABCD,ABDE,ABDF,ACDE,ACDF,ADEF,BCDE,BCDF,CDEF | AA7: BCDE | AB7: CDEF | AC7: BCDF | AD7: CDEF | AE7: ADEF | AG7: BCDE | AH7: BCEF | AJ7: ADEF | AK7: BDEF | AL7: CDEF
A8: 1E | B8: 3ABCD | C8: B | D8: B | E8: B | F8: A | G8: A | H8: B | I8: C | J8: C | K8: C | L8: D | M8: B | N8: C | O8: C | P8: D | Q8: D | S8: E | T8: wenn | U8: ABEF,BCEF,BDEF
A9: 1F | B9: 3ABC | C9: C | D9: C | E9: C | F9: B | G9: B | H9: A | I9: A | J9: A | K9: A | L9: A | M9: C | N9: B | O9: B | P9: B | Q9: C
S10: B | T10: wenn | U10: ABCD,ABCF,ABDF,ABEF,BCDF,BCEF,BDEF
S11: E | T11: wenn | U11: ABCE,ABDE,ACDE,ACEF,ADEF,BCDE,CDEF
A12: Formel:
C13: ABCD | D13: ABCE | E13: ABCF | F13: ABDE | G13: ABDF | H13: ABEF | I13: ACDE | J13: ACDF | K13: ACEF | L13: ADEF | M13: BCDE | N13: BCDF | O13: BCEF | P13: BDEF | Q13: CDEF
A14: 1A | B14: 2C
A15: 2A | B15: 2B
A16: 1B | B16: 3ADEF | C16: =IF(COUNTIF($Y$3:$Y$11,C$13)>0,$Y$2,IF(COUNTIF($Z$3:$Z$11,C$13)>0,$Z$2,IF(COUNTIF($AA$3:$AA$11,C$13)>0,$AA$2,IF(COUNTIF($AB$3:$AB$11,C$13)>0,$AB$2,CONCATENATE("??? ",C$13))))) -> A | D16: A | E16: A | F16: D | G16: D | H16: E | I16: E | J16: F | K16: E | L16: E | M16: E | N16: F | O16: F | P16: F | Q16: =IF(COUNTIF($Y$3:$Y$11,Q$13)>0,$Y$2,IF(COUNTIF($Z$3:$Z$11,Q$13)>0,$Z$2,IF(COUNTIF($AA$3:$AA$11,Q$13)>0,$AA$2,IF(COUNTIF($AB$3:$AB$11,Q$13)>0,$AB$2,CONCATENATE("??? ",Q$13))))) -> F
A17: 1C | B17: 3DEF | C17: =IF(COUNTIF($AC3:$AC$11,C$13)>0,$AC$2,IF(COUNTIF($AD$3:$AD$11,C$13)>0,$AD$2,IF(COUNTIF($AE$3:$AE$11,C$13)>0,$AE$2,CONCATENATE("??? ",C$13)))) -> D | D17: =IF(COUNTIF($AC3:$AC$11,D$13)>0,$AC$2,IF(COUNTIF($AD$3:$AD$11,D$13)>0,$AD$2,IF(COUNTIF($AE$3:$AE$11,D$13)>0,$AE$2,CONCATENATE("??? ",D$13)))) -> E | E17: =IF(COUNTIF($AC3:$AC$11,E$13)>0,$AC$2,IF(COUNTIF($AD$3:$AD$11,E$13)>0,$AD$2,IF(COUNTIF($AE$3:$AE$11,E$13)>0,$AE$2,CONCATENATE("??? ",E$13)))) -> F | F17: =IF(COUNTIF($AC3:$AC$11,F$13)>0,$AC$2,IF(COUNTIF($AD$3:$AD$11,F$13)>0,$AD$2,IF(COUNTIF($AE$3:$AE$11,F$13)>0,$AE$2,CONCATENATE("??? ",F$13)))) -> E | G17: =IF(COUNTIF($AC3:$AC$11,G$13)>0,$AC$2,IF(COUNTIF($AD$3:$AD$11,G$13)>0,$AD$2,IF(COUNTIF($AE$3:$AE$11,G$13)>0,$AE$2,CONCATENATE("??? ",G$13)))) -> F | H17: =IF(COUNTIF($AC3:$AC$11,H$13)>0,$AC$2,IF(COUNTIF($AD$3:$AD$11,H$13)>0,$AD$2,IF(COUNTIF($AE$3:$AE$11,H$13)>0,$AE$2,CONCATENATE("??? ",H$13)))) -> F | I17: =IF(COUNTIF($AC3:$AC$11,I$13)>0,$AC$2,IF(COUNTIF($AD$3:$AD$11,I$13)>0,$AD$2,IF(COUNTIF($AE$3:$AE$11,I$13)>0,$AE$2,CONCATENATE("??? ",I$13)))) -> D | J17: =IF(COUNTIF($AC3:$AC$11,J$13)>0,$AC$2,IF(COUNTIF($AD$3:$AD$11,J$13)>0,$AD$2,IF(COUNTIF($AE$3:$AE$11,J$13)>0,$AE$2,CONCATENATE("??? ",J$13)))) -> D | K17: =IF(COUNTIF($AC3:$AC$11,K$13)>0,$AC$2,IF(COUNTIF($AD$3:$AD$11,K$13)>0,$AD$2,IF(COUNTIF($AE$3:$AE$11,K$13)>0,$AE$2,CONCATENATE("??? ",K$13)))) -> F | L17: =IF(COUNTIF($AC3:$AC$11,L$13)>0,$AC$2,IF(COUNTIF($AD$3:$AD$11,L$13)>0,$AD$2,IF(COUNTIF($AE$3:$AE$11,L$13)>0,$AE$2,CONCATENATE("??? ",L$13)))) -> F | M17: =IF(COUNTIF($AC3:$AC$11,M$13)>0,$AC$2,IF(COUNTIF($AD$3:$AD$11,M$13)>0,$AD$2,IF(COUNTIF($AE$3:$AE$11,M$13)>0,$AE$2,CONCATENATE("??? ",M$13)))) -> D | N17: =IF(COUNTIF($AC3:$AC$11,N$13)>0,$AC$2,IF(COUNTIF($AD$3:$AD$11,N$13)>0,$AD$2,IF(COUNTIF($AE$3:$AE$11,N$13)>0,$AE$2,CONCATENATE("??? ",N$13)))) -> D | O17: =IF(COUNTIF($AC3:$AC$11,O$13)>0,$AC$2,IF(COUNTIF($AD$3:$AD$11,O$13)>0,$AD$2,IF(COUNTIF($AE$3:$AE$11,O$13)>0,$AE$2,CONCATENATE("??? ",O$13)))) -> E | P17: =IF(COUNTIF($AC3:$AC$11,P$13)>0,$AC$2,IF(COUNTIF($AD$3:$AD$11,P$13)>0,$AD$2,IF(COUNTIF($AE$3:$AE$11,P$13)>0,$AE$2,CONCATENATE("??? ",P$13)))) -> E | Q17: =IF(COUNTIF($AC3:$AC$11,Q$13)>0,$AC$2,IF(COUNTIF($AD$3:$AD$11,Q$13)>0,$AD$2,IF(COUNTIF($AE$3:$AE$11,Q$13)>0,$AE$2,CONCATENATE("??? ",Q$13)))) -> E
A18: 1D | B18: 2F
A19: 2D | B19: 2E
A20: 1E | B20: 3ABCD | C20: =IF(COUNTIF($AF$3:$AF$11,C$13)>0,$AF$2,IF(COUNTIF($AG$3:$AG$11,C$13)>0,$AG$2,IF(COUNTIF($AH$3:$AH$11,C$13)>0,$AH$2,IF(COUNTIF($AI$3:$AI$11,C$13)>0,$AI$2,CONCATENATE("??? ",C$13))))) -> B | D20: =IF(COUNTIF($AF$3:$AF$11,D$13)>0,$AF$2,IF(COUNTIF($AG$3:$AG$11,D$13)>0,$AG$2,IF(COUNTIF($AH$3:$AH$11,D$13)>0,$AH$2,IF(COUNTIF($AI$3:$AI$11,D$13)>0,$AI$2,CONCATENATE("??? ",D$13))))) -> B | E20: B | F20: A | G20: A | H20: B | I20: C | J20: C | K20: C | L20: D | M20: B | N20: C | O20: C | P20: D | Q20: D
A21: 1F | B21: 3ABC | C21: =IF(COUNTIF($AJ3:$AJ$11,C$13)>0,$AJ$2,IF(COUNTIF($AK$3:$AK$11,C$13)>0,$AK$2,IF(COUNTIF($AL$3:$AL$11,C$13)>0,$AL$2,CONCATENATE("??? ",C$13)))) -> C | D21: =IF(COUNTIF($AJ3:$AJ$11,D$13)>0,$AJ$2,IF(COUNTIF($AK$3:$AK$11,D$13)>0,$AK$2,IF(COUNTIF($AL$3:$AL$11,D$13)>0,$AL$2,CONCATENATE("??? ",D$13)))) -> C | E21: =IF(COUNTIF($AJ3:$AJ$11,E$13)>0,$AJ$2,IF(COUNTIF($AK$3:$AK$11,E$13)>0,$AK$2,IF(COUNTIF($AL$3:$AL$11,E$13)>0,$AL$2,CONCATENATE("??? ",E$13)))) -> C | F21: =IF(COUNTIF($AJ3:$AJ$11,F$13)>0,$AJ$2,IF(COUNTIF($AK$3:$AK$11,F$13)>0,$AK$2,IF(COUNTIF($AL$3:$AL$11,F$13)>0,$AL$2,CONCATENATE("??? ",F$13)))) -> B | G21: =IF(COUNTIF($AJ3:$AJ$11,G$13)>0,$AJ$2,IF(COUNTIF($AK$3:$AK$11,G$13)>0,$AK$2,IF(COUNTIF($AL$3:$AL$11,G$13)>0,$AL$2,CONCATENATE("??? ",G$13)))) -> B | H21: =IF(COUNTIF($AJ3:$AJ$11,H$13)>0,$AJ$2,IF(COUNTIF($AK$3:$AK$11,H$13)>0,$AK$2,IF(COUNTIF($AL$3:$AL$11,H$13)>0,$AL$2,CONCATENATE("??? ",H$13)))) -> A | I21: =IF(COUNTIF($AJ3:$AJ$11,I$13)>0,$AJ$2,IF(COUNTIF($AK$3:$AK$11,I$13)>0,$AK$2,IF(COUNTIF($AL$3:$AL$11,I$13)>0,$AL$2,CONCATENATE("??? ",I$13)))) -> A | J21: =IF(COUNTIF($AJ3:$AJ$11,J$13)>0,$AJ$2,IF(COUNTIF($AK$3:$AK$11,J$13)>0,$AK$2,IF(COUNTIF($AL$3:$AL$11,J$13)>0,$AL$2,CONCATENATE("??? ",J$13)))) -> A | K21: =IF(COUNTIF($AJ3:$AJ$11,K$13)>0,$AJ$2,IF(COUNTIF($AK$3:$AK$11,K$13)>0,$AK$2,IF(COUNTIF($AL$3:$AL$11,K$13)>0,$AL$2,CONCATENATE("??? ",K$13)))) -> A | L21: =IF(COUNTIF($AJ3:$AJ$11,L$13)>0,$AJ$2,IF(COUNTIF($AK$3:$AK$11,L$13)>0,$AK$2,IF(COUNTIF($AL$3:$AL$11,L$13)>0,$AL$2,CONCATENATE("??? ",L$13)))) -> A | M21: =IF(COUNTIF($AJ3:$AJ$11,M$13)>0,$AJ$2,IF(COUNTIF($AK$3:$AK$11,M$13)>0,$AK$2,IF(COUNTIF($AL$3:$AL$11,M$13)>0,$AL$2,CONCATENATE("??? ",M$13)))) -> C | N21: =IF(COUNTIF($AJ3:$AJ$11,N$13)>0,$AJ$2,IF(COUNTIF($AK$3:$AK$11,N$13)>0,$AK$2,IF(COUNTIF($AL$3:$AL$11,N$13)>0,$AL$2,CONCATENATE("??? ",N$13)))) -> B | O21: =IF(COUNTIF($AJ3:$AJ$11,O$13)>0,$AJ$2,IF(COUNTIF($AK$3:$AK$11,O$13)>0,$AK$2,IF(COUNTIF($AL$3:$AL$11,O$13)>0,$AL$2,CONCATENATE("??? ",O$13)))) -> B | P21: =IF(COUNTIF($AJ3:$AJ$11,P$13)>0,$AJ$2,IF(COUNTIF($AK$3:$AK$11,P$13)>0,$AK$2,IF(COUNTIF($AL$3:$AL$11,P$13)>0,$AL$2,CONCATENATE("??? ",P$13)))) -> B | Q21: =IF(COUNTIF($AJ3:$AJ$11,Q$13)>0,$AJ$2,IF(COUNTIF($AK$3:$AK$11,Q$13)>0,$AK$2,IF(COUNTIF($AL$3:$AL$11,Q$13)>0,$AL$2,CONCATENATE("??? ",Q$13)))) -> C
A25: =IF(A1=A13,"ok","Mist") -> ok | B25: ok | C25: ok | D25: ok | E25: ok | F25: ok | G25: ok | H25: ok | I25: ok | J25: ok | K25: ok | L25: ok | M25: ok | N25: ok | O25: ok | P25: ok | Q25: ok
A26: ok | B26: ok | C26: ok | D26: ok | E26: ok | F26: ok | G26: ok | H26: ok | I26: ok | J26: ok | K26: ok | L26: ok | M26: ok | N26: ok | O26: ok | P26: ok | Q26: ok
A27: ok | B27: ok | C27: ok | D27: ok | E27: ok | F27: ok | G27: ok | H27: ok | I27: ok | J27: ok | K27: ok | L27: ok | M27: ok | N27: ok | O27: ok | P27: ok | Q27: ok
A28: ok | B28: ok | C28: ok | D28: ok | E28: ok | F28: ok | G28: ok | H28: ok | I28: ok | J28: ok | K28: ok | L28: ok | M28: ok | N28: ok | O28: ok | P28: ok | Q28: ok
A29: ok | B29: ok | C29: ok | D29: ok | E29: ok | F29: ok | G29: ok | H29: ok | I29: ok | J29: ok | K29: ok | L29: ok | M29: ok | N29: ok | O29: ok | P29: ok | Q29: ok
A30: ok | B30: ok | C30: ok | D30: ok | E30: ok | F30: ok | G30: ok | H30: ok | I30: ok | J30: ok | K30: ok | L30: ok | M30: ok | N30: ok | O30: ok | P30: ok | Q30: ok
A31: ok | B31: ok | C31: ok | D31: ok | E31: ok | F31: ok | G31: ok | H31: ok | I31: ok | J31: ok | K31: ok | L31: ok | M31: ok | N31: ok | O31: ok | P31: ok | Q31: ok
A32: ok | B32: ok | C32: ok | D32: ok | E32: ok | F32: ok | G32: ok | H32: ok | I32: ok | J32: ok | K32: ok | L32: ok | M32: ok | N32: ok | O32: ok | P32: ok | Q32: ok
A33: ok | B33: ok | C33: ok | D33: ok | E33: ok | F33: ok | G33: ok | H33: ok | I33: ok | J33: ok | K33: ok | L33: ok | M33: ok | N33: ok | O33: ok | P33: ok | Q33: ok
A37: Annix
C38: ABCD | D38: ABCE | E38: ABCF | F38: ABDE | G38: ABDF | H38: ABEF | I38: ACDE | J38: ACDF | K38: ACEF | L38: ADEF | M38: BCDE | N38: BCDF | O38: BCEF | P38: BDEF | Q38: CDEF
A39: 1A | B39: 2C
A40: 2A | B40: 2B
A41: 1B | B41: 3ADEF | C41: =INDEX(#REF!, MATCH(C$38,#REF!, 0)) ->  | D41: =INDEX(#REF!, MATCH(D$38,#REF!, 0)) ->  | E41: =INDEX(#REF!, MATCH(E$38,#REF!, 0)) ->  | F41: =INDEX(#REF!, MATCH(F$38,#REF!, 0)) ->  | G41: =INDEX(#REF!, MATCH(G$38,#REF!, 0)) ->  | H41: =INDEX(#REF!, MATCH(H$38,#REF!, 0)) ->  | I41: =INDEX(#REF!, MATCH(I$38,#REF!, 0)) ->  | J41: =INDEX(#REF!, MATCH(J$38,#REF!, 0)) ->  | K41: =INDEX(#REF!, MATCH(K$38,#REF!, 0)) ->  | L41: =INDEX(#REF!, MATCH(L$38,#REF!, 0)) ->  | M41: =INDEX(#REF!, MATCH(M$38,#REF!, 0)) ->  | N41: =INDEX(#REF!, MATCH(N$38,#REF!, 0)) ->  | O41: =INDEX(#REF!, MATCH(O$38,#REF!, 0)) ->  | P41: =INDEX(#REF!, MATCH(P$38,#REF!, 0)) ->  | Q41: =INDEX(#REF!, MATCH(Q$38,#REF!, 0)) -> 
A42: 1C | B42: 3DEF | C42: =INDEX(#REF!, MATCH(C$38,#REF!, 0)) ->  | D42: =INDEX(#REF!, MATCH(D$38,#REF!, 0)) ->  | E42: =INDEX(#REF!, MATCH(E$38,#REF!, 0)) ->  | F42: =INDEX(#REF!, MATCH(F$38,#REF!, 0)) ->  | G42: =INDEX(#REF!, MATCH(G$38,#REF!, 0)) ->  | H42: =INDEX(#REF!, MATCH(H$38,#REF!, 0)) ->  | I42: =INDEX(#REF!, MATCH(I$38,#REF!, 0)) ->  | J42: =INDEX(#REF!, MATCH(J$38,#REF!, 0)) ->  | K42: =INDEX(#REF!, MATCH(K$38,#REF!, 0)) ->  | L42: =INDEX(#REF!, MATCH(L$38,#REF!, 0)) ->  | M42: =INDEX(#REF!, MATCH(M$38,#REF!, 0)) ->  | N42: =INDEX(#REF!, MATCH(N$38,#REF!, 0)) ->  | O42: =INDEX(#REF!, MATCH(O$38,#REF!, 0)) ->  | P42: =INDEX(#REF!, MATCH(P$38,#REF!, 0)) ->  | Q42: =INDEX(#REF!, MATCH(Q$38,#REF!, 0)) -> 
A43: 1D | B43: 2F
A44: 2D | B44: 2E
A45: 1E | B45: 3ABCD | C45: =INDEX(#REF!, MATCH(C$38,#REF!, 0)) ->  | D45: =INDEX(#REF!, MATCH(D$38,#REF!, 0)) ->  | E45: =INDEX(#REF!, MATCH(E$38,#REF!, 0)) ->  | F45: =INDEX(#REF!, MATCH(F$38,#REF!, 0)) ->  | G45: =INDEX(#REF!, MATCH(G$38,#REF!, 0)) ->  | H45: =INDEX(#REF!, MATCH(H$38,#REF!, 0)) ->  | I45: =INDEX(#REF!, MATCH(I$38,#REF!, 0)) ->  | J45: =INDEX(#REF!, MATCH(J$38,#REF!, 0)) ->  | K45: =INDEX(#REF!, MATCH(K$38,#REF!, 0)) ->  | L45: =INDEX(#REF!, MATCH(L$38,#REF!, 0)) ->  | M45: =INDEX(#REF!, MATCH(M$38,#REF!, 0)) ->  | N45: =INDEX(#REF!, MATCH(N$38,#REF!, 0)) ->  | O45: =INDEX(#REF!, MATCH(O$38,#REF!, 0)) ->  | P45: =INDEX(#REF!, MATCH(P$38,#REF!, 0)) ->  | Q45: =INDEX(#REF!, MATCH(Q$38,#REF!, 0)) -> 
A46: 1F | B46: 3ABC | C46: =INDEX(#REF!, MATCH(C$38,#REF!, 0)) ->  | D46: =INDEX(#REF!, MATCH(D$38,#REF!, 0)) ->  | E46: =INDEX(#REF!, MATCH(E$38,#REF!, 0)) ->  | F46: =INDEX(#REF!, MATCH(F$38,#REF!, 0)) ->  | G46: =INDEX(#REF!, MATCH(G$38,#REF!, 0)) ->  | H46: =INDEX(#REF!, MATCH(H$38,#REF!, 0)) ->  | I46: =INDEX(#REF!, MATCH(I$38,#REF!, 0)) ->  | J46: =INDEX(#REF!, MATCH(J$38,#REF!, 0)) ->  | K46: =INDEX(#REF!, MATCH(K$38,#REF!, 0)) ->  | L46: =INDEX(#REF!, MATCH(L$38,#REF!, 0)) ->  | M46: =INDEX(#REF!, MATCH(M$38,#REF!, 0)) ->  | N46: =INDEX(#REF!, MATCH(N$38,#REF!, 0)) ->  | O46: =INDEX(#REF!, MATCH(O$38,#REF!, 0)) ->  | P46: =INDEX(#REF!, MATCH(P$38,#REF!, 0)) ->  | Q46: =INDEX(#REF!, MATCH(Q$38,#REF!, 0)) -> 
A50: =IF(A3=A40,"ok","Mist") -> ok | B50: ok | C50: ok | D50: ok | E50: ok | F50: ok | G50: ok | H50: ok | I50: ok | J50: ok | K50: ok | L50: ok | M50: ok | N50: ok | O50: ok | P50: ok | Q50: ok
A51: =IF(A4=A41,"ok","Mist") -> ok | B51: =IF(B4=B41,"ok","Mist") -> ok | C51: =IF(C4=C41,"ok","Mist") ->  | D51: =IF(D4=D41,"ok","Mist") -> 
A52: =IF(A5=A42,"ok","Mist") -> ok | B52: ok
A53: =IF(A6=A43,"ok","Mist") -> ok | B53: ok | C53: ok | D53: ok | E53: ok | F53: ok | G53: ok | H53: ok | I53: ok | J53: ok | K53: ok | L53: ok | M53: ok | N53: ok | O53: ok | P53: ok | Q53: ok
A54: =IF(A7=A44,"ok","Mist") -> ok | B54: ok | C54: ok | D54: ok | E54: ok | F54: ok | G54: ok | H54: ok | I54: ok | J54: ok | K54: ok | L54: ok | M54: ok | N54: ok | O54: ok | P54: ok | Q54: ok
A55: =IF(A8=A45,"ok","Mist") -> ok | B55: ok
A56: =IF(A9=A46,"ok","Mist") -> ok | B56: ok
A57: =IF(A10=A47,"ok","Mist") -> ok | B57: ok | C57: ok | D57: ok | E57: ok | F57: ok | G57: ok | H57: ok | I57: ok | J57: ok | K57: ok | L57: ok | M57: ok | N57: ok | O57: ok | P57: ok | Q57: ok
A58: =IF(A11=A48,"ok","Mist") -> ok | B58: ok | C58: ok | D58: ok | E58: ok | F58: ok | G58: ok | H58: ok | I58: ok | J58: ok | K58: ok | L58: ok | M58: ok | N58: ok | O58: ok | P58: ok | Q58: ok
C60: =CODE(C41) ->  | D60: =CODE(D41) -> 
C61: =CODE(C42) ->  | D61: =CODE(D42) -> 
C62: =CODE(C45) ->  | D62: =CODE(D45) -> 
C63: =CODE(C46) ->  | D63: =CODE(D46) -> 
C65: =SMALL(C$60:C$63,1) ->  | D65: =SMALL(D$60:D$63,1) -> 
C66: =SMALL(C$60:C$63,2) ->  | D66: =SMALL(D$60:D$63,2) -> 
C67: =SMALL(C$60:C$63,3) ->  | D67: =SMALL(D$60:D$63,3) -> 
C68: =SMALL(C$60:C$63,4) ->  | D68: =SMALL(D$60:D$63,4) -> 
C70: =CHAR(C65)&CHAR(C66)&CHAR(C67)&CHAR(C68) ->  | D70: =CHAR(D65)&CHAR(D66)&CHAR(D67)&CHAR(D68) -> 
C72: =IF(C38=C70,"ok","???") ->  | D72: =IF(D38=D70,"ok","???") -> 

Sheet Gruppendritte-Bernd
C1: ABCD | D1: ABCE | E1: ABCF | F1: ABDE | G1: ABDF | H1: ABEF | I1: ACDE | J1: ACDF | K1: ACEF | L1: ADEF | M1: BCDE | N1: BCDF | O1: BCEF | P1: BDEF | Q1: CDEF | Y1: 1B | AB1: 1A | AE1: 1D | AH1: 1C
A2: 1B | B2: 3ACD | C2: C | D2: A | E2: A | F2: A | G2: A | H2: A | I2: C | J2: C | K2: A | L2: A | M2: C | N2: C | O2: C | P2: D | Q2: C | S2: A | T2: wenn | U2: ABCE,ABCF,ABDE,ABDF,ABEF,ACEF,ADEF | Y2: A | Z2: C | AA2: D | AB2: C | AC2: D | AD2: E | AE2: B | AF2: E | AG2: F | AH2: A | AI2: B | AJ2: F
A3: 2A | B3: 2C | S3: C | T3: wenn | U3: ABCD,ACDE,ACDF,BCDE,BCDF.BCEF,CDEF | Y3: ABCE | Z3: ABCD | AA3: BDEF | AB3: ABCE | AC3: ABCD | AD3: ABEF | AE3: ABCD | AF3: ABCE | AG3: ACDF | AH3: ABCD | AI3: ABCE | AJ3: ABCF
A4: 1E | B4: 2D | S4: D | T4: wenn | U4: BDEF | Y4: ABCF | Z4: ACDE | AB4: ABCF | AC4: ABDE | AD4: BCEF | AE4: ABCF | AF4: ABDE | AH4: ACDE | AI4: ABDE | AJ4: ABDF
A5: 1F | B5: 2E | Y5: ABDE | Z5: ACDF | AB5: ACEF | AC5: ABDF | AD5: BDEF | AE5: ABDF | AF5: ACDE | AH5: ACDF | AI5: BCDE | AJ5: ABEF
A6: 1A | B6: 3CDE | C6: D | D6: C | E6: C | F6: D | G6: D | H6: E | I6: D | J6: D | K6: C | L6: D | M6: D | N6: D | O6: E | P6: E | Q6: D | S6: C | T6: wenn | U6: ABCE,ABCF,ACEF | Y6: ABDF | Z6: BCDE | AC6: ACDE | AE6: ABEF | AF6: ACEF | AJ6: ACEF
A7: 2B | B7: 2F | S7: D | T7: wenn | U7: ABCD,ABDE,ABDF,ACDE,ACDF,ADEF,BCDE,BCDF,CDEF | Y7: ABEF | Z7: BCDF | AC7: ACDF | AE7: BCDF | AF7: ADEF | AJ7: ADEF
A8: 1D | B8: 3BEF | C8: B | D8: E | E8: B | F8: E | G8: B | H8: B | I8: E | J8: F | K8: E | L8: E | M8: E | N8: B | O8: B | P8: B | Q8: E | S8: E | T8: wenn | U8: ABEF,BCEF,BDEF | Y8: ACEF | Z8: BCEF | AC8: ADEF | AE8: BCEF | AF8: BCDE | AJ8: BCDF
A9: 1C | B9: 3ABF | C9: A | D9: B | E9: F | F9: B | G9: F | H9: F | I9: A | J9: A | K9: F | L9: F | M9: B | N9: F | O9: F | P9: F | Q9: F | Y9: ADEF | Z9: CDEF | AC9: BCDE | AE9: BDEF | AF9: CDEF | AJ9: BCEF
S10: B | T10: wenn | U10: ABCD,ABCF,ABDF,ABEF,BCDF,BCEF,BDEF | AC10: BCDF | AJ10: BDEF
S11: E | T11: wenn | U11: ABCE,ABDE,ACDE,ACEF,ADEF,BCDE,CDEF | AC11: CDEF | AJ11: CDEF
C12: ABCD | D12: ABCE | E12: ABCF | F12: ABDE | G12: ABDF | H12: ABEF | I12: ACDE | J12: ACDF | K12: ACEF | L12: ADEF | S12: F | T12: wenn | U12: ACDF
I13: BCDE | J13: BCDF | K13: BCEF | L13: BDEF
L14: CDEF | S14: A | T14: wenn | U14: ABCD,ACDE,ACDF
S15: B | T15: wenn | U15: ABCE,ABDE,BCDE
S16: F | T16: wenn | U16: ABCF,ABDF,ABEF,ACEF,ADEF,BCDF,BCEF,BDEF,CDEF
C17: ABCD | D17: ABCE | E17: ABCF | F17: ABDE | G17: ABDF | H17: ABEF
F18: ACDE | G18: ACDF | H18: ACEF
H19: ADEF
F20: BCDE | G20: BCDF | H20: BCEF
H21: BDEF
H22: CDEF
A24: Formel:
C25: ABCD | D25: ABCE | E25: ABCF | F25: ABDE | G25: ABDF | H25: ABEF | I25: ACDE | J25: ACDF | K25: ACEF | L25: ADEF | M25: BCDE | N25: BCDF | O25: BCEF | P25: BDEF | Q25: CDEF
A26: 1B | B26: 3ACD | C26: =IF(COUNTIF($Y$3:$Y$11,C$25)>0,$Y$2,IF(COUNTIF($Z$3:$Z$11,C$25)>0,$Z$2,IF(COUNTIF($AA$3:$AA$11,C$25)>0,$AA$2,CONCATENATE("??? ",C$25)))) -> C | D26: =IF(COUNTIF($Y$3:$Y$11,D$25)>0,$Y$2,IF(COUNTIF($Z$3:$Z$11,D$25)>0,$Z$2,IF(COUNTIF($AA$3:$AA$11,D$25)>0,$AA$2,CONCATENATE("??? ",D$25)))) -> A | E26: =IF(COUNTIF($Y$3:$Y$11,E$25)>0,$Y$2,IF(COUNTIF($Z$3:$Z$11,E$25)>0,$Z$2,IF(COUNTIF($AA$3:$AA$11,E$25)>0,$AA$2,CONCATENATE("??? ",E$25)))) -> A | F26: A | G26: A | H26: A | I26: C | J26: C | K26: A | L26: A | M26: C | N26: C | O26: C | P26: D | Q26: C
A27: 2A | B27: 2C
A28: 1E | B28: 2D
A29: 1F | B29: 2E
A30: 1A | B30: 3CDE | C30: =IF(COUNTIF($AB$3:$AB$11,C$25)>0,$AB$2,IF(COUNTIF($AC$3:$AC$11,C$25)>0,$AC$2,IF(COUNTIF($AD$3:$AD$11,C$25)>0,$AD$2,CONCATENATE("??? ",C$25)))) -> D | D30: C | E30: C | F30: D | G30: D | H30: E | I30: D | J30: D | K30: C | L30: D | M30: D | N30: D | O30: E | P30: E | Q30: D
A31: 2B | B31: 2F
A32: 1D | B32: 3BEF | C32: =IF(COUNTIF($AE$3:$AE$11,C$25)>0,$AE$2,IF(COUNTIF($AF$3:$AF$11,C$25)>0,$AF$2,IF(COUNTIF($AG$3:$AG$11,C$25)>0,$AG$2,CONCATENATE("??? ",C$25)))) -> B | D32: =IF(COUNTIF($AE$3:$AE$11,D$25)>0,$AE$2,IF(COUNTIF($AF$3:$AF$11,D$25)>0,$AF$2,IF(COUNTIF($AG$3:$AG$11,D$25)>0,$AG$2,CONCATENATE("??? ",D$25)))) -> E | E32: B | F32: E | G32: B | H32: B | I32: E | J32: F | K32: E | L32: E | M32: E | N32: B | O32: B | P32: B | Q32: E
A33: 1C | B33: 3ABF | C33: =IF(COUNTIF($AH$3:$AH$11,C$25)>0,$AH$2,IF(COUNTIF($AI$3:$AI$11,C$25)>0,$AI$2,IF(COUNTIF($AJ$3:$AJ$11,C$25)>0,$AJ$2,CONCATENATE("??? ",C$25)))) -> A | D33: =IF(COUNTIF($AH$3:$AH$11,D$25)>0,$AH$2,IF(COUNTIF($AI$3:$AI$11,D$25)>0,$AI$2,IF(COUNTIF($AJ$3:$AJ$11,D$25)>0,$AJ$2,CONCATENATE("??? ",D$25)))) -> B | E33: F | F33: B | G33: F | H33: F | I33: A | J33: A | K33: F | L33: F | M33: B | N33: F | O33: F | P33: F | Q33: F
A37: Annix
C38: ABCD | D38: ABCE | E38: ABCF | F38: ABDE | G38: ABDF | H38: ABEF | I38: ACDE | J38: ACDF | K38: ACEF | L38: ADEF | M38: BCDE | N38: BCDF | O38: BCEF | P38: BDEF | Q38: CDEF
A39: 1B | B39: 3ACD | C39: =INDEX(#REF!, MATCH(C$38,#REF!, 0)) ->  | D39: =INDEX(#REF!, MATCH(D$38,#REF!, 0)) ->  | E39: =INDEX(#REF!, MATCH(E$38,#REF!, 0)) ->  | F39: =INDEX(#REF!, MATCH(F$38,#REF!, 0)) ->  | G39: =INDEX(#REF!, MATCH(G$38,#REF!, 0)) ->  | H39: =INDEX(#REF!, MATCH(H$38,#REF!, 0)) ->  | I39: =INDEX(#REF!, MATCH(I$38,#REF!, 0)) ->  | J39: =INDEX(#REF!, MATCH(J$38,#REF!, 0)) ->  | K39: =INDEX(#REF!, MATCH(K$38,#REF!, 0)) ->  | L39: =INDEX(#REF!, MATCH(L$38,#REF!, 0)) ->  | M39: =INDEX(#REF!, MATCH(M$38,#REF!, 0)) ->  | N39: =INDEX(#REF!, MATCH(N$38,#REF!, 0)) ->  | O39: =INDEX(#REF!, MATCH(O$38,#REF!, 0)) ->  | P39: =INDEX(#REF!, MATCH(P$38,#REF!, 0)) ->  | Q39: =INDEX(#REF!, MATCH(Q$38,#REF!, 0)) -> 
A40: 2A | B40: 2C
A41: 1E | B41: 2D
A42: 1F | B42: 2E
A43: 1A | B43: 3CDE | C43: =INDEX(#REF!, MATCH(C$38,#REF!, 0)) ->  | D43: =INDEX(#REF!, MATCH(D$38,#REF!, 0)) ->  | E43: =INDEX(#REF!, MATCH(E$38,#REF!, 0)) ->  | F43: =INDEX(#REF!, MATCH(F$38,#REF!, 0)) ->  | G43: =INDEX(#REF!, MATCH(G$38,#REF!, 0)) ->  | H43: =INDEX(#REF!, MATCH(H$38,#REF!, 0)) ->  | I43: =INDEX(#REF!, MATCH(I$38,#REF!, 0)) ->  | J43: =INDEX(#REF!, MATCH(J$38,#REF!, 0)) ->  | K43: =INDEX(#REF!, MATCH(K$38,#REF!, 0)) ->  | L43: =INDEX(#REF!, MATCH(L$38,#REF!, 0)) ->  | M43: =INDEX(#REF!, MATCH(M$38,#REF!, 0)) ->  | N43: =INDEX(#REF!, MATCH(N$38,#REF!, 0)) ->  | O43: =INDEX(#REF!, MATCH(O$38,#REF!, 0)) ->  | P43: =INDEX(#REF!, MATCH(P$38,#REF!, 0)) ->  | Q43: =INDEX(#REF!, MATCH(Q$38,#REF!, 0)) -> 
A44: 2B | B44: 2F
A45: 1D | B45: 3BEF | C45: =INDEX(#REF!, MATCH(C$38,#REF!, 0)) ->  | D45: =INDEX(#REF!, MATCH(D$38,#REF!, 0)) ->  | E45: =INDEX(#REF!, MATCH(E$38,#REF!, 0)) ->  | F45: =INDEX(#REF!, MATCH(F$38,#REF!, 0)) ->  | G45: =INDEX(#REF!, MATCH(G$38,#REF!, 0)) ->  | H45: =INDEX(#REF!, MATCH(H$38,#REF!, 0)) ->  | I45: =INDEX(#REF!, MATCH(I$38,#REF!, 0)) ->  | J45: =INDEX(#REF!, MATCH(J$38,#REF!, 0)) ->  | K45: =INDEX(#REF!, MATCH(K$38,#REF!, 0)) ->  | L45: =INDEX(#REF!, MATCH(L$38,#REF!, 0)) ->  | M45: =INDEX(#REF!, MATCH(M$38,#REF!, 0)) ->  | N45: =INDEX(#REF!, MATCH(N$38,#REF!, 0)) ->  | O45: =INDEX(#REF!, MATCH(O$38,#REF!, 0)) ->  | P45: =INDEX(#REF!, MATCH(P$38,#REF!, 0)) ->  | Q45: =INDEX(#REF!, MATCH(Q$38,#REF!, 0)) -> 
A46: 1C | B46: 3ABF | C46: =INDEX(#REF!, MATCH(C$38,#REF!, 0)) ->  | D46: =INDEX(#REF!, MATCH(D$38,#REF!, 0)) ->  | E46: =INDEX(#REF!, MATCH(E$38,#REF!, 0)) ->  | F46: =INDEX(#REF!, MATCH(F$38,#REF!, 0)) ->  | G46: =INDEX(#REF!, MATCH(G$38,#REF!, 0)) ->  | H46: =INDEX(#REF!, MATCH(H$38,#REF!, 0)) ->  | I46: =INDEX(#REF!, MATCH(I$38,#REF!, 0)) ->  | J46: =INDEX(#REF!, MATCH(J$38,#REF!, 0)) ->  | K46: =INDEX(#REF!, MATCH(K$38,#REF!, 0)) ->  | L46: =INDEX(#REF!, MATCH(L$38,#REF!, 0)) ->  | M46: =INDEX(#REF!, MATCH(M$38,#REF!, 0)) ->  | N46: =INDEX(#REF!, MATCH(N$38,#REF!, 0)) ->  | O46: =INDEX(#REF!, MATCH(O$38,#REF!, 0)) ->  | P46: =INDEX(#REF!, MATCH(P$38,#REF!, 0)) ->  | Q46: =INDEX(#REF!, MATCH(Q$38,#REF!, 0)) -> 
A50: =IF(A3=A41,"ok","Mist") -> Mist | B50: Mist | C50: ok | D50: ok | E50: ok | F50: ok | G50: ok | H50: ok | I50: ok | J50: ok | K50: ok | L50: ok | M50: ok | N50: ok | O50: ok | P50: ok | Q50: ok
A51: =IF(A4=A39,"ok","Mist") -> Mist | B51: =IF(B4=B39,"ok","Mist") -> Mist | C51: =IF(C4=C41,"ok","Mist") -> ok | D51: ok | E51: ok | F51: ok | G51: ok | H51: ok | I51: ok | J51: ok | K51: ok | L51: ok | M51: ok | N51: ok | O51: ok | P51: ok | Q51: ok
A52: =IF(A5=A42,"ok","Mist") -> ok | B52: ok | C52: =IF(C5=C42,"ok","Mist") -> ok | D52: ok | E52: ok | F52: ok | G52: ok | H52: ok | I52: ok | J52: ok | K52: ok | L52: ok | M52: ok | N52: ok | O52: ok | P52: ok | Q52: ok
A53: ok | B53: ok | C53: =IF(C6=C43,"ok","Mist") -> 
A54: ok | B54: ok | C54: =IF(C7=C44,"ok","Mist") -> ok | D54: ok | E54: ok | F54: ok | G54: ok | H54: ok | I54: ok | J54: ok | K54: ok | L54: ok | M54: ok | N54: ok | O54: ok | P54: ok | Q54: ok
A55: ok | B55: ok | C55: =IF(C8=C45,"ok","Mist") -> 
A56: ok | B56: ok | C56: =IF(C9=C46,"ok","Mist") -> 
A57: ok | B57: ok | C57: =IF(C10=C47,"ok","Mist") -> ok | D57: ok | E57: ok | F57: ok | G57: ok | H57: ok | I57: ok | J57: ok | K57: ok | L57: ok | M57: ok | N57: ok | O57: ok | P57: ok | Q57: ok
A58: ok | B58: ok | C58: =IF(C11=C48,"ok","Mist") -> ok | D58: ok | E58: ok | F58: ok | G58: ok | H58: ok | I58: ok | J58: ok | K58: ok | L58: ok | M58: ok | N58: ok | O58: ok | P58: ok | Q58: ok
C60: =CODE(C39) ->  | D60: =CODE(D39) -> 
C61: =CODE(C43) ->  | D61: =CODE(D43) -> 
C62: =CODE(C45) ->  | D62: =CODE(D45) -> 
C63: =CODE(C46) ->  | D63: =CODE(D46) -> 
C65: =SMALL(C$60:C$63,1) ->  | D65: =SMALL(D$60:D$63,1) -> 
C66: =SMALL(C$60:C$63,2) ->  | D66: =SMALL(D$60:D$63,2) -> 
C67: =SMALL(C$60:C$63,3) ->  | D67: =SMALL(D$60:D$63,3) -> 
C68: =SMALL(C$60:C$63,4) ->  | D68: =SMALL(D$60:D$63,4) -> 
C70: =CHAR(C65)&CHAR(C66)&CHAR(C67)&CHAR(C68) ->  | D70: =CHAR(D65)&CHAR(D66)&CHAR(D67)&CHAR(D68) -> 
C72: =IF(C38=C70,"ok","???") -> 

Sheet EM2024-Plan-mit-Annix
A1: SP | B1: Vorrunde | C1: Gruppe A | M1: Tabelle | N1: P | O1: T+ | P1: T- | Q1: T+/- | X1: G | Y1: Berechnungen | Z1: P | AA1: T+ | AB1: T- | AC1: T+/- | AE1: L0 | AF1: DV | AJ1: S1 | AK1: L1 | AL1: DV-TD | AP1: S2 | AQ1: DV-Tore | AU1: S3 | AV1: L4 | BB1: Vorrunde | BC1: Gruppe D | BM1: Tabelle | BN1: P | BO1: T+ | BP1: T- | BQ1: T+/- | BX1: G | BY1: Berechnungen | BZ1: P | CA1: T+ | CB1: T- | CC1: T+/- | CE1: L0 | CF1: DV | CJ1: S1 | CK1: L1 | CL1: DV-TD | CP1: S2 | CQ1: DV-Tore | CU1: S3 | CV1: L4
B2: Datum/Zeit | C2: Spielort | M2: =VLOOKUP(1,$X$2:$AC$5,2,FALSE) -> Ungarn | N2: =VLOOKUP(1,$X$2:$AC$5,3,FALSE) -> 7 | O2: =VLOOKUP(1,$X$2:$AC$5,4,FALSE) -> 7 | P2: =VLOOKUP(1,$X$2:$AC$5,5,FALSE) -> 5 | Q2: =VLOOKUP(1,$X$2:$AC$5,6,FALSE) -> 2 | T2: =IF(H3="",0,IF(K3=$B$65,IF(H3>J3,3,IF(H3=J3,1,0)),0)) -> 3 | U2: =IF(H5="",0,IF(K5=$B$65,IF(H5>J5,3,IF(H5=J5,1,0)),0)) -> 0 | V2: =IF(J7="",0,IF(K8=$B$65,IF(H7<J7,3,IF(H7=J7,1,0)),0)) -> 3 | X2: =RANK(AD2,$AD$2:$AD$5) -> 2 | Y2: Deutschland | Z2: =SUM(S2:V2) -> 6 | AA2: =SUM(S6:V6) -> 10 | AB2: =SUM(S6:S9) -> 7 | AC2: =AA2-AB2 -> 3 | AD2: =IF(P$8="",(((((((AE2*10+Z2)*100+AC2)*100+AA2)*10+AK2)*10+AJ2)*100+AP2)*100+AU2)*10+AV2,(((((((AE2*10+Z2)*10+AK2)*10+AJ2)*100+AP2)*100+AU2)*100+AC2)*100+AA2)*10+AV2) -> 600000003104 | AG2: =IF($Z2=$Z3,$T2-$S3,0) -> 0 | AH2: =IF($Z2=$Z4,$U2-$S4,0) -> 0 | AI2: =IF($Z2=$Z5,$V2-$S5,0) -> 0 | AJ2: =SUM(AF2:AI2) -> 0 | AM2: =IF($Z2=$Z3,$T6-$S7,0) -> 0 | AN2: =IF($Z2=$Z4,$U6-$S8,0) -> 0 | AO2: =IF($Z2=$Z5,$V6-$S9,0) -> 0 | AP2: =SUM(AL2:AO2) -> 0 | AR2: =IF($Z2=$Z3,$T6,0) -> 0 | AS2: =IF($Z2=$Z4,$U6,0) -> 0 | AT2: =IF($Z2=$Z5,$V6,0) -> 0 | AU2: =SUM(AQ2:AT2) -> 0 | AV2: 4 | BB2: Datum/Zeit | BC2: Spielort | BM2: =VLOOKUP(1,$BX$2:$CC$5,2,FALSE) -> Polen | BN2: =VLOOKUP(1,$BX$2:$CC$5,3,FALSE) -> 6 | BO2: =VLOOKUP(1,$BX$2:$CC$5,4,FALSE) -> 7 | BP2: =VLOOKUP(1,$BX$2:$CC$5,5,FALSE) -> 5 | BQ2: =VLOOKUP(1,$BX$2:$CC$5,6,FALSE) -> 2 | BT2: =IF(BH3="",0,IF(BK3=$B$65,IF(BH3>BJ3,3,IF(BH3=BJ3,1,0)),0)) -> 0 | BU2: =IF(BH5="",0,IF(BK5=$B$65,IF(BH5>BJ5,3,IF(BH5=BJ5,1,0)),0)) -> 3 | BV2: =IF(BJ7="",0,IF(BK8=$B$65,IF(BH7<BJ7,3,IF(BH7=BJ7,1,0)),0)) -> 3 | BX2: =RANK(CD2,$CD$2:$CD$5) -> 1 | BY2: Polen | BZ2: =SUM(BS2:BV2) -> 6 | CA2: =SUM(BS6:BV6) -> 7 | CB2: =SUM(BS6:BS9) -> 5 | CC2: =CA2-CB2 -> 2 | CD2: =IF(BP$8="",(((((((CE2*10+BZ2)*100+CC2)*100+CA2)*10+CK2)*10+CJ2)*100+CP2)*100+CU2)*10+CV2,(((((((CE2*10+BZ2)*10+CK2)*10+CJ2)*100+CP2)*100+CU2)*100+CC2)*100+CA2)*10+CV2) -> 603030402074 | CG2: =IF($BZ2=$BZ3,$BT2-$BS3,0) -> 0 | CH2: =IF($BZ2=$BZ4,$BU2-$BS4,0) -> 3 | CI2: =IF($BZ2=$BZ5,$BV2-$BS5,0) -> 0 | CJ2: =SUM(CF2:CI2) -> 3 | CM2: =IF($BZ2=$BZ3,$BT6-$BS7,0) -> 0 | CN2: =IF($BZ2=$BZ4,$BU6-$BS8,0) -> 3 | CO2: =IF($BZ2=$BZ5,$BV6-$BS9,0) -> 0 | CP2: =SUM(CL2:CO2) -> 3 | CR2: =IF($BZ2=$BZ3,$BT6,0) -> 0 | CS2: =IF($BZ2=$BZ4,$BU6,0) -> 4 | CT2: =IF($BZ2=$BZ5,$BV6,0) -> 0 | CU2: =SUM(CQ2:CT2) -> 4 | CV2: 4
A3: 1 | B3: 2024-06-14T21:00:00 | C3: München | D3: =Y2 -> Deutschland | E3: - | F3: =Y3 -> Schottland | H3: =IF($B$66="",1,INT(RAND()*5)+INT(RAND()*3)*INT(RAND()*2)) -> 4 | I3: : | J3: =IF($B$66="",0,INT(RAND()*5)+INT(RAND()*3)*INT(RAND()*2)) -> 1 | K3: ok | M3: =VLOOKUP(2,$X$2:$AC$5,2,FALSE) -> Deutschland | N3: =VLOOKUP(2,$X$2:$AC$5,3,FALSE) -> 6 | O3: =VLOOKUP(2,$X$2:$AC$5,4,FALSE) -> 10 | P3: =VLOOKUP(2,$X$2:$AC$5,5,FALSE) -> 7 | Q3: =VLOOKUP(2,$X$2:$AC$5,6,FALSE) -> 3 | S3: =IF(J3="",0,IF(K3=$B$65,IF(H3<J3,3,IF(H3=J3,1,0)),0)) -> 0 | U3: =IF(H8="",0,IF(K7=$B$65,IF(H8>J8,3,IF(H8=J8,1,0)),0)) -> 1 | V3: =IF(H6="",0,IF(K6=$B$65,IF(H6>J6,3,IF(H6=J6,1,0)),0)) -> 3 | X3: =RANK(AD3,$AD$2:$AD$5) -> 3 | Y3: Schottland | Z3: =SUM(S3:V3) -> 4 | AA3: =SUM(S7:V7) -> 6 | AB3: =SUM(T6:T9) -> 6 | AC3: =AA3-AB3 -> 0 | AD3: =IF(P$8="",(((((((AE3*10+Z3)*100+AC3)*100+AA3)*10+AK3)*10+AJ3)*100+AP3)*100+AU3)*10+AV3,(((((((AE3*10+Z3)*10+AK3)*10+AJ3)*100+AP3)*100+AU3)*100+AC3)*100+AA3)*10+AV3) -> 400000000063 | AF3: =IF($Z3=$Z2,$S3-$T2,0) -> 0 | AH3: =IF($Z3=$Z4,$U3-$T4,0) -> 0 | AI3: =IF($Z3=$Z5,$V3-$T5,0) -> 0 | AJ3: =SUM(AF3:AI3) -> 0 | AL3: =IF($Z3=$Z2,$S7-$T6,0) -> 0 | AN3: =IF($Z3=$Z4,$U7-$T8,0) -> 0 | AO3: =IF($Z3=$Z5,$V7-$T9,0) -> 0 | AP3: =SUM(AL3:AO3) -> 0 | AQ3: =IF($Z3=$Z2,$S7,0) -> 0 | AS3: =IF($Z3=$Z4,$U7,0) -> 0 | AT3: =IF($Z3=$Z5,$V7,0) -> 0 | AU3: =SUM(AQ3:AT3) -> 0 | AV3: 3 | BA3: 7 | BB3: 2024-06-16T15:00:00 | BC3: Hamburg | BD3: =BY2 -> Polen | BE3: - | BF3: =BY3 -> Niederlande | BH3: =IF($B$66="",1,INT(RAND()*5)+INT(RAND()*3)*INT(RAND()*2)) -> 1 | BI3: : | BJ3: =IF($B$66="",0,INT(RAND()*5)+INT(RAND()*3)*INT(RAND()*2)) -> 3 | BK3: ok | BM3: =VLOOKUP(2,$BX$2:$CC$5,2,FALSE) -> Österreich | BN3: =VLOOKUP(2,$BX$2:$CC$5,3,FALSE) -> 6 | BO3: =VLOOKUP(2,$BX$2:$CC$5,4,FALSE) -> 9 | BP3: =VLOOKUP(2,$BX$2:$CC$5,5,FALSE) -> 10 | BQ3: =VLOOKUP(2,$BX$2:$CC$5,6,FALSE) -> -1 | BS3: =IF(BJ3="",0,IF(BK3=$B$65,IF(BH3<BJ3,3,IF(BH3=BJ3,1,0)),0)) -> 3 | BU3: =IF(BH8="",0,IF(BK7=$B$65,IF(BH8>BJ8,3,IF(BH8=BJ8,1,0)),0)) -> 0 | BV3: =IF(BH6="",0,IF(BK6=$B$65,IF(BH6>BJ6,3,IF(BH6=BJ6,1,0)),0)) -> 0 | BX3: =RANK(CD3,$CD$2:$CD$5) -> 4 | BY3: Niederlande | BZ3: =SUM(BS3:BV3) -> 3 | CA3: =SUM(BS7:BV7) -> 6 | CB3: =SUM(BT6:BT9) -> 7 | CC3: =CA3-CB3 -> -1 | CD3: =IF(BP$8="",(((((((CE3*10+BZ3)*100+CC3)*100+CA3)*10+CK3)*10+CJ3)*100+CP3)*100+CU3)*10+CV3,(((((((CE3*10+BZ3)*10+CK3)*10+CJ3)*100+CP3)*100+CU3)*100+CC3)*100+CA3)*10+CV3) -> 296979999063 | CF3: =IF($BZ3=$BZ2,$BS3-$BT2,0) -> 0 | CH3: =IF($BZ3=$BZ4,$BU3-$BT4,0) -> 0 | CI3: =IF($BZ3=$BZ5,$BV3-$BT5,0) -> -3 | CJ3: =SUM(CF3:CI3) -> -3 | CL3: =IF($BZ3=$BZ2,$BS7-$BT6,0) -> 0 | CN3: =IF($BZ3=$BZ4,$BU7-$BT8,0) -> 0 | CO3: =IF($BZ3=$BZ5,$BV7-$BT9,0) -> -2 | CP3: =SUM(CL3:CO3) -> -2 | CQ3: =IF($BZ3=$BZ2,$BS7,0) -> 0 | CS3: =IF($BZ3=$BZ4,$BU7,0) -> 0 | CT3: =IF($BZ3=$BZ5,$BV7,0) -> 0 | CU3: =SUM(CQ3:CT3) -> 0 | CV3: 3
A4: =A3+1 -> 2 | B4: 2024-06-15T15:00:00 | C4: Köln | D4: =Y4 -> Ungarn | E4: - | F4: =Y5 -> Schweiz | H4: 2 | I4: : | J4: 1 | K4: ok | M4: =VLOOKUP(3,$X$2:$AC$5,2,FALSE) -> Schottland | N4: =VLOOKUP(3,$X$2:$AC$5,3,FALSE) -> 4 | O4: =VLOOKUP(3,$X$2:$AC$5,4,FALSE) -> 6 | P4: =VLOOKUP(3,$X$2:$AC$5,5,FALSE) -> 6 | Q4: =VLOOKUP(3,$X$2:$AC$5,6,FALSE) -> 0 | S4: =IF(J5="",0,IF(K5=$B$65,IF(H5<J5,3,IF(H5=J5,1,0)),0)) -> 3 | T4: =IF(J8="",0,IF(K7=$B$65,IF(H8<J8,3,IF(H8=J8,1,0)),0)) -> 1 | V4: =IF(H4="",0,IF(K4=$B$65,IF(H4>J4,3,IF(H4=J4,1,0)),0)) -> 3 | X4: =RANK(AD4,$AD$2:$AD$5) -> 1 | Y4: Ungarn | Z4: =SUM(S4:V4) -> 7 | AA4: =SUM(S8:V8) -> 7 | AB4: =SUM(U6:U9) -> 5 | AC4: =AA4-AB4 -> 2 | AD4: =IF(P$8="",(((((((AE4*10+Z4)*100+AC4)*100+AA4)*10+AK4)*10+AJ4)*100+AP4)*100+AU4)*10+AV4,(((((((AE4*10+Z4)*10+AK4)*10+AJ4)*100+AP4)*100+AU4)*100+AC4)*100+AA4)*10+AV4) -> 700000002072 | AF4: =IF($Z4=$Z2,$S4-$U2,0) -> 0 | AG4: =IF($Z4=$Z3,$T4-$U3,0) -> 0 | AI4: =IF($Z4=$Z5,$V4-$U5,0) -> 0 | AJ4: =SUM(AF4:AI4) -> 0 | AL4: =IF($Z4=$Z2,$S8-$U6,0) -> 0 | AM4: =IF($Z4=$Z3,$T8-$U7,0) -> 0 | AO4: =IF($Z4=$Z5,$V8-$U9,0) -> 0 | AP4: =SUM(AL4:AO4) -> 0 | AQ4: =IF($Z4=$Z2,$S8,0) -> 0 | AR4: =IF($Z4=$Z3,$T8,0) -> 0 | AT4: =IF($Z4=$Z5,$V8,0) -> 0 | AU4: =SUM(AQ4:AT4) -> 0 | AV4: 2 | BA4: 8 | BB4: 2024-06-17T21:00:00 | BC4: Düsseldorf | BD4: =BY4 -> Österreich | BE4: - | BF4: =BY5 -> Frankreich | BH4: 4 | BI4: : | BJ4: 3 | BK4: ok | BM4: =VLOOKUP(3,$BX$2:$CC$5,2,FALSE) -> Frankreich | BN4: =VLOOKUP(3,$BX$2:$CC$5,3,FALSE) -> 3 | BO4: =VLOOKUP(3,$BX$2:$CC$5,4,FALSE) -> 6 | BP4: =VLOOKUP(3,$BX$2:$CC$5,5,FALSE) -> 6 | BQ4: =VLOOKUP(3,$BX$2:$CC$5,6,FALSE) -> 0 | BS4: =IF(BJ5="",0,IF(BK5=$B$65,IF(BH5<BJ5,3,IF(BH5=BJ5,1,0)),0)) -> 0 | BT4: =IF(BJ8="",0,IF(BK7=$B$65,IF(BH8<BJ8,3,IF(BH8=BJ8,1,0)),0)) -> 3 | BV4: =IF(BH4="",0,IF(BK4=$B$65,IF(BH4>BJ4,3,IF(BH4=BJ4,1,0)),0)) -> 3 | BX4: =RANK(CD4,$CD$2:$CD$5) -> 2 | BY4: Österreich | BZ4: =SUM(BS4:BV4) -> 6 | CA4: =SUM(BS8:BV8) -> 9 | CB4: =SUM(BU6:BU9) -> 10 | CC4: =CA4-CB4 -> -1 | CD4: =IF(BP$8="",(((((((CE4*10+BZ4)*100+CC4)*100+CA4)*10+CK4)*10+CJ4)*100+CP4)*100+CU4)*10+CV4,(((((((CE4*10+BZ4)*10+CK4)*10+CJ4)*100+CP4)*100+CU4)*100+CC4)*100+CA4)*10+CV4) -> 596970099092 | CF4: =IF($BZ4=$BZ2,$BS4-$BU2,0) -> -3 | CG4: =IF($BZ4=$BZ3,$BT4-$BU3,0) -> 0 | CI4: =IF($BZ4=$BZ5,$BV4-$BU5,0) -> 0 | CJ4: =SUM(CF4:CI4) -> -3 | CL4: =IF($BZ4=$BZ2,$BS8-$BU6,0) -> -3 | CM4: =IF($BZ4=$BZ3,$BT8-$BU7,0) -> 0 | CO4: =IF($BZ4=$BZ5,$BV8-$BU9,0) -> 0 | CP4: =SUM(CL4:CO4) -> -3 | CQ4: =IF($BZ4=$BZ2,$BS8,0) -> 1 | CR4: =IF($BZ4=$BZ3,$BT8,0) -> 0 | CT4: =IF($BZ4=$BZ5,$BV8,0) -> 0 | CU4: =SUM(CQ4:CT4) -> 1 | CV4: 2
A5: =A3+12 -> 13 | B5: 2024-06-19T18:00:00 | C5: Stuttgart | D5: =Y2 -> Deutschland | E5: - | F5: =Y4 -> Ungarn | H5: 3 | I5: : | J5: 4 | K5: ok | M5: =VLOOKUP(4,$X$2:$AC$5,2,FALSE) -> Schweiz | N5: =VLOOKUP(4,$X$2:$AC$5,3,FALSE) -> 0 | O5: =VLOOKUP(4,$X$2:$AC$5,4,FALSE) -> 4 | P5: =VLOOKUP(4,$X$2:$AC$5,5,FALSE) -> 9 | Q5: =VLOOKUP(4,$X$2:$AC$5,6,FALSE) -> -5 | S5: =IF(H7="",0,IF(K8=$B$65,IF(H7>J7,3,IF(H7=J7,1,0)),0)) -> 0 | T5: =IF(J6="",0,IF(K6=$B$65,IF(H6<J6,3,IF(H6=J6,1,0)),0)) -> 0 | U5: =IF(J4="",0,IF(K4=$B$65,IF(H4<J4,3,IF(H4=J4,1,0)),0)) -> 0 | X5: =RANK(AD5,$AD$2:$AD$5) -> 4 | Y5: Schweiz | Z5: =SUM(S5:V5) -> 0 | AA5: =SUM(S9:V9) -> 4 | AB5: =SUM(V6:V9) -> 9 | AC5: =AA5-AB5 -> -5 | AD5: =IF(P$8="",(((((((AE5*10+Z5)*100+AC5)*100+AA5)*10+AK5)*10+AJ5)*100+AP5)*100+AU5)*10+AV5,(((((((AE5*10+Z5)*10+AK5)*10+AJ5)*100+AP5)*100+AU5)*100+AC5)*100+AA5)*10+AV5) -> -4959 | AF5: =IF($Z5=$Z2,$S5-$V2,0) -> 0 | AG5: =IF($Z5=$Z3,$T5-$V3,0) -> 0 | AH5: =IF($Z5=$Z4,$U5-$V4,0) -> 0 | AJ5: =SUM(AF5:AI5) -> 0 | AL5: =IF($Z5=$Z2,$S9-$V6,0) -> 0 | AM5: =IF($Z5=$Z3,$T9-$V7,0) -> 0 | AN5: =IF($Z5=$Z4,$U9-$V8,0) -> 0 | AP5: =SUM(AL5:AO5) -> 0 | AQ5: =IF($Z5=$Z2,$S9,0) -> 0 | AR5: =IF($Z5=$Z3,$T9,0) -> 0 | AS5: =IF($Z5=$Z4,$U9,0) -> 0 | AU5: =SUM(AQ5:AT5) -> 0 | AV5: 1 | BA5: =BA3+12 -> 19 | BB5: 2024-06-21T18:00:00 | BC5: Berlin | BD5: =BY2 -> Polen | BE5: - | BF5: =BY4 -> Österreich | BH5: 4 | BI5: : | BJ5: 1 | BK5: ok | BM5: =VLOOKUP(4,$BX$2:$CC$5,2,FALSE) -> Niederlande | BN5: =VLOOKUP(4,$BX$2:$CC$5,3,FALSE) -> 3 | BO5: =VLOOKUP(4,$BX$2:$CC$5,4,FALSE) -> 6 | BP5: =VLOOKUP(4,$BX$2:$CC$5,5,FALSE) -> 7 | BQ5: =VLOOKUP(4,$BX$2:$CC$5,6,FALSE) -> -1 | BS5: =IF(BH7="",0,IF(BK8=$B$65,IF(BH7>BJ7,3,IF(BH7=BJ7,1,0)),0)) -> 0 | BT5: =IF(BJ6="",0,IF(BK6=$B$65,IF(BH6<BJ6,3,IF(BH6=BJ6,1,0)),0)) -> 3 | BU5: =IF(BJ4="",0,IF(BK4=$B$65,IF(BH4<BJ4,3,IF(BH4=BJ4,1,0)),0)) -> 0 | BX5: =RANK(CD5,$CD$2:$CD$5) -> 3 | BY5: Frankreich | BZ5: =SUM(BS5:BV5) -> 3 | CA5: =SUM(BS9:BV9) -> 6 | CB5: =SUM(BV6:BV9) -> 6 | CC5: =CA5-CB5 -> 0 | CD5: =IF(BP$8="",(((((((CE5*10+BZ5)*100+CC5)*100+CA5)*10+CK5)*10+CJ5)*100+CP5)*100+CU5)*10+CV5,(((((((CE5*10+BZ5)*10+CK5)*10+CJ5)*100+CP5)*100+CU5)*100+CC5)*100+CA5)*10+CV5) -> 303020200061 | CF5: =IF($BZ5=$BZ2,$BS5-$BV2,0) -> 0 | CG5: =IF($BZ5=$BZ3,$BT5-$BV3,0) -> 3 | CH5: =IF($BZ5=$BZ4,$BU5-$BV4,0) -> 0 | CJ5: =SUM(CF5:CI5) -> 3 | CL5: =IF($BZ5=$BZ2,$BS9-$BV6,0) -> 0 | CM5: =IF($BZ5=$BZ3,$BT9-$BV7,0) -> 2 | CN5: =IF($BZ5=$BZ4,$BU9-$BV8,0) -> 0 | CP5: =SUM(CL5:CO5) -> 2 | CQ5: =IF($BZ5=$BZ2,$BS9,0) -> 0 | CR5: =IF($BZ5=$BZ3,$BT9,0) -> 2 | CS5: =IF($BZ5=$BZ4,$BU9,0) -> 0 | CU5: =SUM(CQ5:CT5) -> 2 | CV5: 1
A6: =A4+12 -> 14 | B6: 2024-06-19T21:00:00 | C6: Köln | D6: =Y3 -> Schottland | E6: - | F6: =Y5 -> Schweiz | H6: 4 | I6: : | J6: 1 | K6: ok | T6: =IF(K3=$B$65,H3,0) -> 4 | U6: =IF(K5=$B$65,H5,0) -> 3 | V6: =IF(K8=$B$65,J7,0) -> 3 | BA6: =BA4+12 -> 20 | BB6: 2024-06-21T21:00:00 | BC6: Leipzig | BD6: =BY3 -> Niederlande | BE6: - | BF6: =BY5 -> Frankreich | BH6: 0 | BI6: : | BJ6: 2 | BK6: ok | BT6: =IF(BK3=$B$65,BH3,0) -> 1 | BU6: =IF(BK5=$B$65,BH5,0) -> 4 | BV6: =IF(BK8=$B$65,BJ7,0) -> 2
A7: =A5+12 -> 25 | B7: 2024-06-23T21:00:00 | C7: Frankfurt | D7: =Y5 -> Schweiz | E7: - | F7: =Y2 -> Deutschland | H7: 2 | I7: : | J7: 3 | K7: ok | M7: =IF(N2>0,M2,"") -> Ungarn | N7: 1A | S7: =IF(K3=$B$65,J3,0) -> 1 | U7: =IF(K7=$B$65,H8,0) -> 1 | V7: =IF(K6=$B$65,H6,0) -> 4 | AD7: L0=AE hebelt Berechnung aus (top level Losen) | BA7: =BA5+12 -> 31 | BB7: 2024-06-25T18:00:00 | BC7: Dortmund | BD7: =BY5 -> Frankreich | BE7: - | BF7: =BY2 -> Polen | BH7: 1 | BI7: : | BJ7: 2 | BK7: ok | BM7: =IF(BN2>0,BM2,"") -> Polen | BN7: 1D | BS7: =IF(BK3=$B$65,BJ3,0) -> 3 | BU7: =IF(BK7=$B$65,BH8,0) -> 3 | BV7: =IF(BK6=$B$65,BH6,0) -> 0 | CD7: L0=AE hebelt Berechnung aus (top level Losen)
A8: =A6+12 -> 26 | B8: 2024-06-23T21:00:00 | C8: Stuttgart | D8: =Y3 -> Schottland | E8: - | F8: =Y4 -> Ungarn | H8: 1 | I8: : | J8: 1 | K8: ok | M8: =IF(N3>0,M3,"") -> Deutschland | N8: 2A | P8: DV | S8: =IF(K5=$B$65,J5,0) -> 4 | T8: =IF(K7=$B$65,J8,0) -> 1 | V8: =IF(K4=$B$65,H4,0) -> 2 | AD8: L1=AK hebelt Direktvergleich (S1) aus | BA8: =BA6+12 -> 32 | BB8: 2024-06-25T18:00:00 | BC8: Berlin | BD8: =BY3 -> Niederlande | BE8: - | BF8: =BY4 -> Österreich | BH8: 3 | BI8: : | BJ8: 4 | BK8: ok | BM8: =IF(BN3>0,BM3,"") -> Österreich | BN8: 2D | BP8: DV | BS8: =IF(BK5=$B$65,BJ5,0) -> 1 | BT8: =IF(BK7=$B$65,BJ8,0) -> 4 | BV8: =IF(BK4=$B$65,BH4,0) -> 4 | CD8: L1=AK hebelt Direktvergleich (S1) aus
M9: =IF(N4>0,M4,"") -> Schottland | N9: 3A | S9: =IF(K8=$B$65,H7,0) -> 2 | T9: =IF(K6=$B$65,J6,0) -> 1 | U9: =IF(K4=$B$65,J4,0) -> 1 | AD9: L4=AV Losen UEFA-Koeffizient, Fairplay oder Münzwurf | BM9: =IF(BN4>0,BM4,"") -> Frankreich | BN9: 3D | BS9: =IF(BK8=$B$65,BH7,0) -> 1 | BT9: =IF(BK6=$B$65,BJ6,0) -> 2 | BU9: =IF(BK4=$B$65,BJ4,0) -> 3 | CD9: L4=AV Losen UEFA-Koeffizient, Fairplay oder Münzwurf
B11: Vorrunde | C11: Gruppe B | M11: Tabelle | N11: P | O11: T+ | P11: T- | Q11: T+/- | X11: G | Y11: Berechnungen | Z11: P | AA11: T+ | AB11: T- | AC11: T+/- | AE11: L0 | AF11: DV | AJ11: S1 | AK11: L1 | AL11: DV-TD | AP11: S2 | AQ11: DV-Tore | AU11: S3 | AV11: L4 | BB11: Vorrunde | BC11: Gruppe E | BM11: Tabelle | BN11: P | BO11: T+ | BP11: T- | BQ11: T+/- | BX11: G | BY11: Berechnungen | BZ11: P | CA11: T+ | CB11: T- | CC11: T+/- | CE11: L0 | CF11: DV | CJ11: S1 | CK11: L1 | CL11: DV-TD | CP11: S2 | CQ11: DV-Tore | CU11: S3 | CV11: L4
B12: Datum/Zeit | C12: Spielort | M12: =VLOOKUP(1,$X$12:$AC$15,2,FALSE) -> Albanien | N12: =VLOOKUP(1,$X$12:$AC$15,3,FALSE) -> 7 | O12: =VLOOKUP(1,$X$12:$AC$15,4,FALSE) -> 13 | P12: =VLOOKUP(1,$X$12:$AC$15,5,FALSE) -> 9 | Q12: =VLOOKUP(1,$X$12:$AC$15,6,FALSE) -> 4 | T12: =IF(H13="",0,IF(K13=$B$65,IF(H13>J13,3,IF(H13=J13,1,0)),0)) -> 1 | U12: =IF(H15="",0,IF(K15=$B$65,IF(H15>J15,3,IF(H15=J15,1,0)),0)) -> 3 | V12: =IF(J17="",0,IF(K18=$B$65,IF(H17<J17,3,IF(H17=J17,1,0)),0)) -> 1 | X12: =RANK(AD12,$AD$12:$AD$15) -> 2 | Y12: Spanien | Z12: =SUM(S12:V12) -> 5 | AA12: =SUM(S16:V16) -> 9 | AB12: =SUM(S16:S19) -> 6 | AC12: =AA12-AB12 -> 3 | AD12: =IF(P$18="",(((((((AE12*10+Z12)*100+AC12)*100+AA12)*10+AK12)*10+AJ12)*100+AP12)*100+AU12)*10+AV12,(((((((AE12*10+Z12)*10+AK12)*10+AJ12)*100+AP12)*100+AU12)*100+AC12)*100+AA12)*10+AV12) -> 500000003094 | AG12: =IF($Z12=$Z13,$T12-$S13,0) -> 0 | AH12: =IF($Z12=$Z14,$U12-$S14,0) -> 0 | AI12: =IF($Z12=$Z15,$V12-$S15,0) -> 0 | AJ12: =SUM(AF12:AI12) -> 0 | AM12: =IF($Z12=$Z13,$T16-$S17,0) -> 0 | AN12: =IF($Z12=$Z14,$U16-$S18,0) -> 0 | AO12: =IF($Z12=$Z15,$V16-$S19,0) -> 0 | AP12: =SUM(AL12:AO12) -> 0 | AR12: =IF($Z12=$Z13,$T16,0) -> 0 | AS12: =IF($Z12=$Z14,$U16,0) -> 0 | AT12: =IF($Z12=$Z15,$V16,0) -> 0 | AU12: =SUM(AQ12:AT12) -> 0 | AV12: 4 | BB12: Datum/Zeit | BC12: Spielort | BM12: =VLOOKUP(1,$BX$12:$CC$15,2,FALSE) -> Slowakei | BN12: =VLOOKUP(1,$BX$12:$CC$15,3,FALSE) -> 9 | BO12: =VLOOKUP(1,$BX$12:$CC$15,4,FALSE) -> 11 | BP12: =VLOOKUP(1,$BX$12:$CC$15,5,FALSE) -> 3 | BQ12: =VLOOKUP(1,$BX$12:$CC$15,6,FALSE) -> 8 | BT12: =IF(BH13="",0,IF(BK13=$B$65,IF(BH13>BJ13,3,IF(BH13=BJ13,1,0)),0)) -> 3 | BU12: =IF(BH15="",0,IF(BK15=$B$65,IF(BH15>BJ15,3,IF(BH15=BJ15,1,0)),0)) -> 3 | BV12: =IF(BJ17="",0,IF(BK18=$B$65,IF(BH17<BJ17,3,IF(BH17=BJ17,1,0)),0)) -> 0 | BX12: =RANK(CD12,$CD$12:$CD$15) -> 2 | BY12: Rumänien | BZ12: =SUM(BS12:BV12) -> 6 | CA12: =SUM(BS16:BV16) -> 8 | CB12: =SUM(BS16:BS19) -> 8 | CC12: =CA12-CB12 -> 0 | CD12: =IF(BP$18="",(((((((CE12*10+BZ12)*100+CC12)*100+CA12)*10+CK12)*10+CJ12)*100+CP12)*100+CU12)*10+CV12,(((((((CE12*10+BZ12)*10+CK12)*10+CJ12)*100+CP12)*100+CU12)*100+CC12)*100+CA12)*10+CV12) -> 600000000084 | CG12: =IF($BZ12=$BZ13,$BT12-$BS13,0) -> 0 | CH12: =IF($BZ12=$BZ14,$BU12-$BS14,0) -> 0 | CI12: =IF($BZ12=$BZ15,$BV12-$BS15,0) -> 0 | CJ12: =SUM(CF12:CI12) -> 0 | CM12: =IF($BZ12=$BZ13,$BT16-$BS17,0) -> 0 | CN12: =IF($BZ12=$BZ14,$BU16-$BS18,0) -> 0 | CO12: =IF($BZ12=$BZ15,$BV16-$BS19,0) -> 0 | CP12: =SUM(CL12:CO12) -> 0 | CR12: =IF($BZ12=$BZ13,$BT16,0) -> 0 | CS12: =IF($BZ12=$BZ14,$BU16,0) -> 0 | CT12: =IF($BZ12=$BZ15,$BV16,0) -> 0 | CU12: =SUM(CQ12:CT12) -> 0 | CV12: 4
A13: 3 | B13: 2024-06-15T18:00:00 | C13: Berlin | D13: =Y12 -> Spanien | E13: - | F13: =Y13 -> Kroatien | H13: =IF($B$66="",1,INT(RAND()*5)+INT(RAND()*3)*INT(RAND()*2)) -> 2 | I13: : | J13: =IF($B$66="",0,INT(RAND()*5)+INT(RAND()*3)*INT(RAND()*2)) -> 2 | K13: ok | M13: =VLOOKUP(2,$X$12:$AC$15,2,FALSE) -> Spanien | N13: =VLOOKUP(2,$X$12:$AC$15,3,FALSE) -> 5 | O13: =VLOOKUP(2,$X$12:$AC$15,4,FALSE) -> 9 | P13: =VLOOKUP(2,$X$12:$AC$15,5,FALSE) -> 6 | Q13: =VLOOKUP(2,$X$12:$AC$15,6,FALSE) -> 3 | S13: =IF(J13="",0,IF(K13=$B$65,IF(H13<J13,3,IF(H13=J13,1,0)),0)) -> 1 | U13: =IF(H18="",0,IF(K17=$B$65,IF(H18>J18,3,IF(H18=J18,1,0)),0)) -> 0 | V13: =IF(H16="",0,IF(K16=$B$65,IF(H16>J16,3,IF(H16=J16,1,0)),0)) -> 0 | X13: =RANK(AD13,$AD$12:$AD$15) -> 4 | Y13: Kroatien | Z13: =SUM(S13:V13) -> 1 | AA13: =SUM(S17:V17) -> 7 | AB13: =SUM(T16:T19) -> 11 | AC13: =AA13-AB13 -> -4 | AD13: =IF(P$18="",(((((((AE13*10+Z13)*100+AC13)*100+AA13)*10+AK13)*10+AJ13)*100+AP13)*100+AU13)*10+AV13,(((((((AE13*10+Z13)*10+AK13)*10+AJ13)*100+AP13)*100+AU13)*100+AC13)*100+AA13)*10+AV13) -> 99999996073 | AF13: =IF($Z13=$Z12,$S13-$T12,0) -> 0 | AH13: =IF($Z13=$Z14,$U13-$T14,0) -> 0 | AI13: =IF($Z13=$Z15,$V13-$T15,0) -> 0 | AJ13: =SUM(AF13:AI13) -> 0 | AL13: =IF($Z13=$Z12,$S17-$T16,0) -> 0 | AN13: =IF($Z13=$Z14,$U17-$T18,0) -> 0 | AO13: =IF($Z13=$Z15,$V17-$T19,0) -> 0 | AP13: =SUM(AL13:AO13) -> 0 | AQ13: =IF($Z13=$Z12,$S17,0) -> 0 | AS13: =IF($Z13=$Z14,$U17,0) -> 0 | AT13: =IF($Z13=$Z15,$V17,0) -> 0 | AU13: =SUM(AQ13:AT13) -> 0 | AV13: 3 | BA13: 9 | BB13: 2024-06-17T15:00:00 | BC13: München | BD13: =BY12 -> Rumänien | BE13: - | BF13: =BY13 -> Ukraine | BH13: =IF($B$66="",1,INT(RAND()*5)+INT(RAND()*3)*INT(RAND()*2)) -> 4 | BI13: : | BJ13: =IF($B$66="",0,INT(RAND()*5)+INT(RAND()*3)*INT(RAND()*2)) -> 0 | BK13: ok | BM13: =VLOOKUP(2,$BX$12:$CC$15,2,FALSE) -> Rumänien | BN13: =VLOOKUP(2,$BX$12:$CC$15,3,FALSE) -> 6 | BO13: =VLOOKUP(2,$BX$12:$CC$15,4,FALSE) -> 8 | BP13: =VLOOKUP(2,$BX$12:$CC$15,5,FALSE) -> 8 | BQ13: =VLOOKUP(2,$BX$12:$CC$15,6,FALSE) -> 0 | BS13: =IF(BJ13="",0,IF(BK13=$B$65,IF(BH13<BJ13,3,IF(BH13=BJ13,1,0)),0)) -> 0 | BU13: =IF(BH18="",0,IF(BK17=$B$65,IF(BH18>BJ18,3,IF(BH18=BJ18,1,0)),0)) -> 0 | BV13: =IF(BH16="",0,IF(BK16=$B$65,IF(BH16>BJ16,3,IF(BH16=BJ16,1,0)),0)) -> 0 | BX13: =RANK(CD13,$CD$12:$CD$15) -> 4 | BY13: Ukraine | BZ13: =SUM(BS13:BV13) -> 0 | CA13: =SUM(BS17:BV17) -> 1 | CB13: =SUM(BT16:BT19) -> 9 | CC13: =CA13-CB13 -> -8 | CD13: =IF(BP$18="",(((((((CE13*10+BZ13)*100+CC13)*100+CA13)*10+CK13)*10+CJ13)*100+CP13)*100+CU13)*10+CV13,(((((((CE13*10+BZ13)*10+CK13)*10+CJ13)*100+CP13)*100+CU13)*100+CC13)*100+CA13)*10+CV13) -> -7987 | CF13: =IF($BZ13=$BZ12,$BS13-$BT12,0) -> 0 | CH13: =IF($BZ13=$BZ14,$BU13-$BT14,0) -> 0 | CI13: =IF($BZ13=$BZ15,$BV13-$BT15,0) -> 0 | CJ13: =SUM(CF13:CI13) -> 0 | CL13: =IF($BZ13=$BZ12,$BS17-$BT16,0) -> 0 | CN13: =IF($BZ13=$BZ14,$BU17-$BT18,0) -> 0 | CO13: =IF($BZ13=$BZ15,$BV17-$BT19,0) -> 0 | CP13: =SUM(CL13:CO13) -> 0 | CQ13: =IF($BZ13=$BZ12,$BS17,0) -> 0 | CS13: =IF($BZ13=$BZ14,$BU17,0) -> 0 | CT13: =IF($BZ13=$BZ15,$BV17,0) -> 0 | CU13: =SUM(CQ13:CT13) -> 0 | CV13: 3
A14: 4 | B14: 2024-06-15T21:00:00 | C14: Dortmund | D14: =Y14 -> Italien | E14: - | F14: =Y15 -> Albanien | H14: 4 | I14: : | J14: 5 | K14: ok | M14: =VLOOKUP(3,$X$12:$AC$15,2,FALSE) -> Italien | N14: =VLOOKUP(3,$X$12:$AC$15,3,FALSE) -> 3 | O14: =VLOOKUP(3,$X$12:$AC$15,4,FALSE) -> 9 | P14: =VLOOKUP(3,$X$12:$AC$15,5,FALSE) -> 12 | Q14: =VLOOKUP(3,$X$12:$AC$15,6,FALSE) -> -3 | S14: =IF(J15="",0,IF(K15=$B$65,IF(H15<J15,3,IF(H15=J15,1,0)),0)) -> 0 | T14: =IF(J18="",0,IF(K17=$B$65,IF(H18<J18,3,IF(H18=J18,1,0)),0)) -> 3 | V14: =IF(H14="",0,IF(K14=$B$65,IF(H14>J14,3,IF(H14=J14,1,0)),0)) -> 0 | X14: =RANK(AD14,$AD$12:$AD$15) -> 3 | Y14: Italien | Z14: =SUM(S14:V14) -> 3 | AA14: =SUM(S18:V18) -> 9 | AB14: =SUM(U16:U19) -> 12 | AC14: =AA14-AB14 -> -3 | AD14: =IF(P$18="",(((((((AE14*10+Z14)*100+AC14)*100+AA14)*10+AK14)*10+AJ14)*100+AP14)*100+AU14)*10+AV14,(((((((AE14*10+Z14)*10+AK14)*10+AJ14)*100+AP14)*100+AU14)*100+AC14)*100+AA14)*10+AV14) -> 299999997092 | AF14: =IF($Z14=$Z12,$S14-$U12,0) -> 0 | AG14: =IF($Z14=$Z13,$T14-$U13,0) -> 0 | AI14: =IF($Z14=$Z15,$V14-$U15,0) -> 0 | AJ14: =SUM(AF14:AI14) -> 0 | AL14: =IF($Z14=$Z12,$S18-$U16,0) -> 0 | AM14: =IF($Z14=$Z13,$T18-$U17,0) -> 0 | AO14: =IF($Z14=$Z15,$V18-$U19,0) -> 0 | AP14: =SUM(AL14:AO14) -> 0 | AQ14: =IF($Z14=$Z12,$S18,0) -> 0 | AR14: =IF($Z14=$Z13,$T18,0) -> 0 | AT14: =IF($Z14=$Z15,$V18,0) -> 0 | AU14: =SUM(AQ14:AT14) -> 0 | AV14: 2 | BA14: 10 | BB14: 2024-06-17T18:00:00 | BC14: Frankfurt | BD14: =BY14 -> Belgien | BE14: - | BF14: =BY15 -> Slowakei | BH14: 2 | BI14: : | BJ14: 3 | BK14: ok | BM14: =VLOOKUP(3,$BX$12:$CC$15,2,FALSE) -> Belgien | BN14: =VLOOKUP(3,$BX$12:$CC$15,3,FALSE) -> 3 | BO14: =VLOOKUP(3,$BX$12:$CC$15,4,FALSE) -> 7 | BP14: =VLOOKUP(3,$BX$12:$CC$15,5,FALSE) -> 7 | BQ14: =VLOOKUP(3,$BX$12:$CC$15,6,FALSE) -> 0 | BS14: =IF(BJ15="",0,IF(BK15=$B$65,IF(BH15<BJ15,3,IF(BH15=BJ15,1,0)),0)) -> 0 | BT14: =IF(BJ18="",0,IF(BK17=$B$65,IF(BH18<BJ18,3,IF(BH18=BJ18,1,0)),0)) -> 3 | BV14: =IF(BH14="",0,IF(BK14=$B$65,IF(BH14>BJ14,3,IF(BH14=BJ14,1,0)),0)) -> 0 | BX14: =RANK(CD14,$CD$12:$CD$15) -> 3 | BY14: Belgien | BZ14: =SUM(BS14:BV14) -> 3 | CA14: =SUM(BS18:BV18) -> 7 | CB14: =SUM(BU16:BU19) -> 7 | CC14: =CA14-CB14 -> 0 | CD14: =IF(BP$18="",(((((((CE14*10+BZ14)*100+CC14)*100+CA14)*10+CK14)*10+CJ14)*100+CP14)*100+CU14)*10+CV14,(((((((CE14*10+BZ14)*10+CK14)*10+CJ14)*100+CP14)*100+CU14)*100+CC14)*100+CA14)*10+CV14) -> 300000000072 | CF14: =IF($BZ14=$BZ12,$BS14-$BU12,0) -> 0 | CG14: =IF($BZ14=$BZ13,$BT14-$BU13,0) -> 0 | CI14: =IF($BZ14=$BZ15,$BV14-$BU15,0) -> 0 | CJ14: =SUM(CF14:CI14) -> 0 | CL14: =IF($BZ14=$BZ12,$BS18-$BU16,0) -> 0 | CM14: =IF($BZ14=$BZ13,$BT18-$BU17,0) -> 0 | CO14: =IF($BZ14=$BZ15,$BV18-$BU19,0) -> 0 | CP14: =SUM(CL14:CO14) -> 0 | CQ14: =IF($BZ14=$BZ12,$BS18,0) -> 0 | CR14: =IF($BZ14=$BZ13,$BT18,0) -> 0 | CT14: =IF($BZ14=$BZ15,$BV18,0) -> 0 | CU14: =SUM(CQ14:CT14) -> 0 | CV14: 2
A15: =A13+12 -> 15 | B15: 2024-06-20T21:00:00 | C15: Gelsenkirchen | D15: =Y12 -> Spanien | E15: - | F15: =Y14 -> Italien | H15: 4 | I15: : | J15: 1 | K15: ok | M15: =VLOOKUP(4,$X$12:$AC$15,2,FALSE) -> Kroatien | N15: =VLOOKUP(4,$X$12:$AC$15,3,FALSE) -> 1 | O15: =VLOOKUP(4,$X$12:$AC$15,4,FALSE) -> 7 | P15: =VLOOKUP(4,$X$12:$AC$15,5,FALSE) -> 11 | Q15: =VLOOKUP(4,$X$12:$AC$15,6,FALSE) -> -4 | S15: =IF(H17="",0,IF(K18=$B$65,IF(H17>J17,3,IF(H17=J17,1,0)),0)) -> 1 | T15: =IF(J16="",0,IF(K16=$B$65,IF(H16<J16,3,IF(H16=J16,1,0)),0)) -> 3 | U15: =IF(J14="",0,IF(K14=$B$65,IF(H14<J14,3,IF(H14=J14,1,0)),0)) -> 3 | X15: =RANK(AD15,$AD$12:$AD$15) -> 1 | Y15: Albanien | Z15: =SUM(S15:V15) -> 7 | AA15: =SUM(S19:V19) -> 13 | AB15: =SUM(V16:V19) -> 9 | AC15: =AA15-AB15 -> 4 | AD15: =IF(P$18="",(((((((AE15*10+Z15)*100+AC15)*100+AA15)*10+AK15)*10+AJ15)*100+AP15)*100+AU15)*10+AV15,(((((((AE15*10+Z15)*10+AK15)*10+AJ15)*100+AP15)*100+AU15)*100+AC15)*100+AA15)*10+AV15) -> 700000004131 | AF15: =IF($Z15=$Z12,$S15-$V12,0) -> 0 | AG15: =IF($Z15=$Z13,$T15-$V13,0) -> 0 | AH15: =IF($Z15=$Z14,$U15-$V14,0) -> 0 | AJ15: =SUM(AF15:AI15) -> 0 | AL15: =IF($Z15=$Z12,$S19-$V16,0) -> 0 | AM15: =IF($Z15=$Z13,$T19-$V17,0) -> 0 | AN15: =IF($Z15=$Z14,$U19-$V18,0) -> 0 | AP15: =SUM(AL15:AO15) -> 0 | AQ15: =IF($Z15=$Z12,$S19,0) -> 0 | AR15: =IF($Z15=$Z13,$T19,0) -> 0 | AS15: =IF($Z15=$Z14,$U19,0) -> 0 | AU15: =SUM(AQ15:AT15) -> 0 | AV15: 1 | BA15: =BA13+12 -> 21 | BB15: 2024-06-22T21:00:00 | BC15: Köln | BD15: =BY12 -> Rumänien | BE15: - | BF15: =BY14 -> Belgien | BH15: 4 | BI15: : | BJ15: 2 | BK15: ok | BM15: =VLOOKUP(4,$BX$12:CC$15,2,FALSE) -> Ukraine | BN15: =VLOOKUP(4,$BX$12:$CC$15,3,FALSE) -> 0 | BO15: =VLOOKUP(4,$BX$12:$CC$15,4,FALSE) -> 1 | BP15: =VLOOKUP(4,$BX$12:$CC$15,5,FALSE) -> 9 | BQ15: =VLOOKUP(4,$BX$12:$CC$15,6,FALSE) -> -8 | BS15: =IF(BH17="",0,IF(BK18=$B$65,IF(BH17>BJ17,3,IF(BH17=BJ17,1,0)),0)) -> 3 | BT15: =IF(BJ16="",0,IF(BK16=$B$65,IF(BH16<BJ16,3,IF(BH16=BJ16,1,0)),0)) -> 3 | BU15: =IF(BJ14="",0,IF(BK14=$B$65,IF(BH14<BJ14,3,IF(BH14=BJ14,1,0)),0)) -> 3 | BX15: =RANK(CD15,$CD$12:$CD$15) -> 1 | BY15: Slowakei | BZ15: =SUM(BS15:BV15) -> 9 | CA15: =SUM(BS19:BV19) -> 11 | CB15: =SUM(BV16:BV19) -> 3 | CC15: =CA15-CB15 -> 8 | CD15: =IF(BP$18="",(((((((CE15*10+BZ15)*100+CC15)*100+CA15)*10+CK15)*10+CJ15)*100+CP15)*100+CU15)*10+CV15,(((((((CE15*10+BZ15)*10+CK15)*10+CJ15)*100+CP15)*100+CU15)*100+CC15)*100+CA15)*10+CV15) -> 900000008111 | CF15: =IF($BZ15=$BZ12,$BS15-$BV12,0) -> 0 | CG15: =IF($BZ15=$BZ13,$BT15-$BV13,0) -> 0 | CH15: =IF($BZ15=$BZ14,$BU15-$BV14,0) -> 0 | CJ15: =SUM(CF15:CI15) -> 0 | CL15: =IF($BZ15=$BZ12,$BS19-$BV16,0) -> 0 | CM15: =IF($BZ15=$BZ13,$BT19-$BV17,0) -> 0 | CN15: =IF($BZ15=$BZ14,$BU19-$BV18,0) -> 0 | CP15: =SUM(CL15:CO15) -> 0 | CQ15: =IF($BZ15=$BZ12,$BS19,0) -> 0 | CR15: =IF($BZ15=$BZ13,$BT19,0) -> 0 | CS15: =IF($BZ15=$BZ14,$BU19,0) -> 0 | CU15: =SUM(CQ15:CT15) -> 0 | CV15: 1
A16: =A14+12 -> 16 | B16: 2024-06-19T15:00:00 | C16: Hamburg | D16: =Y13 -> Kroatien | E16: - | F16: =Y15 -> Albanien | H16: 2 | I16: : | J16: 5 | K16: ok | T16: =IF(K13=$B$65,H13,0) -> 2 | U16: =IF(K15=$B$65,H15,0) -> 4 | V16: =IF(K18=$B$65,J17,0) -> 3 | BA16: =BA14+12 -> 22 | BB16: 2024-06-21T15:00:00 | BC16: Düsseldorf | BD16: =BY13 -> Ukraine | BE16: - | BF16: =BY15 -> Slowakei | BH16: 1 | BI16: : | BJ16: 2 | BK16: ok | BT16: =IF(BK13=$B$65,BH13,0) -> 4 | BU16: =IF(BK15=$B$65,BH15,0) -> 4 | BV16: =IF(BK18=$B$65,BJ17,0) -> 0
A17: =A15+12 -> 27 | B17: 2024-06-24T21:00:00 | C17: Düsseldorf | D17: =Y15 -> Albanien | E17: - | F17: =Y12 -> Spanien | H17: 3 | I17: : | J17: 3 | K17: ok | M17: =IF(N12>0,M12,"") -> Albanien | N17: 1B | S17: =IF(K13=$B$65,J13,0) -> 2 | U17: =IF(K17=$B$65,H18,0) -> 3 | V17: =IF(K16=$B$65,H16,0) -> 2 | AD17: L0=AE hebelt Berechnung aus (top level Losen) | BA17: =BA15+12 -> 33 | BB17: 2024-06-26T18:00:00 | BC17: Frankfurt | BD17: =BY15 -> Slowakei | BE17: - | BF17: =BY12 -> Rumänien | BH17: 6 | BI17: : | BJ17: 0 | BK17: ok | BM17: =IF(BN12>0,BM12,"") -> Slowakei | BN17: 1E | BS17: =IF(BK13=$B$65,BJ13,0) -> 0 | BU17: =IF(BK17=$B$65,BH18,0) -> 0 | BV17: =IF(BK16=$B$65,BH16,0) -> 1 | CD17: L0=AE hebelt Berechnung aus (top level Losen)
A18: =A16+12 -> 28 | B18: 2024-06-24T21:00:00 | C18: Leipzig | D18: =Y13 -> Kroatien | E18: - | F18: =Y14 -> Italien | H18: 3 | I18: : | J18: 4 | K18: ok | M18: =IF(N13>0,M13,"") -> Spanien | N18: 2B | P18: DV | S18: =IF(K15=$B$65,J15,0) -> 1 | T18: =IF(K17=$B$65,J18,0) -> 4 | V18: =IF(K14=$B$65,H14,0) -> 4 | AD18: L1=AK hebelt Direktvergleich (S1) aus | BA18: =BA16+12 -> 34 | BB18: 2024-06-26T18:00:00 | BC18: Stuttgart | BD18: =BY13 -> Ukraine | BE18: - | BF18: =BY14 -> Belgien | BH18: 0 | BI18: : | BJ18: 3 | BK18: ok | BM18: =IF(BN13>0,BM13,"") -> Rumänien | BN18: 2E | BP18: DV | BS18: =IF(BK15=$B$65,BJ15,0) -> 2 | BT18: =IF(BK17=$B$65,BJ18,0) -> 3 | BV18: =IF(BK14=$B$65,BH14,0) -> 2 | CD18: L1=AK hebelt Direktvergleich (S1) aus
M19: =IF(N14>0,M14,"") -> Italien | N19: 3B | S19: =IF(K18=$B$65,H17,0) -> 3 | T19: =IF(K16=$B$65,J16,0) -> 5 | U19: =IF(K14=$B$65,J14,0) -> 5 | AD19: L4=AV Losen UEFA-Koeffizient, Fairplay oder Münzwurf | BM19: =IF(BN14>0,BM14,"") -> Belgien | BN19: 3E | BS19: =IF(BK18=$B$65,BH17,0) -> 6 | BT19: =IF(BK16=$B$65,BJ16,0) -> 2 | BU19: =IF(BK14=$B$65,BJ14,0) -> 3 | CD19: L4=AV Losen UEFA-Koeffizient, Fairplay oder Münzwurf
B21: Vorrunde | C21: Gruppe C | M21: Tabelle | N21: P | O21: T+ | P21: T- | Q21: T+/- | X21: G | Y21: Berechnungen | Z21: P | AA21: T+ | AB21: T- | AC21: T+/- | AE21: L0 | AF21: DV | AJ21: S1 | AK21: L1 | AL21: DV-TD | AP21: S2 | AQ21: DV-Tore | AU21: S3 | AV21: L4 | BB21: Vorrunde | BC21: Gruppe F | BM21: Tabelle | BN21: P | BO21: T+ | BP21: T- | BQ21: T+/- | BX21: G | BY21: Berechnungen | BZ21: P | CA21: T+ | CB21: T- | CC21: T+/- | CE21: L0 | CF21: DV | CJ21: S1 | CK21: L1 | CL21: DV-TD | CP21: S2 | CQ21: DV-Tore | CU21: S3 | CV21: L4
B22: Datum/Zeit | C22: Spielort | M22: =VLOOKUP(1,$X$22:$AC$25,2,FALSE) -> Slowenien | N22: =VLOOKUP(1,$X$22:$AC$25,3,FALSE) -> 7 | O22: =VLOOKUP(1,$X$22:$AC$25,4,FALSE) -> 11 | P22: =VLOOKUP(1,$X$22:$AC$25,5,FALSE) -> 3 | Q22: =VLOOKUP(1,$X$22:$AC$25,6,FALSE) -> 8 | T22: =IF(H23="",0,IF(K23=$B$65,IF(H23>J23,3,IF(H23=J23,1,0)),0)) -> 3 | U22: =IF(H25="",0,IF(K25=$B$65,IF(H25>J25,3,IF(H25=J25,1,0)),0)) -> 1 | V22: =IF(J27="",0,IF(K28=$B$65,IF(H27<J27,3,IF(H27=J27,1,0)),0)) -> 3 | X22: =RANK(AD22,$AD$22:$AD$25) -> 1 | Y22: Slowenien | Z22: =SUM(S22:V22) -> 7 | AA22: =SUM(S26:V26) -> 11 | AB22: =SUM(S26:S29) -> 3 | AC22: =AA22-AB22 -> 8 | AD22: =IF(P$28="",(((((((AE22*10+Z22)*100+AC22)*100+AA22)*10+AK22)*10+AJ22)*100+AP22)*100+AU22)*10+AV22,(((((((AE22*10+Z22)*10+AK22)*10+AJ22)*100+AP22)*100+AU22)*100+AC22)*100+AA22)*10+AV22) -> 700000008114 | AG22: =IF($Z22=$Z23,$T22-$S23,0) -> 0 | AH22: =IF($Z22=$Z24,$U22-$S24,0) -> 0 | AI22: =IF($Z22=$Z25,$V22-$S25,0) -> 0 | AJ22: =SUM(AF22:AI22) -> 0 | AM22: =IF($Z22=$Z23,$T26-$S27,0) -> 0 | AN22: =IF($Z22=$Z24,$U26-$S28,0) -> 0 | AO22: =IF($Z22=$Z25,$V26-$S29,0) -> 0 | AP22: =SUM(AL22:AO22) -> 0 | AR22: =IF($Z22=$Z23,$T26,0) -> 0 | AS22: =IF($Z22=$Z24,$U26,0) -> 0 | AT22: =IF($Z22=$Z25,$V26,0) -> 0 | AU22: =SUM(AQ22:AT22) -> 0 | AV22: 4 | BB22: Datum/Zeit | BC22: Spielort | BM22: =VLOOKUP(1,$BX$22:$CC$25,2,FALSE) -> Georgien | BN22: =VLOOKUP(1,$BX$22:$CC$25,3,FALSE) -> 9 | BO22: =VLOOKUP(1,$BX$22:$CC$25,4,FALSE) -> 12 | BP22: =VLOOKUP(1,$BX$22:$CC$25,5,FALSE) -> 6 | BQ22: =VLOOKUP(1,$BX$22:$CC$25,6,FALSE) -> 6 | BT22: =IF(BH23="",0,IF(BK23=$B$65,IF(BH23>BJ23,3,IF(BH23=BJ23,1,0)),0)) -> 0 | BU22: =IF(BH25="",0,IF(BK25=$B$65,IF(BH25>BJ25,3,IF(BH25=BJ25,1,0)),0)) -> 0 | BV22: =IF(BJ27="",0,IF(BK28=$B$65,IF(BH27<BJ27,3,IF(BH27=BJ27,1,0)),0)) -> 3 | BX22: =RANK(CD22,$CD$22:$CD$25) -> 3 | BY22: Türkei | BZ22: =SUM(BS22:BV22) -> 3 | CA22: =SUM(BS26:BV26) -> 9 | CB22: =SUM(BS26:BS29) -> 11 | CC22: =CA22-CB22 -> -2 | CD22: =IF(BP$28="",(((((((CE22*10+BZ22)*100+CC22)*100+CA22)*10+CK22)*10+CJ22)*100+CP22)*100+CU22)*10+CV22,(((((((CE22*10+BZ22)*10+CK22)*10+CJ22)*100+CP22)*100+CU22)*100+CC22)*100+CA22)*10+CV22) -> 299999998094 | CG22: =IF($BZ22=$BZ23,$BT22-$BS23,0) -> 0 | CH22: =IF($BZ22=$BZ24,$BU22-$BS24,0) -> 0 | CI22: =IF($BZ22=$BZ25,$BV22-$BS25,0) -> 0 | CJ22: =SUM(CF22:CI22) -> 0 | CM22: =IF($BZ22=$BZ23,$BT26-$BS27,0) -> 0 | CN22: =IF($BZ22=$BZ24,$BU26-$BS28,0) -> 0 | CO22: =IF($BZ22=$BZ25,$BV26-$BS29,0) -> 0 | CP22: =SUM(CL22:CO22) -> 0 | CR22: =IF($BZ22=$BZ23,$BT26,0) -> 0 | CS22: =IF($BZ22=$BZ24,$BU26,0) -> 0 | CT22: =IF($BZ22=$BZ25,$BV26,0) -> 0 | CU22: =SUM(CQ22:CT22) -> 0 | CV22: 4
A23: 5 | B23: 2024-06-16T18:00:00 | C23: Stuttgart | D23: =Y22 -> Slowenien | E23: - | F23: =Y23 -> Dänemark | H23: =IF($B$66="",1,INT(RAND()*5)+INT(RAND()*3)*INT(RAND()*2)) -> 6 | I23: : | J23: =IF($B$66="",0,INT(RAND()*5)+INT(RAND()*3)*INT(RAND()*2)) -> 2 | K23: ok | M23: =VLOOKUP(2,$X$22:$AC$25,2,FALSE) -> England | N23: =VLOOKUP(2,$X$22:$AC$25,3,FALSE) -> 6 | O23: =VLOOKUP(2,$X$22:$AC$25,4,FALSE) -> 5 | P23: =VLOOKUP(2,$X$22:$AC$25,5,FALSE) -> 6 | Q23: =VLOOKUP(2,$X$22:$AC$25,6,FALSE) -> -1 | S23: =IF(J23="",0,IF(K23=$B$65,IF(H23<J23,3,IF(H23=J23,1,0)),0)) -> 0 | U23: =IF(H28="",0,IF(K27=$B$65,IF(H28>J28,3,IF(H28=J28,1,0)),0)) -> 1 | V23: =IF(H26="",0,IF(K26=$B$65,IF(H26>J26,3,IF(H26=J26,1,0)),0)) -> 0 | X23: =RANK(AD23,$AD$22:$AD$25) -> 4 | Y23: Dänemark | Z23: =SUM(S23:V23) -> 1 | AA23: =SUM(S27:V27) -> 7 | AB23: =SUM(T26:T29) -> 13 | AC23: =AA23-AB23 -> -6 | AD23: =IF(P$28="",(((((((AE23*10+Z23)*100+AC23)*100+AA23)*10+AK23)*10+AJ23)*100+AP23)*100+AU23)*10+AV23,(((((((AE23*10+Z23)*10+AK23)*10+AJ23)*100+AP23)*100+AU23)*100+AC23)*100+AA23)*10+AV23) -> 99999994073 | AF23: =IF($Z23=$Z22,$S23-$T22,0) -> 0 | AH23: =IF($Z23=$Z24,$U23-$T24,0) -> 0 | AI23: =IF($Z23=$Z25,$V23-$T25,0) -> 0 | AJ23: =SUM(AF23:AI23) -> 0 | AL23: =IF($Z23=$Z22,$S27-$T26,0) -> 0 | AN23: =IF($Z23=$Z24,$U27-$T28,0) -> 0 | AO23: =IF($Z23=$Z25,$V27-$T29,0) -> 0 | AP23: =SUM(AL23:AO23) -> 0 | AQ23: =IF($Z23=$Z22,$S27,0) -> 0 | AS23: =IF($Z23=$Z24,$U27,0) -> 0 | AT23: =IF($Z23=$Z25,$V27,0) -> 0 | AU23: =SUM(AQ23:AT23) -> 0 | AV23: 3 | BA23: 11 | BB23: 2024-06-18T18:00:00 | BC23: Dortmund | BD23: =BY22 -> Türkei | BE23: - | BF23: =BY23 -> Georgien | BH23: =IF($B$66="",1,INT(RAND()*5)+INT(RAND()*3)*INT(RAND()*2)) -> 1 | BI23: : | BJ23: =IF($B$66="",0,INT(RAND()*5)+INT(RAND()*3)*INT(RAND()*2)) -> 3 | BK23: ok | BM23: =VLOOKUP(2,$BX$22:$CC$25,2,FALSE) -> Portugal | BN23: =VLOOKUP(2,$BX$22:$CC$25,3,FALSE) -> 6 | BO23: =VLOOKUP(2,$BX$22:$CC$25,4,FALSE) -> 10 | BP23: =VLOOKUP(2,$BX$22:$CC$25,5,FALSE) -> 7 | BQ23: =VLOOKUP(2,$BX$22:$CC$25,6,FALSE) -> 3 | BS23: =IF(BJ23="",0,IF(BK23=$B$65,IF(BH23<BJ23,3,IF(BH23=BJ23,1,0)),0)) -> 3 | BU23: =IF(BH28="",0,IF(BK27=$B$65,IF(BH28>BJ28,3,IF(BH28=BJ28,1,0)),0)) -> 3 | BV23: =IF(BH26="",0,IF(BK26=$B$65,IF(BH26>BJ26,3,IF(BH26=BJ26,1,0)),0)) -> 3 | BX23: =RANK(CD23,$CD$22:$CD$25) -> 1 | BY23: Georgien | BZ23: =SUM(BS23:BV23) -> 9 | CA23: =SUM(BS27:BV27) -> 12 | CB23: =SUM(BT26:BT29) -> 6 | CC23: =CA23-CB23 -> 6 | CD23: =IF(BP$28="",(((((((CE23*10+BZ23)*100+CC23)*100+CA23)*10+CK23)*10+CJ23)*100+CP23)*100+CU23)*10+CV23,(((((((CE23*10+BZ23)*10+CK23)*10+CJ23)*100+CP23)*100+CU23)*100+CC23)*100+CA23)*10+CV23) -> 900000006123 | CF23: =IF($BZ23=$BZ22,$BS23-$BT22,0) -> 0 | CH23: =IF($BZ23=$BZ24,$BU23-$BT24,0) -> 0 | CI23: =IF($BZ23=$BZ25,$BV23-$BT25,0) -> 0 | CJ23: =SUM(CF23:CI23) -> 0 | CL23: =IF($BZ23=$BZ22,$BS27-$BT26,0) -> 0 | CN23: =IF($BZ23=$BZ24,$BU27-$BT28,0) -> 0 | CO23: =IF($BZ23=$BZ25,$BV27-$BT29,0) -> 0 | CP23: =SUM(CL23:CO23) -> 0 | CQ23: =IF($BZ23=$BZ22,$BS27,0) -> 0 | CS23: =IF($BZ23=$BZ24,$BU27,0) -> 0 | CT23: =IF($BZ23=$BZ25,$BV27,0) -> 0 | CU23: =SUM(CQ23:CT23) -> 0 | CV23: 3
A24: 6 | B24: 2024-05-16T21:00:00 | C24: Gelsenkirchen | D24: =Y24 -> Serbien | E24: - | F24: =Y25 -> England | H24: 1 | I24: : | J24: 2 | K24: ok | M24: =VLOOKUP(3,$X$22:$AC$25,2,FALSE) -> Serbien | N24: =VLOOKUP(3,$X$22:$AC$25,3,FALSE) -> 2 | O24: =VLOOKUP(3,$X$22:$AC$25,4,FALSE) -> 6 | P24: =VLOOKUP(3,$X$22:$AC$25,5,FALSE) -> 7 | Q24: =VLOOKUP(3,$X$22:$AC$25,6,FALSE) -> -1 | S24: =IF(J25="",0,IF(K25=$B$65,IF(H25<J25,3,IF(H25=J25,1,0)),0)) -> 1 | T24: =IF(J28="",0,IF(K27=$B$65,IF(H28<J28,3,IF(H28=J28,1,0)),0)) -> 1 | V24: =IF(H24="",0,IF(K24=$B$65,IF(H24>J24,3,IF(H24=J24,1,0)),0)) -> 0 | X24: =RANK(AD24,$AD$22:$AD$25) -> 3 | Y24: Serbien | Z24: =SUM(S24:V24) -> 2 | AA24: =SUM(S28:V28) -> 6 | AB24: =SUM(U26:U29) -> 7 | AC24: =AA24-AB24 -> -1 | AD24: =IF(P$28="",(((((((AE24*10+Z24)*100+AC24)*100+AA24)*10+AK24)*10+AJ24)*100+AP24)*100+AU24)*10+AV24,(((((((AE24*10+Z24)*10+AK24)*10+AJ24)*100+AP24)*100+AU24)*100+AC24)*100+AA24)*10+AV24) -> 199999999062 | AF24: =IF($Z24=$Z22,$S24-$U22,0) -> 0 | AG24: =IF($Z24=$Z23,$T24-$U23,0) -> 0 | AI24: =IF($Z24=$Z25,$V24-$U25,0) -> 0 | AJ24: =SUM(AF24:AI24) -> 0 | AL24: =IF($Z24=$Z22,$S28-$U26,0) -> 0 | AM24: =IF($Z24=$Z23,$T28-$U27,0) -> 0 | AO24: =IF($Z24=$Z25,$V28-$U29,0) -> 0 | AP24: =SUM(AL24:AO24) -> 0 | AQ24: =IF($Z24=$Z22,$S28,0) -> 0 | AR24: =IF($Z24=$Z23,$T28,0) -> 0 | AT24: =IF($Z24=$Z25,$V28,0) -> 0 | AU24: =SUM(AQ24:AT24) -> 0 | AV24: 2 | BA24: 12 | BB24: 2024-06-18T21:00:00 | BC24: Leipzig | BD24: =BY24 -> Portugal | BE24: - | BF24: =BY25 -> Tschechien | BH24: 4 | BI24: : | BJ24: 2 | BK24: ok | BM24: =VLOOKUP(3,$BX$22:$CC$25,2,FALSE) -> Türkei | BN24: =VLOOKUP(3,$BX$22:$CC$25,3,FALSE) -> 3 | BO24: =VLOOKUP(3,$BX$22:$CC$25,4,FALSE) -> 9 | BP24: =VLOOKUP(3,$BX$22:$CC$25,5,FALSE) -> 11 | BQ24: =VLOOKUP(3,$BX$22:$CC$25,6,FALSE) -> -2 | BS24: =IF(BJ25="",0,IF(BK25=$B$65,IF(BH25<BJ25,3,IF(BH25=BJ25,1,0)),0)) -> 3 | BT24: =IF(BJ28="",0,IF(BK27=$B$65,IF(BH28<BJ28,3,IF(BH28=BJ28,1,0)),0)) -> 0 | BV24: =IF(BH24="",0,IF(BK24=$B$65,IF(BH24>BJ24,3,IF(BH24=BJ24,1,0)),0)) -> 3 | BX24: =RANK(CD24,$CD$22:$CD$25) -> 2 | BY24: Portugal | BZ24: =SUM(BS24:BV24) -> 6 | CA24: =SUM(BS28:BV28) -> 10 | CB24: =SUM(BU26:BU29) -> 7 | CC24: =CA24-CB24 -> 3 | CD24: =IF(BP$28="",(((((((CE24*10+BZ24)*100+CC24)*100+CA24)*10+CK24)*10+CJ24)*100+CP24)*100+CU24)*10+CV24,(((((((CE24*10+BZ24)*10+CK24)*10+CJ24)*100+CP24)*100+CU24)*100+CC24)*100+CA24)*10+CV24) -> 600000003102 | CF24: =IF($BZ24=$BZ22,$BS24-$BU22,0) -> 0 | CG24: =IF($BZ24=$BZ23,$BT24-$BU23,0) -> 0 | CI24: =IF($BZ24=$BZ25,$BV24-$BU25,0) -> 0 | CJ24: =SUM(CF24:CI24) -> 0 | CL24: =IF($BZ24=$BZ22,$BS28-$BU26,0) -> 0 | CM24: =IF($BZ24=$BZ23,$BT28-$BU27,0) -> 0 | CO24: =IF($BZ24=$BZ25,$BV28-$BU29,0) -> 0 | CP24: =SUM(CL24:CO24) -> 0 | CQ24: =IF($BZ24=$BZ22,$BS28,0) -> 0 | CR24: =IF($BZ24=$BZ23,$BT28,0) -> 0 | CT24: =IF($BZ24=$BZ25,$BV28,0) -> 0 | CU24: =SUM(CQ24:CT24) -> 0 | CV24: 2
A25: =A23+12 -> 17 | B25: 2024-06-20T15:00:00 | C25: München | D25: =Y22 -> Slowenien | E25: - | F25: =Y24 -> Serbien | H25: 1 | I25: : | J25: 1 | K25: ok | M25: =VLOOKUP(4,$X$22:$AC$25,2,FALSE) -> Dänemark | N25: =VLOOKUP(4,$X$22:$AC$25,3,FALSE) -> 1 | O25: =VLOOKUP(4,$X$22:$AC$25,4,FALSE) -> 7 | P25: =VLOOKUP(4,$X$22:$AC$25,5,FALSE) -> 13 | Q25: =VLOOKUP(4,$X$22:$AC$25,6,FALSE) -> -6 | S25: =IF(H27="",0,IF(K28=$B$65,IF(H27>J27,3,IF(H27=J27,1,0)),0)) -> 0 | T25: =IF(J26="",0,IF(K26=$B$65,IF(H26<J26,3,IF(H26=J26,1,0)),0)) -> 3 | U25: =IF(J24="",0,IF(K24=$B$65,IF(H24<J24,3,IF(H24=J24,1,0)),0)) -> 3 | X25: =RANK(AD25,$AD$22:$AD$25) -> 2 | Y25: England | Z25: =SUM(S25:V25) -> 6 | AA25: =SUM(S29:V29) -> 5 | AB25: =SUM(V26:V29) -> 6 | AC25: =AA25-AB25 -> -1 | AD25: =IF(P$28="",(((((((AE25*10+Z25)*100+AC25)*100+AA25)*10+AK25)*10+AJ25)*100+AP25)*100+AU25)*10+AV25,(((((((AE25*10+Z25)*10+AK25)*10+AJ25)*100+AP25)*100+AU25)*100+AC25)*100+AA25)*10+AV25) -> 599999999051 | AF25: =IF($Z25=$Z22,$S25-$V22,0) -> 0 | AG25: =IF($Z25=$Z23,$T25-$V23,0) -> 0 | AH25: =IF($Z25=$Z24,$U25-$V24,0) -> 0 | AJ25: =SUM(AF25:AI25) -> 0 | AL25: =IF($Z25=$Z22,$S29-$V26,0) -> 0 | AM25: =IF($Z25=$Z23,$T29-$V27,0) -> 0 | AN25: =IF($Z25=$Z24,$U29-$V28,0) -> 0 | AP25: =SUM(AL25:AO25) -> 0 | AQ25: =IF($Z25=$Z22,$S29,0) -> 0 | AR25: =IF($Z25=$Z23,$T29,0) -> 0 | AS25: =IF($Z25=$Z24,$U29,0) -> 0 | AU25: =SUM(AQ25:AT25) -> 0 | AV25: 1 | BA25: =BA23+12 -> 23 | BB25: 2024-06-22T18:00:00 | BC25: Dortmund | BD25: =BY22 -> Türkei | BE25: - | BF25: =BY24 -> Portugal | BH25: 2 | BI25: : | BJ25: 5 | BK25: ok | BM25: =VLOOKUP(4,$BX$22:$CC$25,2,FALSE) -> Tschechien | BN25: =VLOOKUP(4,$BX$22:$CC$25,3,FALSE) -> 0 | BO25: =VLOOKUP(4,$BX$22:$CC$25,4,FALSE) -> 9 | BP25: =VLOOKUP(4,$BX$22:$CC$25,5,FALSE) -> 16 | BQ25: =VLOOKUP(4,$BX$22:$CC$25,6,FALSE) -> -7 | BS25: =IF(BH27="",0,IF(BK28=$B$65,IF(BH27>BJ27,3,IF(BH27=BJ27,1,0)),0)) -> 0 | BT25: =IF(BJ26="",0,IF(BK26=$B$65,IF(BH26<BJ26,3,IF(BH26=BJ26,1,0)),0)) -> 0 | BU25: =IF(BJ24="",0,IF(BK24=$B$65,IF(BH24<BJ24,3,IF(BH24=BJ24,1,0)),0)) -> 0 | BX25: =RANK(CD25,$CD$22:$CD$25) -> 4 | BY25: Tschechien | BZ25: =SUM(BS25:BV25) -> 0 | CA25: =SUM(BS29:BV29) -> 9 | CB25: =SUM(BV26:BV29) -> 16 | CC25: =CA25-CB25 -> -7 | CD25: =IF(BP$28="",(((((((CE25*10+BZ25)*100+CC25)*100+CA25)*10+CK25)*10+CJ25)*100+CP25)*100+CU25)*10+CV25,(((((((CE25*10+BZ25)*10+CK25)*10+CJ25)*100+CP25)*100+CU25)*100+CC25)*100+CA25)*10+CV25) -> -6909 | CF25: =IF($BZ25=$BZ22,$BS25-$BV22,0) -> 0 | CG25: =IF($BZ25=$BZ23,$BT25-$BV23,0) -> 0 | CH25: =IF($BZ25=$BZ24,$BU25-$BV24,0) -> 0 | CJ25: =SUM(CF25:CI25) -> 0 | CL25: =IF($BZ25=$BZ22,$BS29-$BV26,0) -> 0 | CM25: =IF($BZ25=$BZ23,$BT29-$BV27,0) -> 0 | CN25: =IF($BZ25=$BZ24,$BU29-$BV28,0) -> 0 | CP25: =SUM(CL25:CO25) -> 0 | CQ25: =IF($BZ25=$BZ22,$BS29,0) -> 0 | CR25: =IF($BZ25=$BZ23,$BT29,0) -> 0 | CS25: =IF($BZ25=$BZ24,$BU29,0) -> 0 | CU25: =SUM(CQ25:CT25) -> 0 | CV25: 1
A26: =A24+12 -> 18 | B26: 2024-06-20T18:00:00 | C26: England | D26: =Y23 -> Dänemark | E26: - | F26: =Y25 -> England | H26: 1 | I26: : | J26: 3 | K26: ok | T26: =IF(K23=$B$65,H23,0) -> 6 | U26: =IF(K25=$B$65,H25,0) -> 1 | V26: =IF(K28=$B$65,J27,0) -> 4 | BA26: =BA24+12 -> 24 | BB26: 2024-06-22T15:00:00 | BC26: Hamburg | BD26: =BY23 -> Georgien | BE26: - | BF26: =BY25 -> Tschechien | BH26: 6 | BI26: : | BJ26: 4 | BK26: ok | BT26: =IF(BK23=$B$65,BH23,0) -> 1 | BU26: =IF(BK25=$B$65,BH25,0) -> 2 | BV26: =IF(BK28=$B$65,BJ27,0) -> 6
A27: =A25+12 -> 29 | B27: 2024-06-25T21:00:00 | C27: Köln | D27: =Y25 -> England | E27: - | F27: =Y22 -> Slowenien | H27: 0 | I27: : | J27: 4 | K27: ok | M27: =IF(N22>0,M22,"") -> Slowenien | N27: 1C | S27: =IF(K23=$B$65,J23,0) -> 2 | U27: =IF(K27=$B$65,H28,0) -> 4 | V27: =IF(K26=$B$65,H26,0) -> 1 | AD27: L0=AE hebelt Berechnung aus (top level Losen) | BA27: =BA25+12 -> 35 | BB27: 2024-06-26T21:00:00 | BC27: Hamburg | BD27: =BY25 -> Tschechien | BE27: - | BF27: =BY22 -> Türkei | BH27: 3 | BI27: : | BJ27: 6 | BK27: ok | BM27: =IF(BN22>0,BM22,"") -> Georgien | BN27: 1F | BS27: =IF(BK23=$B$65,BJ23,0) -> 3 | BU27: =IF(BK27=$B$65,BH28,0) -> 3 | BV27: =IF(BK26=$B$65,BH26,0) -> 6 | CD27: L0=AE hebelt Berechnung aus (top level Losen)
A28: =A26+12 -> 30 | B28: 2024-06-25T21:00:00 | C28: München | D28: =Y23 -> Dänemark | E28: - | F28: =Y24 -> Serbien | H28: 4 | I28: : | J28: 4 | K28: ok | M28: =IF(N23>0,M23,"") -> England | N28: 2C | P28: DV | S28: =IF(K25=$B$65,J25,0) -> 1 | T28: =IF(K27=$B$65,J28,0) -> 4 | V28: =IF(K24=$B$65,H24,0) -> 1 | AD28: L1=AK hebelt Direktvergleich (S1) aus | BA28: =BA26+12 -> 36 | BB28: 2024-06-26T21:00:00 | BC28: Gelsenkirchen | BD28: =BY23 -> Georgien | BE28: - | BF28: =BY24 -> Portugal | BH28: 3 | BI28: : | BJ28: 1 | BK28: ok | BM28: =IF(BN23>0,BM23,"") -> Portugal | BN28: 2F | BP28: DV | BS28: =IF(BK25=$B$65,BJ25,0) -> 5 | BT28: =IF(BK27=$B$65,BJ28,0) -> 1 | BV28: =IF(BK24=$B$65,BH24,0) -> 4 | CD28: L1=AK hebelt Direktvergleich (S1) aus
M29: =IF(N24>0,M24,"") -> Serbien | N29: 3C | S29: =IF(K28=$B$65,H27,0) -> 0 | T29: =IF(K26=$B$65,J26,0) -> 3 | U29: =IF(K24=$B$65,J24,0) -> 2 | AD29: L4=AV Losen UEFA-Koeffizient, Fairplay oder Münzwurf | BM29: =IF(BN24>0,BM24,"") -> Türkei | BN29: 3F | BS29: =IF(BK28=$B$65,BH27,0) -> 3 | BT29: =IF(BK26=$B$65,BJ26,0) -> 4 | BU29: =IF(BK24=$B$65,BJ24,0) -> 2 | CD29: L4=AV Losen UEFA-Koeffizient, Fairplay oder Münzwurf
B31: Gruppendritte | C31: =CONCATENATE(H35,H36,H37,H38) -> ADEF
M32: Reihenfolge nur zur Gruppenauswahl
D34: =IF(AE50="","","(falls manuell)") -> (falls manuell) | M34: Tabelle | N34: P | O34: T+ | P34: T- | Q34: T+/- | R34: C | S34: G | X34: R | Y34: Gruppendritte | AE34: L0 | AF34: G | AV34: L4
A35: =CODE(B35)-64 -> 5 | B35: =INDEX('Annix-EM2024'!$C:$C, MATCH($C$31, 'Annix-EM2024'!$B:$B, 0)) -> E | C35: =VLOOKUP(A35,$L$35:$M$40,2,FALSE) -> Belgien | D35: =IF(AE50="","",AC50) -> C | F35: =IF(AE50="","",AD50) -> Serbien | H35: =CHAR(J35+64) -> A | J35: =SMALL(R$35:R$38,1) -> 1 | K35: =S35 -> A | L35: =CODE(K35)-64 -> 1 | M35: =VLOOKUP(1,$X$35:$AC$40,2,FALSE) -> Schottland | N35: =VLOOKUP(1,$X$35:$AC$40,3,FALSE) -> 4 | O35: =VLOOKUP(1,$X$35:$AC$40,4,FALSE) -> 6 | P35: =VLOOKUP(1,$X$35:$AC$40,5,FALSE) -> 6 | Q35: =VLOOKUP(1,$X$35:$AC$40,6,FALSE) -> 0 | R35: =CODE(S35)-64 -> 1 | S35: =MID(VLOOKUP(1,$X$35:$AF$40,9,FALSE),2,1) -> A | X35: =RANK(AD35,$AD$35:$AD$40) -> 1 | Y35: =M4 -> Schottland | Z35: =N4 -> 4 | AA35: =O4 -> 6 | AB35: =P4 -> 6 | AC35: =Q4 -> 0 | AD35: =AE35*10000000000000000+Z35*100000000000000+AC35*1000000000000+AA35*10000000000+AV35 -> 400060000000006 | AF35: =N9 -> 3A | AV35: 6
A36: =CODE(B36)-64 -> 1 | B36: =INDEX('Annix-EM2024'!$D:$D, MATCH($C$31, 'Annix-EM2024'!$B:$B, 0)) -> A | C36: =VLOOKUP(A36,$L$35:$M$40,2,FALSE) -> Schottland | D36: =IF(AE51="","",AC51) ->  | F36: =IF(AE51="","",AD51) ->  | H36: =CHAR(J36+64) -> D | J36: =SMALL(R$35:R$38,2) -> 4 | K36: E | L36: 5 | M36: =VLOOKUP(2,$X$35:$AC$40,2,FALSE) -> Belgien | N36: =VLOOKUP(2,$X$35:$AC$40,3,FALSE) -> 3 | O36: =VLOOKUP(2,$X$35:$AC$40,4,FALSE) -> 7 | P36: =VLOOKUP(2,$X$35:$AC$40,5,FALSE) -> 7 | Q36: =VLOOKUP(2,$X$35:$AC$40,6,FALSE) -> 0 | R36: =CODE(S36)-64 -> 5 | S36: =MID(VLOOKUP(2,$X$35:$AF$40,9,FALSE),2,1) -> E | X36: 5 | Y36: =M14 -> Italien | Z36: =N14 -> 3 | AA36: =O14 -> 9 | AB36: =P14 -> 12 | AC36: =Q14 -> -3 | AD36: 297090000000005 | AF36: =N19 -> 3B | AV36: 5
A37: =CODE(B37)-64 -> 6 | B37: =INDEX('Annix-EM2024'!$E:$E, MATCH($C$31, 'Annix-EM2024'!$B:$B, 0)) -> F | C37: =VLOOKUP(A37,$L$35:$M$40,2,FALSE) -> Türkei | D37: =IF(AE53="","",AC53) ->  | F37: =IF(AE53="","",AD53) ->  | H37: =CHAR(J37+64) -> E | J37: =SMALL(R$35:R$38,3) -> 5 | K37: D | L37: 4 | M37: =VLOOKUP(3,$X$35:$AC$40,2,FALSE) -> Frankreich | N37: =VLOOKUP(3,$X$35:$AC$40,3,FALSE) -> 3 | O37: =VLOOKUP(3,$X$35:$AC$40,4,FALSE) -> 6 | P37: =VLOOKUP(3,$X$35:$AC$40,5,FALSE) -> 6 | Q37: =VLOOKUP(3,$X$35:$AC$40,6,FALSE) -> 0 | R37: =CODE(S37)-64 -> 4 | S37: =MID(VLOOKUP(3,$X$35:$AF$40,9,FALSE),2,1) -> D | X37: 6 | Y37: =M24 -> Serbien | Z37: =N24 -> 2 | AA37: =O24 -> 6 | AB37: =P24 -> 7 | AC37: =Q24 -> -1 | AD37: 199060000000004 | AF37: =N29 -> 3C | AV37: 4
A38: =CODE(B38)-64 -> 4 | B38: =INDEX('Annix-EM2024'!$F:$F, MATCH($C$31, 'Annix-EM2024'!$B:$B, 0)) -> D | C38: =VLOOKUP(A38,$L$35:$M$40,2,FALSE) -> Frankreich | D38: =IF(AE56="","",AC56) ->  | F38: =IF(AE56="","",AD56) ->  | H38: =CHAR(J38+64) -> F | J38: =SMALL(R$35:R$38,4) -> 6 | K38: F | L38: 6 | M38: =VLOOKUP(4,$X$35:$AC$40,2,FALSE) -> Türkei | N38: =VLOOKUP(4,$X$35:$AC$40,3,FALSE) -> 3 | O38: =VLOOKUP(4,$X$35:$AC$40,4,FALSE) -> 9 | P38: =VLOOKUP(4,$X$35:$AC$40,5,FALSE) -> 11 | Q38: =VLOOKUP(4,$X$35:$AC$40,6,FALSE) -> -2 | R38: =CODE(S38)-64 -> 6 | S38: =MID(VLOOKUP(4,$X$35:$AF$40,9,FALSE),2,1) -> F | X38: 3 | Y38: =BM4 -> Frankreich | Z38: =BN4 -> 3 | AA38: =BO4 -> 6 | AB38: =BP4 -> 6 | AC38: =BQ4 -> 0 | AD38: 300060000000003 | AF38: =BN9 -> 3D | AV38: 3
K39: B | L39: 2 | M39: =VLOOKUP(5,$X$35:$AC$40,2,FALSE) -> Italien | N39: =VLOOKUP(5,$X$35:$AC$40,3,FALSE) -> 3 | O39: =VLOOKUP(5,$X$35:$AC$40,4,FALSE) -> 9 | P39: =VLOOKUP(5,$X$35:$AC$40,5,FALSE) -> 12 | Q39: =VLOOKUP(5,$X$35:$AC$40,6,FALSE) -> -3 | S39: =MID(VLOOKUP(5,$X$35:$AF$40,9,FALSE),2,1) -> B | X39: 2 | Y39: =BM14 -> Belgien | Z39: =BN14 -> 3 | AA39: =BO14 -> 7 | AB39: =BP14 -> 7 | AC39: =BQ14 -> 0 | AD39: 300070000000002 | AF39: =BN19 -> 3E | AV39: 2
K40: C | L40: 3 | M40: =VLOOKUP(6,$X$35:$AC$40,2,FALSE) -> Serbien | N40: =VLOOKUP(6,$X$35:$AC$40,3,FALSE) -> 2 | O40: =VLOOKUP(6,$X$35:$AC$40,4,FALSE) -> 6 | P40: =VLOOKUP(6,$X$35:$AC$40,5,FALSE) -> 7 | Q40: =VLOOKUP(6,$X$35:$AC$40,6,FALSE) -> -1 | S40: =MID(VLOOKUP(6,$X$35:$AF$40,9,FALSE),2,1) -> C | X40: 4 | Y40: =BM24 -> Türkei | Z40: =BN24 -> 3 | AA40: =BO24 -> 9 | AB40: =BP24 -> 11 | AC40: =BQ24 -> -2 | AD40: 298090000000001 | AF40: =BN29 -> 3F | AV40: 1
AD42: L0=AE hebelt Berechnung aus (top level Losen)
AD43: L4=AV Losen UEFA-Koeffizient, Fairplay oder Münzwurf
B47: Achtelfinale | BB47: Viertelfinale
B48: Datum/Zeit | C48: Spielort | Y48: Auto | AA48: Annix | AC48: (falls manuell) | AE48: L8 | BB48: Datum/Zeit | BC48: Spielort
A49: 37 | B49: 2024-06-29T21:00:00 | C49: Dortmund | D49: =M7 -> Ungarn | E49: - | F49: =M28 -> England | H49: =IF($B$66="",1,IF(OR(J49<1,INT(RAND()*10<6)),J49+1,J49-1)) -> 4 | I49: : | J49: =IF($B$66="",0,INT(RAND()*5)+INT(RAND()*3)*INT(RAND()*2)) -> 3 | K49: ok | M49: =IF(J49="","",IF(J49=H49,"falsch!!! K.Remis",IF(H49>J49,D49,F49))) -> Ungarn | N49: =N7 -> 1A | O49: =N28 -> 2C | P49: AF1 | R49: a2 | BA49: =A56+1 -> 45 | BB49: 2024-07-05T18:00:00 | BC49: Stuttgart | BD49: =M49 -> Ungarn | BE49: - | BF49: =M50 -> Albanien | BH49: =IF($B$66="",1,IF(OR(BJ49<1,INT(RAND()*10<6)),BJ49+1,BJ49-1)) -> 0 | BI49: : | BJ49: =IF($B$66="",0,INT(RAND()*5)+INT(RAND()*3)*INT(RAND()*2)) -> 1 | BK49: ok | BM49: =IF(BJ49="","",IF(BJ49=BH49,"falsch!!! K.Remis",IF(BH49>BJ49,BD49,BF49))) -> Albanien | BN49: =P49 -> AF1 | BO49: =P50 -> AF2 | BP49: VF1
A50: =A49+1 -> 38 | B50: 2024-06-30T21:00:00 | C50: Köln | D50: =M17 -> Albanien | E50: - | F50: =AD50 -> Serbien | H50: 3 | I50: : | J50: 2 | K50: ok | M50: Albanien | N50: =N17 -> 1B | O50: ="3"&AC50 -> 3C | P50: AF2 | R50: a4 | Y50: 3ADEF | AA50: =B35 -> E | AC50: =IF(AE50="",AA50,AE50) -> C | AD50: =VLOOKUP(CODE(AC50)-64,$L$35:$M$40,2,FALSE) -> Serbien | AE50: C | BA50: =BA49+1 -> 46 | BB50: 2024-07-05T21:00:00 | BC50: Hamburg | BD50: =M51 -> Georgien | BE50: - | BF50: =M52 -> Österreich | BH50: =IF($B$66="",1,IF(OR(BJ50<1,INT(RAND()*10<6)),BJ50+1,BJ50-1)) -> 3 | BI50: : | BJ50: =IF($B$66="",0,INT(RAND()*5)+INT(RAND()*3)*INT(RAND()*2)) -> 4 | BK50: ok | BM50: =IF(BJ50="","",IF(BJ50=BH50,"falsch!!! K.Remis",IF(BH50>BJ50,BD50,BF50))) -> Österreich | BN50: =P51 -> AF3 | BO50: =P52 -> AF4 | BP50: VF2
A51: =A50+1 -> 39 | B51: 2024-07-01T21:00:00 | C51: Frankfurt | D51: =BM27 -> Georgien | E51: - | F51: =AD51 -> Schottland | H51: 4 | I51: : | J51: 3 | K51: ok | M51: Georgien | N51: =BN27 -> 1F | O51: ="3"&AC51 -> 3A | P51: AF3 | R51: a6 | Y51: 3ABC | AA51: =B36 -> A | AC51: =IF(AE51="",AA51,AE51) -> A | AD51: =VLOOKUP(CODE(AC51)-64,$L$35:$M$40,2,FALSE) -> Schottland | BA51: =BA50+1 -> 47 | BB51: 2024-07-06T18:00:00 | BC51: Düssseldorf | BD51: =M53 -> Slowenien | BE51: - | BF51: =M54 -> Deutschland | BH51: =IF($B$66="",1,IF(OR(BJ51<1,INT(RAND()*10<6)),BJ51+1,BJ51-1)) -> 6 | BI51: : | BJ51: =IF($B$66="",0,INT(RAND()*5)+INT(RAND()*3)*INT(RAND()*2)) -> 5 | BK51: ok | BM51: =IF(BJ51="","",IF(BJ51=BH51,"falsch!!! K.Remis",IF(BH51>BJ51,BD51,BF51))) -> Slowenien | BN51: =P53 -> AF5 | BO51: =P54 -> AF6 | BP51: VF3
A52: 40 | B52: 2024-07-01T18:00:00 | C52: Düsseldorf | D52: =BM8 -> Österreich | E52: - | F52: =BM18 -> Rumänien | H52: 4 | I52: : | J52: 3 | K52: ok | M52: Österreich | N52: =BN8 -> 2D | O52: =BN18 -> 2E | P52: AF4 | R52: a5 | BA52: =BA51+1 -> 48 | BB52: 2024-07-06T21:00:00 | BC52: Berlin | BD52: =M55 -> Polen | BE52: - | BF52: =M56 -> Slowakei | BH52: =IF($B$66="",1,IF(OR(BJ52<1,INT(RAND()*10<6)),BJ52+1,BJ52-1)) -> 3 | BI52: : | BJ52: =IF($B$66="",0,INT(RAND()*5)+INT(RAND()*3)*INT(RAND()*2)) -> 4 | BK52: ok | BM52: =IF(BJ52="","",IF(BJ52=BH52,"falsch!!! K.Remis",IF(BH52>BJ52,BD52,BF52))) -> Slowakei | BN52: =P55 -> AF7 | BO52: =P56 -> AF8 | BP52: VF4
A53: 41 | B53: 2024-06-30T18:00:00 | C53: Gelsenkirchen | D53: =M27 -> Slowenien | E53: - | F53: =AD53 -> Türkei | H53: 1 | I53: : | J53: 0 | K53: ok | M53: Slowenien | N53: =N27 -> 1C | O53: ="3"&AC53 -> 3F | P53: AF5 | R53: a3 | Y53: 3DEF | AA53: =B37 -> F | AC53: =IF(AE53="",AA53,AE53) -> F | AD53: =VLOOKUP(CODE(AC53)-64,$L$35:$M$40,2,FALSE) -> Türkei
A54: 42 | B54: 2024-06-29T18:00:00 | C54: Berlin | D54: =M8 -> Deutschland | E54: - | F54: =M18 -> Spanien | H54: 6 | I54: : | J54: 5 | K54: ok | M54: Deutschland | N54: =N8 -> 2A | O54: =N18 -> 2B | P54: AF6 | R54: a1 | BB54: Halbfinale
A55: 43 | B55: 2024-07-02T21:00:00 | C55: Leipzig | D55: =BM7 -> Polen | E55: - | F55: =BM28 -> Portugal | H55: 6 | I55: : | J55: 5 | K55: ok | M55: Polen | N55: =BN7 -> 1D | O55: =BN28 -> 2F | P55: AF7 | R55: a8 | BB55: Datum/Zeit | BC55: Spielort
A56: 44 | B56: 2024-07-02T18:00:00 | C56: München | D56: =BM17 -> Slowakei | E56: - | F56: =AD56 -> Frankreich | H56: 7 | I56: : | J56: 6 | K56: ok | M56: Slowakei | N56: =BN17 -> 1E | O56: ="3"&AC56 -> 3D | P56: AF8 | R56: a7 | Y56: 3ABCD | AA56: =B38 -> D | AC56: =IF(AE56="",AA56,AE56) -> D | AD56: =VLOOKUP(CODE(AC56)-64,$L$35:$M$40,2,FALSE) -> Frankreich | BA56: =BA52+1 -> 49 | BB56: 2024-07-09T21:00:00 | BC56: München | BD56: =BM50 -> Österreich | BE56: - | BF56: =BM49 -> Albanien | BH56: =IF($B$66="",1,IF(OR(BJ56<1,INT(RAND()*10<6)),BJ56+1,BJ56-1)) -> 5 | BI56: : | BJ56: =IF($B$66="",0,INT(RAND()*5)+INT(RAND()*3)*INT(RAND()*2)) -> 4 | BK56: ok | BM56: =IF(BJ56="","",IF(BJ56=BH56,"falsch!!! K.Remis",IF(BH56>BJ56,BD56,BF56))) -> Österreich | BN56: =BP50 -> VF2 | BO56: =BP49 -> VF1 | BP56: F1
AE57: L8=Buchstabe für manuelle Gruppe | BA57: =BA56+1 -> 50 | BB57: 2024-07-10T21:00:00 | BC57: Dortmund | BD57: =BM52 -> Slowakei | BE57: - | BF57: =BM51 -> Slowenien | BH57: =IF($B$66="",1,IF(OR(BJ57<1,INT(RAND()*10<6)),BJ57+1,BJ57-1)) -> 1 | BI57: : | BJ57: =IF($B$66="",0,INT(RAND()*5)+INT(RAND()*3)*INT(RAND()*2)) -> 2 | BK57: ok | BM57: =IF(BJ57="","",IF(BJ57=BH57,"falsch!!! K.Remis",IF(BH57>BJ57,BD57,BF57))) -> Slowenien | BN57: =BP52 -> VF4 | BO57: =BP51 -> VF3 | BP57: F2
BM58: =IF(BD56=BM56,BF56,BD56) -> Albanien | BP58: HF1
B59: Finale | BB59: Um Platz 3 | BM59: =IF(BD57=BM57,BF57,BD57) -> Slowakei | BP59: HF2
B60: Datum/Zeit | C60: Spielort | M60: Europameister | BB60: Datum/Zeit | BC60: Spielort
A61: =BA61+1 -> 52 | B61: 2024-07-14T21:00:00 | C61: Berlin | D61: =BM56 -> Österreich | E61: - | F61: =BM57 -> Slowenien | H61: =IF($B$66="",1,IF(OR(J61<1,INT(RAND()*10<6)),J61+1,J61-1)) -> 2 | I61: : | J61: =IF($B$66="",0,INT(RAND()*5)+INT(RAND()*3)*INT(RAND()*2)) -> 3 | K61: ok | M61: =IF(J61="","",IF(J61=H61,"falsch!!! K.Remis",IF(H61>J61,D61,F61))) -> Slowenien | N61: =BP56 -> F1 | O61: =BP57 -> F2 | BA61: =BA57+1 -> 51 | BB61: 2024-07-13T21:00:00 | BC61: Rostock | BD61: =BM58 -> Albanien | BE61: - | BF61: =BM59 -> Slowakei | BH61: =IF($B$66="",1,IF(OR(BJ61<1,INT(RAND()*10<6)),BJ61+1,BJ61-1)) -> 0 | BI61: : | BJ61: =IF($B$66="",0,INT(RAND()*5)+INT(RAND()*3)*INT(RAND()*2)) -> 1 | BK61: ok | BM61: =IF(BJ61="","",IF(BJ61=BH61,"falsch!!! K.Remis",IF(BH61>BJ61,BD61,BF61))) -> Slowakei | BN61: =BP58 -> HF1 | BO61: =BP59 -> HF2
B65: ok | C65: OK
B66: ja | C66: Ergebnis Zufall
B67: =IF($B$66="",1,INT(RAND()*5)+INT(RAND()*3)*INT(RAND()*2)) -> 0 | C67: Zufallsformel

Sheet Annix-EM2024
A1: Option | B1: Combo | C1: 1B | D1: 1F | E1: 1C | F1: 1E
A2: 1 | B2: =CONCATENATE(O2,P2,Q2,R2) -> ABCD | C2: A | D2: C | E2: D | F2: B | G2: =CODE(C2) -> 65 | H2: =CODE(D2) -> 67 | I2: 68 | J2: 66 | K2: =SMALL($G2:$J2,1) -> 65 | L2: =SMALL($G2:$J2,2) -> 66 | M2: =SMALL($G2:$J2,3) -> 67 | N2: =SMALL($G2:$J2,4) -> 68 | O2: =CHAR(K2) -> A | P2: =CHAR(L2) -> B | Q2: C | R2: D
A3: =A2+1 -> 2 | B3: =CONCATENATE(O3,P3,Q3,R3) -> ABCE | C3: A | D3: C | E3: E | F3: B | G3: =CODE(C3) -> 65 | H3: 67 | I3: 69 | J3: 66 | K3: =SMALL($G3:$J3,1) -> 65 | L3: =SMALL($G3:$J3,2) -> 66 | M3: =SMALL($G3:$J3,3) -> 67 | N3: =SMALL($G3:$J3,4) -> 69 | O3: =CHAR(K3) -> A | P3: B | Q3: C | R3: E
A4: =A3+1 -> 3 | B4: ABCF | C4: A | D4: C | E4: F | F4: B | G4: 65 | H4: 67 | I4: 70 | J4: 66 | K4: 65 | L4: 66 | M4: 67 | N4: 70 | O4: A | P4: B | Q4: C | R4: F
A5: 4 | B5: ABDE | C5: D | D5: B | E5: E | F5: A | G5: 68 | H5: 66 | I5: 69 | J5: 65 | K5: 65 | L5: 66 | M5: 68 | N5: 69 | O5: A | P5: B | Q5: D | R5: E
A6: 5 | B6: ABDF | C6: D | D6: B | E6: F | F6: A | G6: 68 | H6: 66 | I6: 70 | J6: 65 | K6: 65 | L6: 66 | M6: 68 | N6: 70 | O6: A | P6: B | Q6: D | R6: F
A7: 6 | B7: ABEF | C7: E | D7: A | E7: F | F7: B | G7: 69 | H7: 65 | I7: 70 | J7: 66 | K7: 65 | L7: 66 | M7: 69 | N7: 70 | O7: A | P7: B | Q7: E | R7: F
A8: 7 | B8: ACDE | C8: E | D8: A | E8: D | F8: C | G8: 69 | H8: 65 | I8: 68 | J8: 67 | K8: 65 | L8: 67 | M8: 68 | N8: 69 | O8: A | P8: C | Q8: D | R8: E
A9: 8 | B9: ACDF | C9: F | D9: A | E9: D | F9: C | G9: 70 | H9: 65 | I9: 68 | J9: 67 | K9: 65 | L9: 67 | M9: 68 | N9: 70 | O9: A | P9: C | Q9: D | R9: F
A10: 9 | B10: ACEF | C10: E | D10: A | E10: F | F10: C | G10: 69 | H10: 65 | I10: 70 | J10: 67 | K10: 65 | L10: 67 | M10: 69 | N10: 70 | O10: A | P10: C | Q10: E | R10: F
A11: 10 | B11: ADEF | C11: E | D11: A | E11: F | F11: D | G11: 69 | H11: 65 | I11: 70 | J11: 68 | K11: 65 | L11: 68 | M11: 69 | N11: 70 | O11: A | P11: D | Q11: E | R11: F
A12: 11 | B12: BCDE | C12: E | D12: C | E12: D | F12: B | G12: 69 | H12: 67 | I12: 68 | J12: 66 | K12: 66 | L12: 67 | M12: 68 | N12: 69 | O12: B | P12: C | Q12: D | R12: E
A13: 12 | B13: BCDF | C13: F | D13: B | E13: D | F13: C | G13: 70 | H13: 66 | I13: 68 | J13: 67 | K13: 66 | L13: 67 | M13: 68 | N13: 70 | O13: B | P13: C | Q13: D | R13: F
A14: 13 | B14: BCEF | C14: F | D14: B | E14: E | F14: C | G14: 70 | H14: 66 | I14: 69 | J14: 67 | K14: 66 | L14: 67 | M14: 69 | N14: 70 | O14: B | P14: C | Q14: E | R14: F
A15: 14 | B15: BDEF | C15: F | D15: B | E15: E | F15: D | G15: 70 | H15: 66 | I15: 69 | J15: 68 | K15: 66 | L15: 68 | M15: 69 | N15: 70 | O15: B | P15: D | Q15: E | R15: F
A16: 15 | B16: CDEF | C16: F | D16: C | E16: E | F16: D | G16: 70 | H16: 67 | I16: 69 | J16: 68 | K16: 67 | L16: 68 | M16: 69 | N16: 70 | O16: C | P16: D | Q16: E | R16: F
A18: Test | B18: Combo
A19: =A2 -> 1 | B19: =B2 -> ABCD | C19: =INDEX(C:C, MATCH($B19, $B:$B, 0)) -> A | D19: =INDEX(D:D, MATCH($B19, $B:$B, 0)) -> C | E19: D | F19: B
A20: =A3 -> 2 | B20: ABCE | C20: =INDEX(C:C, MATCH($B20, $B:$B, 0)) -> A | D20: C | E20: E | F20: B
A21: 3 | B21: ABCF | C21: A | D21: C | E21: F | F21: B
A22: 4 | B22: ABDE | C22: D | D22: B | E22: E | F22: A
A23: 5 | B23: ABDF | C23: D | D23: B | E23: F | F23: A
A24: 6 | B24: ABEF | C24: E | D24: A | E24: F | F24: B
A25: 7 | B25: ACDE | C25: E | D25: A | E25: D | F25: C
A26: 8 | B26: ACDF | C26: F | D26: A | E26: D | F26: C
A27: 9 | B27: ACEF | C27: E | D27: A | E27: F | F27: C
A28: 10 | B28: ADEF | C28: E | D28: A | E28: F | F28: D
A29: 11 | B29: BCDE | C29: E | D29: C | E29: D | F29: B
A30: 12 | B30: BCDF | C30: F | D30: B | E30: D | F30: C
A31: 13 | B31: BCEF | C31: F | D31: B | E31: E | F31: C
A32: 14 | B32: BDEF | C32: F | D32: B | E32: E | F32: D
A33: 15 | B33: CDEF | C33: F | D33: C | E33: E | F33: D

Sheet WM2026-Plan-mit-AnnixC
A1: SP | B1: Vorrunde | C1: Gruppe A | M1: Tabelle | N1: P | O1: T+ | P1: T- | Q1: T+/- | X1: G | Y1: Berechnungen | Z1: P | AA1: T+ | AB1: T- | AC1: T+/- | AE1: L0 | AF1: DV | AJ1: S1 | AK1: L1 | AL1: DV-TD | AP1: S2 | AQ1: DV-Tore | AU1: S3 | AV1: L4 | BB1: Vorrunde | BC1: Gruppe D | BM1: Tabelle | BN1: P | BO1: T+ | BP1: T- | BQ1: T+/- | BX1: G | BY1: Berechnungen | BZ1: P | CA1: T+ | CB1: T- | CC1: T+/- | CE1: L0 | CF1: DV | CJ1: S1 | CK1: L1 | CL1: DV-TD | CP1: S2 | CQ1: DV-Tore | CU1: S3 | CV1: L4
B2: Datum/Zeit | C2: Spielort | M2: =VLOOKUP(1,$X$2:$AC$5,2,FALSE) -> A4 | N2: =VLOOKUP(1,$X$2:$AC$5,3,FALSE) -> 6 | O2: =VLOOKUP(1,$X$2:$AC$5,4,FALSE) -> 2 | P2: =VLOOKUP(1,$X$2:$AC$5,5,FALSE) -> 1 | Q2: =VLOOKUP(1,$X$2:$AC$5,6,FALSE) -> 1 | T2: =IF(H3="",0,IF(K3=$B$120,IF(H3>J3,3,IF(H3=J3,1,0)),0)) -> 3 | U2: =IF(H5="",0,IF(K5=$B$120,IF(H5>J5,3,IF(H5=J5,1,0)),0)) -> 3 | V2: =IF(J7="",0,IF(K8=$B$120,IF(H7<J7,3,IF(H7=J7,1,0)),0)) -> 0 | X2: =RANK(AD2,$AD$2:$AD$5) -> 2 | Y2: A1 | Z2: =SUM(S2:V2) -> 6 | AA2: =SUM(S6:V6) -> 2 | AB2: =SUM(S6:S9) -> 1 | AC2: =AA2-AB2 -> 1 | AD2: =IF(P$8="",(((((((AE2*10+Z2)*100+AC2)*100+AA2)*10+AK2)*10+AJ2)*100+AP2)*100+AU2)*10+AV2,(((((((AE2*10+Z2)*10+AK2)*10+AJ2)*100+AP2)*100+AU2)*100+AC2)*100+AA2)*10+AV2) -> 596990001024 | AG2: =IF($Z2=$Z3,$T2-$S3,0) -> 0 | AH2: =IF($Z2=$Z4,$U2-$S4,0) -> 0 | AI2: =IF($Z2=$Z5,$V2-$S5,0) -> -3 | AJ2: =SUM(AF2:AI2) -> -3 | AM2: =IF($Z2=$Z3,$T6-$S7,0) -> 0 | AN2: =IF($Z2=$Z4,$U6-$S8,0) -> 0 | AO2: =IF($Z2=$Z5,$V6-$S9,0) -> -1 | AP2: =SUM(AL2:AO2) -> -1 | AR2: =IF($Z2=$Z3,$T6,0) -> 0 | AS2: =IF($Z2=$Z4,$U6,0) -> 0 | AT2: =IF($Z2=$Z5,$V6,0) -> 0 | AU2: =SUM(AQ2:AT2) -> 0 | AV2: 4 | BB2: Datum/Zeit | BC2: Spielort | BM2: =VLOOKUP(1,$BX$2:$CC$5,2,FALSE) -> D4 | BN2: =VLOOKUP(1,$BX$2:$CC$5,3,FALSE) -> 6 | BO2: =VLOOKUP(1,$BX$2:$CC$5,4,FALSE) -> 2 | BP2: =VLOOKUP(1,$BX$2:$CC$5,5,FALSE) -> 1 | BQ2: =VLOOKUP(1,$BX$2:$CC$5,6,FALSE) -> 1 | BT2: =IF(BH3="",0,IF(BK3=$B$120,IF(BH3>BJ3,3,IF(BH3=BJ3,1,0)),0)) -> 3 | BU2: =IF(BH5="",0,IF(BK5=$B$120,IF(BH5>BJ5,3,IF(BH5=BJ5,1,0)),0)) -> 3 | BV2: =IF(BJ7="",0,IF(BK8=$B$120,IF(BH7<BJ7,3,IF(BH7=BJ7,1,0)),0)) -> 0 | BX2: =RANK(CD2,$CD$2:$CD$5) -> 2 | BY2: D1 | BZ2: =SUM(BS2:BV2) -> 6 | CA2: =SUM(BS6:BV6) -> 2 | CB2: =SUM(BS6:BS9) -> 1 | CC2: =CA2-CB2 -> 1 | CD2: =IF(BP$8="",(((((((CE2*10+BZ2)*100+CC2)*100+CA2)*10+CK2)*10+CJ2)*100+CP2)*100+CU2)*10+CV2,(((((((CE2*10+BZ2)*10+CK2)*10+CJ2)*100+CP2)*100+CU2)*100+CC2)*100+CA2)*10+CV2) -> 596990001024 | CG2: =IF($BZ2=$BZ3,$BT2-$BS3,0) -> 0 | CH2: =IF($BZ2=$BZ4,$BU2-$BS4,0) -> 0 | CI2: =IF($BZ2=$BZ5,$BV2-$BS5,0) -> -3 | CJ2: =SUM(CF2:CI2) -> -3 | CM2: =IF($BZ2=$BZ3,$BT6-$BS7,0) -> 0 | CN2: =IF($BZ2=$BZ4,$BU6-$BS8,0) -> 0 | CO2: =IF($BZ2=$BZ5,$BV6-$BS9,0) -> -1 | CP2: =SUM(CL2:CO2) -> -1 | CR2: =IF($BZ2=$BZ3,$BT6,0) -> 0 | CS2: =IF($BZ2=$BZ4,$BU6,0) -> 0 | CT2: =IF($BZ2=$BZ5,$BV6,0) -> 0 | CU2: =SUM(CQ2:CT2) -> 0 | CV2: 4
A3: 1 | B3: 2026-06-14T21:00:00 | C3: München | D3: =Y2 -> A1 | E3: - | F3: =Y3 -> A2 | H3: =IF($B$121="",1,INT(RAND()*5)+INT(RAND()*3)*INT(RAND()*2)) -> 1 | I3: : | J3: =IF($B$121="",0,INT(RAND()*5)+INT(RAND()*3)*INT(RAND()*2)) -> 0 | K3: ok | M3: =VLOOKUP(2,$X$2:$AC$5,2,FALSE) -> A1 | N3: =VLOOKUP(2,$X$2:$AC$5,3,FALSE) -> 6 | O3: =VLOOKUP(2,$X$2:$AC$5,4,FALSE) -> 2 | P3: =VLOOKUP(2,$X$2:$AC$5,5,FALSE) -> 1 | Q3: =VLOOKUP(2,$X$2:$AC$5,6,FALSE) -> 1 | S3: =IF(J3="",0,IF(K3=$B$120,IF(H3<J3,3,IF(H3=J3,1,0)),0)) -> 0 | U3: =IF(H8="",0,IF(K7=$B$120,IF(H8>J8,3,IF(H8=J8,1,0)),0)) -> 3 | V3: =IF(J6="",0,IF(K6=$B$120,IF(J6>H6,3,IF(J6=H6,1,0)),0)) -> 0 | X3: =RANK(AD3,$AD$2:$AD$5) -> 3 | Y3: A2 | Z3: =SUM(S3:V3) -> 3 | AA3: =SUM(S7:V7) -> 1 | AB3: =SUM(T6:T9) -> 2 | AC3: =AA3-AB3 -> -1 | AD3: =IF(P$8="",(((((((AE3*10+Z3)*100+AC3)*100+AA3)*10+AK3)*10+AJ3)*100+AP3)*100+AU3)*10+AV3,(((((((AE3*10+Z3)*10+AK3)*10+AJ3)*100+AP3)*100+AU3)*100+AC3)*100+AA3)*10+AV3) -> 303010099013 | AF3: =IF($Z3=$Z2,$S3-$T2,0) -> 0 | AH3: =IF($Z3=$Z4,$U3-$T4,0) -> 3 | AI3: =IF($Z3=$Z5,$V3-$T5,0) -> 0 | AJ3: =SUM(AF3:AI3) -> 3 | AL3: =IF($Z3=$Z2,$S7-$T6,0) -> 0 | AN3: =IF($Z3=$Z4,$U7-$T8,0) -> 1 | AO3: =IF($Z3=$Z5,$V7-$T9,0) -> 0 | AP3: =SUM(AL3:AO3) -> 1 | AQ3: =IF($Z3=$Z2,$S7,0) -> 0 | AS3: =IF($Z3=$Z4,$U7,0) -> 1 | AT3: =IF($Z3=$Z5,$V7,0) -> 0 | AU3: =SUM(AQ3:AT3) -> 1 | AV3: 3 | BA3: 7 | BB3: 2026-06-16T15:00:00 | BC3: Hamburg | BD3: =BY2 -> D1 | BE3: - | BF3: =BY3 -> D2 | BH3: =IF($B$121="",1,INT(RAND()*5)+INT(RAND()*3)*INT(RAND()*2)) -> 1 | BI3: : | BJ3: =IF($B$121="",0,INT(RAND()*5)+INT(RAND()*3)*INT(RAND()*2)) -> 0 | BK3: ok | BM3: =VLOOKUP(2,$BX$2:$CC$5,2,FALSE) -> D1 | BN3: =VLOOKUP(2,$BX$2:$CC$5,3,FALSE) -> 6 | BO3: =VLOOKUP(2,$BX$2:$CC$5,4,FALSE) -> 2 | BP3: =VLOOKUP(2,$BX$2:$CC$5,5,FALSE) -> 1 | BQ3: =VLOOKUP(2,$BX$2:$CC$5,6,FALSE) -> 1 | BS3: =IF(BJ3="",0,IF(BK3=$B$120,IF(BH3<BJ3,3,IF(BH3=BJ3,1,0)),0)) -> 0 | BU3: =IF(BH8="",0,IF(BK7=$B$120,IF(BH8>BJ8,3,IF(BH8=BJ8,1,0)),0)) -> 3 | BV3: =IF(BJ6="",0,IF(BK6=$B$120,IF(BJ6>BH6,3,IF(BJ6=BH6,1,0)),0)) -> 0 | BX3: =RANK(CD3,$CD$2:$CD$5) -> 3 | BY3: D2 | BZ3: =SUM(BS3:BV3) -> 3 | CA3: =SUM(BS7:BV7) -> 1 | CB3: =SUM(BT6:BT9) -> 2 | CC3: =CA3-CB3 -> -1 | CD3: =IF(BP$8="",(((((((CE3*10+BZ3)*100+CC3)*100+CA3)*10+CK3)*10+CJ3)*100+CP3)*100+CU3)*10+CV3,(((((((CE3*10+BZ3)*10+CK3)*10+CJ3)*100+CP3)*100+CU3)*100+CC3)*100+CA3)*10+CV3) -> 303010099013 | CF3: =IF($BZ3=$BZ2,$BS3-$BT2,0) -> 0 | CH3: =IF($BZ3=$BZ4,$BU3-$BT4,0) -> 3 | CI3: =IF($BZ3=$BZ5,$BV3-$BT5,0) -> 0 | CJ3: =SUM(CF3:CI3) -> 3 | CL3: =IF($BZ3=$BZ2,$BS7-$BT6,0) -> 0 | CN3: =IF($BZ3=$BZ4,$BU7-$BT8,0) -> 1 | CO3: =IF($BZ3=$BZ5,$BV7-$BT9,0) -> 0 | CP3: =SUM(CL3:CO3) -> 1 | CQ3: =IF($BZ3=$BZ2,$BS7,0) -> 0 | CS3: =IF($BZ3=$BZ4,$BU7,0) -> 1 | CT3: =IF($BZ3=$BZ5,$BV7,0) -> 0 | CU3: =SUM(CQ3:CT3) -> 1 | CV3: 3
A4: =A3+1 -> 2 | B4: 2026-06-15T15:00:00 | C4: Köln | D4: =Y4 -> A3 | E4: - | F4: =Y5 -> A4 | H4: 1 | I4: : | J4: 0 | K4: ok | M4: =VLOOKUP(3,$X$2:$AC$5,2,FALSE) -> A2 | N4: =VLOOKUP(3,$X$2:$AC$5,3,FALSE) -> 3 | O4: =VLOOKUP(3,$X$2:$AC$5,4,FALSE) -> 1 | P4: =VLOOKUP(3,$X$2:$AC$5,5,FALSE) -> 2 | Q4: =VLOOKUP(3,$X$2:$AC$5,6,FALSE) -> -1 | S4: =IF(J5="",0,IF(K5=$B$120,IF(H5<J5,3,IF(H5=J5,1,0)),0)) -> 0 | T4: =IF(J8="",0,IF(K7=$B$120,IF(H8<J8,3,IF(H8=J8,1,0)),0)) -> 0 | V4: =IF(H4="",0,IF(K4=$B$120,IF(H4>J4,3,IF(H4=J4,1,0)),0)) -> 3 | X4: =RANK(AD4,$AD$2:$AD$5) -> 4 | Y4: A3 | Z4: =SUM(S4:V4) -> 3 | AA4: =SUM(S8:V8) -> 1 | AB4: =SUM(U6:U9) -> 2 | AC4: =AA4-AB4 -> -1 | AD4: =IF(P$8="",(((((((AE4*10+Z4)*100+AC4)*100+AA4)*10+AK4)*10+AJ4)*100+AP4)*100+AU4)*10+AV4,(((((((AE4*10+Z4)*10+AK4)*10+AJ4)*100+AP4)*100+AU4)*100+AC4)*100+AA4)*10+AV4) -> 296989999012 | AF4: =IF($Z4=$Z2,$S4-$U2,0) -> 0 | AG4: =IF($Z4=$Z3,$T4-$U3,0) -> -3 | AI4: =IF($Z4=$Z5,$V4-$U5,0) -> 0 | AJ4: =SUM(AF4:AI4) -> -3 | AL4: =IF($Z4=$Z2,$S8-$U6,0) -> 0 | AM4: =IF($Z4=$Z3,$T8-$U7,0) -> -1 | AO4: =IF($Z4=$Z5,$V8-$U9,0) -> 0 | AP4: =SUM(AL4:AO4) -> -1 | AQ4: =IF($Z4=$Z2,$S8,0) -> 0 | AR4: =IF($Z4=$Z3,$T8,0) -> 0 | AT4: =IF($Z4=$Z5,$V8,0) -> 0 | AU4: =SUM(AQ4:AT4) -> 0 | AV4: 2 | BA4: 8 | BB4: 2026-06-17T21:00:00 | BC4: Düsseldorf | BD4: =BY4 -> D3 | BE4: - | BF4: =BY5 -> D4 | BH4: 1 | BI4: : | BJ4: 0 | BK4: ok | BM4: =VLOOKUP(3,$BX$2:$CC$5,2,FALSE) -> D2 | BN4: =VLOOKUP(3,$BX$2:$CC$5,3,FALSE) -> 3 | BO4: =VLOOKUP(3,$BX$2:$CC$5,4,FALSE) -> 1 | BP4: =VLOOKUP(3,$BX$2:$CC$5,5,FALSE) -> 2 | BQ4: =VLOOKUP(3,$BX$2:$CC$5,6,FALSE) -> -1 | BS4: =IF(BJ5="",0,IF(BK5=$B$120,IF(BH5<BJ5,3,IF(BH5=BJ5,1,0)),0)) -> 0 | BT4: =IF(BJ8="",0,IF(BK7=$B$120,IF(BH8<BJ8,3,IF(BH8=BJ8,1,0)),0)) -> 0 | BV4: =IF(BH4="",0,IF(BK4=$B$120,IF(BH4>BJ4,3,IF(BH4=BJ4,1,0)),0)) -> 3 | BX4: =RANK(CD4,$CD$2:$CD$5) -> 4 | BY4: D3 | BZ4: =SUM(BS4:BV4) -> 3 | CA4: =SUM(BS8:BV8) -> 1 | CB4: =SUM(BU6:BU9) -> 2 | CC4: =CA4-CB4 -> -1 | CD4: =IF(BP$8="",(((((((CE4*10+BZ4)*100+CC4)*100+CA4)*10+CK4)*10+CJ4)*100+CP4)*100+CU4)*10+CV4,(((((((CE4*10+BZ4)*10+CK4)*10+CJ4)*100+CP4)*100+CU4)*100+CC4)*100+CA4)*10+CV4) -> 296989999012 | CF4: =IF($BZ4=$BZ2,$BS4-$BU2,0) -> 0 | CG4: =IF($BZ4=$BZ3,$BT4-$BU3,0) -> -3 | CI4: =IF($BZ4=$BZ5,$BV4-$BU5,0) -> 0 | CJ4: =SUM(CF4:CI4) -> -3 | CL4: =IF($BZ4=$BZ2,$BS8-$BU6,0) -> 0 | CM4: =IF($BZ4=$BZ3,$BT8-$BU7,0) -> -1 | CO4: =IF($BZ4=$BZ5,$BV8-$BU9,0) -> 0 | CP4: =SUM(CL4:CO4) -> -1 | CQ4: =IF($BZ4=$BZ2,$BS8,0) -> 0 | CR4: =IF($BZ4=$BZ3,$BT8,0) -> 0 | CT4: =IF($BZ4=$BZ5,$BV8,0) -> 0 | CU4: =SUM(CQ4:CT4) -> 0 | CV4: 2
A5: =A3+12 -> 13 | B5: 2026-06-19T18:00:00 | C5: Stuttgart | D5: =Y2 -> A1 | E5: - | F5: =Y4 -> A3 | H5: 1 | I5: : | J5: 0 | K5: ok | M5: =VLOOKUP(4,$X$2:$AC$5,2,FALSE) -> A3 | N5: =VLOOKUP(4,$X$2:$AC$5,3,FALSE) -> 3 | O5: =VLOOKUP(4,$X$2:$AC$5,4,FALSE) -> 1 | P5: =VLOOKUP(4,$X$2:$AC$5,5,FALSE) -> 2 | Q5: =VLOOKUP(4,$X$2:$AC$5,6,FALSE) -> -1 | S5: =IF(H7="",0,IF(K8=$B$120,IF(H7>J7,3,IF(H7=J7,1,0)),0)) -> 3 | T5: =IF(H6="",0,IF(K6=$B$120,IF(J6<H6,3,IF(J6=H6,1,0)),0)) -> 3 | U5: =IF(J4="",0,IF(K4=$B$120,IF(H4<J4,3,IF(H4=J4,1,0)),0)) -> 0 | X5: =RANK(AD5,$AD$2:$AD$5) -> 1 | Y5: A4 | Z5: =SUM(S5:V5) -> 6 | AA5: =SUM(S9:V9) -> 2 | AB5: =SUM(V6:V9) -> 1 | AC5: =AA5-AB5 -> 1 | AD5: =IF(P$8="",(((((((AE5*10+Z5)*100+AC5)*100+AA5)*10+AK5)*10+AJ5)*100+AP5)*100+AU5)*10+AV5,(((((((AE5*10+Z5)*10+AK5)*10+AJ5)*100+AP5)*100+AU5)*100+AC5)*100+AA5)*10+AV5) -> 603010101021 | AF5: =IF($Z5=$Z2,$S5-$V2,0) -> 3 | AG5: =IF($Z5=$Z3,$T5-$V3,0) -> 0 | AH5: =IF($Z5=$Z4,$U5-$V4,0) -> 0 | AJ5: =SUM(AF5:AI5) -> 3 | AL5: =IF($Z5=$Z2,$S9-$V6,0) -> 1 | AM5: =IF($Z5=$Z3,$T9-$V7,0) -> 0 | AN5: =IF($Z5=$Z4,$U9-$V8,0) -> 0 | AP5: =SUM(AL5:AO5) -> 1 | AQ5: =IF($Z5=$Z2,$S9,0) -> 1 | AR5: =IF($Z5=$Z3,$T9,0) -> 0 | AS5: =IF($Z5=$Z4,$U9,0) -> 0 | AU5: =SUM(AQ5:AT5) -> 1 | AV5: 1 | BA5: =BA3+12 -> 19 | BB5: 2026-06-21T18:00:00 | BC5: Berlin | BD5: =BY2 -> D1 | BE5: - | BF5: =BY4 -> D3 | BH5: 1 | BI5: : | BJ5: 0 | BK5: ok | BM5: =VLOOKUP(4,$BX$2:$CC$5,2,FALSE) -> D3 | BN5: =VLOOKUP(4,$BX$2:$CC$5,3,FALSE) -> 3 | BO5: =VLOOKUP(4,$BX$2:$CC$5,4,FALSE) -> 1 | BP5: =VLOOKUP(4,$BX$2:$CC$5,5,FALSE) -> 2 | BQ5: =VLOOKUP(4,$BX$2:$CC$5,6,FALSE) -> -1 | BS5: =IF(BH7="",0,IF(BK8=$B$120,IF(BH7>BJ7,3,IF(BH7=BJ7,1,0)),0)) -> 3 | BT5: =IF(BH6="",0,IF(BK6=$B$120,IF(BJ6<BH6,3,IF(BJ6=BH6,1,0)),0)) -> 3 | BU5: =IF(BJ4="",0,IF(BK4=$B$120,IF(BH4<BJ4,3,IF(BH4=BJ4,1,0)),0)) -> 0 | BX5: =RANK(CD5,$CD$2:$CD$5) -> 1 | BY5: D4 | BZ5: =SUM(BS5:BV5) -> 6 | CA5: =SUM(BS9:BV9) -> 2 | CB5: =SUM(BV6:BV9) -> 1 | CC5: =CA5-CB5 -> 1 | CD5: =IF(BP$8="",(((((((CE5*10+BZ5)*100+CC5)*100+CA5)*10+CK5)*10+CJ5)*100+CP5)*100+CU5)*10+CV5,(((((((CE5*10+BZ5)*10+CK5)*10+CJ5)*100+CP5)*100+CU5)*100+CC5)*100+CA5)*10+CV5) -> 603010101021 | CF5: =IF($BZ5=$BZ2,$BS5-$BV2,0) -> 3 | CG5: =IF($BZ5=$BZ3,$BT5-$BV3,0) -> 0 | CH5: =IF($BZ5=$BZ4,$BU5-$BV4,0) -> 0 | CJ5: =SUM(CF5:CI5) -> 3 | CL5: =IF($BZ5=$BZ2,$BS9-$BV6,0) -> 1 | CM5: =IF($BZ5=$BZ3,$BT9-$BV7,0) -> 0 | CN5: =IF($BZ5=$BZ4,$BU9-$BV8,0) -> 0 | CP5: =SUM(CL5:CO5) -> 1 | CQ5: =IF($BZ5=$BZ2,$BS9,0) -> 1 | CR5: =IF($BZ5=$BZ3,$BT9,0) -> 0 | CS5: =IF($BZ5=$BZ4,$BU9,0) -> 0 | CU5: =SUM(CQ5:CT5) -> 1 | CV5: 1
A6: =A4+12 -> 14 | B6: 2026-06-19T21:00:00 | C6: Köln | D6: =Y5 -> A4 | E6: - | F6: =Y3 -> A2 | H6: 1 | I6: : | J6: 0 | K6: ok | T6: =IF(K3=$B$120,H3,0) -> 1 | U6: =IF(K5=$B$120,H5,0) -> 1 | V6: =IF(K8=$B$120,J7,0) -> 0 | BA6: =BA4+12 -> 20 | BB6: 2026-06-21T21:00:00 | BC6: Leipzig | BD6: =BY5 -> D4 | BE6: - | BF6: =BY3 -> D2 | BH6: 1 | BI6: : | BJ6: 0 | BK6: ok | BT6: =IF(BK3=$B$120,BH3,0) -> 1 | BU6: =IF(BK5=$B$120,BH5,0) -> 1 | BV6: =IF(BK8=$B$120,BJ7,0) -> 0
A7: =A5+12 -> 25 | B7: 2026-06-23T21:00:00 | C7: Frankfurt | D7: =Y5 -> A4 | E7: - | F7: =Y2 -> A1 | H7: 1 | I7: : | J7: 0 | K7: ok | M7: =IF(N2>0,M2,"") -> A4 | N7: 1A | S7: =IF(K3=$B$120,J3,0) -> 0 | U7: =IF(K7=$B$120,H8,0) -> 1 | V7: =IF(K6=$B$120,J6,0) -> 0 | AD7: L0=AE hebelt Berechnung aus (top level Losen) | BA7: =BA5+12 -> 31 | BB7: 2026-06-25T18:00:00 | BC7: Dortmund | BD7: =BY5 -> D4 | BE7: - | BF7: =BY2 -> D1 | BH7: 1 | BI7: : | BJ7: 0 | BK7: ok | BM7: =IF(BN2>0,BM2,"") -> D4 | BN7: 1D | BS7: =IF(BK3=$B$120,BJ3,0) -> 0 | BU7: =IF(BK7=$B$120,BH8,0) -> 1 | BV7: =IF(BK6=$B$120,BJ6,0) -> 0 | CD7: L0=AE hebelt Berechnung aus (top level Losen)
A8: =A6+12 -> 26 | B8: 2026-06-23T21:00:00 | C8: Stuttgart | D8: =Y3 -> A2 | E8: - | F8: =Y4 -> A3 | H8: 1 | I8: : | J8: 0 | K8: ok | M8: =IF(N3>0,M3,"") -> A1 | N8: 2A | P8: DV | S8: =IF(K5=$B$120,J5,0) -> 0 | T8: =IF(K7=$B$120,J8,0) -> 0 | V8: =IF(K4=$B$120,H4,0) -> 1 | AD8: L1=AK hebelt Direktvergleich (S1) aus | BA8: =BA6+12 -> 32 | BB8: 2026-06-25T18:00:00 | BC8: Berlin | BD8: =BY3 -> D2 | BE8: - | BF8: =BY4 -> D3 | BH8: 1 | BI8: : | BJ8: 0 | BK8: ok | BM8: =IF(BN3>0,BM3,"") -> D1 | BN8: 2D | BP8: DV | BS8: =IF(BK5=$B$120,BJ5,0) -> 0 | BT8: =IF(BK7=$B$120,BJ8,0) -> 0 | BV8: =IF(BK4=$B$120,BH4,0) -> 1 | CD8: L1=AK hebelt Direktvergleich (S1) aus
M9: =IF(N4>0,M4,"") -> A2 | N9: 3A | S9: =IF(K8=$B$120,H7,0) -> 1 | T9: =IF(K6=$B$120,H6,0) -> 1 | U9: =IF(K4=$B$120,J4,0) -> 0 | AD9: L4=AV Losen UEFA-Koeffizient, Fairplay oder Münzwurf | BM9: =IF(BN4>0,BM4,"") -> D2 | BN9: 3D | BS9: =IF(BK8=$B$120,BH7,0) -> 1 | BT9: =IF(BK6=$B$120,BH6,0) -> 1 | BU9: =IF(BK4=$B$120,BJ4,0) -> 0 | CD9: L4=AV Losen UEFA-Koeffizient, Fairplay oder Münzwurf
B11: Vorrunde | C11: Gruppe B | M11: Tabelle | N11: P | O11: T+ | P11: T- | Q11: T+/- | X11: G | Y11: Berechnungen | Z11: P | AA11: T+ | AB11: T- | AC11: T+/- | AE11: L0 | AF11: DV | AJ11: S1 | AK11: L1 | AL11: DV-TD | AP11: S2 | AQ11: DV-Tore | AU11: S3 | AV11: L4 | BB11: Vorrunde | BC11: Gruppe E | BM11: Tabelle | BN11: P | BO11: T+ | BP11: T- | BQ11: T+/- | BX11: G | BY11: Berechnungen | BZ11: P | CA11: T+ | CB11: T- | CC11: T+/- | CE11: L0 | CF11: DV | CJ11: S1 | CK11: L1 | CL11: DV-TD | CP11: S2 | CQ11: DV-Tore | CU11: S3 | CV11: L4
B12: Datum/Zeit | C12: Spielort | M12: =VLOOKUP(1,$X$12:$AC$15,2,FALSE) -> B4 | N12: =VLOOKUP(1,$X$12:$AC$15,3,FALSE) -> 6 | O12: =VLOOKUP(1,$X$12:$AC$15,4,FALSE) -> 2 | P12: =VLOOKUP(1,$X$12:$AC$15,5,FALSE) -> 1 | Q12: =VLOOKUP(1,$X$12:$AC$15,6,FALSE) -> 1 | T12: =IF(H13="",0,IF(K13=$B$120,IF(H13>J13,3,IF(H13=J13,1,0)),0)) -> 3 | U12: =IF(H15="",0,IF(K15=$B$120,IF(H15>J15,3,IF(H15=J15,1,0)),0)) -> 3 | V12: =IF(J17="",0,IF(K18=$B$120,IF(H17<J17,3,IF(H17=J17,1,0)),0)) -> 0 | X12: =RANK(AD12,$AD$12:$AD$15) -> 2 | Y12: B1 | Z12: =SUM(S12:V12) -> 6 | AA12: =SUM(S16:V16) -> 2 | AB12: =SUM(S16:S19) -> 1 | AC12: =AA12-AB12 -> 1 | AD12: =IF(P$18="",(((((((AE12*10+Z12)*100+AC12)*100+AA12)*10+AK12)*10+AJ12)*100+AP12)*100+AU12)*10+AV12,(((((((AE12*10+Z12)*10+AK12)*10+AJ12)*100+AP12)*100+AU12)*100+AC12)*100+AA12)*10+AV12) -> 596990001024 | AG12: =IF($Z12=$Z13,$T12-$S13,0) -> 0 | AH12: =IF($Z12=$Z14,$U12-$S14,0) -> 0 | AI12: =IF($Z12=$Z15,$V12-$S15,0) -> -3 | AJ12: =SUM(AF12:AI12) -> -3 | AM12: =IF($Z12=$Z13,$T16-$S17,0) -> 0 | AN12: =IF($Z12=$Z14,$U16-$S18,0) -> 0 | AO12: =IF($Z12=$Z15,$V16-$S19,0) -> -1 | AP12: =SUM(AL12:AO12) -> -1 | AR12: =IF($Z12=$Z13,$T16,0) -> 0 | AS12: =IF($Z12=$Z14,$U16,0) -> 0 | AT12: =IF($Z12=$Z15,$V16,0) -> 0 | AU12: =SUM(AQ12:AT12) -> 0 | AV12: 4 | BB12: Datum/Zeit | BC12: Spielort | BM12: =VLOOKUP(1,$BX$12:$CC$15,2,FALSE) -> E4 | BN12: =VLOOKUP(1,$BX$12:$CC$15,3,FALSE) -> 6 | BO12: =VLOOKUP(1,$BX$12:$CC$15,4,FALSE) -> 2 | BP12: =VLOOKUP(1,$BX$12:$CC$15,5,FALSE) -> 1 | BQ12: =VLOOKUP(1,$BX$12:$CC$15,6,FALSE) -> 1 | BT12: =IF(BH13="",0,IF(BK13=$B$120,IF(BH13>BJ13,3,IF(BH13=BJ13,1,0)),0)) -> 3 | BU12: =IF(BH15="",0,IF(BK15=$B$120,IF(BH15>BJ15,3,IF(BH15=BJ15,1,0)),0)) -> 3 | BV12: =IF(BJ17="",0,IF(BK18=$B$120,IF(BH17<BJ17,3,IF(BH17=BJ17,1,0)),0)) -> 0 | BX12: =RANK(CD12,$CD$12:$CD$15) -> 2 | BY12: E1 | BZ12: =SUM(BS12:BV12) -> 6 | CA12: =SUM(BS16:BV16) -> 2 | CB12: =SUM(BS16:BS19) -> 1 | CC12: =CA12-CB12 -> 1 | CD12: =IF(BP$18="",(((((((CE12*10+BZ12)*100+CC12)*100+CA12)*10+CK12)*10+CJ12)*100+CP12)*100+CU12)*10+CV12,(((((((CE12*10+BZ12)*10+CK12)*10+CJ12)*100+CP12)*100+CU12)*100+CC12)*100+CA12)*10+CV12) -> 596990001024 | CG12: =IF($BZ12=$BZ13,$BT12-$BS13,0) -> 0 | CH12: =IF($BZ12=$BZ14,$BU12-$BS14,0) -> 0 | CI12: =IF($BZ12=$BZ15,$BV12-$BS15,0) -> -3 | CJ12: =SUM(CF12:CI12) -> -3 | CM12: =IF($BZ12=$BZ13,$BT16-$BS17,0) -> 0 | CN12: =IF($BZ12=$BZ14,$BU16-$BS18,0) -> 0 | CO12: =IF($BZ12=$BZ15,$BV16-$BS19,0) -> -1 | CP12: =SUM(CL12:CO12) -> -1 | CR12: =IF($BZ12=$BZ13,$BT16,0) -> 0 | CS12: =IF($BZ12=$BZ14,$BU16,0) -> 0 | CT12: =IF($BZ12=$BZ15,$BV16,0) -> 0 | CU12: =SUM(CQ12:CT12) -> 0 | CV12: 4
A13: 3 | B13: 2026-06-15T18:00:00 | C13: Berlin | D13: =Y12 -> B1 | E13: - | F13: =Y13 -> B2 | H13: =IF($B$121="",1,INT(RAND()*5)+INT(RAND()*3)*INT(RAND()*2)) -> 1 | I13: : | J13: =IF($B$121="",0,INT(RAND()*5)+INT(RAND()*3)*INT(RAND()*2)) -> 0 | K13: ok | M13: =VLOOKUP(2,$X$12:$AC$15,2,FALSE) -> B1 | N13: =VLOOKUP(2,$X$12:$AC$15,3,FALSE) -> 6 | O13: =VLOOKUP(2,$X$12:$AC$15,4,FALSE) -> 2 | P13: =VLOOKUP(2,$X$12:$AC$15,5,FALSE) -> 1 | Q13: =VLOOKUP(2,$X$12:$AC$15,6,FALSE) -> 1 | S13: =IF(J13="",0,IF(K13=$B$120,IF(H13<J13,3,IF(H13=J13,1,0)),0)) -> 0 | U13: =IF(H18="",0,IF(K17=$B$120,IF(H18>J18,3,IF(H18=J18,1,0)),0)) -> 3 | V13: =IF(J16="",0,IF(K16=$B$120,IF(J16>H16,3,IF(J16=H16,1,0)),0)) -> 0 | X13: =RANK(AD13,$AD$12:$AD$15) -> 3 | Y13: B2 | Z13: =SUM(S13:V13) -> 3 | AA13: =SUM(S17:V17) -> 1 | AB13: =SUM(T16:T19) -> 2 | AC13: =AA13-AB13 -> -1 | AD13: =IF(P$18="",(((((((AE13*10+Z13)*100+AC13)*100+AA13)*10+AK13)*10+AJ13)*100+AP13)*100+AU13)*10+AV13,(((((((AE13*10+Z13)*10+AK13)*10+AJ13)*100+AP13)*100+AU13)*100+AC13)*100+AA13)*10+AV13) -> 303010099013 | AF13: =IF($Z13=$Z12,$S13-$T12,0) -> 0 | AH13: =IF($Z13=$Z14,$U13-$T14,0) -> 3 | AI13: =IF($Z13=$Z15,$V13-$T15,0) -> 0 | AJ13: =SUM(AF13:AI13) -> 3 | AL13: =IF($Z13=$Z12,$S17-$T16,0) -> 0 | AN13: =IF($Z13=$Z14,$U17-$T18,0) -> 1 | AO13: =IF($Z13=$Z15,$V17-$T19,0) -> 0 | AP13: =SUM(AL13:AO13) -> 1 | AQ13: =IF($Z13=$Z12,$S17,0) -> 0 | AS13: =IF($Z13=$Z14,$U17,0) -> 1 | AT13: =IF($Z13=$Z15,$V17,0) -> 0 | AU13: =SUM(AQ13:AT13) -> 1 | AV13: 3 | BA13: 9 | BB13: 2026-06-17T15:00:00 | BC13: München | BD13: =BY12 -> E1 | BE13: - | BF13: =BY13 -> E2 | BH13: =IF($B$121="",1,INT(RAND()*5)+INT(RAND()*3)*INT(RAND()*2)) -> 1 | BI13: : | BJ13: =IF($B$121="",0,INT(RAND()*5)+INT(RAND()*3)*INT(RAND()*2)) -> 0 | BK13: ok | BM13: =VLOOKUP(2,$BX$12:$CC$15,2,FALSE) -> E1 | BN13: =VLOOKUP(2,$BX$12:$CC$15,3,FALSE) -> 6 | BO13: =VLOOKUP(2,$BX$12:$CC$15,4,FALSE) -> 2 | BP13: =VLOOKUP(2,$BX$12:$CC$15,5,FALSE) -> 1 | BQ13: =VLOOKUP(2,$BX$12:$CC$15,6,FALSE) -> 1 | BS13: =IF(BJ13="",0,IF(BK13=$B$120,IF(BH13<BJ13,3,IF(BH13=BJ13,1,0)),0)) -> 0 | BU13: =IF(BH18="",0,IF(BK17=$B$120,IF(BH18>BJ18,3,IF(BH18=BJ18,1,0)),0)) -> 3 | BV13: =IF(BJ16="",0,IF(BK16=$B$120,IF(BJ16>BH16,3,IF(BJ16=BH16,1,0)),0)) -> 0 | BX13: =RANK(CD13,$CD$12:$CD$15) -> 3 | BY13: E2 | BZ13: =SUM(BS13:BV13) -> 3 | CA13: =SUM(BS17:BV17) -> 1 | CB13: =SUM(BT16:BT19) -> 2 | CC13: =CA13-CB13 -> -1 | CD13: =IF(BP$18="",(((((((CE13*10+BZ13)*100+CC13)*100+CA13)*10+CK13)*10+CJ13)*100+CP13)*100+CU13)*10+CV13,(((((((CE13*10+BZ13)*10+CK13)*10+CJ13)*100+CP13)*100+CU13)*100+CC13)*100+CA13)*10+CV13) -> 303010099013 | CF13: =IF($BZ13=$BZ12,$BS13-$BT12,0) -> 0 | CH13: =IF($BZ13=$BZ14,$BU13-$BT14,0) -> 3 | CI13: =IF($BZ13=$BZ15,$BV13-$BT15,0) -> 0 | CJ13: =SUM(CF13:CI13) -> 3 | CL13: =IF($BZ13=$BZ12,$BS17-$BT16,0) -> 0 | CN13: =IF($BZ13=$BZ14,$BU17-$BT18,0) -> 1 | CO13: =IF($BZ13=$BZ15,$BV17-$BT19,0) -> 0 | CP13: =SUM(CL13:CO13) -> 1 | CQ13: =IF($BZ13=$BZ12,$BS17,0) -> 0 | CS13: =IF($BZ13=$BZ14,$BU17,0) -> 1 | CT13: =IF($BZ13=$BZ15,$BV17,0) -> 0 | CU13: =SUM(CQ13:CT13) -> 1 | CV13: 3
A14: 4 | B14: 2026-06-15T21:00:00 | C14: Dortmund | D14: =Y14 -> B3 | E14: - | F14: =Y15 -> B4 | H14: 1 | I14: : | J14: 0 | K14: ok | M14: =VLOOKUP(3,$X$12:$AC$15,2,FALSE) -> B2 | N14: =VLOOKUP(3,$X$12:$AC$15,3,FALSE) -> 3 | O14: =VLOOKUP(3,$X$12:$AC$15,4,FALSE) -> 1 | P14: =VLOOKUP(3,$X$12:$AC$15,5,FALSE) -> 2 | Q14: =VLOOKUP(3,$X$12:$AC$15,6,FALSE) -> -1 | S14: =IF(J15="",0,IF(K15=$B$120,IF(H15<J15,3,IF(H15=J15,1,0)),0)) -> 0 | T14: =IF(J18="",0,IF(K17=$B$120,IF(H18<J18,3,IF(H18=J18,1,0)),0)) -> 0 | V14: =IF(H14="",0,IF(K14=$B$120,IF(H14>J14,3,IF(H14=J14,1,0)),0)) -> 3 | X14: =RANK(AD14,$AD$12:$AD$15) -> 4 | Y14: B3 | Z14: =SUM(S14:V14) -> 3 | AA14: =SUM(S18:V18) -> 1 | AB14: =SUM(U16:U19) -> 2 | AC14: =AA14-AB14 -> -1 | AD14: =IF(P$18="",(((((((AE14*10+Z14)*100+AC14)*100+AA14)*10+AK14)*10+AJ14)*100+AP14)*100+AU14)*10+AV14,(((((((AE14*10+Z14)*10+AK14)*10+AJ14)*100+AP14)*100+AU14)*100+AC14)*100+AA14)*10+AV14) -> 296989999012 | AF14: =IF($Z14=$Z12,$S14-$U12,0) -> 0 | AG14: =IF($Z14=$Z13,$T14-$U13,0) -> -3 | AI14: =IF($Z14=$Z15,$V14-$U15,0) -> 0 | AJ14: =SUM(AF14:AI14) -> -3 | AL14: =IF($Z14=$Z12,$S18-$U16,0) -> 0 | AM14: =IF($Z14=$Z13,$T18-$U17,0) -> -1 | AO14: =IF($Z14=$Z15,$V18-$U19,0) -> 0 | AP14: =SUM(AL14:AO14) -> -1 | AQ14: =IF($Z14=$Z12,$S18,0) -> 0 | AR14: =IF($Z14=$Z13,$T18,0) -> 0 | AT14: =IF($Z14=$Z15,$V18,0) -> 0 | AU14: =SUM(AQ14:AT14) -> 0 | AV14: 2 | BA14: 10 | BB14: 2026-06-17T18:00:00 | BC14: Frankfurt | BD14: =BY14 -> E3 | BE14: - | BF14: =BY15 -> E4 | BH14: 1 | BI14: : | BJ14: 0 | BK14: ok | BM14: =VLOOKUP(3,$BX$12:$CC$15,2,FALSE) -> E2 | BN14: =VLOOKUP(3,$BX$12:$CC$15,3,FALSE) -> 3 | BO14: =VLOOKUP(3,$BX$12:$CC$15,4,FALSE) -> 1 | BP14: =VLOOKUP(3,$BX$12:$CC$15,5,FALSE) -> 2 | BQ14: =VLOOKUP(3,$BX$12:$CC$15,6,FALSE) -> -1 | BS14: =IF(BJ15="",0,IF(BK15=$B$120,IF(BH15<BJ15,3,IF(BH15=BJ15,1,0)),0)) -> 0 | BT14: =IF(BJ18="",0,IF(BK17=$B$120,IF(BH18<BJ18,3,IF(BH18=BJ18,1,0)),0)) -> 0 | BV14: =IF(BH14="",0,IF(BK14=$B$120,IF(BH14>BJ14,3,IF(BH14=BJ14,1,0)),0)) -> 3 | BX14: =RANK(CD14,$CD$12:$CD$15) -> 4 | BY14: E3 | BZ14: =SUM(BS14:BV14) -> 3 | CA14: =SUM(BS18:BV18) -> 1 | CB14: =SUM(BU16:BU19) -> 2 | CC14: =CA14-CB14 -> -1 | CD14: =IF(BP$18="",(((((((CE14*10+BZ14)*100+CC14)*100+CA14)*10+CK14)*10+CJ14)*100+CP14)*100+CU14)*10+CV14,(((((((CE14*10+BZ14)*10+CK14)*10+CJ14)*100+CP14)*100+CU14)*100+CC14)*100+CA14)*10+CV14) -> 296989999012 | CF14: =IF($BZ14=$BZ12,$BS14-$BU12,0) -> 0 | CG14: =IF($BZ14=$BZ13,$BT14-$BU13,0) -> -3 | CI14: =IF($BZ14=$BZ15,$BV14-$BU15,0) -> 0 | CJ14: =SUM(CF14:CI14) -> -3 | CL14: =IF($BZ14=$BZ12,$BS18-$BU16,0) -> 0 | CM14: =IF($BZ14=$BZ13,$BT18-$BU17,0) -> -1 | CO14: =IF($BZ14=$BZ15,$BV18-$BU19,0) -> 0 | CP14: =SUM(CL14:CO14) -> -1 | CQ14: =IF($BZ14=$BZ12,$BS18,0) -> 0 | CR14: =IF($BZ14=$BZ13,$BT18,0) -> 0 | CT14: =IF($BZ14=$BZ15,$BV18,0) -> 0 | CU14: =SUM(CQ14:CT14) -> 0 | CV14: 2
A15: =A13+12 -> 15 | B15: 2026-06-20T21:00:00 | C15: Gelsenkirchen | D15: =Y12 -> B1 | E15: - | F15: =Y14 -> B3 | H15: 1 | I15: : | J15: 0 | K15: ok | M15: =VLOOKUP(4,$X$12:$AC$15,2,FALSE) -> B3 | N15: =VLOOKUP(4,$X$12:$AC$15,3,FALSE) -> 3 | O15: =VLOOKUP(4,$X$12:$AC$15,4,FALSE) -> 1 | P15: =VLOOKUP(4,$X$12:$AC$15,5,FALSE) -> 2 | Q15: =VLOOKUP(4,$X$12:$AC$15,6,FALSE) -> -1 | S15: =IF(H17="",0,IF(K18=$B$120,IF(H17>J17,3,IF(H17=J17,1,0)),0)) -> 3 | T15: =IF(H16="",0,IF(K16=$B$120,IF(J16<H16,3,IF(J16=H16,1,0)),0)) -> 3 | U15: =IF(J14="",0,IF(K14=$B$120,IF(H14<J14,3,IF(H14=J14,1,0)),0)) -> 0 | X15: =RANK(AD15,$AD$12:$AD$15) -> 1 | Y15: B4 | Z15: =SUM(S15:V15) -> 6 | AA15: =SUM(S19:V19) -> 2 | AB15: =SUM(V16:V19) -> 1 | AC15: =AA15-AB15 -> 1 | AD15: =IF(P$18="",(((((((AE15*10+Z15)*100+AC15)*100+AA15)*10+AK15)*10+AJ15)*100+AP15)*100+AU15)*10+AV15,(((((((AE15*10+Z15)*10+AK15)*10+AJ15)*100+AP15)*100+AU15)*100+AC15)*100+AA15)*10+AV15) -> 603010101021 | AF15: =IF($Z15=$Z12,$S15-$V12,0) -> 3 | AG15: =IF($Z15=$Z13,$T15-$V13,0) -> 0 | AH15: =IF($Z15=$Z14,$U15-$V14,0) -> 0 | AJ15: =SUM(AF15:AI15) -> 3 | AL15: =IF($Z15=$Z12,$S19-$V16,0) -> 1 | AM15: =IF($Z15=$Z13,$T19-$V17,0) -> 0 | AN15: =IF($Z15=$Z14,$U19-$V18,0) -> 0 | AP15: =SUM(AL15:AO15) -> 1 | AQ15: =IF($Z15=$Z12,$S19,0) -> 1 | AR15: =IF($Z15=$Z13,$T19,0) -> 0 | AS15: =IF($Z15=$Z14,$U19,0) -> 0 | AU15: =SUM(AQ15:AT15) -> 1 | AV15: 1 | BA15: =BA13+12 -> 21 | BB15: 2026-06-22T21:00:00 | BC15: Köln | BD15: =BY12 -> E1 | BE15: - | BF15: =BY14 -> E3 | BH15: 1 | BI15: : | BJ15: 0 | BK15: ok | BM15: =VLOOKUP(4,$BX$12:CC$15,2,FALSE) -> E3 | BN15: =VLOOKUP(4,$BX$12:$CC$15,3,FALSE) -> 3 | BO15: =VLOOKUP(4,$BX$12:$CC$15,4,FALSE) -> 1 | BP15: =VLOOKUP(4,$BX$12:$CC$15,5,FALSE) -> 2 | BQ15: =VLOOKUP(4,$BX$12:$CC$15,6,FALSE) -> -1 | BS15: =IF(BH17="",0,IF(BK18=$B$120,IF(BH17>BJ17,3,IF(BH17=BJ17,1,0)),0)) -> 3 | BT15: =IF(BH16="",0,IF(BK16=$B$120,IF(BJ16<BH16,3,IF(BJ16=BH16,1,0)),0)) -> 3 | BU15: =IF(BJ14="",0,IF(BK14=$B$120,IF(BH14<BJ14,3,IF(BH14=BJ14,1,0)),0)) -> 0 | BX15: =RANK(CD15,$CD$12:$CD$15) -> 1 | BY15: E4 | BZ15: =SUM(BS15:BV15) -> 6 | CA15: =SUM(BS19:BV19) -> 2 | CB15: =SUM(BV16:BV19) -> 1 | CC15: =CA15-CB15 -> 1 | CD15: =IF(BP$18="",(((((((CE15*10+BZ15)*100+CC15)*100+CA15)*10+CK15)*10+CJ15)*100+CP15)*100+CU15)*10+CV15,(((((((CE15*10+BZ15)*10+CK15)*10+CJ15)*100+CP15)*100+CU15)*100+CC15)*100+CA15)*10+CV15) -> 603010101021 | CF15: =IF($BZ15=$BZ12,$BS15-$BV12,0) -> 3 | CG15: =IF($BZ15=$BZ13,$BT15-$BV13,0) -> 0 | CH15: =IF($BZ15=$BZ14,$BU15-$BV14,0) -> 0 | CJ15: =SUM(CF15:CI15) -> 3 | CL15: =IF($BZ15=$BZ12,$BS19-$BV16,0) -> 1 | CM15: =IF($BZ15=$BZ13,$BT19-$BV17,0) -> 0 | CN15: =IF($BZ15=$BZ14,$BU19-$BV18,0) -> 0 | CP15: =SUM(CL15:CO15) -> 1 | CQ15: =IF($BZ15=$BZ12,$BS19,0) -> 1 | CR15: =IF($BZ15=$BZ13,$BT19,0) -> 0 | CS15: =IF($BZ15=$BZ14,$BU19,0) -> 0 | CU15: =SUM(CQ15:CT15) -> 1 | CV15: 1
A16: =A14+12 -> 16 | B16: 2026-06-19T15:00:00 | C16: Hamburg | D16: =Y15 -> B4 | E16: - | F16: =Y13 -> B2 | H16: 1 | I16: : | J16: 0 | K16: ok | T16: =IF(K13=$B$120,H13,0) -> 1 | U16: =IF(K15=$B$120,H15,0) -> 1 | V16: =IF(K18=$B$120,J17,0) -> 0 | BA16: =BA14+12 -> 22 | BB16: 2026-06-21T15:00:00 | BC16: Düsseldorf | BD16: =BY15 -> E4 | BE16: - | BF16: =BY13 -> E2 | BH16: 1 | BI16: : | BJ16: 0 | BK16: ok | BT16: =IF(BK13=$B$120,BH13,0) -> 1 | BU16: =IF(BK15=$B$120,BH15,0) -> 1 | BV16: =IF(BK18=$B$120,BJ17,0) -> 0
A17: =A15+12 -> 27 | B17: 2026-06-24T21:00:00 | C17: Düsseldorf | D17: =Y15 -> B4 | E17: - | F17: =Y12 -> B1 | H17: 1 | I17: : | J17: 0 | K17: ok | M17: =IF(N12>0,M12,"") -> B4 | N17: 1B | S17: =IF(K13=$B$120,J13,0) -> 0 | U17: =IF(K17=$B$120,H18,0) -> 1 | V17: =IF(K16=$B$120,J16,0) -> 0 | AD17: L0=AE hebelt Berechnung aus (top level Losen) | BA17: =BA15+12 -> 33 | BB17: 2026-06-26T18:00:00 | BC17: Frankfurt | BD17: =BY15 -> E4 | BE17: - | BF17: =BY12 -> E1 | BH17: 1 | BI17: : | BJ17: 0 | BK17: ok | BM17: =IF(BN12>0,BM12,"") -> E4 | BN17: 1E | BS17: =IF(BK13=$B$120,BJ13,0) -> 0 | BU17: =IF(BK17=$B$120,BH18,0) -> 1 | BV17: =IF(BK16=$B$120,BJ16,0) -> 0 | CD17: L0=AE hebelt Berechnung aus (top level Losen)
A18: =A16+12 -> 28 | B18: 2026-06-24T21:00:00 | C18: Leipzig | D18: =Y13 -> B2 | E18: - | F18: =Y14 -> B3 | H18: 1 | I18: : | J18: 0 | K18: ok | M18: =IF(N13>0,M13,"") -> B1 | N18: 2B | P18: DV | S18: =IF(K15=$B$120,J15,0) -> 0 | T18: =IF(K17=$B$120,J18,0) -> 0 | V18: =IF(K14=$B$120,H14,0) -> 1 | AD18: L1=AK hebelt Direktvergleich (S1) aus | BA18: =BA16+12 -> 34 | BB18: 2026-06-26T18:00:00 | BC18: Stuttgart | BD18: =BY13 -> E2 | BE18: - | BF18: =BY14 -> E3 | BH18: 1 | BI18: : | BJ18: 0 | BK18: ok | BM18: =IF(BN13>0,BM13,"") -> E1 | BN18: 2E | BP18: DV | BS18: =IF(BK15=$B$120,BJ15,0) -> 0 | BT18: =IF(BK17=$B$120,BJ18,0) -> 0 | BV18: =IF(BK14=$B$120,BH14,0) -> 1 | CD18: L1=AK hebelt Direktvergleich (S1) aus
M19: =IF(N14>0,M14,"") -> B2 | N19: 3B | S19: =IF(K18=$B$120,H17,0) -> 1 | T19: =IF(K16=$B$120,H16,0) -> 1 | U19: =IF(K14=$B$120,J14,0) -> 0 | AD19: L4=AV Losen UEFA-Koeffizient, Fairplay oder Münzwurf | BM19: =IF(BN14>0,BM14,"") -> E2 | BN19: 3E | BS19: =IF(BK18=$B$120,BH17,0) -> 1 | BT19: =IF(BK16=$B$120,BH16,0) -> 1 | BU19: =IF(BK14=$B$120,BJ14,0) -> 0 | CD19: L4=AV Losen UEFA-Koeffizient, Fairplay oder Münzwurf
B21: Vorrunde | C21: Gruppe C | M21: Tabelle | N21: P | O21: T+ | P21: T- | Q21: T+/- | X21: G | Y21: Berechnungen | Z21: P | AA21: T+ | AB21: T- | AC21: T+/- | AE21: L0 | AF21: DV | AJ21: S1 | AK21: L1 | AL21: DV-TD | AP21: S2 | AQ21: DV-Tore | AU21: S3 | AV21: L4 | BB21: Vorrunde | BC21: Gruppe F | BM21: Tabelle | BN21: P | BO21: T+ | BP21: T- | BQ21: T+/- | BX21: G | BY21: Berechnungen | BZ21: P | CA21: T+ | CB21: T- | CC21: T+/- | CE21: L0 | CF21: DV | CJ21: S1 | CK21: L1 | CL21: DV-TD | CP21: S2 | CQ21: DV-Tore | CU21: S3 | CV21: L4
B22: Datum/Zeit | C22: Spielort | M22: =VLOOKUP(1,$X$22:$AC$25,2,FALSE) -> C1 | N22: =VLOOKUP(1,$X$22:$AC$25,3,FALSE) -> 6 | O22: =VLOOKUP(1,$X$22:$AC$25,4,FALSE) -> 2 | P22: =VLOOKUP(1,$X$22:$AC$25,5,FALSE) -> 1 | Q22: =VLOOKUP(1,$X$22:$AC$25,6,FALSE) -> 1 | T22: =IF(H23="",0,IF(K23=$B$120,IF(H23>J23,3,IF(H23=J23,1,0)),0)) -> 3 | U22: =IF(H25="",0,IF(K25=$B$120,IF(H25>J25,3,IF(H25=J25,1,0)),0)) -> 3 | V22: =IF(J27="",0,IF(K28=$B$120,IF(H27<J27,3,IF(H27=J27,1,0)),0)) -> 0 | X22: =RANK(AD22,$AD$22:$AD$25) -> 1 | Y22: C1 | Z22: =SUM(S22:V22) -> 6 | AA22: =SUM(S26:V26) -> 2 | AB22: =SUM(S26:S29) -> 1 | AC22: =AA22-AB22 -> 1 | AD22: =IF(P$28="",(((((((AE22*10+Z22)*100+AC22)*100+AA22)*10+AK22)*10+AJ22)*100+AP22)*100+AU22)*10+AV22,(((((((AE22*10+Z22)*10+AK22)*10+AJ22)*100+AP22)*100+AU22)*100+AC22)*100+AA22)*10+AV22) -> 603010101024 | AG22: =IF($Z22=$Z23,$T22-$S23,0) -> 3 | AH22: =IF($Z22=$Z24,$U22-$S24,0) -> 0 | AI22: =IF($Z22=$Z25,$V22-$S25,0) -> 0 | AJ22: =SUM(AF22:AI22) -> 3 | AM22: =IF($Z22=$Z23,$T26-$S27,0) -> 1 | AN22: =IF($Z22=$Z24,$U26-$S28,0) -> 0 | AO22: =IF($Z22=$Z25,$V26-$S29,0) -> 0 | AP22: =SUM(AL22:AO22) -> 1 | AR22: =IF($Z22=$Z23,$T26,0) -> 1 | AS22: =IF($Z22=$Z24,$U26,0) -> 0 | AT22: =IF($Z22=$Z25,$V26,0) -> 0 | AU22: =SUM(AQ22:AT22) -> 1 | AV22: 4 | BB22: Datum/Zeit | BC22: Spielort | BM22: =VLOOKUP(1,$BX$22:$CC$25,2,FALSE) -> F4 | BN22: =VLOOKUP(1,$BX$22:$CC$25,3,FALSE) -> 6 | BO22: =VLOOKUP(1,$BX$22:$CC$25,4,FALSE) -> 2 | BP22: =VLOOKUP(1,$BX$22:$CC$25,5,FALSE) -> 1 | BQ22: =VLOOKUP(1,$BX$22:$CC$25,6,FALSE) -> 1 | BT22: =IF(BH23="",0,IF(BK23=$B$120,IF(BH23>BJ23,3,IF(BH23=BJ23,1,0)),0)) -> 3 | BU22: =IF(BH25="",0,IF(BK25=$B$120,IF(BH25>BJ25,3,IF(BH25=BJ25,1,0)),0)) -> 3 | BV22: =IF(BJ27="",0,IF(BK28=$B$120,IF(BH27<BJ27,3,IF(BH27=BJ27,1,0)),0)) -> 0 | BX22: =RANK(CD22,$CD$22:$CD$25) -> 2 | BY22: F1 | BZ22: =SUM(BS22:BV22) -> 6 | CA22: =SUM(BS26:BV26) -> 2 | CB22: =SUM(BS26:BS29) -> 1 | CC22: =CA22-CB22 -> 1 | CD22: =IF(BP$28="",(((((((CE22*10+BZ22)*100+CC22)*100+CA22)*10+CK22)*10+CJ22)*100+CP22)*100+CU22)*10+CV22,(((((((CE22*10+BZ22)*10+CK22)*10+CJ22)*100+CP22)*100+CU22)*100+CC22)*100+CA22)*10+CV22) -> 596990001024 | CG22: =IF($BZ22=$BZ23,$BT22-$BS23,0) -> 0 | CH22: =IF($BZ22=$BZ24,$BU22-$BS24,0) -> 0 | CI22: =IF($BZ22=$BZ25,$BV22-$BS25,0) -> -3 | CJ22: =SUM(CF22:CI22) -> -3 | CM22: =IF($BZ22=$BZ23,$BT26-$BS27,0) -> 0 | CN22: =IF($BZ22=$BZ24,$BU26-$BS28,0) -> 0 | CO22: =IF($BZ22=$BZ25,$BV26-$BS29,0) -> -1 | CP22: =SUM(CL22:CO22) -> -1 | CR22: =IF($BZ22=$BZ23,$BT26,0) -> 0 | CS22: =IF($BZ22=$BZ24,$BU26,0) -> 0 | CT22: =IF($BZ22=$BZ25,$BV26,0) -> 0 | CU22: =SUM(CQ22:CT22) -> 0 | CV22: 4
A23: 5 | B23: 2026-06-16T18:00:00 | C23: Stuttgart | D23: =Y22 -> C1 | E23: - | F23: =Y23 -> C2 | H23: =IF($B$121="",1,INT(RAND()*5)+INT(RAND()*3)*INT(RAND()*2)) -> 1 | I23: : | J23: =IF($B$121="",0,INT(RAND()*5)+INT(RAND()*3)*INT(RAND()*2)) -> 0 | K23: ok | M23: =VLOOKUP(2,$X$22:$AC$25,2,FALSE) -> C2 | N23: =VLOOKUP(2,$X$22:$AC$25,3,FALSE) -> 6 | O23: =VLOOKUP(2,$X$22:$AC$25,4,FALSE) -> 2 | P23: =VLOOKUP(2,$X$22:$AC$25,5,FALSE) -> 1 | Q23: =VLOOKUP(2,$X$22:$AC$25,6,FALSE) -> 1 | S23: =IF(J23="",0,IF(K23=$B$120,IF(H23<J23,3,IF(H23=J23,1,0)),0)) -> 0 | U23: =IF(H28="",0,IF(K27=$B$120,IF(H28>J28,3,IF(H28=J28,1,0)),0)) -> 3 | V23: =IF(J26="",0,IF(K26=$B$120,IF(J26>H26,3,IF(J26=H26,1,0)),0)) -> 3 | X23: =RANK(AD23,$AD$22:$AD$25) -> 2 | Y23: C2 | Z23: =SUM(S23:V23) -> 6 | AA23: =SUM(S27:V27) -> 2 | AB23: =SUM(T26:T29) -> 1 | AC23: =AA23-AB23 -> 1 | AD23: =IF(P$28="",(((((((AE23*10+Z23)*100+AC23)*100+AA23)*10+AK23)*10+AJ23)*100+AP23)*100+AU23)*10+AV23,(((((((AE23*10+Z23)*10+AK23)*10+AJ23)*100+AP23)*100+AU23)*100+AC23)*100+AA23)*10+AV23) -> 596990001023 | AF23: =IF($Z23=$Z22,$S23-$T22,0) -> -3 | AH23: =IF($Z23=$Z24,$U23-$T24,0) -> 0 | AI23: =IF($Z23=$Z25,$V23-$T25,0) -> 0 | AJ23: =SUM(AF23:AI23) -> -3 | AL23: =IF($Z23=$Z22,$S27-$T26,0) -> -1 | AN23: =IF($Z23=$Z24,$U27-$T28,0) -> 0 | AO23: =IF($Z23=$Z25,$V27-$T29,0) -> 0 | AP23: =SUM(AL23:AO23) -> -1 | AQ23: =IF($Z23=$Z22,$S27,0) -> 0 | AS23: =IF($Z23=$Z24,$U27,0) -> 0 | AT23: =IF($Z23=$Z25,$V27,0) -> 0 | AU23: =SUM(AQ23:AT23) -> 0 | AV23: 3 | BA23: 11 | BB23: 2026-06-18T18:00:00 | BC23: Dortmund | BD23: =BY22 -> F1 | BE23: - | BF23: =BY23 -> F2 | BH23: =IF($B$121="",1,INT(RAND()*5)+INT(RAND()*3)*INT(RAND()*2)) -> 1 | BI23: : | BJ23: =IF($B$121="",0,INT(RAND()*5)+INT(RAND()*3)*INT(RAND()*2)) -> 0 | BK23: ok | BM23: =VLOOKUP(2,$BX$22:$CC$25,2,FALSE) -> F1 | BN23: =VLOOKUP(2,$BX$22:$CC$25,3,FALSE) -> 6 | BO23: =VLOOKUP(2,$BX$22:$CC$25,4,FALSE) -> 2 | BP23: =VLOOKUP(2,$BX$22:$CC$25,5,FALSE) -> 1 | BQ23: =VLOOKUP(2,$BX$22:$CC$25,6,FALSE) -> 1 | BS23: =IF(BJ23="",0,IF(BK23=$B$120,IF(BH23<BJ23,3,IF(BH23=BJ23,1,0)),0)) -> 0 | BU23: =IF(BH28="",0,IF(BK27=$B$120,IF(BH28>BJ28,3,IF(BH28=BJ28,1,0)),0)) -> 3 | BV23: =IF(BJ26="",0,IF(BK26=$B$120,IF(BJ26>BH26,3,IF(BJ26=BH26,1,0)),0)) -> 0 | BX23: =RANK(CD23,$CD$22:$CD$25) -> 3 | BY23: F2 | BZ23: =SUM(BS23:BV23) -> 3 | CA23: =SUM(BS27:BV27) -> 1 | CB23: =SUM(BT26:BT29) -> 2 | CC23: =CA23-CB23 -> -1 | CD23: =IF(BP$28="",(((((((CE23*10+BZ23)*100+CC23)*100+CA23)*10+CK23)*10+CJ23)*100+CP23)*100+CU23)*10+CV23,(((((((CE23*10+BZ23)*10+CK23)*10+CJ23)*100+CP23)*100+CU23)*100+CC23)*100+CA23)*10+CV23) -> 303010099013 | CF23: =IF($BZ23=$BZ22,$BS23-$BT22,0) -> 0 | CH23: =IF($BZ23=$BZ24,$BU23-$BT24,0) -> 3 | CI23: =IF($BZ23=$BZ25,$BV23-$BT25,0) -> 0 | CJ23: =SUM(CF23:CI23) -> 3 | CL23: =IF($BZ23=$BZ22,$BS27-$BT26,0) -> 0 | CN23: =IF($BZ23=$BZ24,$BU27-$BT28,0) -> 1 | CO23: =IF($BZ23=$BZ25,$BV27-$BT29,0) -> 0 | CP23: =SUM(CL23:CO23) -> 1 | CQ23: =IF($BZ23=$BZ22,$BS27,0) -> 0 | CS23: =IF($BZ23=$BZ24,$BU27,0) -> 1 | CT23: =IF($BZ23=$BZ25,$BV27,0) -> 0 | CU23: =SUM(CQ23:CT23) -> 1 | CV23: 3
A24: 6 | B24: 2026-05-16T21:00:00 | C24: Gelsenkirchen | D24: =Y24 -> C3 | E24: - | F24: =Y25 -> C4 | H24: 1 | I24: : | J24: 0 | K24: ok | M24: =VLOOKUP(3,$X$22:$AC$25,2,FALSE) -> C3 | N24: =VLOOKUP(3,$X$22:$AC$25,3,FALSE) -> 3 | O24: =VLOOKUP(3,$X$22:$AC$25,4,FALSE) -> 1 | P24: =VLOOKUP(3,$X$22:$AC$25,5,FALSE) -> 2 | Q24: =VLOOKUP(3,$X$22:$AC$25,6,FALSE) -> -1 | S24: =IF(J25="",0,IF(K25=$B$120,IF(H25<J25,3,IF(H25=J25,1,0)),0)) -> 0 | T24: =IF(J28="",0,IF(K27=$B$120,IF(H28<J28,3,IF(H28=J28,1,0)),0)) -> 0 | V24: =IF(H24="",0,IF(K24=$B$120,IF(H24>J24,3,IF(H24=J24,1,0)),0)) -> 3 | X24: =RANK(AD24,$AD$22:$AD$25) -> 3 | Y24: C3 | Z24: =SUM(S24:V24) -> 3 | AA24: =SUM(S28:V28) -> 1 | AB24: =SUM(U26:U29) -> 2 | AC24: =AA24-AB24 -> -1 | AD24: =IF(P$28="",(((((((AE24*10+Z24)*100+AC24)*100+AA24)*10+AK24)*10+AJ24)*100+AP24)*100+AU24)*10+AV24,(((((((AE24*10+Z24)*10+AK24)*10+AJ24)*100+AP24)*100+AU24)*100+AC24)*100+AA24)*10+AV24) -> 303010099012 | AF24: =IF($Z24=$Z22,$S24-$U22,0) -> 0 | AG24: =IF($Z24=$Z23,$T24-$U23,0) -> 0 | AI24: =IF($Z24=$Z25,$V24-$U25,0) -> 3 | AJ24: =SUM(AF24:AI24) -> 3 | AL24: =IF($Z24=$Z22,$S28-$U26,0) -> 0 | AM24: =IF($Z24=$Z23,$T28-$U27,0) -> 0 | AO24: =IF($Z24=$Z25,$V28-$U29,0) -> 1 | AP24: =SUM(AL24:AO24) -> 1 | AQ24: =IF($Z24=$Z22,$S28,0) -> 0 | AR24: =IF($Z24=$Z23,$T28,0) -> 0 | AT24: =IF($Z24=$Z25,$V28,0) -> 1 | AU24: =SUM(AQ24:AT24) -> 1 | AV24: 2 | BA24: 12 | BB24: 2026-06-18T21:00:00 | BC24: Leipzig | BD24: =BY24 -> F3 | BE24: - | BF24: =BY25 -> F4 | BH24: 1 | BI24: : | BJ24: 0 | BK24: ok | BM24: =VLOOKUP(3,$BX$22:$CC$25,2,FALSE) -> F2 | BN24: =VLOOKUP(3,$BX$22:$CC$25,3,FALSE) -> 3 | BO24: =VLOOKUP(3,$BX$22:$CC$25,4,FALSE) -> 1 | BP24: =VLOOKUP(3,$BX$22:$CC$25,5,FALSE) -> 2 | BQ24: =VLOOKUP(3,$BX$22:$CC$25,6,FALSE) -> -1 | BS24: =IF(BJ25="",0,IF(BK25=$B$120,IF(BH25<BJ25,3,IF(BH25=BJ25,1,0)),0)) -> 0 | BT24: =IF(BJ28="",0,IF(BK27=$B$120,IF(BH28<BJ28,3,IF(BH28=BJ28,1,0)),0)) -> 0 | BV24: =IF(BH24="",0,IF(BK24=$B$120,IF(BH24>BJ24,3,IF(BH24=BJ24,1,0)),0)) -> 3 | BX24: =RANK(CD24,$CD$22:$CD$25) -> 4 | BY24: F3 | BZ24: =SUM(BS24:BV24) -> 3 | CA24: =SUM(BS28:BV28) -> 1 | CB24: =SUM(BU26:BU29) -> 2 | CC24: =CA24-CB24 -> -1 | CD24: =IF(BP$28="",(((((((CE24*10+BZ24)*100+CC24)*100+CA24)*10+CK24)*10+CJ24)*100+CP24)*100+CU24)*10+CV24,(((((((CE24*10+BZ24)*10+CK24)*10+CJ24)*100+CP24)*100+CU24)*100+CC24)*100+CA24)*10+CV24) -> 296989999012 | CF24: =IF($BZ24=$BZ22,$BS24-$BU22,0) -> 0 | CG24: =IF($BZ24=$BZ23,$BT24-$BU23,0) -> -3 | CI24: =IF($BZ24=$BZ25,$BV24-$BU25,0) -> 0 | CJ24: =SUM(CF24:CI24) -> -3 | CL24: =IF($BZ24=$BZ22,$BS28-$BU26,0) -> 0 | CM24: =IF($BZ24=$BZ23,$BT28-$BU27,0) -> -1 | CO24: =IF($BZ24=$BZ25,$BV28-$BU29,0) -> 0 | CP24: =SUM(CL24:CO24) -> -1 | CQ24: =IF($BZ24=$BZ22,$BS28,0) -> 0 | CR24: =IF($BZ24=$BZ23,$BT28,0) -> 0 | CT24: =IF($BZ24=$BZ25,$BV28,0) -> 0 | CU24: =SUM(CQ24:CT24) -> 0 | CV24: 2
A25: =A23+12 -> 17 | B25: 2026-06-20T15:00:00 | C25: München | D25: =Y22 -> C1 | E25: - | F25: =Y24 -> C3 | H25: 1 | I25: : | J25: 0 | K25: ok | M25: =VLOOKUP(4,$X$22:$AC$25,2,FALSE) -> C4 | N25: =VLOOKUP(4,$X$22:$AC$25,3,FALSE) -> 3 | O25: =VLOOKUP(4,$X$22:$AC$25,4,FALSE) -> 1 | P25: =VLOOKUP(4,$X$22:$AC$25,5,FALSE) -> 2 | Q25: =VLOOKUP(4,$X$22:$AC$25,6,FALSE) -> -1 | S25: =IF(H27="",0,IF(K28=$B$120,IF(H27>J27,3,IF(H27=J27,1,0)),0)) -> 3 | T25: =IF(H26="",0,IF(K26=$B$120,IF(J26<H26,3,IF(J26=H26,1,0)),0)) -> 0 | U25: =IF(J24="",0,IF(K24=$B$120,IF(H24<J24,3,IF(H24=J24,1,0)),0)) -> 0 | X25: =RANK(AD25,$AD$22:$AD$25) -> 4 | Y25: C4 | Z25: =SUM(S25:V25) -> 3 | AA25: =SUM(S29:V29) -> 1 | AB25: =SUM(V26:V29) -> 2 | AC25: =AA25-AB25 -> -1 | AD25: =IF(P$28="",(((((((AE25*10+Z25)*100+AC25)*100+AA25)*10+AK25)*10+AJ25)*100+AP25)*100+AU25)*10+AV25,(((((((AE25*10+Z25)*10+AK25)*10+AJ25)*100+AP25)*100+AU25)*100+AC25)*100+AA25)*10+AV25) -> 296989999011 | AF25: =IF($Z25=$Z22,$S25-$V22,0) -> 0 | AG25: =IF($Z25=$Z23,$T25-$V23,0) -> 0 | AH25: =IF($Z25=$Z24,$U25-$V24,0) -> -3 | AJ25: =SUM(AF25:AI25) -> -3 | AL25: =IF($Z25=$Z22,$S29-$V26,0) -> 0 | AM25: =IF($Z25=$Z23,$T29-$V27,0) -> 0 | AN25: =IF($Z25=$Z24,$U29-$V28,0) -> -1 | AP25: =SUM(AL25:AO25) -> -1 | AQ25: =IF($Z25=$Z22,$S29,0) -> 0 | AR25: =IF($Z25=$Z23,$T29,0) -> 0 | AS25: =IF($Z25=$Z24,$U29,0) -> 0 | AU25: =SUM(AQ25:AT25) -> 0 | AV25: 1 | BA25: =BA23+12 -> 23 | BB25: 2026-06-22T18:00:00 | BC25: Dortmund | BD25: =BY22 -> F1 | BE25: - | BF25: =BY24 -> F3 | BH25: 1 | BI25: : | BJ25: 0 | BK25: ok | BM25: =VLOOKUP(4,$BX$22:$CC$25,2,FALSE) -> F3 | BN25: =VLOOKUP(4,$BX$22:$CC$25,3,FALSE) -> 3 | BO25: =VLOOKUP(4,$BX$22:$CC$25,4,FALSE) -> 1 | BP25: =VLOOKUP(4,$BX$22:$CC$25,5,FALSE) -> 2 | BQ25: =VLOOKUP(4,$BX$22:$CC$25,6,FALSE) -> -1 | BS25: =IF(BH27="",0,IF(BK28=$B$120,IF(BH27>BJ27,3,IF(BH27=BJ27,1,0)),0)) -> 3 | BT25: =IF(BH26="",0,IF(BK26=$B$120,IF(BJ26<BH26,3,IF(BJ26=BH26,1,0)),0)) -> 3 | BU25: =IF(BJ24="",0,IF(BK24=$B$120,IF(BH24<BJ24,3,IF(BH24=BJ24,1,0)),0)) -> 0 | BX25: =RANK(CD25,$CD$22:$CD$25) -> 1 | BY25: F4 | BZ25: =SUM(BS25:BV25) -> 6 | CA25: =SUM(BS29:BV29) -> 2 | CB25: =SUM(BV26:BV29) -> 1 | CC25: =CA25-CB25 -> 1 | CD25: =IF(BP$28="",(((((((CE25*10+BZ25)*100+CC25)*100+CA25)*10+CK25)*10+CJ25)*100+CP25)*100+CU25)*10+CV25,(((((((CE25*10+BZ25)*10+CK25)*10+CJ25)*100+CP25)*100+CU25)*100+CC25)*100+CA25)*10+CV25) -> 603010101021 | CF25: =IF($BZ25=$BZ22,$BS25-$BV22,0) -> 3 | CG25: =IF($BZ25=$BZ23,$BT25-$BV23,0) -> 0 | CH25: =IF($BZ25=$BZ24,$BU25-$BV24,0) -> 0 | CJ25: =SUM(CF25:CI25) -> 3 | CL25: =IF($BZ25=$BZ22,$BS29-$BV26,0) -> 1 | CM25: =IF($BZ25=$BZ23,$BT29-$BV27,0) -> 0 | CN25: =IF($BZ25=$BZ24,$BU29-$BV28,0) -> 0 | CP25: =SUM(CL25:CO25) -> 1 | CQ25: =IF($BZ25=$BZ22,$BS29,0) -> 1 | CR25: =IF($BZ25=$BZ23,$BT29,0) -> 0 | CS25: =IF($BZ25=$BZ24,$BU29,0) -> 0 | CU25: =SUM(CQ25:CT25) -> 1 | CV25: 1
A26: =A24+12 -> 18 | B26: 2026-06-20T18:00:00 | C26: England | D26: =Y25 -> C4 | E26: - | F26: =Y23 -> C2 | H26: =IF($B$121="",0,INT(RAND()*5)+INT(RAND()*3)*INT(RAND()*2)) -> 0 | I26: : | J26: =IF($B$121="",1,INT(RAND()*5)+INT(RAND()*3)*INT(RAND()*2)) -> 1 | K26: ok | T26: =IF(K23=$B$120,H23,0) -> 1 | U26: =IF(K25=$B$120,H25,0) -> 1 | V26: =IF(K28=$B$120,J27,0) -> 0 | BA26: =BA24+12 -> 24 | BB26: 2026-06-22T15:00:00 | BC26: Hamburg | BD26: =BY25 -> F4 | BE26: - | BF26: =BY23 -> F2 | BH26: 1 | BI26: : | BJ26: 0 | BK26: ok | BT26: =IF(BK23=$B$120,BH23,0) -> 1 | BU26: =IF(BK25=$B$120,BH25,0) -> 1 | BV26: =IF(BK28=$B$120,BJ27,0) -> 0
A27: =A25+12 -> 29 | B27: 2026-06-25T21:00:00 | C27: Köln | D27: =Y25 -> C4 | E27: - | F27: =Y22 -> C1 | H27: 1 | I27: : | J27: 0 | K27: ok | M27: =IF(N22>0,M22,"") -> C1 | N27: 1C | S27: =IF(K23=$B$120,J23,0) -> 0 | U27: =IF(K27=$B$120,H28,0) -> 1 | V27: =IF(K26=$B$120,J26,0) -> 1 | AD27: L0=AE hebelt Berechnung aus (top level Losen) | BA27: =BA25+12 -> 35 | BB27: 2026-06-26T21:00:00 | BC27: Hamburg | BD27: =BY25 -> F4 | BE27: - | BF27: =BY22 -> F1 | BH27: 1 | BI27: : | BJ27: 0 | BK27: ok | BM27: =IF(BN22>0,BM22,"") -> F4 | BN27: 1F | BS27: =IF(BK23=$B$120,BJ23,0) -> 0 | BU27: =IF(BK27=$B$120,BH28,0) -> 1 | BV27: =IF(BK26=$B$120,BJ26,0) -> 0 | CD27: L0=AE hebelt Berechnung aus (top level Losen)
A28: =A26+12 -> 30 | B28: 2026-06-25T21:00:00 | C28: München | D28: =Y23 -> C2 | E28: - | F28: =Y24 -> C3 | H28: 1 | I28: : | J28: 0 | K28: ok | M28: =IF(N23>0,M23,"") -> C2 | N28: 2C | P28: DV | S28: =IF(K25=$B$120,J25,0) -> 0 | T28: =IF(K27=$B$120,J28,0) -> 0 | V28: =IF(K24=$B$120,H24,0) -> 1 | AD28: L1=AK hebelt Direktvergleich (S1) aus | BA28: =BA26+12 -> 36 | BB28: 2026-06-26T21:00:00 | BC28: Gelsenkirchen | BD28: =BY23 -> F2 | BE28: - | BF28: =BY24 -> F3 | BH28: 1 | BI28: : | BJ28: 0 | BK28: ok | BM28: =IF(BN23>0,BM23,"") -> F1 | BN28: 2F | BP28: DV | BS28: =IF(BK25=$B$120,BJ25,0) -> 0 | BT28: =IF(BK27=$B$120,BJ28,0) -> 0 | BV28: =IF(BK24=$B$120,BH24,0) -> 1 | CD28: L1=AK hebelt Direktvergleich (S1) aus
M29: =IF(N24>0,M24,"") -> C3 | N29: 3C | S29: =IF(K28=$B$120,H27,0) -> 1 | T29: =IF(K26=$B$120,H26,0) -> 0 | U29: =IF(K24=$B$120,J24,0) -> 0 | AD29: L4=AV Losen UEFA-Koeffizient, Fairplay oder Münzwurf | BM29: =IF(BN24>0,BM24,"") -> F2 | BN29: 3F | BS29: =IF(BK28=$B$120,BH27,0) -> 1 | BT29: =IF(BK26=$B$120,BH26,0) -> 1 | BU29: =IF(BK24=$B$120,BJ24,0) -> 0 | CD29: L4=AV Losen UEFA-Koeffizient, Fairplay oder Münzwurf
A31: SP | B31: Vorrunde | C31: Gruppe G | M31: Tabelle | N31: P | O31: T+ | P31: T- | Q31: T+/- | X31: G | Y31: Berechnungen | Z31: P | AA31: T+ | AB31: T- | AC31: T+/- | AE31: L0 | AF31: DV | AJ31: S1 | AK31: L1 | AL31: DV-TD | AP31: S2 | AQ31: DV-Tore | AU31: S3 | AV31: L4 | BB31: Vorrunde | BC31: Gruppe J | BM31: Tabelle | BN31: P | BO31: T+ | BP31: T- | BQ31: T+/- | BX31: G | BY31: Berechnungen | BZ31: P | CA31: T+ | CB31: T- | CC31: T+/- | CE31: L0 | CF31: DV | CJ31: S1 | CK31: L1 | CL31: DV-TD | CP31: S2 | CQ31: DV-Tore | CU31: S3 | CV31: L4
B32: Datum/Zeit | C32: Spielort | M32: =VLOOKUP(1,$X$32:$AC$35,2,FALSE) -> G4 | N32: =VLOOKUP(1,$X$32:$AC$35,3,FALSE) -> 6 | O32: =VLOOKUP(1,$X$32:$AC$35,4,FALSE) -> 2 | P32: =VLOOKUP(1,$X$32:$AC$35,5,FALSE) -> 1 | Q32: =VLOOKUP(1,$X$32:$AC$35,6,FALSE) -> 1 | T32: =IF(H33="",0,IF(K33=$B$120,IF(H33>J33,3,IF(H33=J33,1,0)),0)) -> 3 | U32: =IF(H35="",0,IF(K35=$B$120,IF(H35>J35,3,IF(H35=J35,1,0)),0)) -> 3 | V32: =IF(J37="",0,IF(K38=$B$120,IF(H37<J37,3,IF(H37=J37,1,0)),0)) -> 0 | X32: =RANK(AD32,$AD$32:$AD$35) -> 2 | Y32: G1 | Z32: =SUM(S32:V32) -> 6 | AA32: =SUM(S36:V36) -> 2 | AB32: =SUM(S36:S39) -> 1 | AC32: =AA32-AB32 -> 1 | AD32: =IF(P$8="",(((((((AE32*10+Z32)*100+AC32)*100+AA32)*10+AK32)*10+AJ32)*100+AP32)*100+AU32)*10+AV32,(((((((AE32*10+Z32)*10+AK32)*10+AJ32)*100+AP32)*100+AU32)*100+AC32)*100+AA32)*10+AV32) -> 596990001024 | AG32: =IF($Z32=$Z33,$T32-$S33,0) -> 0 | AH32: =IF($Z32=$Z34,$U32-$S34,0) -> 0 | AI32: =IF($Z32=$Z35,$V32-$S35,0) -> -3 | AJ32: =SUM(AF32:AI32) -> -3 | AM32: =IF($Z32=$Z33,$T36-$S37,0) -> 0 | AN32: =IF($Z32=$Z34,$U36-$S38,0) -> 0 | AO32: =IF($Z32=$Z35,$V36-$S39,0) -> -1 | AP32: =SUM(AL32:AO32) -> -1 | AR32: =IF($Z32=$Z33,$T36,0) -> 0 | AS32: =IF($Z32=$Z34,$U36,0) -> 0 | AT32: =IF($Z32=$Z35,$V36,0) -> 0 | AU32: =SUM(AQ32:AT32) -> 0 | AV32: 4 | BB32: Datum/Zeit | BC32: Spielort | BM32: =VLOOKUP(1,$BX$32:$CC$35,2,FALSE) -> J4 | BN32: =VLOOKUP(1,$BX$32:$CC$35,3,FALSE) -> 6 | BO32: =VLOOKUP(1,$BX$32:$CC$35,4,FALSE) -> 2 | BP32: =VLOOKUP(1,$BX$32:$CC$35,5,FALSE) -> 1 | BQ32: =VLOOKUP(1,$BX$32:$CC$35,6,FALSE) -> 1 | BT32: =IF(BH33="",0,IF(BK33=$B$120,IF(BH33>BJ33,3,IF(BH33=BJ33,1,0)),0)) -> 3 | BU32: =IF(BH35="",0,IF(BK35=$B$120,IF(BH35>BJ35,3,IF(BH35=BJ35,1,0)),0)) -> 3 | BV32: =IF(BJ37="",0,IF(BK38=$B$120,IF(BH37<BJ37,3,IF(BH37=BJ37,1,0)),0)) -> 0 | BX32: =RANK(CD32,$CD$32:$CD$35) -> 2 | BY32: J1 | BZ32: =SUM(BS32:BV32) -> 6 | CA32: =SUM(BS36:BV36) -> 2 | CB32: =SUM(BS36:BS39) -> 1 | CC32: =CA32-CB32 -> 1 | CD32: =IF(BP$8="",(((((((CE32*10+BZ32)*100+CC32)*100+CA32)*10+CK32)*10+CJ32)*100+CP32)*100+CU32)*10+CV32,(((((((CE32*10+BZ32)*10+CK32)*10+CJ32)*100+CP32)*100+CU32)*100+CC32)*100+CA32)*10+CV32) -> 596990001024 | CG32: =IF($BZ32=$BZ33,$BT32-$BS33,0) -> 0 | CH32: =IF($BZ32=$BZ34,$BU32-$BS34,0) -> 0 | CI32: =IF($BZ32=$BZ35,$BV32-$BS35,0) -> -3 | CJ32: =SUM(CF32:CI32) -> -3 | CM32: =IF($BZ32=$BZ33,$BT36-$BS37,0) -> 0 | CN32: =IF($BZ32=$BZ34,$BU36-$BS38,0) -> 0 | CO32: =IF($BZ32=$BZ35,$BV36-$BS39,0) -> -1 | CP32: =SUM(CL32:CO32) -> -1 | CR32: =IF($BZ32=$BZ33,$BT36,0) -> 0 | CS32: =IF($BZ32=$BZ34,$BU36,0) -> 0 | CT32: =IF($BZ32=$BZ35,$BV36,0) -> 0 | CU32: =SUM(CQ32:CT32) -> 0 | CV32: 4
A33: 1 | B33: 2026-06-14T21:00:00 | C33: München | D33: =Y32 -> G1 | E33: - | F33: =Y33 -> G2 | H33: =IF($B$121="",1,INT(RAND()*5)+INT(RAND()*3)*INT(RAND()*2)) -> 1 | I33: : | J33: =IF($B$121="",0,INT(RAND()*5)+INT(RAND()*3)*INT(RAND()*2)) -> 0 | K33: ok | M33: =VLOOKUP(2,$X$32:$AC$35,2,FALSE) -> G1 | N33: =VLOOKUP(2,$X$32:$AC$35,3,FALSE) -> 6 | O33: =VLOOKUP(2,$X$32:$AC$35,4,FALSE) -> 2 | P33: =VLOOKUP(2,$X$32:$AC$35,5,FALSE) -> 1 | Q33: =VLOOKUP(2,$X$32:$AC$35,6,FALSE) -> 1 | S33: =IF(J33="",0,IF(K33=$B$120,IF(H33<J33,3,IF(H33=J33,1,0)),0)) -> 0 | U33: =IF(H38="",0,IF(K37=$B$120,IF(H38>J38,3,IF(H38=J38,1,0)),0)) -> 3 | V33: =IF(J36="",0,IF(K36=$B$120,IF(J36>H36,3,IF(J36=H36,1,0)),0)) -> 0 | X33: =RANK(AD33,$AD$32:$AD$35) -> 3 | Y33: G2 | Z33: =SUM(S33:V33) -> 3 | AA33: =SUM(S37:V37) -> 1 | AB33: =SUM(T36:T39) -> 2 | AC33: =AA33-AB33 -> -1 | AD33: =IF(P$8="",(((((((AE33*10+Z33)*100+AC33)*100+AA33)*10+AK33)*10+AJ33)*100+AP33)*100+AU33)*10+AV33,(((((((AE33*10+Z33)*10+AK33)*10+AJ33)*100+AP33)*100+AU33)*100+AC33)*100+AA33)*10+AV33) -> 303010099013 | AF33: =IF($Z33=$Z32,$S33-$T32,0) -> 0 | AH33: =IF($Z33=$Z34,$U33-$T34,0) -> 3 | AI33: =IF($Z33=$Z35,$V33-$T35,0) -> 0 | AJ33: =SUM(AF33:AI33) -> 3 | AL33: =IF($Z33=$Z32,$S37-$T36,0) -> 0 | AN33: =IF($Z33=$Z34,$U37-$T38,0) -> 1 | AO33: =IF($Z33=$Z35,$V37-$T39,0) -> 0 | AP33: =SUM(AL33:AO33) -> 1 | AQ33: =IF($Z33=$Z32,$S37,0) -> 0 | AS33: =IF($Z33=$Z34,$U37,0) -> 1 | AT33: =IF($Z33=$Z35,$V37,0) -> 0 | AU33: =SUM(AQ33:AT33) -> 1 | AV33: 3 | BA33: 7 | BB33: 2026-06-16T15:00:00 | BC33: Hamburg | BD33: =BY32 -> J1 | BE33: - | BF33: =BY33 -> J2 | BH33: =IF($B$121="",1,INT(RAND()*5)+INT(RAND()*3)*INT(RAND()*2)) -> 1 | BI33: : | BJ33: =IF($B$121="",0,INT(RAND()*5)+INT(RAND()*3)*INT(RAND()*2)) -> 0 | BK33: ok | BM33: =VLOOKUP(2,$BX$32:$CC$35,2,FALSE) -> J1 | BN33: =VLOOKUP(2,$BX$32:$CC$35,3,FALSE) -> 6 | BO33: =VLOOKUP(2,$BX$32:$CC$35,4,FALSE) -> 2 | BP33: =VLOOKUP(2,$BX$32:$CC$35,5,FALSE) -> 1 | BQ33: =VLOOKUP(2,$BX$32:$CC$35,6,FALSE) -> 1 | BS33: =IF(BJ33="",0,IF(BK33=$B$120,IF(BH33<BJ33,3,IF(BH33=BJ33,1,0)),0)) -> 0 | BU33: =IF(BH38="",0,IF(BK37=$B$120,IF(BH38>BJ38,3,IF(BH38=BJ38,1,0)),0)) -> 3 | BV33: =IF(BJ36="",0,IF(BK36=$B$120,IF(BJ36>BH36,3,IF(BJ36=BH36,1,0)),0)) -> 0 | BX33: =RANK(CD33,$CD$32:$CD$35) -> 3 | BY33: J2 | BZ33: =SUM(BS33:BV33) -> 3 | CA33: =SUM(BS37:BV37) -> 1 | CB33: =SUM(BT36:BT39) -> 2 | CC33: =CA33-CB33 -> -1 | CD33: =IF(BP$8="",(((((((CE33*10+BZ33)*100+CC33)*100+CA33)*10+CK33)*10+CJ33)*100+CP33)*100+CU33)*10+CV33,(((((((CE33*10+BZ33)*10+CK33)*10+CJ33)*100+CP33)*100+CU33)*100+CC33)*100+CA33)*10+CV33) -> 303010099013 | CF33: =IF($BZ33=$BZ32,$BS33-$BT32,0) -> 0 | CH33: =IF($BZ33=$BZ34,$BU33-$BT34,0) -> 3 | CI33: =IF($BZ33=$BZ35,$BV33-$BT35,0) -> 0 | CJ33: =SUM(CF33:CI33) -> 3 | CL33: =IF($BZ33=$BZ32,$BS37-$BT36,0) -> 0 | CN33: =IF($BZ33=$BZ34,$BU37-$BT38,0) -> 1 | CO33: =IF($BZ33=$BZ35,$BV37-$BT39,0) -> 0 | CP33: =SUM(CL33:CO33) -> 1 | CQ33: =IF($BZ33=$BZ32,$BS37,0) -> 0 | CS33: =IF($BZ33=$BZ34,$BU37,0) -> 1 | CT33: =IF($BZ33=$BZ35,$BV37,0) -> 0 | CU33: =SUM(CQ33:CT33) -> 1 | CV33: 3
A34: =A33+1 -> 2 | B34: 2026-06-15T15:00:00 | C34: Köln | D34: =Y34 -> G3 | E34: - | F34: =Y35 -> G4 | H34: 1 | I34: : | J34: 0 | K34: ok | M34: =VLOOKUP(3,$X$32:$AC$35,2,FALSE) -> G2 | N34: =VLOOKUP(3,$X$32:$AC$35,3,FALSE) -> 3 | O34: =VLOOKUP(3,$X$32:$AC$35,4,FALSE) -> 1 | P34: =VLOOKUP(3,$X$32:$AC$35,5,FALSE) -> 2 | Q34: =VLOOKUP(3,$X$32:$AC$35,6,FALSE) -> -1 | S34: =IF(J35="",0,IF(K35=$B$120,IF(H35<J35,3,IF(H35=J35,1,0)),0)) -> 0 | T34: =IF(J38="",0,IF(K37=$B$120,IF(H38<J38,3,IF(H38=J38,1,0)),0)) -> 0 | V34: =IF(H34="",0,IF(K34=$B$120,IF(H34>J34,3,IF(H34=J34,1,0)),0)) -> 3 | X34: =RANK(AD34,$AD$32:$AD$35) -> 4 | Y34: G3 | Z34: =SUM(S34:V34) -> 3 | AA34: =SUM(S38:V38) -> 1 | AB34: =SUM(U36:U39) -> 2 | AC34: =AA34-AB34 -> -1 | AD34: =IF(P$8="",(((((((AE34*10+Z34)*100+AC34)*100+AA34)*10+AK34)*10+AJ34)*100+AP34)*100+AU34)*10+AV34,(((((((AE34*10+Z34)*10+AK34)*10+AJ34)*100+AP34)*100+AU34)*100+AC34)*100+AA34)*10+AV34) -> 296989999012 | AF34: =IF($Z34=$Z32,$S34-$U32,0) -> 0 | AG34: =IF($Z34=$Z33,$T34-$U33,0) -> -3 | AI34: =IF($Z34=$Z35,$V34-$U35,0) -> 0 | AJ34: =SUM(AF34:AI34) -> -3 | AL34: =IF($Z34=$Z32,$S38-$U36,0) -> 0 | AM34: =IF($Z34=$Z33,$T38-$U37,0) -> -1 | AO34: =IF($Z34=$Z35,$V38-$U39,0) -> 0 | AP34: =SUM(AL34:AO34) -> -1 | AQ34: =IF($Z34=$Z32,$S38,0) -> 0 | AR34: =IF($Z34=$Z33,$T38,0) -> 0 | AT34: =IF($Z34=$Z35,$V38,0) -> 0 | AU34: =SUM(AQ34:AT34) -> 0 | AV34: 2 | BA34: 8 | BB34: 2026-06-17T21:00:00 | BC34: Düsseldorf | BD34: =BY34 -> J3 | BE34: - | BF34: =BY35 -> J4 | BH34: 1 | BI34: : | BJ34: 0 | BK34: ok | BM34: =VLOOKUP(3,$BX$32:$CC$35,2,FALSE) -> J2 | BN34: =VLOOKUP(3,$BX$32:$CC$35,3,FALSE) -> 3 | BO34: =VLOOKUP(3,$BX$32:$CC$35,4,FALSE) -> 1 | BP34: =VLOOKUP(3,$BX$32:$CC$35,5,FALSE) -> 2 | BQ34: =VLOOKUP(3,$BX$32:$CC$35,6,FALSE) -> -1 | BS34: =IF(BJ35="",0,IF(BK35=$B$120,IF(BH35<BJ35,3,IF(BH35=BJ35,1,0)),0)) -> 0 | BT34: =IF(BJ38="",0,IF(BK37=$B$120,IF(BH38<BJ38,3,IF(BH38=BJ38,1,0)),0)) -> 0 | BV34: =IF(BH34="",0,IF(BK34=$B$120,IF(BH34>BJ34,3,IF(BH34=BJ34,1,0)),0)) -> 3 | BX34: =RANK(CD34,$CD$32:$CD$35) -> 4 | BY34: J3 | BZ34: =SUM(BS34:BV34) -> 3 | CA34: =SUM(BS38:BV38) -> 1 | CB34: =SUM(BU36:BU39) -> 2 | CC34: =CA34-CB34 -> -1 | CD34: =IF(BP$8="",(((((((CE34*10+BZ34)*100+CC34)*100+CA34)*10+CK34)*10+CJ34)*100+CP34)*100+CU34)*10+CV34,(((((((CE34*10+BZ34)*10+CK34)*10+CJ34)*100+CP34)*100+CU34)*100+CC34)*100+CA34)*10+CV34) -> 296989999012 | CF34: =IF($BZ34=$BZ32,$BS34-$BU32,0) -> 0 | CG34: =IF($BZ34=$BZ33,$BT34-$BU33,0) -> -3 | CI34: =IF($BZ34=$BZ35,$BV34-$BU35,0) -> 0 | CJ34: =SUM(CF34:CI34) -> -3 | CL34: =IF($BZ34=$BZ32,$BS38-$BU36,0) -> 0 | CM34: =IF($BZ34=$BZ33,$BT38-$BU37,0) -> -1 | CO34: =IF($BZ34=$BZ35,$BV38-$BU39,0) -> 0 | CP34: =SUM(CL34:CO34) -> -1 | CQ34: =IF($BZ34=$BZ32,$BS38,0) -> 0 | CR34: =IF($BZ34=$BZ33,$BT38,0) -> 0 | CT34: =IF($BZ34=$BZ35,$BV38,0) -> 0 | CU34: =SUM(CQ34:CT34) -> 0 | CV34: 2
A35: =A33+12 -> 13 | B35: 2026-06-19T18:00:00 | C35: Stuttgart | D35: =Y32 -> G1 | E35: - | F35: =Y34 -> G3 | H35: 1 | I35: : | J35: 0 | K35: ok | M35: =VLOOKUP(4,$X$32:$AC$35,2,FALSE) -> G3 | N35: =VLOOKUP(4,$X$32:$AC$35,3,FALSE) -> 3 | O35: =VLOOKUP(4,$X$32:$AC$35,4,FALSE) -> 1 | P35: =VLOOKUP(4,$X$32:$AC$35,5,FALSE) -> 2 | Q35: =VLOOKUP(4,$X$32:$AC$35,6,FALSE) -> -1 | S35: =IF(H37="",0,IF(K38=$B$120,IF(H37>J37,3,IF(H37=J37,1,0)),0)) -> 3 | T35: =IF(H36="",0,IF(K36=$B$120,IF(J36<H36,3,IF(J36=H36,1,0)),0)) -> 3 | U35: =IF(J34="",0,IF(K34=$B$120,IF(H34<J34,3,IF(H34=J34,1,0)),0)) -> 0 | X35: =RANK(AD35,$AD$32:$AD$35) -> 1 | Y35: G4 | Z35: =SUM(S35:V35) -> 6 | AA35: =SUM(S39:V39) -> 2 | AB35: =SUM(V36:V39) -> 1 | AC35: =AA35-AB35 -> 1 | AD35: =IF(P$8="",(((((((AE35*10+Z35)*100+AC35)*100+AA35)*10+AK35)*10+AJ35)*100+AP35)*100+AU35)*10+AV35,(((((((AE35*10+Z35)*10+AK35)*10+AJ35)*100+AP35)*100+AU35)*100+AC35)*100+AA35)*10+AV35) -> 603010101021 | AF35: =IF($Z35=$Z32,$S35-$V32,0) -> 3 | AG35: =IF($Z35=$Z33,$T35-$V33,0) -> 0 | AH35: =IF($Z35=$Z34,$U35-$V34,0) -> 0 | AJ35: =SUM(AF35:AI35) -> 3 | AL35: =IF($Z35=$Z32,$S39-$V36,0) -> 1 | AM35: =IF($Z35=$Z33,$T39-$V37,0) -> 0 | AN35: =IF($Z35=$Z34,$U39-$V38,0) -> 0 | AP35: =SUM(AL35:AO35) -> 1 | AQ35: =IF($Z35=$Z32,$S39,0) -> 1 | AR35: =IF($Z35=$Z33,$T39,0) -> 0 | AS35: =IF($Z35=$Z34,$U39,0) -> 0 | AU35: =SUM(AQ35:AT35) -> 1 | AV35: 1 | BA35: =BA33+12 -> 19 | BB35: 2026-06-21T18:00:00 | BC35: Berlin | BD35: =BY32 -> J1 | BE35: - | BF35: =BY34 -> J3 | BH35: 1 | BI35: : | BJ35: 0 | BK35: ok | BM35: =VLOOKUP(4,$BX$32:$CC$35,2,FALSE) -> J3 | BN35: =VLOOKUP(4,$BX$32:$CC$35,3,FALSE) -> 3 | BO35: =VLOOKUP(4,$BX$32:$CC$35,4,FALSE) -> 1 | BP35: =VLOOKUP(4,$BX$32:$CC$35,5,FALSE) -> 2 | BQ35: =VLOOKUP(4,$BX$32:$CC$35,6,FALSE) -> -1 | BS35: =IF(BH37="",0,IF(BK38=$B$120,IF(BH37>BJ37,3,IF(BH37=BJ37,1,0)),0)) -> 3 | BT35: =IF(BH36="",0,IF(BK36=$B$120,IF(BJ36<BH36,3,IF(BJ36=BH36,1,0)),0)) -> 3 | BU35: =IF(BJ34="",0,IF(BK34=$B$120,IF(BH34<BJ34,3,IF(BH34=BJ34,1,0)),0)) -> 0 | BX35: =RANK(CD35,$CD$32:$CD$35) -> 1 | BY35: J4 | BZ35: =SUM(BS35:BV35) -> 6 | CA35: =SUM(BS39:BV39) -> 2 | CB35: =SUM(BV36:BV39) -> 1 | CC35: =CA35-CB35 -> 1 | CD35: =IF(BP$8="",(((((((CE35*10+BZ35)*100+CC35)*100+CA35)*10+CK35)*10+CJ35)*100+CP35)*100+CU35)*10+CV35,(((((((CE35*10+BZ35)*10+CK35)*10+CJ35)*100+CP35)*100+CU35)*100+CC35)*100+CA35)*10+CV35) -> 603010101021 | CF35: =IF($BZ35=$BZ32,$BS35-$BV32,0) -> 3 | CG35: =IF($BZ35=$BZ33,$BT35-$BV33,0) -> 0 | CH35: =IF($BZ35=$BZ34,$BU35-$BV34,0) -> 0 | CJ35: =SUM(CF35:CI35) -> 3 | CL35: =IF($BZ35=$BZ32,$BS39-$BV36,0) -> 1 | CM35: =IF($BZ35=$BZ33,$BT39-$BV37,0) -> 0 | CN35: =IF($BZ35=$BZ34,$BU39-$BV38,0) -> 0 | CP35: =SUM(CL35:CO35) -> 1 | CQ35: =IF($BZ35=$BZ32,$BS39,0) -> 1 | CR35: =IF($BZ35=$BZ33,$BT39,0) -> 0 | CS35: =IF($BZ35=$BZ34,$BU39,0) -> 0 | CU35: =SUM(CQ35:CT35) -> 1 | CV35: 1
A36: =A34+12 -> 14 | B36: 2026-06-19T21:00:00 | C36: Köln | D36: =Y35 -> G4 | E36: - | F36: =Y33 -> G2 | H36: 1 | I36: : | J36: 0 | K36: ok | T36: =IF(K33=$B$120,H33,0) -> 1 | U36: =IF(K35=$B$120,H35,0) -> 1 | V36: =IF(K38=$B$120,J37,0) -> 0 | BA36: =BA34+12 -> 20 | BB36: 2026-06-21T21:00:00 | BC36: Leipzig | BD36: =BY35 -> J4 | BE36: - | BF36: =BY33 -> J2 | BH36: 1 | BI36: : | BJ36: 0 | BK36: ok | BT36: =IF(BK33=$B$120,BH33,0) -> 1 | BU36: =IF(BK35=$B$120,BH35,0) -> 1 | BV36: =IF(BK38=$B$120,BJ37,0) -> 0
A37: =A35+12 -> 25 | B37: 2026-06-23T21:00:00 | C37: Frankfurt | D37: =Y35 -> G4 | E37: - | F37: =Y32 -> G1 | H37: 1 | I37: : | J37: 0 | K37: ok | M37: =IF(N32>0,M32,"") -> G4 | N37: 1G | S37: =IF(K33=$B$120,J33,0) -> 0 | U37: =IF(K37=$B$120,H38,0) -> 1 | V37: =IF(K36=$B$120,J36,0) -> 0 | AD37: L0=AE hebelt Berechnung aus (top level Losen) | BA37: =BA35+12 -> 31 | BB37: 2026-06-25T18:00:00 | BC37: Dortmund | BD37: =BY35 -> J4 | BE37: - | BF37: =BY32 -> J1 | BH37: 1 | BI37: : | BJ37: 0 | BK37: ok | BM37: =IF(BN32>0,BM32,"") -> J4 | BN37: 1J | BS37: =IF(BK33=$B$120,BJ33,0) -> 0 | BU37: =IF(BK37=$B$120,BH38,0) -> 1 | BV37: =IF(BK36=$B$120,BJ36,0) -> 0 | CD37: L0=AE hebelt Berechnung aus (top level Losen)
A38: =A36+12 -> 26 | B38: 2026-06-23T21:00:00 | C38: Stuttgart | D38: =Y33 -> G2 | E38: - | F38: =Y34 -> G3 | H38: 1 | I38: : | J38: 0 | K38: ok | M38: =IF(N33>0,M33,"") -> G1 | N38: 2G | P38: DV | S38: =IF(K35=$B$120,J35,0) -> 0 | T38: =IF(K37=$B$120,J38,0) -> 0 | V38: =IF(K34=$B$120,H34,0) -> 1 | AD38: L1=AK hebelt Direktvergleich (S1) aus | BA38: =BA36+12 -> 32 | BB38: 2026-06-25T18:00:00 | BC38: Berlin | BD38: =BY33 -> J2 | BE38: - | BF38: =BY34 -> J3 | BH38: 1 | BI38: : | BJ38: 0 | BK38: ok | BM38: =IF(BN33>0,BM33,"") -> J1 | BN38: 2J | BP38: DV | BS38: =IF(BK35=$B$120,BJ35,0) -> 0 | BT38: =IF(BK37=$B$120,BJ38,0) -> 0 | BV38: =IF(BK34=$B$120,BH34,0) -> 1 | CD38: L1=AK hebelt Direktvergleich (S1) aus
M39: =IF(N34>0,M34,"") -> G2 | N39: 3G | S39: =IF(K38=$B$120,H37,0) -> 1 | T39: =IF(K36=$B$120,H36,0) -> 1 | U39: =IF(K34=$B$120,J34,0) -> 0 | AD39: L4=AV Losen UEFA-Koeffizient, Fairplay oder Münzwurf | BM39: =IF(BN34>0,BM34,"") -> J2 | BN39: 3J | BS39: =IF(BK38=$B$120,BH37,0) -> 1 | BT39: =IF(BK36=$B$120,BH36,0) -> 1 | BU39: =IF(BK34=$B$120,BJ34,0) -> 0 | CD39: L4=AV Losen UEFA-Koeffizient, Fairplay oder Münzwurf
B41: Vorrunde | C41: Gruppe H | M41: Tabelle | N41: P | O41: T+ | P41: T- | Q41: T+/- | X41: G | Y41: Berechnungen | Z41: P | AA41: T+ | AB41: T- | AC41: T+/- | AE41: L0 | AF41: DV | AJ41: S1 | AK41: L1 | AL41: DV-TD | AP41: S2 | AQ41: DV-Tore | AU41: S3 | AV41: L4 | BB41: Vorrunde | BC41: Gruppe K | BM41: Tabelle | BN41: P | BO41: T+ | BP41: T- | BQ41: T+/- | BX41: G | BY41: Berechnungen | BZ41: P | CA41: T+ | CB41: T- | CC41: T+/- | CE41: L0 | CF41: DV | CJ41: S1 | CK41: L1 | CL41: DV-TD | CP41: S2 | CQ41: DV-Tore | CU41: S3 | CV41: L4
B42: Datum/Zeit | C42: Spielort | M42: =VLOOKUP(1,$X$42:$AC$45,2,FALSE) -> H4 | N42: =VLOOKUP(1,$X$42:$AC$45,3,FALSE) -> 6 | O42: =VLOOKUP(1,$X$42:$AC$45,4,FALSE) -> 2 | P42: =VLOOKUP(1,$X$42:$AC$45,5,FALSE) -> 1 | Q42: =VLOOKUP(1,$X$42:$AC$45,6,FALSE) -> 1 | T42: =IF(H43="",0,IF(K43=$B$120,IF(H43>J43,3,IF(H43=J43,1,0)),0)) -> 3 | U42: =IF(H45="",0,IF(K45=$B$120,IF(H45>J45,3,IF(H45=J45,1,0)),0)) -> 3 | V42: =IF(J47="",0,IF(K48=$B$120,IF(H47<J47,3,IF(H47=J47,1,0)),0)) -> 0 | X42: =RANK(AD42,$AD$42:$AD$45) -> 2 | Y42: H1 | Z42: =SUM(S42:V42) -> 6 | AA42: =SUM(S46:V46) -> 2 | AB42: =SUM(S46:S49) -> 1 | AC42: =AA42-AB42 -> 1 | AD42: =IF(P$18="",(((((((AE42*10+Z42)*100+AC42)*100+AA42)*10+AK42)*10+AJ42)*100+AP42)*100+AU42)*10+AV42,(((((((AE42*10+Z42)*10+AK42)*10+AJ42)*100+AP42)*100+AU42)*100+AC42)*100+AA42)*10+AV42) -> 596990001024 | AG42: =IF($Z42=$Z43,$T42-$S43,0) -> 0 | AH42: =IF($Z42=$Z44,$U42-$S44,0) -> 0 | AI42: =IF($Z42=$Z45,$V42-$S45,0) -> -3 | AJ42: =SUM(AF42:AI42) -> -3 | AM42: =IF($Z42=$Z43,$T46-$S47,0) -> 0 | AN42: =IF($Z42=$Z44,$U46-$S48,0) -> 0 | AO42: =IF($Z42=$Z45,$V46-$S49,0) -> -1 | AP42: =SUM(AL42:AO42) -> -1 | AR42: =IF($Z42=$Z43,$T46,0) -> 0 | AS42: =IF($Z42=$Z44,$U46,0) -> 0 | AT42: =IF($Z42=$Z45,$V46,0) -> 0 | AU42: =SUM(AQ42:AT42) -> 0 | AV42: 4 | BB42: Datum/Zeit | BC42: Spielort | BM42: =VLOOKUP(1,$BX$42:$CC$45,2,FALSE) -> K4 | BN42: =VLOOKUP(1,$BX$42:$CC$45,3,FALSE) -> 6 | BO42: =VLOOKUP(1,$BX$42:$CC$45,4,FALSE) -> 2 | BP42: =VLOOKUP(1,$BX$42:$CC$45,5,FALSE) -> 1 | BQ42: =VLOOKUP(1,$BX$42:$CC$45,6,FALSE) -> 1 | BT42: =IF(BH43="",0,IF(BK43=$B$120,IF(BH43>BJ43,3,IF(BH43=BJ43,1,0)),0)) -> 3 | BU42: =IF(BH45="",0,IF(BK45=$B$120,IF(BH45>BJ45,3,IF(BH45=BJ45,1,0)),0)) -> 3 | BV42: =IF(BJ47="",0,IF(BK48=$B$120,IF(BH47<BJ47,3,IF(BH47=BJ47,1,0)),0)) -> 0 | BX42: =RANK(CD42,$CD$42:$CD$45) -> 2 | BY42: K1 | BZ42: =SUM(BS42:BV42) -> 6 | CA42: =SUM(BS46:BV46) -> 2 | CB42: =SUM(BS46:BS49) -> 1 | CC42: =CA42-CB42 -> 1 | CD42: =IF(BP$8="",(((((((CE42*10+BZ42)*100+CC42)*100+CA42)*10+CK42)*10+CJ42)*100+CP42)*100+CU42)*10+CV42,(((((((CE42*10+BZ42)*10+CK42)*10+CJ42)*100+CP42)*100+CU42)*100+CC42)*100+CA42)*10+CV42) -> 596990001024 | CG42: =IF($BZ42=$BZ43,$BT42-$BS43,0) -> 0 | CH42: =IF($BZ42=$BZ44,$BU42-$BS44,0) -> 0 | CI42: =IF($BZ42=$BZ45,$BV42-$BS45,0) -> -3 | CJ42: =SUM(CF42:CI42) -> -3 | CM42: =IF($BZ42=$BZ43,$BT46-$BS47,0) -> 0 | CN42: =IF($BZ42=$BZ44,$BU46-$BS48,0) -> 0 | CO42: =IF($BZ42=$BZ45,$BV46-$BS49,0) -> -1 | CP42: =SUM(CL42:CO42) -> -1 | CR42: =IF($BZ42=$BZ43,$BT46,0) -> 0 | CS42: =IF($BZ42=$BZ44,$BU46,0) -> 0 | CT42: =IF($BZ42=$BZ45,$BV46,0) -> 0 | CU42: =SUM(CQ42:CT42) -> 0 | CV42: 4
A43: 3 | B43: 2026-06-15T18:00:00 | C43: Berlin | D43: =Y42 -> H1 | E43: - | F43: =Y43 -> H2 | H43: =IF($B$121="",1,INT(RAND()*5)+INT(RAND()*3)*INT(RAND()*2)) -> 1 | I43: : | J43: =IF($B$121="",0,INT(RAND()*5)+INT(RAND()*3)*INT(RAND()*2)) -> 0 | K43: ok | M43: =VLOOKUP(2,$X$42:$AC$45,2,FALSE) -> H1 | N43: =VLOOKUP(2,$X$42:$AC$45,3,FALSE) -> 6 | O43: =VLOOKUP(2,$X$42:$AC$45,4,FALSE) -> 2 | P43: =VLOOKUP(2,$X$42:$AC$45,5,FALSE) -> 1 | Q43: =VLOOKUP(2,$X$42:$AC$45,6,FALSE) -> 1 | S43: =IF(J43="",0,IF(K43=$B$120,IF(H43<J43,3,IF(H43=J43,1,0)),0)) -> 0 | U43: =IF(H48="",0,IF(K47=$B$120,IF(H48>J48,3,IF(H48=J48,1,0)),0)) -> 3 | V43: =IF(J46="",0,IF(K46=$B$120,IF(J46>H46,3,IF(J46=H46,1,0)),0)) -> 0 | X43: =RANK(AD43,$AD$42:$AD$45) -> 3 | Y43: H2 | Z43: =SUM(S43:V43) -> 3 | AA43: =SUM(S47:V47) -> 1 | AB43: =SUM(T46:T49) -> 2 | AC43: =AA43-AB43 -> -1 | AD43: =IF(P$18="",(((((((AE43*10+Z43)*100+AC43)*100+AA43)*10+AK43)*10+AJ43)*100+AP43)*100+AU43)*10+AV43,(((((((AE43*10+Z43)*10+AK43)*10+AJ43)*100+AP43)*100+AU43)*100+AC43)*100+AA43)*10+AV43) -> 303010099013 | AF43: =IF($Z43=$Z42,$S43-$T42,0) -> 0 | AH43: =IF($Z43=$Z44,$U43-$T44,0) -> 3 | AI43: =IF($Z43=$Z45,$V43-$T45,0) -> 0 | AJ43: =SUM(AF43:AI43) -> 3 | AL43: =IF($Z43=$Z42,$S47-$T46,0) -> 0 | AN43: =IF($Z43=$Z44,$U47-$T48,0) -> 1 | AO43: =IF($Z43=$Z45,$V47-$T49,0) -> 0 | AP43: =SUM(AL43:AO43) -> 1 | AQ43: =IF($Z43=$Z42,$S47,0) -> 0 | AS43: =IF($Z43=$Z44,$U47,0) -> 1 | AT43: =IF($Z43=$Z45,$V47,0) -> 0 | AU43: =SUM(AQ43:AT43) -> 1 | AV43: 3 | BA43: 9 | BB43: 2026-06-17T15:00:00 | BC43: München | BD43: =BY42 -> K1 | BE43: - | BF43: =BY43 -> K2 | BH43: =IF($B$121="",1,INT(RAND()*5)+INT(RAND()*3)*INT(RAND()*2)) -> 1 | BI43: : | BJ43: =IF($B$121="",0,INT(RAND()*5)+INT(RAND()*3)*INT(RAND()*2)) -> 0 | BK43: ok | BM43: =VLOOKUP(2,$BX$42:$CC$45,2,FALSE) -> K1 | BN43: =VLOOKUP(2,$BX$42:$CC$45,3,FALSE) -> 6 | BO43: =VLOOKUP(2,$BX$42:$CC$45,4,FALSE) -> 2 | BP43: =VLOOKUP(2,$BX$42:$CC$45,5,FALSE) -> 1 | BQ43: =VLOOKUP(2,$BX$42:$CC$45,6,FALSE) -> 1 | BS43: =IF(BJ43="",0,IF(BK43=$B$120,IF(BH43<BJ43,3,IF(BH43=BJ43,1,0)),0)) -> 0 | BU43: =IF(BH48="",0,IF(BK47=$B$120,IF(BH48>BJ48,3,IF(BH48=BJ48,1,0)),0)) -> 3 | BV43: =IF(BJ46="",0,IF(BK46=$B$120,IF(BJ46>BH46,3,IF(BJ46=BH46,1,0)),0)) -> 0 | BX43: =RANK(CD43,$CD$42:$CD$45) -> 3 | BY43: K2 | BZ43: =SUM(BS43:BV43) -> 3 | CA43: =SUM(BS47:BV47) -> 1 | CB43: =SUM(BT46:BT49) -> 2 | CC43: =CA43-CB43 -> -1 | CD43: =IF(BP$8="",(((((((CE43*10+BZ43)*100+CC43)*100+CA43)*10+CK43)*10+CJ43)*100+CP43)*100+CU43)*10+CV43,(((((((CE43*10+BZ43)*10+CK43)*10+CJ43)*100+CP43)*100+CU43)*100+CC43)*100+CA43)*10+CV43) -> 303010099013 | CF43: =IF($BZ43=$BZ42,$BS43-$BT42,0) -> 0 | CH43: =IF($BZ43=$BZ44,$BU43-$BT44,0) -> 3 | CI43: =IF($BZ43=$BZ45,$BV43-$BT45,0) -> 0 | CJ43: =SUM(CF43:CI43) -> 3 | CL43: =IF($BZ43=$BZ42,$BS47-$BT46,0) -> 0 | CN43: =IF($BZ43=$BZ44,$BU47-$BT48,0) -> 1 | CO43: =IF($BZ43=$BZ45,$BV47-$BT49,0) -> 0 | CP43: =SUM(CL43:CO43) -> 1 | CQ43: =IF($BZ43=$BZ42,$BS47,0) -> 0 | CS43: =IF($BZ43=$BZ44,$BU47,0) -> 1 | CT43: =IF($BZ43=$BZ45,$BV47,0) -> 0 | CU43: =SUM(CQ43:CT43) -> 1 | CV43: 3
A44: 4 | B44: 2026-06-15T21:00:00 | C44: Dortmund | D44: =Y44 -> H3 | E44: - | F44: =Y45 -> H4 | H44: 1 | I44: : | J44: 0 | K44: ok | M44: =VLOOKUP(3,$X$42:$AC$45,2,FALSE) -> H2 | N44: =VLOOKUP(3,$X$42:$AC$45,3,FALSE) -> 3 | O44: =VLOOKUP(3,$X$42:$AC$45,4,FALSE) -> 1 | P44: =VLOOKUP(3,$X$42:$AC$45,5,FALSE) -> 2 | Q44: =VLOOKUP(3,$X$42:$AC$45,6,FALSE) -> -1 | S44: =IF(J45="",0,IF(K45=$B$120,IF(H45<J45,3,IF(H45=J45,1,0)),0)) -> 0 | T44: =IF(J48="",0,IF(K47=$B$120,IF(H48<J48,3,IF(H48=J48,1,0)),0)) -> 0 | V44: =IF(H44="",0,IF(K44=$B$120,IF(H44>J44,3,IF(H44=J44,1,0)),0)) -> 3 | X44: =RANK(AD44,$AD$42:$AD$45) -> 4 | Y44: H3 | Z44: =SUM(S44:V44) -> 3 | AA44: =SUM(S48:V48) -> 1 | AB44: =SUM(U46:U49) -> 2 | AC44: =AA44-AB44 -> -1 | AD44: =IF(P$18="",(((((((AE44*10+Z44)*100+AC44)*100+AA44)*10+AK44)*10+AJ44)*100+AP44)*100+AU44)*10+AV44,(((((((AE44*10+Z44)*10+AK44)*10+AJ44)*100+AP44)*100+AU44)*100+AC44)*100+AA44)*10+AV44) -> 296989999012 | AF44: =IF($Z44=$Z42,$S44-$U42,0) -> 0 | AG44: =IF($Z44=$Z43,$T44-$U43,0) -> -3 | AI44: =IF($Z44=$Z45,$V44-$U45,0) -> 0 | AJ44: =SUM(AF44:AI44) -> -3 | AL44: =IF($Z44=$Z42,$S48-$U46,0) -> 0 | AM44: =IF($Z44=$Z43,$T48-$U47,0) -> -1 | AO44: =IF($Z44=$Z45,$V48-$U49,0) -> 0 | AP44: =SUM(AL44:AO44) -> -1 | AQ44: =IF($Z44=$Z42,$S48,0) -> 0 | AR44: =IF($Z44=$Z43,$T48,0) -> 0 | AT44: =IF($Z44=$Z45,$V48,0) -> 0 | AU44: =SUM(AQ44:AT44) -> 0 | AV44: 2 | BA44: 10 | BB44: 2026-06-17T18:00:00 | BC44: Frankfurt | BD44: =BY44 -> K3 | BE44: - | BF44: =BY45 -> K4 | BH44: 1 | BI44: : | BJ44: 0 | BK44: ok | BM44: =VLOOKUP(3,$BX$42:$CC$45,2,FALSE) -> K2 | BN44: =VLOOKUP(3,$BX$42:$CC$45,3,FALSE) -> 3 | BO44: =VLOOKUP(3,$BX$42:$CC$45,4,FALSE) -> 1 | BP44: =VLOOKUP(3,$BX$42:$CC$45,5,FALSE) -> 2 | BQ44: =VLOOKUP(3,$BX$42:$CC$45,6,FALSE) -> -1 | BS44: =IF(BJ45="",0,IF(BK45=$B$120,IF(BH45<BJ45,3,IF(BH45=BJ45,1,0)),0)) -> 0 | BT44: =IF(BJ48="",0,IF(BK47=$B$120,IF(BH48<BJ48,3,IF(BH48=BJ48,1,0)),0)) -> 0 | BV44: =IF(BH44="",0,IF(BK44=$B$120,IF(BH44>BJ44,3,IF(BH44=BJ44,1,0)),0)) -> 3 | BX44: =RANK(CD44,$CD$42:$CD$45) -> 4 | BY44: K3 | BZ44: =SUM(BS44:BV44) -> 3 | CA44: =SUM(BS48:BV48) -> 1 | CB44: =SUM(BU46:BU49) -> 2 | CC44: =CA44-CB44 -> -1 | CD44: =IF(BP$8="",(((((((CE44*10+BZ44)*100+CC44)*100+CA44)*10+CK44)*10+CJ44)*100+CP44)*100+CU44)*10+CV44,(((((((CE44*10+BZ44)*10+CK44)*10+CJ44)*100+CP44)*100+CU44)*100+CC44)*100+CA44)*10+CV44) -> 296989999012 | CF44: =IF($BZ44=$BZ42,$BS44-$BU42,0) -> 0 | CG44: =IF($BZ44=$BZ43,$BT44-$BU43,0) -> -3 | CI44: =IF($BZ44=$BZ45,$BV44-$BU45,0) -> 0 | CJ44: =SUM(CF44:CI44) -> -3 | CL44: =IF($BZ44=$BZ42,$BS48-$BU46,0) -> 0 | CM44: =IF($BZ44=$BZ43,$BT48-$BU47,0) -> -1 | CO44: =IF($BZ44=$BZ45,$BV48-$BU49,0) -> 0 | CP44: =SUM(CL44:CO44) -> -1 | CQ44: =IF($BZ44=$BZ42,$BS48,0) -> 0 | CR44: =IF($BZ44=$BZ43,$BT48,0) -> 0 | CT44: =IF($BZ44=$BZ45,$BV48,0) -> 0 | CU44: =SUM(CQ44:CT44) -> 0 | CV44: 2
A45: =A43+12 -> 15 | B45: 2026-06-20T21:00:00 | C45: Gelsenkirchen | D45: =Y42 -> H1 | E45: - | F45: =Y44 -> H3 | H45: 1 | I45: : | J45: 0 | K45: ok | M45: =VLOOKUP(4,$X$42:$AC$45,2,FALSE) -> H3 | N45: =VLOOKUP(4,$X$42:$AC$45,3,FALSE) -> 3 | O45: =VLOOKUP(4,$X$42:$AC$45,4,FALSE) -> 1 | P45: =VLOOKUP(4,$X$42:$AC$45,5,FALSE) -> 2 | Q45: =VLOOKUP(4,$X$42:$AC$45,6,FALSE) -> -1 | S45: =IF(H47="",0,IF(K48=$B$120,IF(H47>J47,3,IF(H47=J47,1,0)),0)) -> 3 | T45: =IF(H46="",0,IF(K46=$B$120,IF(J46<H46,3,IF(J46=H46,1,0)),0)) -> 3 | U45: =IF(J44="",0,IF(K44=$B$120,IF(H44<J44,3,IF(H44=J44,1,0)),0)) -> 0 | X45: =RANK(AD45,$AD$42:$AD$45) -> 1 | Y45: H4 | Z45: =SUM(S45:V45) -> 6 | AA45: =SUM(S49:V49) -> 2 | AB45: =SUM(V46:V49) -> 1 | AC45: =AA45-AB45 -> 1 | AD45: =IF(P$18="",(((((((AE45*10+Z45)*100+AC45)*100+AA45)*10+AK45)*10+AJ45)*100+AP45)*100+AU45)*10+AV45,(((((((AE45*10+Z45)*10+AK45)*10+AJ45)*100+AP45)*100+AU45)*100+AC45)*100+AA45)*10+AV45) -> 603010101021 | AF45: =IF($Z45=$Z42,$S45-$V42,0) -> 3 | AG45: =IF($Z45=$Z43,$T45-$V43,0) -> 0 | AH45: =IF($Z45=$Z44,$U45-$V44,0) -> 0 | AJ45: =SUM(AF45:AI45) -> 3 | AL45: =IF($Z45=$Z42,$S49-$V46,0) -> 1 | AM45: =IF($Z45=$Z43,$T49-$V47,0) -> 0 | AN45: =IF($Z45=$Z44,$U49-$V48,0) -> 0 | AP45: =SUM(AL45:AO45) -> 1 | AQ45: =IF($Z45=$Z42,$S49,0) -> 1 | AR45: =IF($Z45=$Z43,$T49,0) -> 0 | AS45: =IF($Z45=$Z44,$U49,0) -> 0 | AU45: =SUM(AQ45:AT45) -> 1 | AV45: 1 | BA45: =BA43+12 -> 21 | BB45: 2026-06-22T21:00:00 | BC45: Köln | BD45: =BY42 -> K1 | BE45: - | BF45: =BY44 -> K3 | BH45: 1 | BI45: : | BJ45: 0 | BK45: ok | BM45: =VLOOKUP(4,$BX$42:CC$45,2,FALSE) -> K3 | BN45: =VLOOKUP(4,$BX$42:$CC$45,3,FALSE) -> 3 | BO45: =VLOOKUP(4,$BX$42:$CC$45,4,FALSE) -> 1 | BP45: =VLOOKUP(4,$BX$42:$CC$45,5,FALSE) -> 2 | BQ45: =VLOOKUP(4,$BX$42:$CC$45,6,FALSE) -> -1 | BS45: =IF(BH47="",0,IF(BK48=$B$120,IF(BH47>BJ47,3,IF(BH47=BJ47,1,0)),0)) -> 3 | BT45: =IF(BH46="",0,IF(BK46=$B$120,IF(BJ46<BH46,3,IF(BJ46=BH46,1,0)),0)) -> 3 | BU45: =IF(BJ44="",0,IF(BK44=$B$120,IF(BH44<BJ44,3,IF(BH44=BJ44,1,0)),0)) -> 0 | BX45: =RANK(CD45,$CD$42:$CD$45) -> 1 | BY45: K4 | BZ45: =SUM(BS45:BV45) -> 6 | CA45: =SUM(BS49:BV49) -> 2 | CB45: =SUM(BV46:BV49) -> 1 | CC45: =CA45-CB45 -> 1 | CD45: =IF(BP$8="",(((((((CE45*10+BZ45)*100+CC45)*100+CA45)*10+CK45)*10+CJ45)*100+CP45)*100+CU45)*10+CV45,(((((((CE45*10+BZ45)*10+CK45)*10+CJ45)*100+CP45)*100+CU45)*100+CC45)*100+CA45)*10+CV45) -> 603010101021 | CF45: =IF($BZ45=$BZ42,$BS45-$BV42,0) -> 3 | CG45: =IF($BZ45=$BZ43,$BT45-$BV43,0) -> 0 | CH45: =IF($BZ45=$BZ44,$BU45-$BV44,0) -> 0 | CJ45: =SUM(CF45:CI45) -> 3 | CL45: =IF($BZ45=$BZ42,$BS49-$BV46,0) -> 1 | CM45: =IF($BZ45=$BZ43,$BT49-$BV47,0) -> 0 | CN45: =IF($BZ45=$BZ44,$BU49-$BV48,0) -> 0 | CP45: =SUM(CL45:CO45) -> 1 | CQ45: =IF($BZ45=$BZ42,$BS49,0) -> 1 | CR45: =IF($BZ45=$BZ43,$BT49,0) -> 0 | CS45: =IF($BZ45=$BZ44,$BU49,0) -> 0 | CU45: =SUM(CQ45:CT45) -> 1 | CV45: 1
A46: =A44+12 -> 16 | B46: 2026-06-19T15:00:00 | C46: Hamburg | D46: =Y45 -> H4 | E46: - | F46: =Y43 -> H2 | H46: 1 | I46: : | J46: 0 | K46: ok | T46: =IF(K43=$B$120,H43,0) -> 1 | U46: =IF(K45=$B$120,H45,0) -> 1 | V46: =IF(K48=$B$120,J47,0) -> 0 | BA46: =BA44+12 -> 22 | BB46: 2026-06-21T15:00:00 | BC46: Düsseldorf | BD46: =BY45 -> K4 | BE46: - | BF46: =BY43 -> K2 | BH46: 1 | BI46: : | BJ46: 0 | BK46: ok | BT46: =IF(BK43=$B$120,BH43,0) -> 1 | BU46: =IF(BK45=$B$120,BH45,0) -> 1 | BV46: =IF(BK48=$B$120,BJ47,0) -> 0
A47: =A45+12 -> 27 | B47: 2026-06-24T21:00:00 | C47: Düsseldorf | D47: =Y45 -> H4 | E47: - | F47: =Y42 -> H1 | H47: 1 | I47: : | J47: 0 | K47: ok | M47: =IF(N42>0,M42,"") -> H4 | N47: 1H | S47: =IF(K43=$B$120,J43,0) -> 0 | U47: =IF(K47=$B$120,H48,0) -> 1 | V47: =IF(K46=$B$120,J46,0) -> 0 | AD47: L0=AE hebelt Berechnung aus (top level Losen) | BA47: =BA45+12 -> 33 | BB47: 2026-06-26T18:00:00 | BC47: Frankfurt | BD47: =BY45 -> K4 | BE47: - | BF47: =BY42 -> K1 | BH47: 1 | BI47: : | BJ47: 0 | BK47: ok | BM47: =IF(BN42>0,BM42,"") -> K4 | BN47: 1K | BS47: =IF(BK43=$B$120,BJ43,0) -> 0 | BU47: =IF(BK47=$B$120,BH48,0) -> 1 | BV47: =IF(BK46=$B$120,BJ46,0) -> 0 | CD47: L0=AE hebelt Berechnung aus (top level Losen)
A48: =A46+12 -> 28 | B48: 2026-06-24T21:00:00 | C48: Leipzig | D48: =Y43 -> H2 | E48: - | F48: =Y44 -> H3 | H48: 1 | I48: : | J48: 0 | K48: ok | M48: =IF(N43>0,M43,"") -> H1 | N48: 2H | P48: DV | S48: =IF(K45=$B$120,J45,0) -> 0 | T48: =IF(K47=$B$120,J48,0) -> 0 | V48: =IF(K44=$B$120,H44,0) -> 1 | AD48: L1=AK hebelt Direktvergleich (S1) aus | BA48: =BA46+12 -> 34 | BB48: 2026-06-26T18:00:00 | BC48: Stuttgart | BD48: =BY43 -> K2 | BE48: - | BF48: =BY44 -> K3 | BH48: 1 | BI48: : | BJ48: 0 | BK48: ok | BM48: =IF(BN43>0,BM43,"") -> K1 | BN48: 2K | BP48: DV | BS48: =IF(BK45=$B$120,BJ45,0) -> 0 | BT48: =IF(BK47=$B$120,BJ48,0) -> 0 | BV48: =IF(BK44=$B$120,BH44,0) -> 1 | CD48: L1=AK hebelt Direktvergleich (S1) aus
M49: =IF(N44>0,M44,"") -> H2 | N49: 3H | S49: =IF(K48=$B$120,H47,0) -> 1 | T49: =IF(K46=$B$120,H46,0) -> 1 | U49: =IF(K44=$B$120,J44,0) -> 0 | AD49: L4=AV Losen UEFA-Koeffizient, Fairplay oder Münzwurf | BM49: =IF(BN44>0,BM44,"") -> K2 | BN49: 3K | BS49: =IF(BK48=$B$120,BH47,0) -> 1 | BT49: =IF(BK46=$B$120,BH46,0) -> 1 | BU49: =IF(BK44=$B$120,BJ44,0) -> 0 | CD49: L4=AV Losen UEFA-Koeffizient, Fairplay oder Münzwurf
B51: Vorrunde | C51: Gruppe I | M51: Tabelle | N51: P | O51: T+ | P51: T- | Q51: T+/- | X51: G | Y51: Berechnungen | Z51: P | AA51: T+ | AB51: T- | AC51: T+/- | AE51: L0 | AF51: DV | AJ51: S1 | AK51: L1 | AL51: DV-TD | AP51: S2 | AQ51: DV-Tore | AU51: S3 | AV51: L4 | BB51: Vorrunde | BC51: Gruppe L | BM51: Tabelle | BN51: P | BO51: T+ | BP51: T- | BQ51: T+/- | BX51: G | BY51: Berechnungen | BZ51: P | CA51: T+ | CB51: T- | CC51: T+/- | CE51: L0 | CF51: DV | CJ51: S1 | CK51: L1 | CL51: DV-TD | CP51: S2 | CQ51: DV-Tore | CU51: S3 | CV51: L4
B52: Datum/Zeit | C52: Spielort | M52: =VLOOKUP(1,$X$52:$AC$55,2,FALSE) -> I4 | N52: =VLOOKUP(1,$X$52:$AC$55,3,FALSE) -> 6 | O52: =VLOOKUP(1,$X$52:$AC$55,4,FALSE) -> 2 | P52: =VLOOKUP(1,$X$52:$AC$55,5,FALSE) -> 1 | Q52: =VLOOKUP(1,$X$52:$AC$55,6,FALSE) -> 1 | T52: =IF(H53="",0,IF(K53=$B$120,IF(H53>J53,3,IF(H53=J53,1,0)),0)) -> 3 | U52: =IF(H55="",0,IF(K55=$B$120,IF(H55>J55,3,IF(H55=J55,1,0)),0)) -> 3 | V52: =IF(J57="",0,IF(K58=$B$120,IF(H57<J57,3,IF(H57=J57,1,0)),0)) -> 0 | X52: =RANK(AD52,$AD$52:$AD$55) -> 2 | Y52: I1 | Z52: =SUM(S52:V52) -> 6 | AA52: =SUM(S56:V56) -> 2 | AB52: =SUM(S56:S59) -> 1 | AC52: =AA52-AB52 -> 1 | AD52: =IF(P$28="",(((((((AE52*10+Z52)*100+AC52)*100+AA52)*10+AK52)*10+AJ52)*100+AP52)*100+AU52)*10+AV52,(((((((AE52*10+Z52)*10+AK52)*10+AJ52)*100+AP52)*100+AU52)*100+AC52)*100+AA52)*10+AV52) -> 596990001024 | AG52: =IF($Z52=$Z53,$T52-$S53,0) -> 0 | AH52: =IF($Z52=$Z54,$U52-$S54,0) -> 0 | AI52: =IF($Z52=$Z55,$V52-$S55,0) -> -3 | AJ52: =SUM(AF52:AI52) -> -3 | AM52: =IF($Z52=$Z53,$T56-$S57,0) -> 0 | AN52: =IF($Z52=$Z54,$U56-$S58,0) -> 0 | AO52: =IF($Z52=$Z55,$V56-$S59,0) -> -1 | AP52: =SUM(AL52:AO52) -> -1 | AR52: =IF($Z52=$Z53,$T56,0) -> 0 | AS52: =IF($Z52=$Z54,$U56,0) -> 0 | AT52: =IF($Z52=$Z55,$V56,0) -> 0 | AU52: =SUM(AQ52:AT52) -> 0 | AV52: 4 | BB52: Datum/Zeit | BC52: Spielort | BM52: =VLOOKUP(1,$BX$52:$CC$55,2,FALSE) -> L4 | BN52: =VLOOKUP(1,$BX$52:$CC$55,3,FALSE) -> 6 | BO52: =VLOOKUP(1,$BX$52:$CC$55,4,FALSE) -> 2 | BP52: =VLOOKUP(1,$BX$52:$CC$55,5,FALSE) -> 1 | BQ52: =VLOOKUP(1,$BX$52:$CC$55,6,FALSE) -> 1 | BT52: =IF(BH53="",0,IF(BK53=$B$120,IF(BH53>BJ53,3,IF(BH53=BJ53,1,0)),0)) -> 3 | BU52: =IF(BH55="",0,IF(BK55=$B$120,IF(BH55>BJ55,3,IF(BH55=BJ55,1,0)),0)) -> 3 | BV52: =IF(BJ57="",0,IF(BK58=$B$120,IF(BH57<BJ57,3,IF(BH57=BJ57,1,0)),0)) -> 0 | BX52: =RANK(CD52,$CD$52:$CD$55) -> 2 | BY52: L1 | BZ52: =SUM(BS52:BV52) -> 6 | CA52: =SUM(BS56:BV56) -> 2 | CB52: =SUM(BS56:BS59) -> 1 | CC52: =CA52-CB52 -> 1 | CD52: =IF(BP$28="",(((((((CE52*10+BZ52)*100+CC52)*100+CA52)*10+CK52)*10+CJ52)*100+CP52)*100+CU52)*10+CV52,(((((((CE52*10+BZ52)*10+CK52)*10+CJ52)*100+CP52)*100+CU52)*100+CC52)*100+CA52)*10+CV52) -> 596990001024 | CG52: =IF($BZ52=$BZ53,$BT52-$BS53,0) -> 0 | CH52: =IF($BZ52=$BZ54,$BU52-$BS54,0) -> 0 | CI52: =IF($BZ52=$BZ55,$BV52-$BS55,0) -> -3 | CJ52: =SUM(CF52:CI52) -> -3 | CM52: =IF($BZ52=$BZ53,$BT56-$BS57,0) -> 0 | CN52: =IF($BZ52=$BZ54,$BU56-$BS58,0) -> 0 | CO52: =IF($BZ52=$BZ55,$BV56-$BS59,0) -> -1 | CP52: =SUM(CL52:CO52) -> -1 | CR52: =IF($BZ52=$BZ53,$BT56,0) -> 0 | CS52: =IF($BZ52=$BZ54,$BU56,0) -> 0 | CT52: =IF($BZ52=$BZ55,$BV56,0) -> 0 | CU52: =SUM(CQ52:CT52) -> 0 | CV52: 4
A53: 5 | B53: 2026-06-16T18:00:00 | C53: Stuttgart | D53: =Y52 -> I1 | E53: - | F53: =Y53 -> I2 | H53: =IF($B$121="",1,INT(RAND()*5)+INT(RAND()*3)*INT(RAND()*2)) -> 1 | I53: : | J53: =IF($B$121="",0,INT(RAND()*5)+INT(RAND()*3)*INT(RAND()*2)) -> 0 | K53: ok | M53: =VLOOKUP(2,$X$52:$AC$55,2,FALSE) -> I1 | N53: =VLOOKUP(2,$X$52:$AC$55,3,FALSE) -> 6 | O53: =VLOOKUP(2,$X$52:$AC$55,4,FALSE) -> 2 | P53: =VLOOKUP(2,$X$52:$AC$55,5,FALSE) -> 1 | Q53: =VLOOKUP(2,$X$52:$AC$55,6,FALSE) -> 1 | S53: =IF(J53="",0,IF(K53=$B$120,IF(H53<J53,3,IF(H53=J53,1,0)),0)) -> 0 | U53: =IF(H58="",0,IF(K57=$B$120,IF(H58>J58,3,IF(H58=J58,1,0)),0)) -> 3 | V53: =IF(J56="",0,IF(K56=$B$120,IF(J56>H56,3,IF(J56=H56,1,0)),0)) -> 0 | X53: =RANK(AD53,$AD$52:$AD$55) -> 3 | Y53: I2 | Z53: =SUM(S53:V53) -> 3 | AA53: =SUM(S57:V57) -> 1 | AB53: =SUM(T56:T59) -> 2 | AC53: =AA53-AB53 -> -1 | AD53: =IF(P$28="",(((((((AE53*10+Z53)*100+AC53)*100+AA53)*10+AK53)*10+AJ53)*100+AP53)*100+AU53)*10+AV53,(((((((AE53*10+Z53)*10+AK53)*10+AJ53)*100+AP53)*100+AU53)*100+AC53)*100+AA53)*10+AV53) -> 303010099013 | AF53: =IF($Z53=$Z52,$S53-$T52,0) -> 0 | AH53: =IF($Z53=$Z54,$U53-$T54,0) -> 3 | AI53: =IF($Z53=$Z55,$V53-$T55,0) -> 0 | AJ53: =SUM(AF53:AI53) -> 3 | AL53: =IF($Z53=$Z52,$S57-$T56,0) -> 0 | AN53: =IF($Z53=$Z54,$U57-$T58,0) -> 1 | AO53: =IF($Z53=$Z55,$V57-$T59,0) -> 0 | AP53: =SUM(AL53:AO53) -> 1 | AQ53: =IF($Z53=$Z52,$S57,0) -> 0 | AS53: =IF($Z53=$Z54,$U57,0) -> 1 | AT53: =IF($Z53=$Z55,$V57,0) -> 0 | AU53: =SUM(AQ53:AT53) -> 1 | AV53: 3 | BA53: 11 | BB53: 2026-06-18T18:00:00 | BC53: Dortmund | BD53: =BY52 -> L1 | BE53: - | BF53: =BY53 -> L2 | BH53: =IF($B$121="",1,INT(RAND()*5)+INT(RAND()*3)*INT(RAND()*2)) -> 1 | BI53: : | BJ53: =IF($B$121="",0,INT(RAND()*5)+INT(RAND()*3)*INT(RAND()*2)) -> 0 | BK53: ok | BM53: =VLOOKUP(2,$BX$52:$CC$55,2,FALSE) -> L1 | BN53: =VLOOKUP(2,$BX$52:$CC$55,3,FALSE) -> 6 | BO53: =VLOOKUP(2,$BX$52:$CC$55,4,FALSE) -> 2 | BP53: =VLOOKUP(2,$BX$52:$CC$55,5,FALSE) -> 1 | BQ53: =VLOOKUP(2,$BX$52:$CC$55,6,FALSE) -> 1 | BS53: =IF(BJ53="",0,IF(BK53=$B$120,IF(BH53<BJ53,3,IF(BH53=BJ53,1,0)),0)) -> 0 | BU53: =IF(BH58="",0,IF(BK57=$B$120,IF(BH58>BJ58,3,IF(BH58=BJ58,1,0)),0)) -> 3 | BV53: =IF(BJ56="",0,IF(BK56=$B$120,IF(BJ56>BH56,3,IF(BJ56=BH56,1,0)),0)) -> 0 | BX53: =RANK(CD53,$CD$52:$CD$55) -> 3 | BY53: L2 | BZ53: =SUM(BS53:BV53) -> 3 | CA53: =SUM(BS57:BV57) -> 1 | CB53: =SUM(BT56:BT59) -> 2 | CC53: =CA53-CB53 -> -1 | CD53: =IF(BP$28="",(((((((CE53*10+BZ53)*100+CC53)*100+CA53)*10+CK53)*10+CJ53)*100+CP53)*100+CU53)*10+CV53,(((((((CE53*10+BZ53)*10+CK53)*10+CJ53)*100+CP53)*100+CU53)*100+CC53)*100+CA53)*10+CV53) -> 303010099013 | CF53: =IF($BZ53=$BZ52,$BS53-$BT52,0) -> 0 | CH53: =IF($BZ53=$BZ54,$BU53-$BT54,0) -> 3 | CI53: =IF($BZ53=$BZ55,$BV53-$BT55,0) -> 0 | CJ53: =SUM(CF53:CI53) -> 3 | CL53: =IF($BZ53=$BZ52,$BS57-$BT56,0) -> 0 | CN53: =IF($BZ53=$BZ54,$BU57-$BT58,0) -> 1 | CO53: =IF($BZ53=$BZ55,$BV57-$BT59,0) -> 0 | CP53: =SUM(CL53:CO53) -> 1 | CQ53: =IF($BZ53=$BZ52,$BS57,0) -> 0 | CS53: =IF($BZ53=$BZ54,$BU57,0) -> 1 | CT53: =IF($BZ53=$BZ55,$BV57,0) -> 0 | CU53: =SUM(CQ53:CT53) -> 1 | CV53: 3
A54: 6 | B54: 2026-05-16T21:00:00 | C54: Gelsenkirchen | D54: =Y54 -> I3 | E54: - | F54: =Y55 -> I4 | H54: 1 | I54: : | J54: 0 | K54: ok | M54: =VLOOKUP(3,$X$52:$AC$55,2,FALSE) -> I2 | N54: =VLOOKUP(3,$X$52:$AC$55,3,FALSE) -> 3 | O54: =VLOOKUP(3,$X$52:$AC$55,4,FALSE) -> 1 | P54: =VLOOKUP(3,$X$52:$AC$55,5,FALSE) -> 2 | Q54: =VLOOKUP(3,$X$52:$AC$55,6,FALSE) -> -1 | S54: =IF(J55="",0,IF(K55=$B$120,IF(H55<J55,3,IF(H55=J55,1,0)),0)) -> 0 | T54: =IF(J58="",0,IF(K57=$B$120,IF(H58<J58,3,IF(H58=J58,1,0)),0)) -> 0 | V54: =IF(H54="",0,IF(K54=$B$120,IF(H54>J54,3,IF(H54=J54,1,0)),0)) -> 3 | X54: =RANK(AD54,$AD$52:$AD$55) -> 4 | Y54: I3 | Z54: =SUM(S54:V54) -> 3 | AA54: =SUM(S58:V58) -> 1 | AB54: =SUM(U56:U59) -> 2 | AC54: =AA54-AB54 -> -1 | AD54: =IF(P$28="",(((((((AE54*10+Z54)*100+AC54)*100+AA54)*10+AK54)*10+AJ54)*100+AP54)*100+AU54)*10+AV54,(((((((AE54*10+Z54)*10+AK54)*10+AJ54)*100+AP54)*100+AU54)*100+AC54)*100+AA54)*10+AV54) -> 296989999012 | AF54: =IF($Z54=$Z52,$S54-$U52,0) -> 0 | AG54: =IF($Z54=$Z53,$T54-$U53,0) -> -3 | AI54: =IF($Z54=$Z55,$V54-$U55,0) -> 0 | AJ54: =SUM(AF54:AI54) -> -3 | AL54: =IF($Z54=$Z52,$S58-$U56,0) -> 0 | AM54: =IF($Z54=$Z53,$T58-$U57,0) -> -1 | AO54: =IF($Z54=$Z55,$V58-$U59,0) -> 0 | AP54: =SUM(AL54:AO54) -> -1 | AQ54: =IF($Z54=$Z52,$S58,0) -> 0 | AR54: =IF($Z54=$Z53,$T58,0) -> 0 | AT54: =IF($Z54=$Z55,$V58,0) -> 0 | AU54: =SUM(AQ54:AT54) -> 0 | AV54: 2 | BA54: 12 | BB54: 2026-06-18T21:00:00 | BC54: Leipzig | BD54: =BY54 -> L3 | BE54: - | BF54: =BY55 -> L4 | BH54: 1 | BI54: : | BJ54: 0 | BK54: ok | BM54: =VLOOKUP(3,$BX$52:$CC$55,2,FALSE) -> L2 | BN54: =VLOOKUP(3,$BX$52:$CC$55,3,FALSE) -> 3 | BO54: =VLOOKUP(3,$BX$52:$CC$55,4,FALSE) -> 1 | BP54: =VLOOKUP(3,$BX$52:$CC$55,5,FALSE) -> 2 | BQ54: =VLOOKUP(3,$BX$52:$CC$55,6,FALSE) -> -1 | BS54: =IF(BJ55="",0,IF(BK55=$B$120,IF(BH55<BJ55,3,IF(BH55=BJ55,1,0)),0)) -> 0 | BT54: =IF(BJ58="",0,IF(BK57=$B$120,IF(BH58<BJ58,3,IF(BH58=BJ58,1,0)),0)) -> 0 | BV54: =IF(BH54="",0,IF(BK54=$B$120,IF(BH54>BJ54,3,IF(BH54=BJ54,1,0)),0)) -> 3 | BX54: =RANK(CD54,$CD$52:$CD$55) -> 4 | BY54: L3 | BZ54: =SUM(BS54:BV54) -> 3 | CA54: =SUM(BS58:BV58) -> 1 | CB54: =SUM(BU56:BU59) -> 2 | CC54: =CA54-CB54 -> -1 | CD54: =IF(BP$28="",(((((((CE54*10+BZ54)*100+CC54)*100+CA54)*10+CK54)*10+CJ54)*100+CP54)*100+CU54)*10+CV54,(((((((CE54*10+BZ54)*10+CK54)*10+CJ54)*100+CP54)*100+CU54)*100+CC54)*100+CA54)*10+CV54) -> 296989999012 | CF54: =IF($BZ54=$BZ52,$BS54-$BU52,0) -> 0 | CG54: =IF($BZ54=$BZ53,$BT54-$BU53,0) -> -3 | CI54: =IF($BZ54=$BZ55,$BV54-$BU55,0) -> 0 | CJ54: =SUM(CF54:CI54) -> -3 | CL54: =IF($BZ54=$BZ52,$BS58-$BU56,0) -> 0 | CM54: =IF($BZ54=$BZ53,$BT58-$BU57,0) -> -1 | CO54: =IF($BZ54=$BZ55,$BV58-$BU59,0) -> 0 | CP54: =SUM(CL54:CO54) -> -1 | CQ54: =IF($BZ54=$BZ52,$BS58,0) -> 0 | CR54: =IF($BZ54=$BZ53,$BT58,0) -> 0 | CT54: =IF($BZ54=$BZ55,$BV58,0) -> 0 | CU54: =SUM(CQ54:CT54) -> 0 | CV54: 2
A55: =A53+12 -> 17 | B55: 2026-06-20T15:00:00 | C55: München | D55: =Y52 -> I1 | E55: - | F55: =Y54 -> I3 | H55: 1 | I55: : | J55: 0 | K55: ok | M55: =VLOOKUP(4,$X$52:$AC$55,2,FALSE) -> I3 | N55: =VLOOKUP(4,$X$52:$AC$55,3,FALSE) -> 3 | O55: =VLOOKUP(4,$X$52:$AC$55,4,FALSE) -> 1 | P55: =VLOOKUP(4,$X$52:$AC$55,5,FALSE) -> 2 | Q55: =VLOOKUP(4,$X$52:$AC$55,6,FALSE) -> -1 | S55: =IF(H57="",0,IF(K58=$B$120,IF(H57>J57,3,IF(H57=J57,1,0)),0)) -> 3 | T55: =IF(H56="",0,IF(K56=$B$120,IF(J56<H56,3,IF(J56=H56,1,0)),0)) -> 3 | U55: =IF(J54="",0,IF(K54=$B$120,IF(H54<J54,3,IF(H54=J54,1,0)),0)) -> 0 | X55: =RANK(AD55,$AD$52:$AD$55) -> 1 | Y55: I4 | Z55: =SUM(S55:V55) -> 6 | AA55: =SUM(S59:V59) -> 2 | AB55: =SUM(V56:V59) -> 1 | AC55: =AA55-AB55 -> 1 | AD55: =IF(P$28="",(((((((AE55*10+Z55)*100+AC55)*100+AA55)*10+AK55)*10+AJ55)*100+AP55)*100+AU55)*10+AV55,(((((((AE55*10+Z55)*10+AK55)*10+AJ55)*100+AP55)*100+AU55)*100+AC55)*100+AA55)*10+AV55) -> 603010101021 | AF55: =IF($Z55=$Z52,$S55-$V52,0) -> 3 | AG55: =IF($Z55=$Z53,$T55-$V53,0) -> 0 | AH55: =IF($Z55=$Z54,$U55-$V54,0) -> 0 | AJ55: =SUM(AF55:AI55) -> 3 | AL55: =IF($Z55=$Z52,$S59-$V56,0) -> 1 | AM55: =IF($Z55=$Z53,$T59-$V57,0) -> 0 | AN55: =IF($Z55=$Z54,$U59-$V58,0) -> 0 | AP55: =SUM(AL55:AO55) -> 1 | AQ55: =IF($Z55=$Z52,$S59,0) -> 1 | AR55: =IF($Z55=$Z53,$T59,0) -> 0 | AS55: =IF($Z55=$Z54,$U59,0) -> 0 | AU55: =SUM(AQ55:AT55) -> 1 | AV55: 1 | BA55: =BA53+12 -> 23 | BB55: 2026-06-22T18:00:00 | BC55: Dortmund | BD55: =BY52 -> L1 | BE55: - | BF55: =BY54 -> L3 | BH55: 1 | BI55: : | BJ55: 0 | BK55: ok | BM55: =VLOOKUP(4,$BX$52:$CC$55,2,FALSE) -> L3 | BN55: =VLOOKUP(4,$BX$52:$CC$55,3,FALSE) -> 3 | BO55: =VLOOKUP(4,$BX$52:$CC$55,4,FALSE) -> 1 | BP55: =VLOOKUP(4,$BX$52:$CC$55,5,FALSE) -> 2 | BQ55: =VLOOKUP(4,$BX$52:$CC$55,6,FALSE) -> -1 | BS55: =IF(BH57="",0,IF(BK58=$B$120,IF(BH57>BJ57,3,IF(BH57=BJ57,1,0)),0)) -> 3 | BT55: =IF(BH56="",0,IF(BK56=$B$120,IF(BJ56<BH56,3,IF(BJ56=BH56,1,0)),0)) -> 3 | BU55: =IF(BJ54="",0,IF(BK54=$B$120,IF(BH54<BJ54,3,IF(BH54=BJ54,1,0)),0)) -> 0 | BX55: =RANK(CD55,$CD$52:$CD$55) -> 1 | BY55: L4 | BZ55: =SUM(BS55:BV55) -> 6 | CA55: =SUM(BS59:BV59) -> 2 | CB55: =SUM(BV56:BV59) -> 1 | CC55: =CA55-CB55 -> 1 | CD55: =IF(BP$28="",(((((((CE55*10+BZ55)*100+CC55)*100+CA55)*10+CK55)*10+CJ55)*100+CP55)*100+CU55)*10+CV55,(((((((CE55*10+BZ55)*10+CK55)*10+CJ55)*100+CP55)*100+CU55)*100+CC55)*100+CA55)*10+CV55) -> 603010101021 | CF55: =IF($BZ55=$BZ52,$BS55-$BV52,0) -> 3 | CG55: =IF($BZ55=$BZ53,$BT55-$BV53,0) -> 0 | CH55: =IF($BZ55=$BZ54,$BU55-$BV54,0) -> 0 | CJ55: =SUM(CF55:CI55) -> 3 | CL55: =IF($BZ55=$BZ52,$BS59-$BV56,0) -> 1 | CM55: =IF($BZ55=$BZ53,$BT59-$BV57,0) -> 0 | CN55: =IF($BZ55=$BZ54,$BU59-$BV58,0) -> 0 | CP55: =SUM(CL55:CO55) -> 1 | CQ55: =IF($BZ55=$BZ52,$BS59,0) -> 1 | CR55: =IF($BZ55=$BZ53,$BT59,0) -> 0 | CS55: =IF($BZ55=$BZ54,$BU59,0) -> 0 | CU55: =SUM(CQ55:CT55) -> 1 | CV55: 1
A56: =A54+12 -> 18 | B56: 2026-06-20T18:00:00 | C56: England | D56: =Y55 -> I4 | E56: - | F56: =Y53 -> I2 | H56: 1 | I56: : | J56: 0 | K56: ok | T56: =IF(K53=$B$120,H53,0) -> 1 | U56: =IF(K55=$B$120,H55,0) -> 1 | V56: =IF(K58=$B$120,J57,0) -> 0 | BA56: =BA54+12 -> 24 | BB56: 2026-06-22T15:00:00 | BC56: Hamburg | BD56: =BY55 -> L4 | BE56: - | BF56: =BY53 -> L2 | BH56: 1 | BI56: : | BJ56: 0 | BK56: ok | BT56: =IF(BK53=$B$120,BH53,0) -> 1 | BU56: =IF(BK55=$B$120,BH55,0) -> 1 | BV56: =IF(BK58=$B$120,BJ57,0) -> 0
A57: =A55+12 -> 29 | B57: 2026-06-25T21:00:00 | C57: Köln | D57: =Y55 -> I4 | E57: - | F57: =Y52 -> I1 | H57: 1 | I57: : | J57: 0 | K57: ok | M57: =IF(N52>0,M52,"") -> I4 | N57: 1I | S57: =IF(K53=$B$120,J53,0) -> 0 | U57: =IF(K57=$B$120,H58,0) -> 1 | V57: =IF(K56=$B$120,J56,0) -> 0 | AD57: L0=AE hebelt Berechnung aus (top level Losen) | BA57: =BA55+12 -> 35 | BB57: 2026-06-26T21:00:00 | BC57: Hamburg | BD57: =BY55 -> L4 | BE57: - | BF57: =BY52 -> L1 | BH57: 1 | BI57: : | BJ57: 0 | BK57: ok | BM57: =IF(BN52>0,BM52,"") -> L4 | BN57: 1L | BS57: =IF(BK53=$B$120,BJ53,0) -> 0 | BU57: =IF(BK57=$B$120,BH58,0) -> 1 | BV57: =IF(BK56=$B$120,BJ56,0) -> 0 | CD57: L0=AE hebelt Berechnung aus (top level Losen)
A58: =A56+12 -> 30 | B58: 2026-06-25T21:00:00 | C58: München | D58: =Y53 -> I2 | E58: - | F58: =Y54 -> I3 | H58: 1 | I58: : | J58: 0 | K58: ok | M58: =IF(N53>0,M53,"") -> I1 | N58: 2I | P58: DV | S58: =IF(K55=$B$120,J55,0) -> 0 | T58: =IF(K57=$B$120,J58,0) -> 0 | V58: =IF(K54=$B$120,H54,0) -> 1 | AD58: L1=AK hebelt Direktvergleich (S1) aus | BA58: =BA56+12 -> 36 | BB58: 2026-06-26T21:00:00 | BC58: Gelsenkirchen | BD58: =BY53 -> L2 | BE58: - | BF58: =BY54 -> L3 | BH58: 1 | BI58: : | BJ58: 0 | BK58: ok | BM58: =IF(BN53>0,BM53,"") -> L1 | BN58: 2L | BP58: DV | BS58: =IF(BK55=$B$120,BJ55,0) -> 0 | BT58: =IF(BK57=$B$120,BJ58,0) -> 0 | BV58: =IF(BK54=$B$120,BH54,0) -> 1 | CD58: L1=AK hebelt Direktvergleich (S1) aus
M59: =IF(N54>0,M54,"") -> I2 | N59: 3I | S59: =IF(K58=$B$120,H57,0) -> 1 | T59: =IF(K56=$B$120,H56,0) -> 1 | U59: =IF(K54=$B$120,J54,0) -> 0 | AD59: L4=AV Losen UEFA-Koeffizient, Fairplay oder Münzwurf | BM59: =IF(BN54>0,BM54,"") -> L2 | BN59: 3L | BS59: =IF(BK58=$B$120,BH57,0) -> 1 | BT59: =IF(BK56=$B$120,BH56,0) -> 1 | BU59: =IF(BK54=$B$120,BJ54,0) -> 0 | CD59: L4=AV Losen UEFA-Koeffizient, Fairplay oder Münzwurf
B61: Gruppendritte | C61: =CONCATENATE(H65,H66,H67,H68,H69,H70,H71,H72) -> ABCDEFGH
M62: Reihenfolge nur zur Gruppenauswahl
B64: Team 1 | C64: Dritter | D64: (falls manuell) | F64: Team 2 | M64: Tabelle | N64: P | O64: T+ | P64: T- | Q64: T+/- | R64: C | S64: G | X64: R | Y64: Gruppendritte | AE64: L0 | AF64: G | AV64: L8
B65: ='AnnixC-WM2026'!C1 -> 1A | C65: =INDEX('AnnixC-WM2026'!C:C, MATCH($C$61, 'AnnixC-WM2026'!$B:$B, 0)) -> 3H | D65: =IF(AE85="",C65,AC85) -> 3H | F65: =VLOOKUP(CODE(MID(D65,2,1))-64,$L$65:$M$76,2,FALSE) -> H2 | H65: =CHAR(J65+64) -> A | J65: =SMALL(R$65:R$72,1) -> 1 | K65: =S65 -> A | L65: =CODE(K65)-64 -> 1 | M65: =VLOOKUP(1,$X$65:$AC$76,2,FALSE) -> A2 | N65: =VLOOKUP(1,$X$65:$AC$76,3,FALSE) -> 3 | O65: =VLOOKUP(1,$X$65:$AC$76,4,FALSE) -> 1 | P65: =VLOOKUP(1,$X$65:$AC$76,5,FALSE) -> 2 | Q65: =VLOOKUP(1,$X$65:$AC$76,6,FALSE) -> -1 | R65: =CODE(S65)-64 -> 1 | S65: =MID(VLOOKUP(1,$X$65:$AF$76,9,FALSE),2,1) -> A | X65: =RANK(AD65,$AD$65:$AD$76) -> 1 | Y65: =M4 -> A2 | Z65: =N4 -> 3 | AA65: =O4 -> 1 | AB65: =P4 -> 2 | AC65: =Q4 -> -1 | AD65: =AE65*10000000000000000+Z65*100000000000000+AC65*1000000000000+AA65*10000000000+AV65 -> 299010000000012 | AF65: =N9 -> 3A | AV65: 12
B66: ='AnnixC-WM2026'!D1 -> 1B | C66: =INDEX('AnnixC-WM2026'!D:D, MATCH($C$61, 'AnnixC-WM2026'!$B:$B, 0)) -> 3G | D66: =IF(AE86="",C66,AC86) -> 3G | F66: =VLOOKUP(CODE(MID(D66,2,1))-64,$L$65:$M$76,2,FALSE) -> G2 | H66: B | J66: =SMALL(R$65:R$72,2) -> 2 | K66: B | L66: 2 | M66: =VLOOKUP(2,$X$65:$AC$76,2,FALSE) -> B2 | N66: =VLOOKUP(2,$X$65:$AC$76,3,FALSE) -> 3 | O66: =VLOOKUP(2,$X$65:$AC$76,4,FALSE) -> 1 | P66: =VLOOKUP(2,$X$65:$AC$76,5,FALSE) -> 2 | Q66: =VLOOKUP(2,$X$65:$AC$76,6,FALSE) -> -1 | R66: 2 | S66: =MID(VLOOKUP(2,$X$65:$AF$76,9,FALSE),2,1) -> B | X66: =RANK(AD66,$AD$65:$AD$76) -> 2 | Y66: =M14 -> B2 | Z66: =N14 -> 3 | AA66: =O14 -> 1 | AB66: =P14 -> 2 | AC66: =Q14 -> -1 | AD66: 299010000000011 | AF66: =N19 -> 3B | AV66: =AV65-1 -> 11
B67: ='AnnixC-WM2026'!E1 -> 1D | C67: =INDEX('AnnixC-WM2026'!E:E, MATCH($C$61, 'AnnixC-WM2026'!$B:$B, 0)) -> 3B | D67: 3B | F67: B2 | H67: C | J67: =SMALL(R$65:R$72,3) -> 3 | K67: C | L67: 3 | M67: =VLOOKUP(3,$X$65:$AC$76,2,FALSE) -> C3 | N67: =VLOOKUP(3,$X$65:$AC$76,3,FALSE) -> 3 | O67: =VLOOKUP(3,$X$65:$AC$76,4,FALSE) -> 1 | P67: =VLOOKUP(3,$X$65:$AC$76,5,FALSE) -> 2 | Q67: =VLOOKUP(3,$X$65:$AC$76,6,FALSE) -> -1 | R67: 3 | S67: =MID(VLOOKUP(3,$X$65:$AF$76,9,FALSE),2,1) -> C | X67: 3 | Y67: =M24 -> C3 | Z67: =N24 -> 3 | AA67: =O24 -> 1 | AB67: =P24 -> 2 | AC67: =Q24 -> -1 | AD67: 299010000000010 | AF67: =N29 -> 3C | AV67: =AV66-1 -> 10
B68: ='AnnixC-WM2026'!F1 -> 1E | C68: =INDEX('AnnixC-WM2026'!F:F, MATCH($C$61, 'AnnixC-WM2026'!$B:$B, 0)) -> 3C | D68: 3C | F68: C3 | H68: D | J68: =SMALL(R$65:R$72,4) -> 4 | K68: D | L68: 4 | M68: =VLOOKUP(4,$X$65:$AC$76,2,FALSE) -> D2 | N68: =VLOOKUP(4,$X$65:$AC$76,3,FALSE) -> 3 | O68: =VLOOKUP(4,$X$65:$AC$76,4,FALSE) -> 1 | P68: =VLOOKUP(4,$X$65:$AC$76,5,FALSE) -> 2 | Q68: =VLOOKUP(4,$X$65:$AC$76,6,FALSE) -> -1 | R68: 4 | S68: =MID(VLOOKUP(4,$X$65:$AF$76,9,FALSE),2,1) -> D | X68: 4 | Y68: =BM4 -> D2 | Z68: =BN4 -> 3 | AA68: =BO4 -> 1 | AB68: =BP4 -> 2 | AC68: =BQ4 -> -1 | AD68: 299010000000009 | AF68: =BN9 -> 3D | AV68: 9
B69: ='AnnixC-WM2026'!G1 -> 1G | C69: =INDEX('AnnixC-WM2026'!G:G, MATCH($C$61, 'AnnixC-WM2026'!$B:$B, 0)) -> 3A | D69: 3A | F69: A2 | H69: E | J69: =SMALL(R$65:R$72,5) -> 5 | K69: E | L69: 5 | M69: =VLOOKUP(5,$X$65:$AC$76,2,FALSE) -> E2 | N69: =VLOOKUP(5,$X$65:$AC$76,3,FALSE) -> 3 | O69: =VLOOKUP(5,$X$65:$AC$76,4,FALSE) -> 1 | P69: =VLOOKUP(5,$X$65:$AC$76,5,FALSE) -> 2 | Q69: =VLOOKUP(5,$X$65:$AC$76,6,FALSE) -> -1 | R69: 5 | S69: =MID(VLOOKUP(5,$X$65:$AF$76,9,FALSE),2,1) -> E | X69: 5 | Y69: =BM14 -> E2 | Z69: =BN14 -> 3 | AA69: =BO14 -> 1 | AB69: =BP14 -> 2 | AC69: =BQ14 -> -1 | AD69: 299010000000008 | AF69: =BN19 -> 3E | AV69: 8
B70: ='AnnixC-WM2026'!H1 -> 1I | C70: =INDEX('AnnixC-WM2026'!H:H, MATCH($C$61, 'AnnixC-WM2026'!$B:$B, 0)) -> 3F | D70: 3F | F70: F2 | H70: F | J70: =SMALL(R$65:R$72,6) -> 6 | K70: F | L70: 6 | M70: =VLOOKUP(6,$X$65:$AC$76,2,FALSE) -> F2 | N70: =VLOOKUP(6,$X$65:$AC$76,3,FALSE) -> 3 | O70: =VLOOKUP(6,$X$65:$AC$76,4,FALSE) -> 1 | P70: =VLOOKUP(6,$X$65:$AC$76,5,FALSE) -> 2 | Q70: =VLOOKUP(6,$X$65:$AC$76,6,FALSE) -> -1 | R70: 6 | S70: =MID(VLOOKUP(6,$X$65:$AF$76,9,FALSE),2,1) -> F | X70: 6 | Y70: =BM24 -> F2 | Z70: =BN24 -> 3 | AA70: =BO24 -> 1 | AB70: =BP24 -> 2 | AC70: =BQ24 -> -1 | AD70: 299010000000007 | AF70: =BN29 -> 3F | AV70: 7
B71: ='AnnixC-WM2026'!I1 -> 1K | C71: =INDEX('AnnixC-WM2026'!I:I, MATCH($C$61, 'AnnixC-WM2026'!$B:$B, 0)) -> 3D | D71: 3D | F71: D2 | H71: G | J71: =SMALL(R$65:R$72,7) -> 7 | K71: =S71 -> G | L71: =CODE(K71)-64 -> 7 | M71: =VLOOKUP(7,$X$65:$AC$76,2,FALSE) -> G2 | N71: 3 | O71: 1 | P71: 2 | Q71: -1 | R71: 7 | S71: =MID(VLOOKUP(7,$X$65:$AF$76,9,FALSE),2,1) -> G | X71: 7 | Y71: =M34 -> G2 | Z71: =N34 -> 3 | AA71: =O34 -> 1 | AB71: =P34 -> 2 | AC71: =Q34 -> -1 | AD71: 299010000000006 | AF71: 3G | AV71: 6
B72: ='AnnixC-WM2026'!J1 -> 1L | C72: =INDEX('AnnixC-WM2026'!J:J, MATCH($C$61, 'AnnixC-WM2026'!$B:$B, 0)) -> 3E | D72: 3E | F72: E2 | H72: H | J72: =SMALL(R$65:R$72,8) -> 8 | K72: H | L72: 8 | M72: =VLOOKUP(8,$X$65:$AC$76,2,FALSE) -> H2 | N72: 3 | O72: 1 | P72: 2 | Q72: -1 | R72: 8 | S72: =MID(VLOOKUP(8,$X$65:$AF$76,9,FALSE),2,1) -> H | X72: 8 | Y72: =M44 -> H2 | Z72: =N44 -> 3 | AA72: =O44 -> 1 | AB72: =P44 -> 2 | AC72: =Q44 -> -1 | AD72: 299010000000005 | AF72: 3H | AV72: 5
K73: I | L73: 9 | M73: =VLOOKUP(9,$X$65:$AC$76,2,FALSE) -> I2 | N73: 3 | O73: 1 | P73: 2 | Q73: -1 | R73: 9 | S73: =MID(VLOOKUP(9,$X$65:$AF$76,9,FALSE),2,1) -> I | X73: 9 | Y73: =M54 -> I2 | Z73: =N54 -> 3 | AA73: =O54 -> 1 | AB73: =P54 -> 2 | AC73: =Q54 -> -1 | AD73: 299010000000004 | AF73: 3I | AV73: 4
K74: J | L74: 10 | M74: =VLOOKUP(10,$X$65:$AC$76,2,FALSE) -> J2 | N74: 3 | O74: 1 | P74: 2 | Q74: -1 | R74: 10 | S74: =MID(VLOOKUP(10,$X$65:$AF$76,9,FALSE),2,1) -> J | X74: 10 | Y74: =BM34 -> J2 | Z74: =BN34 -> 3 | AA74: =BO34 -> 1 | AB74: =BP34 -> 2 | AC74: =BQ34 -> -1 | AD74: 299010000000003 | AF74: 3J | AV74: 3
K75: K | L75: 11 | M75: =VLOOKUP(11,$X$65:$AC$76,2,FALSE) -> K2 | N75: 3 | O75: 1 | P75: 2 | Q75: -1 | R75: 11 | S75: =MID(VLOOKUP(11,$X$65:$AF$76,9,FALSE),2,1) -> K | X75: 11 | Y75: =BM44 -> K2 | Z75: =BN44 -> 3 | AA75: =BO44 -> 1 | AB75: =BP44 -> 2 | AC75: =BQ44 -> -1 | AD75: 299010000000002 | AF75: 3K | AV75: 2
K76: L | L76: 12 | M76: =VLOOKUP(12,$X$65:$AC$76,2,FALSE) -> L2 | N76: 3 | O76: 1 | P76: 2 | Q76: -1 | R76: 12 | S76: =MID(VLOOKUP(12,$X$65:$AF$76,9,FALSE),2,1) -> L | X76: 12 | Y76: =BM54 -> L2 | Z76: =BN54 -> 3 | AA76: =BO54 -> 1 | AB76: =BP54 -> 2 | AC76: =BQ54 -> -1 | AD76: 299010000000001 | AF76: 3L | AV76: 1
AD78: L0=AE hebelt Berechnung aus (top level Losen)
AD79: L8=AV Losen UEFA-Koeffizient, Fairplay oder Münzwurf
B83: Sechzehntelfinale
B84: Datum/Zeit | C84: Spielort | Y84: Auto | AA84: Annix | AC84: (oder manuell) | AE84: L16 | BB84: Gruppendritte | BC84: =CONCATENATE(BH88,BH89,BH90,BH91) -> 
A85: 37 | B85: 2024-06-29T21:00:00 | C85: Dortmund | D85: =M8 -> A1 | E85: - | F85: =M18 -> B1 | H85: =IF($B$121="",1,IF(OR(J85<1,INT(RAND()*10<6)),J85+1,J85-1)) -> 1 | I85: : | J85: =IF($B$121="",0,INT(RAND()*5)+INT(RAND()*3)*INT(RAND()*2)) -> 0 | K85: ok | M85: =IF(J85="","",IF(J85=H85,"falsch!!! K.Remis",IF(H85>J85,D85,F85))) -> A1 | N85: =N8 -> 2A | O85: =N18 -> 2B | P85: S01
A86: =A85+1 -> 38 | B86: 2024-06-30T21:00:00 | C86: Köln | D86: =M27 -> C1 | E86: - | F86: =BM28 -> F1 | H86: 1 | I86: : | J86: 0 | K86: ok | M86: C1 | N86: =N27 -> 1C | O86: =BN28 -> 2F | P86: S02
A87: =A86+1 -> 39 | B87: 2024-07-01T21:00:00 | C87: Frankfurt | D87: =BM17 -> E4 | E87: - | F87: =AD87 -> C3 | H87: 1 | I87: : | J87: 0 | K87: ok | M87: E4 | N87: =BN17 -> 1E | O87: =AC87 -> 3C | P87: S03 | Y87: 3ABCDF | AA87: =VLOOKUP(N87,B$65:C$72,2,FALSE) -> 3C | AC87: =IF(AE87="",AA87,CONCATENATE("3",AE87)) -> 3C | AD87: =VLOOKUP(MID(AC87,2,1),$K$65:$M$76,3,FALSE) -> C3
A88: 40 | B88: 2024-07-01T18:00:00 | C88: Düsseldorf | D88: =BM27 -> F4 | E88: - | F88: =M28 -> C2 | H88: 1 | I88: : | J88: 0 | K88: ok | M88: F4 | N88: =BN27 -> 1F | O88: =N28 -> 2C | P88: S04
A89: 41 | B89: 2024-06-30T18:00:00 | C89: Gelsenkirchen | D89: =BM18 -> E1 | E89: - | F89: =M58 -> I1 | H89: 1 | I89: : | J89: 0 | K89: ok | M89: E1 | N89: =BN18 -> 2E | O89: =N58 -> 2I | P89: S05
A90: 42 | B90: 2024-06-29T18:00:00 | C90: Berlin | D90: =M57 -> I4 | E90: - | F90: =AD90 -> F2 | H90: 1 | I90: : | J90: 0 | K90: ok | M90: I4 | N90: =N57 -> 1I | O90: =AC90 -> 3F | P90: S06 | Y90: 3CDFGH | AA90: =VLOOKUP(N90,B$65:C$72,2,FALSE) -> 3F | AC90: =IF(AE90="",AA90,CONCATENATE("3",AE90)) -> 3F | AD90: =VLOOKUP(MID(AC90,2,1),$K$65:$M$76,3,FALSE) -> F2
A91: 43 | B91: 2024-07-02T21:00:00 | C91: Leipzig | D91: =M7 -> A4 | E91: - | F91: =AD91 -> H2 | H91: 1 | I91: : | J91: 0 | K91: ok | M91: A4 | N91: =N7 -> 1A | O91: =AC91 -> 3H | P91: S07 | Y91: 3CEFHI | AA91: =VLOOKUP(N91,B$65:C$72,2,FALSE) -> 3H | AC91: =IF(AE91="",AA91,CONCATENATE("3",AE91)) -> 3H | AD91: =VLOOKUP(MID(AC91,2,1),$K$65:$M$76,3,FALSE) -> H2
A92: 44 | B92: 2024-07-02T18:00:00 | C92: München | D92: =BM57 -> L4 | E92: - | F92: =AD92 -> E2 | H92: 1 | I92: : | J92: 0 | K92: ok | M92: L4 | N92: =BN57 -> 1L | O92: =AC92 -> 3E | P92: S08 | Y92: 3EHIJK | AA92: =VLOOKUP(N92,B$65:C$72,2,FALSE) -> 3E | AC92: =IF(AE92="",AA92,CONCATENATE("3",AE92)) -> 3E | AD92: =VLOOKUP(MID(AC92,2,1),$K$65:$M$76,3,FALSE) -> E2
A93: 37 | B93: 2024-06-29T21:00:00 | C93: Dortmund | D93: =M37 -> G4 | E93: - | F93: =AD93 -> A2 | H93: =IF($B$121="",1,IF(OR(J93<1,INT(RAND()*10<6)),J93+1,J93-1)) -> 1 | I93: : | J93: 0 | K93: ok | M93: G4 | N93: =N37 -> 1G | O93: =AC93 -> 3A | P93: S09 | Y93: 3AEHIJ | AA93: =VLOOKUP(N93,B$65:C$72,2,FALSE) -> 3A | AC93: =IF(AE93="",AA93,CONCATENATE("3",AE93)) -> 3A | AD93: =VLOOKUP(MID(AC93,2,1),$K$65:$M$76,3,FALSE) -> A2
A94: =A93+1 -> 38 | B94: 2024-06-30T21:00:00 | C94: Köln | D94: =BM7 -> D4 | E94: - | F94: =AD94 -> B2 | H94: 1 | I94: : | J94: 0 | K94: ok | M94: D4 | N94: =BN7 -> 1D | O94: =AC94 -> 3B | P94: S10 | Y94: 3BEFIJ | AA94: =VLOOKUP(N94,B$65:C$72,2,FALSE) -> 3B | AC94: =IF(AE94="",AA94,CONCATENATE("3",AE94)) -> 3B | AD94: =VLOOKUP(MID(AC94,2,1),$K$65:$M$76,3,FALSE) -> B2
A95: =A94+1 -> 39 | B95: 2024-07-01T21:00:00 | C95: Frankfurt | D95: =M47 -> H4 | E95: - | F95: =BM38 -> J1 | H95: 1 | I95: : | J95: 0 | K95: ok | M95: H4 | N95: =N47 -> 1H | O95: =BN38 -> 2J | P95: S11
A96: 40 | B96: 2024-07-01T18:00:00 | C96: Düsseldorf | D96: =BM48 -> K1 | E96: - | F96: =BM58 -> L1 | H96: 1 | I96: : | J96: 0 | K96: ok | M96: K1 | N96: =BN48 -> 2K | O96: =BN58 -> 2L | P96: S12
A97: 41 | B97: 2024-06-30T18:00:00 | C97: Gelsenkirchen | D97: =M17 -> B4 | E97: - | F97: =AD97 -> G2 | H97: 1 | I97: : | J97: 0 | K97: ok | M97: B4 | N97: =N17 -> 1B | O97: =AC97 -> 3G | P97: S13 | Y97: 3EFGIJ | AA97: =VLOOKUP(N97,B$65:C$72,2,FALSE) -> 3G | AC97: =IF(AE97="",AA97,CONCATENATE("3",AE97)) -> 3G | AD97: =VLOOKUP(MID(AC97,2,1),$K$65:$M$76,3,FALSE) -> G2
A98: 42 | B98: 2024-06-29T18:00:00 | C98: Berlin | D98: =BM8 -> D1 | E98: - | F98: =M38 -> G1 | H98: 1 | I98: : | J98: 0 | K98: ok | M98: D1 | N98: =BN8 -> 2D | O98: =N38 -> 2G | P98: S14
A99: 43 | B99: 2024-07-02T21:00:00 | C99: Leipzig | D99: =BM37 -> J4 | E99: - | F99: =M48 -> H1 | H99: 1 | I99: : | J99: 0 | K99: ok | M99: J4 | N99: =BN37 -> 1J | O99: =N48 -> 2H | P99: S15
A100: 44 | B100: 2024-07-02T18:00:00 | C100: München | D100: =BM47 -> K4 | E100: - | F100: =AD100 -> D2 | H100: 1 | I100: : | J100: 0 | K100: ok | M100: K4 | N100: =BN47 -> 1K | O100: =AC100 -> 3D | P100: S16 | Y100: 3DEIJL | AA100: =VLOOKUP(N100,B$65:C$72,2,FALSE) -> 3D | AC100: =IF(AE100="",AA100,CONCATENATE("3",AE100)) -> 3D | AD100: =VLOOKUP(MID(AC100,2,1),$K$65:$M$76,3,FALSE) -> D2
AE101: L16=Buchstabe für manuelle Gruppe
B102: Achtelfinale | BB102: Viertelfinale
B103: Datum/Zeit | C103: Spielort | BB103: Datum/Zeit | BC103: Spielort
A104: 37 | B104: 2024-06-29T21:00:00 | C104: Dortmund | D104: =INDEX($M$85:$M$100, MATCH(N104, $P$85:$P$100, 0)) -> E4 | E104: - | F104: =INDEX($M$85:$M$100, MATCH(O104, $P$85:$P$100, 0)) -> I4 | H104: =IF($B$121="",1,IF(OR(J104<1,INT(RAND()*10<6)),J104+1,J104-1)) -> 1 | I104: : | J104: =IF($B$121="",0,INT(RAND()*5)+INT(RAND()*3)*INT(RAND()*2)) -> 0 | K104: ok | M104: =IF(J104="","",IF(J104=H104,"falsch!!! K.Remis",IF(H104>J104,D104,F104))) -> E4 | N104: =P87 -> S03 | O104: =P90 -> S06 | P104: AF1 | BA104: =A92+1 -> 45 | BB104: 2026-07-05T18:00:00 | BC104: Stuttgart | BD104: =INDEX($M$104:$M$111, MATCH(BN104, $P$104:$P$111, 0)) -> E4 | BE104: - | BF104: =INDEX($M$104:$M$111, MATCH(BO104, $P$104:$P$111, 0)) -> A1 | BH104: =IF($B$121="",1,IF(OR(BJ104<1,INT(RAND()*10<6)),BJ104+1,BJ104-1)) -> 1 | BI104: : | BJ104: =IF($B$121="",0,INT(RAND()*5)+INT(RAND()*3)*INT(RAND()*2)) -> 0 | BK104: ok | BM104: =IF(BJ104="","",IF(BJ104=BH104,"falsch!!! K.Remis",IF(BH104>BJ104,BD104,BF104))) -> E4 | BN104: =P104 -> AF1 | BO104: =P105 -> AF2 | BP104: VF1
A105: =A104+1 -> 38 | B105: 2024-06-30T21:00:00 | C105: Köln | D105: =INDEX($M$85:$M$100, MATCH(N105, $P$85:$P$100, 0)) -> A1 | E105: - | F105: =INDEX($M$85:$M$100, MATCH(O105, $P$85:$P$100, 0)) -> F4 | H105: 1 | I105: : | J105: 0 | K105: ok | M105: A1 | N105: =P85 -> S01 | O105: =P88 -> S04 | P105: AF2 | BA105: =BA104+1 -> 46 | BB105: 2026-07-05T21:00:00 | BC105: Hamburg | BD105: =INDEX($M$104:$M$111, MATCH(BN105, $P$104:$P$111, 0)) -> K1 | BE105: - | BF105: =INDEX($M$104:$M$111, MATCH(BO105, $P$104:$P$111, 0)) -> D4 | BH105: =IF($B$121="",1,IF(OR(BJ105<1,INT(RAND()*10<6)),BJ105+1,BJ105-1)) -> 1 | BI105: : | BJ105: =IF($B$121="",0,INT(RAND()*5)+INT(RAND()*3)*INT(RAND()*2)) -> 0 | BK105: ok | BM105: =IF(BJ105="","",IF(BJ105=BH105,"falsch!!! K.Remis",IF(BH105>BJ105,BD105,BF105))) -> K1 | BN105: =P108 -> AF5 | BO105: =P109 -> AF6 | BP105: VF2
A106: =A105+1 -> 39 | B106: 2024-07-01T21:00:00 | C106: Frankfurt | D106: =INDEX($M$85:$M$100, MATCH(N106, $P$85:$P$100, 0)) -> C1 | E106: - | F106: =INDEX($M$85:$M$100, MATCH(O106, $P$85:$P$100, 0)) -> E1 | H106: 1 | I106: : | J106: 0 | K106: ok | M106: C1 | N106: =P86 -> S02 | O106: =P89 -> S05 | P106: AF3 | BA106: =BA105+1 -> 47 | BB106: 2026-07-06T18:00:00 | BC106: Düssseldorf | BD106: =INDEX($M$104:$M$111, MATCH(BN106, $P$104:$P$111, 0)) -> C1 | BE106: - | BF106: =INDEX($M$104:$M$111, MATCH(BO106, $P$104:$P$111, 0)) -> A4 | BH106: =IF($B$121="",1,IF(OR(BJ106<1,INT(RAND()*10<6)),BJ106+1,BJ106-1)) -> 1 | BI106: : | BJ106: =IF($B$121="",0,INT(RAND()*5)+INT(RAND()*3)*INT(RAND()*2)) -> 0 | BK106: ok | BM106: =IF(BJ106="","",IF(BJ106=BH106,"falsch!!! K.Remis",IF(BH106>BJ106,BD106,BF106))) -> C1 | BN106: =P106 -> AF3 | BO106: =P107 -> AF4 | BP106: VF3
A107: 40 | B107: 2024-07-01T18:00:00 | C107: Düsseldorf | D107: A4 | E107: - | F107: L4 | H107: 1 | I107: : | J107: 0 | K107: ok | M107: A4 | N107: =P91 -> S07 | O107: =P92 -> S08 | P107: AF4 | BA107: =BA106+1 -> 48 | BB107: 2026-07-06T21:00:00 | BC107: Berlin | BD107: =INDEX($M$104:$M$111, MATCH(BN107, $P$104:$P$111, 0)) -> J4 | BE107: - | BF107: =INDEX($M$104:$M$111, MATCH(BO107, $P$104:$P$111, 0)) -> B4 | BH107: =IF($B$121="",1,IF(OR(BJ107<1,INT(RAND()*10<6)),BJ107+1,BJ107-1)) -> 1 | BI107: : | BJ107: =IF($B$121="",0,INT(RAND()*5)+INT(RAND()*3)*INT(RAND()*2)) -> 0 | BK107: ok | BM107: =IF(BJ107="","",IF(BJ107=BH107,"falsch!!! K.Remis",IF(BH107>BJ107,BD107,BF107))) -> J4 | BN107: =P110 -> AF7 | BO107: =P111 -> AF8 | BP107: VF4
A108: 41 | B108: 2024-06-30T18:00:00 | C108: Gelsenkirchen | D108: K1 | E108: - | F108: H4 | H108: 1 | I108: : | J108: 0 | K108: ok | M108: K1 | N108: =P96 -> S12 | O108: =P95 -> S11 | P108: AF5
A109: 42 | B109: 2024-06-29T18:00:00 | C109: Berlin | D109: D4 | E109: - | F109: G4 | H109: 1 | I109: : | J109: 0 | K109: ok | M109: D4 | N109: =P94 -> S10 | O109: =P93 -> S09 | P109: AF6 | BB109: Halbfinale
A110: 43 | B110: 2024-07-02T21:00:00 | C110: Leipzig | D110: J4 | E110: - | F110: D1 | H110: 1 | I110: : | J110: 0 | K110: ok | M110: J4 | N110: =P99 -> S15 | O110: =P98 -> S14 | P110: AF7 | BB110: Datum/Zeit | BC110: Spielort
A111: 44 | B111: 2024-07-02T18:00:00 | C111: München | D111: B4 | E111: - | F111: K4 | H111: 1 | I111: : | J111: 0 | K111: ok | M111: B4 | N111: =P97 -> S13 | O111: =P100 -> S16 | P111: AF8 | BA111: =BA107+1 -> 49 | BB111: 2026-07-09T21:00:00 | BC111: München | BD111: =INDEX($BM$104:$BM$107, MATCH(BN111, $BP$104:$BP$107, 0)) -> E4 | BE111: - | BF111: =INDEX($BM$104:$BM$107, MATCH(BO111, $BP$104:$BP$107, 0)) -> K1 | BH111: =IF($B$121="",1,IF(OR(BJ111<1,INT(RAND()*10<6)),BJ111+1,BJ111-1)) -> 1 | BI111: : | BJ111: =IF($B$121="",0,INT(RAND()*5)+INT(RAND()*3)*INT(RAND()*2)) -> 0 | BK111: ok | BM111: =IF(BJ111="","",IF(BJ111=BH111,"falsch!!! K.Remis",IF(BH111>BJ111,BD111,BF111))) -> E4 | BN111: =BP104 -> VF1 | BO111: =BP105 -> VF2 | BP111: F1
BA112: =BA111+1 -> 50 | BB112: 2026-07-10T21:00:00 | BC112: Dortmund | BD112: =INDEX($BM$104:$BM$107, MATCH(BN112, $BP$104:$BP$107, 0)) -> C1 | BE112: - | BF112: =INDEX($BM$104:$BM$107, MATCH(BO112, $BP$104:$BP$107, 0)) -> J4 | BH112: =IF($B$121="",1,IF(OR(BJ112<1,INT(RAND()*10<6)),BJ112+1,BJ112-1)) -> 1 | BI112: : | BJ112: =IF($B$121="",0,INT(RAND()*5)+INT(RAND()*3)*INT(RAND()*2)) -> 0 | BK112: ok | BM112: =IF(BJ112="","",IF(BJ112=BH112,"falsch!!! K.Remis",IF(BH112>BJ112,BD112,BF112))) -> C1 | BN112: =BP106 -> VF3 | BO112: =BP107 -> VF4 | BP112: F2
BM113: =IF(BD111=BM111,BF111,BD111) -> K1 | BP113: HF1
B114: Finale | BB114: Um Platz 3 | BM114: =IF(BD112=BM112,BF112,BD112) -> J4 | BP114: HF2
B115: Datum/Zeit | C115: Spielort | M115: Weltmeister | BB115: Datum/Zeit | BC115: Spielort
A116: =BA116+1 -> 52 | B116: 2024-07-14T21:00:00 | C116: Berlin | D116: =BM111 -> E4 | E116: - | F116: =BM112 -> C1 | H116: =IF($B$121="",1,IF(OR(J116<1,INT(RAND()*10<6)),J116+1,J116-1)) -> 1 | I116: : | J116: =IF($B$121="",0,INT(RAND()*5)+INT(RAND()*3)*INT(RAND()*2)) -> 0 | K116: ok | M116: =IF(J116="","",IF(J116=H116,"falsch!!! K.Remis",IF(H116>J116,D116,F116))) -> E4 | N116: =BP111 -> F1 | O116: =BP112 -> F2 | BA116: =BA112+1 -> 51 | BB116: 2026-07-13T21:00:00 | BC116: Rostock | BD116: =BM113 -> K1 | BE116: - | BF116: =BM114 -> J4 | BH116: =IF($B$121="",1,IF(OR(BJ116<1,INT(RAND()*10<6)),BJ116+1,BJ116-1)) -> 1 | BI116: : | BJ116: =IF($B$121="",0,INT(RAND()*5)+INT(RAND()*3)*INT(RAND()*2)) -> 0 | BK116: ok | BM116: =IF(BJ116="","",IF(BJ116=BH116,"falsch!!! K.Remis",IF(BH116>BJ116,BD116,BF116))) -> K1 | BN116: =BP113 -> HF1 | BO116: =BP114 -> HF2
B120: ok | C120: OK
C121: Ergebnis Zufall
B122: =IF($B$121="",1,INT(RAND()*5)+INT(RAND()*3)*INT(RAND()*2)) -> 1 | C122: Zufallsformel

Sheet AnnixC-WM2026
A1: Option | B1: Combo | C1: 1A | D1: 1B | E1: 1D | F1: 1E | G1: 1G | H1: 1I | I1: 1K | J1: 1L
A2: 1 | B2: =CONCATENATE(AK2,AL2,AM2,AN2,AO2,AP2,AQ2,AR2) -> EFGHIJKL | C2: 3E | D2: 3J | E2: 3I | F2: 3F | G2: 3H | H2: 3G | I2: 3L | J2: 3K | K2: =MID(C2,2,1) -> E | L2: =MID(D2,2,1) -> J | M2: I | N2: F | O2: H | P2: G | Q2: L | R2: K | S2: =CODE(K2) -> 69 | T2: =CODE(L2) -> 74 | U2: 73 | V2: 70 | W2: 72 | X2: 71 | Y2: 76 | Z2: 75 | AB2: =SMALL($S2:$Z2,1) -> 69 | AC2: =SMALL($S2:$Z2,2) -> 70 | AD2: =SMALL($S2:$Z2,3) -> 71 | AE2: =SMALL($S2:$Z2,4) -> 72 | AF2: =SMALL($S2:$Z2,5) -> 73 | AG2: =SMALL($S2:$Z2,6) -> 74 | AH2: =SMALL($S2:$Z2,7) -> 75 | AI2: =SMALL($S2:$Z2,8) -> 76 | AK2: =CHAR(AB2) -> E | AL2: =CHAR(AC2) -> F | AM2: G | AN2: H | AO2: I | AP2: J | AQ2: K | AR2: L
A3: 2 | B3: =CONCATENATE(AK3,AL3,AM3,AN3,AO3,AP3,AQ3,AR3) -> DFGHIJKL | C3: 3H | D3: 3G | E3: 3I | F3: 3D | G3: 3J | H3: 3F | I3: 3L | J3: 3K | K3: H | L3: G | M3: I | N3: D | O3: J | P3: F | Q3: L | R3: K | S3: 72 | T3: 71 | U3: 73 | V3: 68 | W3: 74 | X3: 70 | Y3: 76 | Z3: 75 | AB3: =SMALL($S3:$Z3,1) -> 68 | AC3: =SMALL($S3:$Z3,2) -> 70 | AD3: =SMALL($S3:$Z3,3) -> 71 | AE3: =SMALL($S3:$Z3,4) -> 72 | AF3: =SMALL($S3:$Z3,5) -> 73 | AG3: =SMALL($S3:$Z3,6) -> 74 | AH3: =SMALL($S3:$Z3,7) -> 75 | AI3: =SMALL($S3:$Z3,8) -> 76 | AK3: D | AL3: F | AM3: G | AN3: H | AO3: I | AP3: J | AQ3: K | AR3: L
A4: 3 | B4: DEGHIJKL | C4: 3E | D4: 3J | E4: 3I | F4: 3D | G4: 3H | H4: 3G | I4: 3L | J4: 3K | K4: E | L4: J | M4: I | N4: D | O4: H | P4: G | Q4: L | R4: K | S4: 69 | T4: 74 | U4: 73 | V4: 68 | W4: 72 | X4: 71 | Y4: 76 | Z4: 75 | AB4: 68 | AC4: 69 | AD4: 71 | AE4: 72 | AF4: 73 | AG4: 74 | AH4: 75 | AI4: 76 | AK4: D | AL4: E | AM4: G | AN4: H | AO4: I | AP4: J | AQ4: K | AR4: L
A5: 4 | B5: DEFHIJKL | C5: 3E | D5: 3J | E5: 3I | F5: 3D | G5: 3H | H5: 3F | I5: 3L | J5: 3K | K5: E | L5: J | M5: I | N5: D | O5: H | P5: F | Q5: L | R5: K | S5: 69 | T5: 74 | U5: 73 | V5: 68 | W5: 72 | X5: 70 | Y5: 76 | Z5: 75 | AB5: 68 | AC5: 69 | AD5: 70 | AE5: 72 | AF5: 73 | AG5: 74 | AH5: 75 | AI5: 76 | AK5: D | AL5: E | AM5: F | AN5: H | AO5: I | AP5: J | AQ5: K | AR5: L
A6: 5 | B6: DEFGIJKL | C6: 3E | D6: 3G | E6: 3I | F6: 3D | G6: 3J | H6: 3F | I6: 3L | J6: 3K | K6: E | L6: G | M6: I | N6: D | O6: J | P6: F | Q6: L | R6: K | S6: 69 | T6: 71 | U6: 73 | V6: 68 | W6: 74 | X6: 70 | Y6: 76 | Z6: 75 | AB6: 68 | AC6: 69 | AD6: 70 | AE6: 71 | AF6: 73 | AG6: 74 | AH6: 75 | AI6: 76 | AK6: D | AL6: E | AM6: F | AN6: G | AO6: I | AP6: J | AQ6: K | AR6: L
A7: 6 | B7: DEFGHJKL | C7: 3E | D7: 3G | E7: 3J | F7: 3D | G7: 3H | H7: 3F | I7: 3L | J7: 3K | K7: E | L7: G | M7: J | N7: D | O7: H | P7: F | Q7: L | R7: K | S7: 69 | T7: 71 | U7: 74 | V7: 68 | W7: 72 | X7: 70 | Y7: 76 | Z7: 75 | AB7: 68 | AC7: 69 | AD7: 70 | AE7: 71 | AF7: 72 | AG7: 74 | AH7: 75 | AI7: 76 | AK7: D | AL7: E | AM7: F | AN7: G | AO7: H | AP7: J | AQ7: K | AR7: L
A8: 7 | B8: DEFGHIKL | C8: 3E | D8: 3G | E8: 3I | F8: 3D | G8: 3H | H8: 3F | I8: 3L | J8: 3K | K8: E | L8: G | M8: I | N8: D | O8: H | P8: F | Q8: L | R8: K | S8: 69 | T8: 71 | U8: 73 | V8: 68 | W8: 72 | X8: 70 | Y8: 76 | Z8: 75 | AB8: 68 | AC8: 69 | AD8: 70 | AE8: 71 | AF8: 72 | AG8: 73 | AH8: 75 | AI8: 76 | AK8: D | AL8: E | AM8: F | AN8: G | AO8: H | AP8: I | AQ8: K | AR8: L
A9: 8 | B9: DEFGHIJL | C9: 3E | D9: 3G | E9: 3J | F9: 3D | G9: 3H | H9: 3F | I9: 3L | J9: 3I | K9: E | L9: G | M9: J | N9: D | O9: H | P9: F | Q9: L | R9: I | S9: 69 | T9: 71 | U9: 74 | V9: 68 | W9: 72 | X9: 70 | Y9: 76 | Z9: 73 | AB9: 68 | AC9: 69 | AD9: 70 | AE9: 71 | AF9: 72 | AG9: 73 | AH9: 74 | AI9: 76 | AK9: D | AL9: E | AM9: F | AN9: G | AO9: H | AP9: I | AQ9: J | AR9: L
A10: 9 | B10: DEFGHIJK | C10: 3E | D10: 3G | E10: 3J | F10: 3D | G10: 3H | H10: 3F | I10: 3I | J10: 3K | K10: E | L10: G | M10: J | N10: D | O10: H | P10: F | Q10: I | R10: K | S10: 69 | T10: 71 | U10: 74 | V10: 68 | W10: 72 | X10: 70 | Y10: 73 | Z10: 75 | AB10: 68 | AC10: 69 | AD10: 70 | AE10: 71 | AF10: 72 | AG10: 73 | AH10: 74 | AI10: 75 | AK10: D | AL10: E | AM10: F | AN10: G | AO10: H | AP10: I | AQ10: J | AR10: K
A11: 10 | B11: CFGHIJKL | C11: 3H | D11: 3G | E11: 3I | F11: 3C | G11: 3J | H11: 3F | I11: 3L | J11: 3K | K11: H | L11: G | M11: I | N11: C | O11: J | P11: F | Q11: L | R11: K | S11: 72 | T11: 71 | U11: 73 | V11: 67 | W11: 74 | X11: 70 | Y11: 76 | Z11: 75 | AB11: 67 | AC11: 70 | AD11: 71 | AE11: 72 | AF11: 73 | AG11: 74 | AH11: 75 | AI11: 76 | AK11: C | AL11: F | AM11: G | AN11: H | AO11: I | AP11: J | AQ11: K | AR11: L
A12: 11 | B12: CEGHIJKL | C12: 3E | D12: 3J | E12: 3I | F12: 3C | G12: 3H | H12: 3G | I12: 3L | J12: 3K | K12: E | L12: J | M12: I | N12: C | O12: H | P12: G | Q12: L | R12: K | S12: 69 | T12: 74 | U12: 73 | V12: 67 | W12: 72 | X12: 71 | Y12: 76 | Z12: 75 | AB12: 67 | AC12: 69 | AD12: 71 | AE12: 72 | AF12: 73 | AG12: 74 | AH12: 75 | AI12: 76 | AK12: C | AL12: E | AM12: G | AN12: H | AO12: I | AP12: J | AQ12: K | AR12: L
A13: 12 | B13: CEFHIJKL | C13: 3E | D13: 3J | E13: 3I | F13: 3C | G13: 3H | H13: 3F | I13: 3L | J13: 3K | K13: E | L13: J | M13: I | N13: C | O13: H | P13: F | Q13: L | R13: K | S13: 69 | T13: 74 | U13: 73 | V13: 67 | W13: 72 | X13: 70 | Y13: 76 | Z13: 75 | AB13: 67 | AC13: 69 | AD13: 70 | AE13: 72 | AF13: 73 | AG13: 74 | AH13: 75 | AI13: 76 | AK13: C | AL13: E | AM13: F | AN13: H | AO13: I | AP13: J | AQ13: K | AR13: L
A14: 13 | B14: CEFGIJKL | C14: 3E | D14: 3G | E14: 3I | F14: 3C | G14: 3J | H14: 3F | I14: 3L | J14: 3K | K14: E | L14: G | M14: I | N14: C | O14: J | P14: F | Q14: L | R14: K | S14: 69 | T14: 71 | U14: 73 | V14: 67 | W14: 74 | X14: 70 | Y14: 76 | Z14: 75 | AB14: 67 | AC14: 69 | AD14: 70 | AE14: 71 | AF14: 73 | AG14: 74 | AH14: 75 | AI14: 76 | AK14: C | AL14: E | AM14: F | AN14: G | AO14: I | AP14: J | AQ14: K | AR14: L
A15: 14 | B15: CEFGHJKL | C15: 3E | D15: 3G | E15: 3J | F15: 3C | G15: 3H | H15: 3F | I15: 3L | J15: 3K | K15: E | L15: G | M15: J | N15: C | O15: H | P15: F | Q15: L | R15: K | S15: 69 | T15: 71 | U15: 74 | V15: 67 | W15: 72 | X15: 70 | Y15: 76 | Z15: 75 | AB15: 67 | AC15: 69 | AD15: 70 | AE15: 71 | AF15: 72 | AG15: 74 | AH15: 75 | AI15: 76 | AK15: C | AL15: E | AM15: F | AN15: G | AO15: H | AP15: J | AQ15: K | AR15: L
A16: 15 | B16: CEFGHIKL | C16: 3E | D16: 3G | E16: 3I | F16: 3C | G16: 3H | H16: 3F | I16: 3L | J16: 3K | K16: E | L16: G | M16: I | N16: C | O16: H | P16: F | Q16: L | R16: K | S16: 69 | T16: 71 | U16: 73 | V16: 67 | W16: 72 | X16: 70 | Y16: 76 | Z16: 75 | AB16: 67 | AC16: 69 | AD16: 70 | AE16: 71 | AF16: 72 | AG16: 73 | AH16: 75 | AI16: 76 | AK16: C | AL16: E | AM16: F | AN16: G | AO16: H | AP16: I | AQ16: K | AR16: L
A17: 16 | B17: CEFGHIJL | C17: 3E | D17: 3G | E17: 3J | F17: 3C | G17: 3H | H17: 3F | I17: 3L | J17: 3I | K17: E | L17: G | M17: J | N17: C | O17: H | P17: F | Q17: L | R17: I | S17: 69 | T17: 71 | U17: 74 | V17: 67 | W17: 72 | X17: 70 | Y17: 76 | Z17: 73 | AB17: 67 | AC17: 69 | AD17: 70 | AE17: 71 | AF17: 72 | AG17: 73 | AH17: 74 | AI17: 76 | AK17: C | AL17: E | AM17: F | AN17: G | AO17: H | AP17: I | AQ17: J | AR17: L
A18: 17 | B18: CEFGHIJK | C18: 3E | D18: 3G | E18: 3J | F18: 3C | G18: 3H | H18: 3F | I18: 3I | J18: 3K | K18: E | L18: =MID(D18,2,1) -> G | M18: =MID(E18,2,1) -> J | N18: =MID(F18,2,1) -> C | O18: =MID(G18,2,1) -> H | P18: =MID(H18,2,1) -> F | Q18: =MID(I18,2,1) -> I | R18: =MID(J18,2,1) -> K | S18: 69 | T18: =CODE(L18) -> 71 | U18: =CODE(M18) -> 74 | V18: =CODE(N18) -> 67 | W18: =CODE(O18) -> 72 | X18: =CODE(P18) -> 70 | Y18: =CODE(Q18) -> 73 | Z18: =CODE(R18) -> 75 | AB18: 67 | AC18: 69 | AD18: 70 | AE18: 71 | AF18: 72 | AG18: 73 | AH18: 74 | AI18: 75 | AK18: C | AL18: =CHAR(AC18) -> E | AM18: =CHAR(AD18) -> F | AN18: =CHAR(AE18) -> G | AO18: =CHAR(AF18) -> H | AP18: =CHAR(AG18) -> I | AQ18: =CHAR(AH18) -> J | AR18: =CHAR(AI18) -> K
A19: 18 | B19: CDGHIJKL | C19: 3H | D19: 3G | E19: 3I | F19: 3C | G19: 3J | H19: 3D | I19: 3L | J19: 3K | K19: H | L19: G | M19: I | N19: C | O19: J | P19: D | Q19: L | R19: K | S19: 72 | T19: 71 | U19: 73 | V19: 67 | W19: 74 | X19: 68 | Y19: 76 | Z19: 75 | AB19: 67 | AC19: 68 | AD19: 71 | AE19: 72 | AF19: 73 | AG19: 74 | AH19: 75 | AI19: 76 | AK19: C | AL19: D | AM19: G | AN19: H | AO19: I | AP19: J | AQ19: K | AR19: L
A20: 19 | B20: CDFHIJKL | C20: 3C | D20: 3J | E20: 3I | F20: 3D | G20: 3H | H20: 3F | I20: 3L | J20: 3K | K20: C | L20: J | M20: I | N20: D | O20: H | P20: F | Q20: L | R20: K | S20: 67 | T20: 74 | U20: 73 | V20: 68 | W20: 72 | X20: 70 | Y20: 76 | Z20: 75 | AB20: 67 | AC20: 68 | AD20: 70 | AE20: 72 | AF20: 73 | AG20: 74 | AH20: 75 | AI20: 76 | AK20: C | AL20: D | AM20: F | AN20: H | AO20: I | AP20: J | AQ20: K | AR20: L
A21: 20 | B21: CDFGIJKL | C21: 3C | D21: 3G | E21: 3I | F21: 3D | G21: 3J | H21: 3F | I21: 3L | J21: 3K | K21: C | L21: G | M21: I | N21: D | O21: J | P21: F | Q21: L | R21: K | S21: 67 | T21: 71 | U21: 73 | V21: 68 | W21: 74 | X21: 70 | Y21: 76 | Z21: 75 | AB21: 67 | AC21: 68 | AD21: 70 | AE21: 71 | AF21: 73 | AG21: 74 | AH21: 75 | AI21: 76 | AK21: C | AL21: D | AM21: F | AN21: G | AO21: I | AP21: J | AQ21: K | AR21: L
A22: 21 | B22: CDFGHJKL | C22: 3C | D22: 3G | E22: 3J | F22: 3D | G22: 3H | H22: 3F | I22: 3L | J22: 3K | K22: C | L22: G | M22: J | N22: D | O22: H | P22: F | Q22: L | R22: K | S22: 67 | T22: 71 | U22: 74 | V22: 68 | W22: 72 | X22: 70 | Y22: 76 | Z22: 75 | AB22: 67 | AC22: 68 | AD22: 70 | AE22: 71 | AF22: 72 | AG22: 74 | AH22: 75 | AI22: 76 | AK22: C | AL22: D | AM22: F | AN22: G | AO22: H | AP22: J | AQ22: K | AR22: L
A23: 22 | B23: CDFGHIKL | C23: 3C | D23: 3G | E23: 3I | F23: 3D | G23: 3H | H23: 3F | I23: 3L | J23: 3K | K23: C | L23: G | M23: I | N23: D | O23: H | P23: F | Q23: L | R23: K | S23: 67 | T23: 71 | U23: 73 | V23: 68 | W23: 72 | X23: 70 | Y23: 76 | Z23: 75 | AB23: 67 | AC23: 68 | AD23: 70 | AE23: 71 | AF23: 72 | AG23: 73 | AH23: 75 | AI23: 76 | AK23: C | AL23: D | AM23: F | AN23: G | AO23: H | AP23: I | AQ23: K | AR23: L
A24: 23 | B24: CDFGHIJL | C24: 3C | D24: 3G | E24: 3J | F24: 3D | G24: 3H | H24: 3F | I24: 3L | J24: 3I | K24: C | L24: G | M24: J | N24: D | O24: H | P24: F | Q24: L | R24: I | S24: 67 | T24: 71 | U24: 74 | V24: 68 | W24: 72 | X24: 70 | Y24: 76 | Z24: 73 | AB24: 67 | AC24: 68 | AD24: 70 | AE24: 71 | AF24: 72 | AG24: 73 | AH24: 74 | AI24: 76 | AK24: C | AL24: D | AM24: F | AN24: G | AO24: H | AP24: I | AQ24: J | AR24: L
A25: 24 | B25: CDFGHIJK | C25: 3C | D25: 3G | E25: 3J | F25: 3D | G25: 3H | H25: 3F | I25: 3I | J25: 3K | K25: C | L25: G | M25: J | N25: D | O25: H | P25: F | Q25: I | R25: K | S25: 67 | T25: 71 | U25: 74 | V25: 68 | W25: 72 | X25: 70 | Y25: 73 | Z25: 75 | AB25: 67 | AC25: 68 | AD25: 70 | AE25: 71 | AF25: 72 | AG25: 73 | AH25: 74 | AI25: 75 | AK25: C | AL25: D | AM25: F | AN25: G | AO25: H | AP25: I | AQ25: J | AR25: K
A26: 25 | B26: CDEHIJKL | C26: 3E | D26: 3J | E26: 3I | F26: 3C | G26: 3H | H26: 3D | I26: 3L | J26: 3K | K26: E | L26: J | M26: I | N26: C | O26: H | P26: D | Q26: L | R26: K | S26: 69 | T26: 74 | U26: 73 | V26: 67 | W26: 72 | X26: 68 | Y26: 76 | Z26: 75 | AB26: 67 | AC26: 68 | AD26: 69 | AE26: 72 | AF26: 73 | AG26: 74 | AH26: 75 | AI26: 76 | AK26: C | AL26: D | AM26: E | AN26: H | AO26: I | AP26: J | AQ26: K | AR26: L
A27: 26 | B27: CDEGIJKL | C27: 3E | D27: 3G | E27: 3I | F27: 3C | G27: 3J | H27: 3D | I27: 3L | J27: 3K | K27: E | L27: G | M27: I | N27: C | O27: J | P27: D | Q27: L | R27: K | S27: 69 | T27: 71 | U27: 73 | V27: 67 | W27: 74 | X27: 68 | Y27: 76 | Z27: 75 | AB27: 67 | AC27: 68 | AD27: 69 | AE27: 71 | AF27: 73 | AG27: 74 | AH27: 75 | AI27: 76 | AK27: C | AL27: D | AM27: E | AN27: G | AO27: I | AP27: J | AQ27: K | AR27: L
A28: 27 | B28: CDEGHJKL | C28: 3E | D28: 3G | E28: 3J | F28: 3C | G28: 3H | H28: 3D | I28: 3L | J28: 3K | K28: E | L28: G | M28: J | N28: C | O28: H | P28: D | Q28: L | R28: K | S28: 69 | T28: 71 | U28: 74 | V28: 67 | W28: 72 | X28: 68 | Y28: 76 | Z28: 75 | AB28: 67 | AC28: 68 | AD28: 69 | AE28: 71 | AF28: 72 | AG28: 74 | AH28: 75 | AI28: 76 | AK28: C | AL28: D | AM28: E | AN28: G | AO28: H | AP28: J | AQ28: K | AR28: L
A29: 28 | B29: CDEGHIKL | C29: 3E | D29: 3G | E29: 3I | F29: 3C | G29: 3H | H29: 3D | I29: 3L | J29: 3K | K29: E | L29: G | M29: I | N29: C | O29: H | P29: D | Q29: L | R29: K | S29: 69 | T29: 71 | U29: 73 | V29: 67 | W29: 72 | X29: 68 | Y29: 76 | Z29: 75 | AB29: 67 | AC29: 68 | AD29: 69 | AE29: 71 | AF29: 72 | AG29: 73 | AH29: 75 | AI29: 76 | AK29: C | AL29: D | AM29: E | AN29: G | AO29: H | AP29: I | AQ29: K | AR29: L
A30: 29 | B30: CDEGHIJL | C30: 3E | D30: 3G | E30: 3J | F30: 3C | G30: 3H | H30: 3D | I30: 3L | J30: 3I | K30: E | L30: G | M30: J | N30: C | O30: H | P30: D | Q30: L | R30: I | S30: 69 | T30: 71 | U30: 74 | V30: 67 | W30: 72 | X30: 68 | Y30: 76 | Z30: 73 | AB30: 67 | AC30: 68 | AD30: 69 | AE30: 71 | AF30: 72 | AG30: 73 | AH30: 74 | AI30: 76 | AK30: C | AL30: D | AM30: E | AN30: G | AO30: H | AP30: I | AQ30: J | AR30: L
A31: 30 | B31: CDEGHIJK | C31: 3E | D31: 3G | E31: 3J | F31: 3C | G31: 3H | H31: 3D | I31: 3I | J31: 3K | K31: E | L31: G | M31: J | N31: C | O31: H | P31: D | Q31: I | R31: K | S31: 69 | T31: 71 | U31: 74 | V31: 67 | W31: 72 | X31: 68 | Y31: 73 | Z31: 75 | AB31: 67 | AC31: 68 | AD31: 69 | AE31: 71 | AF31: 72 | AG31: 73 | AH31: 74 | AI31: 75 | AK31: C | AL31: D | AM31: E | AN31: G | AO31: H | AP31: I | AQ31: J | AR31: K
A32: 31 | B32: CDEFIJKL | C32: 3C | D32: 3J | E32: 3E | F32: 3D | G32: 3I | H32: 3F | I32: 3L | J32: 3K | K32: C | L32: J | M32: E | N32: D | O32: I | P32: F | Q32: L | R32: K | S32: 67 | T32: 74 | U32: 69 | V32: 68 | W32: 73 | X32: 70 | Y32: 76 | Z32: 75 | AB32: 67 | AC32: 68 | AD32: 69 | AE32: 70 | AF32: 73 | AG32: 74 | AH32: 75 | AI32: 76 | AK32: C | AL32: D | AM32: E | AN32: F | AO32: I | AP32: J | AQ32: K | AR32: L
A33: 32 | B33: CDEFHJKL | C33: 3C | D33: 3J | E33: 3E | F33: 3D | G33: 3H | H33: 3F | I33: 3L | J33: 3K | K33: C | L33: J | M33: E | N33: D | O33: H | P33: F | Q33: L | R33: K | S33: 67 | T33: 74 | U33: 69 | V33: 68 | W33: 72 | X33: 70 | Y33: 76 | Z33: 75 | AB33: 67 | AC33: 68 | AD33: 69 | AE33: 70 | AF33: 72 | AG33: 74 | AH33: 75 | AI33: 76 | AK33: C | AL33: D | AM33: E | AN33: F | AO33: H | AP33: J | AQ33: K | AR33: L
A34: 33 | B34: CDEFHIKL | C34: 3C | D34: 3E | E34: 3I | F34: 3D | G34: 3H | H34: 3F | I34: 3L | J34: 3K | K34: =MID(C34,2,1) -> C | L34: E | M34: I | N34: D | O34: H | P34: F | Q34: L | R34: K | S34: =CODE(K34) -> 67 | T34: 69 | U34: 73 | V34: 68 | W34: 72 | X34: 70 | Y34: 76 | Z34: 75 | AB34: 67 | AC34: 68 | AD34: 69 | AE34: 70 | AF34: 72 | AG34: 73 | AH34: 75 | AI34: 76 | AK34: =CHAR(AB34) -> C | AL34: D | AM34: E | AN34: F | AO34: H | AP34: I | AQ34: K | AR34: L
A35: 34 | B35: CDEFHIJL | C35: 3C | D35: 3J | E35: 3E | F35: 3D | G35: 3H | H35: 3F | I35: 3L | J35: 3I | K35: C | L35: J | M35: E | N35: D | O35: H | P35: F | Q35: L | R35: I | S35: 67 | T35: 74 | U35: 69 | V35: 68 | W35: 72 | X35: 70 | Y35: 76 | Z35: 73 | AB35: 67 | AC35: 68 | AD35: 69 | AE35: 70 | AF35: 72 | AG35: 73 | AH35: 74 | AI35: 76 | AK35: C | AL35: D | AM35: E | AN35: F | AO35: H | AP35: I | AQ35: J | AR35: L
A36: 35 | B36: CDEFHIJK | C36: 3C | D36: 3J | E36: 3E | F36: 3D | G36: 3H | H36: 3F | I36: 3I | J36: 3K | K36: C | L36: J | M36: E | N36: D | O36: H | P36: F | Q36: I | R36: K | S36: 67 | T36: 74 | U36: 69 | V36: 68 | W36: 72 | X36: 70 | Y36: 73 | Z36: 75 | AB36: 67 | AC36: 68 | AD36: 69 | AE36: 70 | AF36: 72 | AG36: 73 | AH36: 74 | AI36: 75 | AK36: C | AL36: D | AM36: E | AN36: F | AO36: H | AP36: I | AQ36: J | AR36: K
A37: 36 | B37: CDEFGJKL | C37: 3C | D37: 3G | E37: 3E | F37: 3D | G37: 3J | H37: 3F | I37: 3L | J37: 3K | K37: C | L37: G | M37: E | N37: D | O37: J | P37: F | Q37: L | R37: K | S37: 67 | T37: 71 | U37: 69 | V37: 68 | W37: 74 | X37: 70 | Y37: 76 | Z37: 75 | AB37: 67 | AC37: 68 | AD37: 69 | AE37: 70 | AF37: 71 | AG37: 74 | AH37: 75 | AI37: 76 | AK37: C | AL37: D | AM37: E | AN37: F | AO37: G | AP37: J | AQ37: K | AR37: L
A38: 37 | B38: CDEFGIKL | C38: 3C | D38: 3G | E38: 3E | F38: 3D | G38: 3I | H38: 3F | I38: 3L | J38: 3K | K38: C | L38: G | M38: E | N38: D | O38: I | P38: F | Q38: L | R38: K | S38: 67 | T38: 71 | U38: 69 | V38: 68 | W38: 73 | X38: 70 | Y38: 76 | Z38: 75 | AB38: 67 | AC38: 68 | AD38: 69 | AE38: 70 | AF38: 71 | AG38: 73 | AH38: 75 | AI38: 76 | AK38: C | AL38: D | AM38: E | AN38: F | AO38: G | AP38: I | AQ38: K | AR38: L
A39: 38 | B39: CDEFGIJL | C39: 3C | D39: 3G | E39: 3E | F39: 3D | G39: 3J | H39: 3F | I39: 3L | J39: 3I | K39: C | L39: G | M39: E | N39: D | O39: J | P39: F | Q39: L | R39: I | S39: 67 | T39: 71 | U39: 69 | V39: 68 | W39: 74 | X39: 70 | Y39: 76 | Z39: 73 | AB39: 67 | AC39: 68 | AD39: 69 | AE39: 70 | AF39: 71 | AG39: 73 | AH39: 74 | AI39: 76 | AK39: C | AL39: D | AM39: E | AN39: F | AO39: G | AP39: I | AQ39: J | AR39: L
A40: 39 | B40: CDEFGIJK | C40: 3C | D40: 3G | E40: 3E | F40: 3D | G40: 3J | H40: 3F | I40: 3I | J40: 3K | K40: C | L40: G | M40: E | N40: D | O40: J | P40: F | Q40: I | R40: K | S40: 67 | T40: 71 | U40: 69 | V40: 68 | W40: 74 | X40: 70 | Y40: 73 | Z40: 75 | AB40: 67 | AC40: 68 | AD40: 69 | AE40: 70 | AF40: 71 | AG40: 73 | AH40: 74 | AI40: 75 | AK40: C | AL40: D | AM40: E | AN40: F | AO40: G | AP40: I | AQ40: J | AR40: K
A41: 40 | B41: CDEFGHKL | C41: 3C | D41: 3G | E41: 3E | F41: 3D | G41: 3H | H41: 3F | I41: 3L | J41: 3K | K41: C | L41: G | M41: E | N41: D | O41: H | P41: F | Q41: L | R41: K | S41: 67 | T41: 71 | U41: 69 | V41: 68 | W41: 72 | X41: 70 | Y41: 76 | Z41: 75 | AB41: 67 | AC41: 68 | AD41: 69 | AE41: 70 | AF41: 71 | AG41: 72 | AH41: 75 | AI41: 76 | AK41: C | AL41: D | AM41: E | AN41: F | AO41: G | AP41: H | AQ41: K | AR41: L
A42: 41 | B42: CDEFGHJL | C42: 3C | D42: 3G | E42: 3J | F42: 3D | G42: 3H | H42: 3F | I42: 3L | J42: 3E | K42: C | L42: G | M42: J | N42: D | O42: H | P42: F | Q42: L | R42: E | S42: 67 | T42: 71 | U42: 74 | V42: 68 | W42: 72 | X42: 70 | Y42: 76 | Z42: 69 | AB42: 67 | AC42: 68 | AD42: 69 | AE42: 70 | AF42: 71 | AG42: 72 | AH42: 74 | AI42: 76 | AK42: C | AL42: D | AM42: E | AN42: F | AO42: G | AP42: H | AQ42: J | AR42: L
A43: 42 | B43: CDEFGHJK | C43: 3C | D43: 3G | E43: 3J | F43: 3D | G43: 3H | H43: 3F | I43: 3E | J43: 3K | K43: C | L43: G | M43: J | N43: D | O43: H | P43: F | Q43: E | R43: K | S43: 67 | T43: 71 | U43: 74 | V43: 68 | W43: 72 | X43: 70 | Y43: 69 | Z43: 75 | AB43: 67 | AC43: 68 | AD43: 69 | AE43: 70 | AF43: 71 | AG43: 72 | AH43: 74 | AI43: 75 | AK43: C | AL43: D | AM43: E | AN43: F | AO43: G | AP43: H | AQ43: J | AR43: K
A44: 43 | B44: CDEFGHIL | C44: 3C | D44: 3G | E44: 3E | F44: 3D | G44: 3H | H44: 3F | I44: 3L | J44: 3I | K44: C | L44: G | M44: E | N44: D | O44: H | P44: F | Q44: L | R44: I | S44: 67 | T44: 71 | U44: 69 | V44: 68 | W44: 72 | X44: 70 | Y44: 76 | Z44: 73 | AB44: 67 | AC44: 68 | AD44: 69 | AE44: 70 | AF44: 71 | AG44: 72 | AH44: 73 | AI44: 76 | AK44: C | AL44: D | AM44: E | AN44: F | AO44: G | AP44: H | AQ44: I | AR44: L
A45: 44 | B45: CDEFGHIK | C45: 3C | D45: 3G | E45: 3E | F45: 3D | G45: 3H | H45: 3F | I45: 3I | J45: 3K | K45: C | L45: G | M45: E | N45: D | O45: H | P45: F | Q45: I | R45: K | S45: 67 | T45: 71 | U45: 69 | V45: 68 | W45: 72 | X45: 70 | Y45: 73 | Z45: 75 | AB45: 67 | AC45: 68 | AD45: 69 | AE45: 70 | AF45: 71 | AG45: 72 | AH45: 73 | AI45: 75 | AK45: C | AL45: D | AM45: E | AN45: F | AO45: G | AP45: H | AQ45: I | AR45: K
A46: 45 | B46: CDEFGHIJ | C46: 3C | D46: 3G | E46: 3J | F46: 3D | G46: 3H | H46: 3F | I46: 3E | J46: 3I | K46: C | L46: G | M46: J | N46: D | O46: H | P46: F | Q46: E | R46: I | S46: 67 | T46: 71 | U46: 74 | V46: 68 | W46: 72 | X46: 70 | Y46: 69 | Z46: 73 | AB46: 67 | AC46: 68 | AD46: 69 | AE46: 70 | AF46: 71 | AG46: 72 | AH46: 73 | AI46: 74 | AK46: C | AL46: D | AM46: E | AN46: F | AO46: G | AP46: H | AQ46: I | AR46: J
A47: 46 | B47: BFGHIJKL | C47: 3H | D47: 3J | E47: 3B | F47: 3F | G47: 3I | H47: 3G | I47: 3L | J47: 3K | K47: H | L47: J | M47: B | N47: F | O47: I | P47: G | Q47: L | R47: K | S47: 72 | T47: 74 | U47: 66 | V47: 70 | W47: 73 | X47: 71 | Y47: 76 | Z47: 75 | AB47: 66 | AC47: 70 | AD47: 71 | AE47: 72 | AF47: 73 | AG47: 74 | AH47: 75 | AI47: 76 | AK47: B | AL47: F | AM47: G | AN47: H | AO47: I | AP47: J | AQ47: K | AR47: L
A48: 47 | B48: BEGHIJKL | C48: 3E | D48: 3J | E48: 3I | F48: 3B | G48: 3H | H48: 3G | I48: 3L | J48: 3K | K48: E | L48: J | M48: I | N48: B | O48: H | P48: G | Q48: L | R48: K | S48: 69 | T48: 74 | U48: 73 | V48: 66 | W48: 72 | X48: 71 | Y48: 76 | Z48: 75 | AB48: 66 | AC48: 69 | AD48: 71 | AE48: 72 | AF48: 73 | AG48: 74 | AH48: 75 | AI48: 76 | AK48: B | AL48: E | AM48: G | AN48: H | AO48: I | AP48: J | AQ48: K | AR48: L
A49: 48 | B49: BEFHIJKL | C49: 3E | D49: 3J | E49: 3B | F49: 3F | G49: 3I | H49: 3H | I49: 3L | J49: 3K | K49: E | L49: J | M49: B | N49: F | O49: I | P49: H | Q49: L | R49: K | S49: 69 | T49: 74 | U49: 66 | V49: 70 | W49: 73 | X49: 72 | Y49: 76 | Z49: 75 | AB49: 66 | AC49: 69 | AD49: 70 | AE49: 72 | AF49: 73 | AG49: 74 | AH49: 75 | AI49: 76 | AK49: B | AL49: E | AM49: F | AN49: H | AO49: I | AP49: J | AQ49: K | AR49: L
A50: 49 | B50: BEFGIJKL | C50: 3E | D50: 3J | E50: 3B | F50: 3F | G50: 3I | H50: 3G | I50: 3L | J50: 3K | K50: E | L50: =MID(D50,2,1) -> J | M50: =MID(E50,2,1) -> B | N50: =MID(F50,2,1) -> F | O50: =MID(G50,2,1) -> I | P50: =MID(H50,2,1) -> G | Q50: =MID(I50,2,1) -> L | R50: =MID(J50,2,1) -> K | S50: 69 | T50: =CODE(L50) -> 74 | U50: =CODE(M50) -> 66 | V50: =CODE(N50) -> 70 | W50: =CODE(O50) -> 73 | X50: =CODE(P50) -> 71 | Y50: =CODE(Q50) -> 76 | Z50: =CODE(R50) -> 75 | AB50: 66 | AC50: 69 | AD50: 70 | AE50: 71 | AF50: 73 | AG50: 74 | AH50: 75 | AI50: 76 | AK50: B | AL50: =CHAR(AC50) -> E | AM50: =CHAR(AD50) -> F | AN50: =CHAR(AE50) -> G | AO50: =CHAR(AF50) -> I | AP50: =CHAR(AG50) -> J | AQ50: =CHAR(AH50) -> K | AR50: =CHAR(AI50) -> L
A51: 50 | B51: BEFGHJKL | C51: 3E | D51: 3J | E51: 3B | F51: 3F | G51: 3H | H51: 3G | I51: 3L | J51: 3K | K51: E | L51: J | M51: B | N51: F | O51: H | P51: G | Q51: L | R51: K | S51: 69 | T51: 74 | U51: 66 | V51: 70 | W51: 72 | X51: 71 | Y51: 76 | Z51: 75 | AB51: 66 | AC51: 69 | AD51: 70 | AE51: 71 | AF51: 72 | AG51: 74 | AH51: 75 | AI51: 76 | AK51: B | AL51: E | AM51: F | AN51: G | AO51: H | AP51: J | AQ51: K | AR51: L
A52: 51 | B52: BEFGHIKL | C52: 3E | D52: 3G | E52: 3B | F52: 3F | G52: 3I | H52: 3H | I52: 3L | J52: 3K | K52: E | L52: G | M52: B | N52: F | O52: I | P52: H | Q52: L | R52: K | S52: 69 | T52: 71 | U52: 66 | V52: 70 | W52: 73 | X52: 72 | Y52: 76 | Z52: 75 | AB52: 66 | AC52: 69 | AD52: 70 | AE52: 71 | AF52: 72 | AG52: 73 | AH52: 75 | AI52: 76 | AK52: B | AL52: E | AM52: F | AN52: G | AO52: H | AP52: I | AQ52: K | AR52: L
A53: 52 | B53: BEFGHIJL | C53: 3E | D53: 3J | E53: 3B | F53: 3F | G53: 3H | H53: 3G | I53: 3L | J53: 3I | K53: E | L53: J | M53: B | N53: F | O53: H | P53: G | Q53: L | R53: I | S53: 69 | T53: 74 | U53: 66 | V53: 70 | W53: 72 | X53: 71 | Y53: 76 | Z53: 73 | AB53: 66 | AC53: 69 | AD53: 70 | AE53: 71 | AF53: 72 | AG53: 73 | AH53: 74 | AI53: 76 | AK53: B | AL53: E | AM53: F | AN53: G | AO53: H | AP53: I | AQ53: J | AR53: L
A54: 53 | B54: BEFGHIJK | C54: 3E | D54: 3J | E54: 3B | F54: 3F | G54: 3H | H54: 3G | I54: 3I | J54: 3K | K54: E | L54: J | M54: B | N54: F | O54: H | P54: G | Q54: I | R54: K | S54: 69 | T54: 74 | U54: 66 | V54: 70 | W54: 72 | X54: 71 | Y54: 73 | Z54: 75 | AB54: 66 | AC54: 69 | AD54: 70 | AE54: 71 | AF54: 72 | AG54: 73 | AH54: 74 | AI54: 75 | AK54: B | AL54: E | AM54: F | AN54: G | AO54: H | AP54: I | AQ54: J | AR54: K
A55: 54 | B55: BDGHIJKL | C55: 3H | D55: 3J | E55: 3B | F55: 3D | G55: 3I | H55: 3G | I55: 3L | J55: 3K | K55: H | L55: J | M55: B | N55: D | O55: I | P55: G | Q55: L | R55: K | S55: 72 | T55: 74 | U55: 66 | V55: 68 | W55: 73 | X55: 71 | Y55: 76 | Z55: 75 | AB55: 66 | AC55: 68 | AD55: 71 | AE55: 72 | AF55: 73 | AG55: 74 | AH55: 75 | AI55: 76 | AK55: B | AL55: D | AM55: G | AN55: H | AO55: I | AP55: J | AQ55: K | AR55: L
A56: 55 | B56: BDFHIJKL | C56: 3H | D56: 3J | E56: 3B | F56: 3D | G56: 3I | H56: 3F | I56: 3L | J56: 3K | K56: H | L56: J | M56: B | N56: D | O56: I | P56: F | Q56: L | R56: K | S56: 72 | T56: 74 | U56: 66 | V56: 68 | W56: 73 | X56: 70 | Y56: 76 | Z56: 75 | AB56: 66 | AC56: 68 | AD56: 70 | AE56: 72 | AF56: 73 | AG56: 74 | AH56: 75 | AI56: 76 | AK56: B | AL56: D | AM56: F | AN56: H | AO56: I | AP56: J | AQ56: K | AR56: L
A57: 56 | B57: BDFGIJKL | C57: 3I | D57: 3G | E57: 3B | F57: 3D | G57: 3J | H57: 3F | I57: 3L | J57: 3K | K57: I | L57: G | M57: B | N57: D | O57: J | P57: F | Q57: L | R57: K | S57: 73 | T57: 71 | U57: 66 | V57: 68 | W57: 74 | X57: 70 | Y57: 76 | Z57: 75 | AB57: 66 | AC57: 68 | AD57: 70 | AE57: 71 | AF57: 73 | AG57: 74 | AH57: 75 | AI57: 76 | AK57: B | AL57: D | AM57: F | AN57: G | AO57: I | AP57: J | AQ57: K | AR57: L
A58: 57 | B58: BDFGHJKL | C58: 3H | D58: 3G | E58: 3B | F58: 3D | G58: 3J | H58: 3F | I58: 3L | J58: 3K | K58: H | L58: G | M58: B | N58: D | O58: J | P58: F | Q58: L | R58: K | S58: 72 | T58: 71 | U58: 66 | V58: 68 | W58: 74 | X58: 70 | Y58: 76 | Z58: 75 | AB58: 66 | AC58: 68 | AD58: 70 | AE58: 71 | AF58: 72 | AG58: 74 | AH58: 75 | AI58: 76 | AK58: B | AL58: D | AM58: F | AN58: G | AO58: H | AP58: J | AQ58: K | AR58: L
A59: 58 | B59: BDFGHIKL | C59: 3H | D59: 3G | E59: 3B | F59: 3D | G59: 3I | H59: 3F | I59: 3L | J59: 3K | K59: H | L59: G | M59: B | N59: D | O59: I | P59: F | Q59: L | R59: K | S59: 72 | T59: 71 | U59: 66 | V59: 68 | W59: 73 | X59: 70 | Y59: 76 | Z59: 75 | AB59: 66 | AC59: 68 | AD59: 70 | AE59: 71 | AF59: 72 | AG59: 73 | AH59: 75 | AI59: 76 | AK59: B | AL59: D | AM59: F | AN59: G | AO59: H | AP59: I | AQ59: K | AR59: L
A60: 59 | B60: BDFGHIJL | C60: 3H | D60: 3G | E60: 3B | F60: 3D | G60: 3J | H60: 3F | I60: 3L | J60: 3I | K60: H | L60: G | M60: B | N60: D | O60: J | P60: F | Q60: L | R60: I | S60: 72 | T60: 71 | U60: 66 | V60: 68 | W60: 74 | X60: 70 | Y60: 76 | Z60: 73 | AB60: 66 | AC60: 68 | AD60: 70 | AE60: 71 | AF60: 72 | AG60: 73 | AH60: 74 | AI60: 76 | AK60: B | AL60: D | AM60: F | AN60: G | AO60: H | AP60: I | AQ60: J | AR60: L
A61: 60 | B61: BDFGHIJK | C61: 3H | D61: 3G | E61: 3B | F61: 3D | G61: 3J | H61: 3F | I61: 3I | J61: 3K | K61: H | L61: G | M61: B | N61: D | O61: J | P61: F | Q61: I | R61: K | S61: 72 | T61: 71 | U61: 66 | V61: 68 | W61: 74 | X61: 70 | Y61: 73 | Z61: 75 | AB61: 66 | AC61: 68 | AD61: 70 | AE61: 71 | AF61: 72 | AG61: 73 | AH61: 74 | AI61: 75 | AK61: B | AL61: D | AM61: F | AN61: G | AO61: H | AP61: I | AQ61: J | AR61: K
A62: 61 | B62: BDEHIJKL | C62: 3E | D62: 3J | E62: 3B | F62: 3D | G62: 3I | H62: 3H | I62: 3L | J62: 3K | K62: E | L62: J | M62: B | N62: D | O62: I | P62: H | Q62: L | R62: K | S62: 69 | T62: 74 | U62: 66 | V62: 68 | W62: 73 | X62: 72 | Y62: 76 | Z62: 75 | AB62: 66 | AC62: 68 | AD62: 69 | AE62: 72 | AF62: 73 | AG62: 74 | AH62: 75 | AI62: 76 | AK62: B | AL62: D | AM62: E | AN62: H | AO62: I | AP62: J | AQ62: K | AR62: L
A63: 62 | B63: BDEGIJKL | C63: 3E | D63: 3J | E63: 3B | F63: 3D | G63: 3I | H63: 3G | I63: 3L | J63: 3K | K63: E | L63: J | M63: B | N63: D | O63: I | P63: G | Q63: L | R63: K | S63: 69 | T63: 74 | U63: 66 | V63: 68 | W63: 73 | X63: 71 | Y63: 76 | Z63: 75 | AB63: 66 | AC63: 68 | AD63: 69 | AE63: 71 | AF63: 73 | AG63: 74 | AH63: 75 | AI63: 76 | AK63: B | AL63: D | AM63: E | AN63: G | AO63: I | AP63: J | AQ63: K | AR63: L
A64: 63 | B64: BDEGHJKL | C64: 3E | D64: 3J | E64: 3B | F64: 3D | G64: 3H | H64: 3G | I64: 3L | J64: 3K | K64: E | L64: J | M64: B | N64: D | O64: H | P64: G | Q64: L | R64: K | S64: 69 | T64: 74 | U64: 66 | V64: 68 | W64: 72 | X64: 71 | Y64: 76 | Z64: 75 | AB64: 66 | AC64: 68 | AD64: 69 | AE64: 71 | AF64: 72 | AG64: 74 | AH64: 75 | AI64: 76 | AK64: B | AL64: D | AM64: E | AN64: G | AO64: H | AP64: J | AQ64: K | AR64: L
A65: 64 | B65: BDEGHIKL | C65: 3E | D65: 3G | E65: 3B | F65: 3D | G65: 3I | H65: 3H | I65: 3L | J65: 3K | K65: E | L65: G | M65: B | N65: D | O65: I | P65: H | Q65: L | R65: K | S65: 69 | T65: 71 | U65: 66 | V65: 68 | W65: 73 | X65: 72 | Y65: 76 | Z65: 75 | AB65: 66 | AC65: 68 | AD65: 69 | AE65: 71 | AF65: 72 | AG65: 73 | AH65: 75 | AI65: 76 | AK65: B | AL65: D | AM65: E | AN65: G | AO65: H | AP65: I | AQ65: K | AR65: L
A66: 65 | B66: BDEGHIJL | C66: 3E | D66: 3J | E66: 3B | F66: 3D | G66: 3H | H66: 3G | I66: 3L | J66: 3I | K66: =MID(C66,2,1) -> E | L66: J | M66: B | N66: D | O66: H | P66: G | Q66: L | R66: I | S66: =CODE(K66) -> 69 | T66: 74 | U66: 66 | V66: 68 | W66: 72 | X66: 71 | Y66: 76 | Z66: 73 | AB66: 66 | AC66: 68 | AD66: 69 | AE66: 71 | AF66: 72 | AG66: 73 | AH66: 74 | AI66: 76 | AK66: =CHAR(AB66) -> B | AL66: D | AM66: E | AN66: G | AO66: H | AP66: I | AQ66: J | AR66: L
A67: 66 | B67: =CONCATENATE(AK67,AL67,AM67,AN67,AO67,AP67,AQ67,AR67) -> BDEGHIJK | C67: 3E | D67: 3J | E67: 3B | F67: 3D | G67: 3H | H67: 3G | I67: 3I | J67: 3K | K67: E | L67: J | M67: B | N67: D | O67: H | P67: G | Q67: I | R67: K | S67: 69 | T67: 74 | U67: 66 | V67: 68 | W67: 72 | X67: 71 | Y67: 73 | Z67: 75 | AB67: =SMALL($S67:$Z67,1) -> 66 | AC67: =SMALL($S67:$Z67,2) -> 68 | AD67: =SMALL($S67:$Z67,3) -> 69 | AE67: =SMALL($S67:$Z67,4) -> 71 | AF67: =SMALL($S67:$Z67,5) -> 72 | AG67: =SMALL($S67:$Z67,6) -> 73 | AH67: =SMALL($S67:$Z67,7) -> 74 | AI67: =SMALL($S67:$Z67,8) -> 75 | AK67: B | AL67: D | AM67: E | AN67: G | AO67: H | AP67: I | AQ67: J | AR67: K
A68: 67 | B68: BDEFIJKL | C68: 3E | D68: 3J | E68: 3B | F68: 3D | G68: 3I | H68: 3F | I68: 3L | J68: 3K | K68: E | L68: J | M68: B | N68: D | O68: I | P68: F | Q68: L | R68: K | S68: 69 | T68: 74 | U68: 66 | V68: 68 | W68: 73 | X68: 70 | Y68: 76 | Z68: 75 | AB68: 66 | AC68: 68 | AD68: 69 | AE68: 70 | AF68: 73 | AG68: 74 | AH68: 75 | AI68: 76 | AK68: B | AL68: D | AM68: E | AN68: F | AO68: I | AP68: J | AQ68: K | AR68: L
A69: 68 | B69: BDEFHJKL | C69: 3E | D69: 3J | E69: 3B | F69: 3D | G69: 3H | H69: 3F | I69: 3L | J69: 3K | K69: E | L69: J | M69: B | N69: D | O69: H | P69: F | Q69: L | R69: K | S69: 69 | T69: 74 | U69: 66 | V69: 68 | W69: 72 | X69: 70 | Y69: 76 | Z69: 75 | AB69: 66 | AC69: 68 | AD69: 69 | AE69: 70 | AF69: 72 | AG69: 74 | AH69: 75 | AI69: 76 | AK69: B | AL69: D | AM69: E | AN69: F | AO69: H | AP69: J | AQ69: K | AR69: L
A70: 69 | B70: BDEFHIKL | C70: 3E | D70: 3I | E70: 3B | F70: 3D | G70: 3H | H70: 3F | I70: 3L | J70: 3K | K70: E | L70: I | M70: B | N70: D | O70: H | P70: F | Q70: L | R70: K | S70: 69 | T70: 73 | U70: 66 | V70: 68 | W70: 72 | X70: 70 | Y70: 76 | Z70: 75 | AB70: 66 | AC70: 68 | AD70: 69 | AE70: 70 | AF70: 72 | AG70: 73 | AH70: 75 | AI70: 76 | AK70: B | AL70: D | AM70: E | AN70: F | AO70: H | AP70: I | AQ70: K | AR70: L
A71: 70 | B71: BDEFHIJL | C71: 3E | D71: 3J | E71: 3B | F71: 3D | G71: 3H | H71: 3F | I71: 3L | J71: 3I | K71: E | L71: J | M71: B | N71: D | O71: H | P71: F | Q71: L | R71: I | S71: 69 | T71: 74 | U71: 66 | V71: 68 | W71: 72 | X71: 70 | Y71: 76 | Z71: 73 | AB71: 66 | AC71: 68 | AD71: 69 | AE71: 70 | AF71: 72 | AG71: 73 | AH71: 74 | AI71: 76 | AK71: B | AL71: D | AM71: E | AN71: F | AO71: H | AP71: I | AQ71: J | AR71: L
A72: 71 | B72: BDEFHIJK | C72: 3E | D72: 3J | E72: 3B | F72: 3D | G72: 3H | H72: 3F | I72: 3I | J72: 3K | K72: E | L72: J | M72: B | N72: D | O72: H | P72: F | Q72: I | R72: K | S72: 69 | T72: 74 | U72: 66 | V72: 68 | W72: 72 | X72: 70 | Y72: 73 | Z72: 75 | AB72: 66 | AC72: 68 | AD72: 69 | AE72: 70 | AF72: 72 | AG72: 73 | AH72: 74 | AI72: 75 | AK72: B | AL72: D | AM72: E | AN72: F | AO72: H | AP72: I | AQ72: J | AR72: K
A73: 72 | B73: BDEFGJKL | C73: 3E | D73: 3G | E73: 3B | F73: 3D | G73: 3J | H73: 3F | I73: 3L | J73: 3K | K73: E | L73: G | M73: B | N73: D | O73: J | P73: F | Q73: L | R73: K | S73: 69 | T73: 71 | U73: 66 | V73: 68 | W73: 74 | X73: 70 | Y73: 76 | Z73: 75 | AB73: 66 | AC73: 68 | AD73: 69 | AE73: 70 | AF73: 71 | AG73: 74 | AH73: 75 | AI73: 76 | AK73: B | AL73: D | AM73: E | AN73: F | AO73: G | AP73: J | AQ73: K | AR73: L
A74: 73 | B74: BDEFGIKL | C74: 3E | D74: 3G | E74: 3B | F74: 3D | G74: 3I | H74: 3F | I74: 3L | J74: 3K | K74: E | L74: G | M74: B | N74: D | O74: I | P74: F | Q74: L | R74: K | S74: 69 | T74: 71 | U74: 66 | V74: 68 | W74: 73 | X74: 70 | Y74: 76 | Z74: 75 | AB74: 66 | AC74: 68 | AD74: 69 | AE74: 70 | AF74: 71 | AG74: 73 | AH74: 75 | AI74: 76 | AK74: B | AL74: D | AM74: E | AN74: F | AO74: G | AP74: I | AQ74: K | AR74: L
A75: 74 | B75: BDEFGIJL | C75: 3E | D75: 3G | E75: 3B | F75: 3D | G75: 3J | H75: 3F | I75: 3L | J75: 3I | K75: E | L75: G | M75: B | N75: D | O75: J | P75: F | Q75: L | R75: I | S75: 69 | T75: 71 | U75: 66 | V75: 68 | W75: 74 | X75: 70 | Y75: 76 | Z75: 73 | AB75: 66 | AC75: 68 | AD75: 69 | AE75: 70 | AF75: 71 | AG75: 73 | AH75: 74 | AI75: 76 | AK75: B | AL75: D | AM75: E | AN75: F | AO75: G | AP75: I | AQ75: J | AR75: L
A76: 75 | B76: BDEFGIJK | C76: 3E | D76: 3G | E76: 3B | F76: 3D | G76: 3J | H76: 3F | I76: 3I | J76: 3K | K76: E | L76: G | M76: B | N76: D | O76: J | P76: F | Q76: I | R76: K | S76: 69 | T76: 71 | U76: 66 | V76: 68 | W76: 74 | X76: 70 | Y76: 73 | Z76: 75 | AB76: 66 | AC76: 68 | AD76: 69 | AE76: 70 | AF76: 71 | AG76: 73 | AH76: 74 | AI76: 75 | AK76: B | AL76: D | AM76: E | AN76: F | AO76: G | AP76: I | AQ76: J | AR76: K
A77: 76 | B77: BDEFGHKL | C77: 3E | D77: 3G | E77: 3B | F77: 3D | G77: 3H | H77: 3F | I77: 3L | J77: 3K | K77: E | L77: G | M77: B | N77: D | O77: H | P77: F | Q77: L | R77: K | S77: 69 | T77: 71 | U77: 66 | V77: 68 | W77: 72 | X77: 70 | Y77: 76 | Z77: 75 | AB77: 66 | AC77: 68 | AD77: 69 | AE77: 70 | AF77: 71 | AG77: 72 | AH77: 75 | AI77: 76 | AK77: B | AL77: D | AM77: E | AN77: F | AO77: G | AP77: H | AQ77: K | AR77: L
A78: 77 | B78: BDEFGHJL | C78: 3H | D78: 3G | E78: 3B | F78: 3D | G78: 3J | H78: 3F | I78: 3L | J78: 3E | K78: H | L78: G | M78: B | N78: D | O78: J | P78: F | Q78: L | R78: E | S78: 72 | T78: 71 | U78: 66 | V78: 68 | W78: 74 | X78: 70 | Y78: 76 | Z78: 69 | AB78: 66 | AC78: 68 | AD78: 69 | AE78: 70 | AF78: 71 | AG78: 72 | AH78: 74 | AI78: 76 | AK78: B | AL78: D | AM78: E | AN78: F | AO78: G | AP78: H | AQ78: J | AR78: L
A79: 78 | B79: BDEFGHJK | C79: 3H | D79: 3G | E79: 3B | F79: 3D | G79: 3J | H79: 3F | I79: 3E | J79: 3K | K79: H | L79: =MID(D79,2,1) -> G | M79: B | N79: D | O79: J | P79: F | Q79: E | R79: =MID(J79,2,1) -> K | S79: 72 | T79: =CODE(L79) -> 71 | U79: 66 | V79: 68 | W79: 74 | X79: 70 | Y79: 69 | Z79: =CODE(R79) -> 75 | AB79: 66 | AC79: 68 | AD79: 69 | AE79: 70 | AF79: 71 | AG79: 72 | AH79: 74 | AI79: 75 | AK79: B | AL79: =CHAR(AC79) -> D | AM79: E | AN79: F | AO79: G | AP79: H | AQ79: J | AR79: =CHAR(AI79) -> K
A80: 79 | B80: BDEFGHIL | C80: 3E | D80: 3G | E80: 3B | F80: 3D | G80: 3H | H80: 3F | I80: 3L | J80: 3I | K80: =MID(C80,2,1) -> E | L80: G | M80: B | N80: D | O80: H | P80: F | Q80: L | R80: I | S80: =CODE(K80) -> 69 | T80: 71 | U80: 66 | V80: 68 | W80: 72 | X80: 70 | Y80: 76 | Z80: 73 | AB80: 66 | AC80: 68 | AD80: 69 | AE80: 70 | AF80: 71 | AG80: 72 | AH80: 73 | AI80: 76 | AK80: =CHAR(AB80) -> B | AL80: D | AM80: E | AN80: F | AO80: G | AP80: H | AQ80: I | AR80: L
A81: 80 | B81: BDEFGHIK | C81: 3E | D81: 3G | E81: 3B | F81: 3D | G81: 3H | H81: 3F | I81: 3I | J81: 3K | K81: E | L81: G | M81: B | N81: D | O81: H | P81: F | Q81: I | R81: K | S81: 69 | T81: 71 | U81: 66 | V81: 68 | W81: 72 | X81: 70 | Y81: 73 | Z81: 75 | AB81: 66 | AC81: 68 | AD81: 69 | AE81: 70 | AF81: 71 | AG81: 72 | AH81: 73 | AI81: 75 | AK81: B | AL81: D | AM81: E | AN81: F | AO81: G | AP81: H | AQ81: I | AR81: K
A82: 81 | B82: BDEFGHIJ | C82: 3H | D82: 3G | E82: 3B | F82: 3D | G82: 3J | H82: 3F | I82: 3E | J82: 3I | K82: H | L82: G | M82: B | N82: D | O82: J | P82: F | Q82: E | R82: I | S82: 72 | T82: 71 | U82: 66 | V82: 68 | W82: 74 | X82: 70 | Y82: 69 | Z82: 73 | AB82: 66 | AC82: 68 | AD82: 69 | AE82: 70 | AF82: 71 | AG82: 72 | AH82: 73 | AI82: 74 | AK82: B | AL82: D | AM82: E | AN82: F | AO82: G | AP82: H | AQ82: I | AR82: J
A83: 82 | B83: BCGHIJKL | C83: 3H | D83: 3J | E83: 3B | F83: 3C | G83: 3I | H83: 3G | I83: 3L | J83: 3K | K83: H | L83: J | M83: B | N83: C | O83: I | P83: G | Q83: L | R83: K | S83: 72 | T83: 74 | U83: 66 | V83: 67 | W83: 73 | X83: 71 | Y83: 76 | Z83: 75 | AB83: 66 | AC83: 67 | AD83: 71 | AE83: 72 | AF83: 73 | AG83: 74 | AH83: 75 | AI83: 76 | AK83: B | AL83: C | AM83: G | AN83: H | AO83: I | AP83: J | AQ83: K | AR83: L
A84: 83 | B84: BCFHIJKL | C84: 3H | D84: 3J | E84: 3B | F84: 3C | G84: 3I | H84: 3F | I84: 3L | J84: 3K | K84: H | L84: J | M84: B | N84: C | O84: I | P84: F | Q84: L | R84: K | S84: 72 | T84: 74 | U84: 66 | V84: 67 | W84: 73 | X84: 70 | Y84: 76 | Z84: 75 | AB84: 66 | AC84: 67 | AD84: 70 | AE84: 72 | AF84: 73 | AG84: 74 | AH84: 75 | AI84: 76 | AK84: B | AL84: C | AM84: F | AN84: H | AO84: I | AP84: J | AQ84: K | AR84: L
A85: 84 | B85: BCFGIJKL | C85: 3I | D85: 3G | E85: 3B | F85: 3C | G85: 3J | H85: 3F | I85: 3L | J85: 3K | K85: I | L85: G | M85: B | N85: C | O85: J | P85: F | Q85: L | R85: K | S85: 73 | T85: 71 | U85: 66 | V85: 67 | W85: 74 | X85: 70 | Y85: 76 | Z85: 75 | AB85: 66 | AC85: 67 | AD85: 70 | AE85: 71 | AF85: 73 | AG85: 74 | AH85: 75 | AI85: 76 | AK85: B | AL85: C | AM85: F | AN85: G | AO85: I | AP85: J | AQ85: K | AR85: L
A86: 85 | B86: BCFGHJKL | C86: 3H | D86: 3G | E86: 3B | F86: 3C | G86: 3J | H86: 3F | I86: 3L | J86: 3K | K86: H | L86: G | M86: B | N86: C | O86: J | P86: F | Q86: L | R86: K | S86: 72 | T86: 71 | U86: 66 | V86: 67 | W86: 74 | X86: 70 | Y86: 76 | Z86: 75 | AB86: 66 | AC86: 67 | AD86: 70 | AE86: 71 | AF86: 72 | AG86: 74 | AH86: 75 | AI86: 76 | AK86: B | AL86: C | AM86: F | AN86: G | AO86: H | AP86: J | AQ86: K | AR86: L
A87: 86 | B87: BCFGHIKL | C87: 3H | D87: 3G | E87: 3B | F87: 3C | G87: 3I | H87: 3F | I87: 3L | J87: 3K | K87: H | L87: G | M87: B | N87: C | O87: I | P87: F | Q87: L | R87: K | S87: 72 | T87: 71 | U87: 66 | V87: 67 | W87: 73 | X87: 70 | Y87: 76 | Z87: 75 | AB87: 66 | AC87: 67 | AD87: 70 | AE87: 71 | AF87: 72 | AG87: 73 | AH87: 75 | AI87: 76 | AK87: B | AL87: C | AM87: F | AN87: G | AO87: H | AP87: I | AQ87: K | AR87: L
A88: 87 | B88: BCFGHIJL | C88: 3H | D88: 3G | E88: 3B | F88: 3C | G88: 3J | H88: 3F | I88: 3L | J88: 3I | K88: H | L88: G | M88: B | N88: C | O88: J | P88: F | Q88: L | R88: I | S88: 72 | T88: 71 | U88: 66 | V88: 67 | W88: 74 | X88: 70 | Y88: 76 | Z88: 73 | AB88: 66 | AC88: 67 | AD88: 70 | AE88: 71 | AF88: 72 | AG88: 73 | AH88: 74 | AI88: 76 | AK88: B | AL88: C | AM88: F | AN88: G | AO88: H | AP88: I | AQ88: J | AR88: L
A89: 88 | B89: BCFGHIJK | C89: 3H | D89: 3G | E89: 3B | F89: 3C | G89: 3J | H89: 3F | I89: 3I | J89: 3K | K89: H | L89: G | M89: B | N89: C | O89: J | P89: F | Q89: I | R89: K | S89: 72 | T89: 71 | U89: 66 | V89: 67 | W89: 74 | X89: 70 | Y89: 73 | Z89: 75 | AB89: 66 | AC89: 67 | AD89: 70 | AE89: 71 | AF89: 72 | AG89: 73 | AH89: 74 | AI89: 75 | AK89: B | AL89: C | AM89: F | AN89: G | AO89: H | AP89: I | AQ89: J | AR89: K
A90: 89 | B90: BCEHIJKL | C90: 3E | D90: 3J | E90: 3B | F90: 3C | G90: 3I | H90: 3H | I90: 3L | J90: 3K | K90: E | L90: J | M90: B | N90: C | O90: I | P90: H | Q90: L | R90: K | S90: 69 | T90: 74 | U90: 66 | V90: 67 | W90: 73 | X90: 72 | Y90: 76 | Z90: 75 | AB90: 66 | AC90: 67 | AD90: 69 | AE90: 72 | AF90: 73 | AG90: 74 | AH90: 75 | AI90: 76 | AK90: B | AL90: C | AM90: E | AN90: H | AO90: I | AP90: J | AQ90: K | AR90: L
A91: 90 | B91: BCEGIJKL | C91: 3E | D91: 3J | E91: 3B | F91: 3C | G91: 3I | H91: 3G | I91: 3L | J91: 3K | K91: E | L91: J | M91: B | N91: C | O91: I | P91: G | Q91: L | R91: K | S91: 69 | T91: 74 | U91: 66 | V91: 67 | W91: 73 | X91: 71 | Y91: 76 | Z91: 75 | AB91: 66 | AC91: 67 | AD91: 69 | AE91: 71 | AF91: 73 | AG91: 74 | AH91: 75 | AI91: 76 | AK91: B | AL91: C | AM91: E | AN91: G | AO91: I | AP91: J | AQ91: K | AR91: L
A92: 91 | B92: BCEGHJKL | C92: 3E | D92: 3J | E92: 3B | F92: 3C | G92: 3H | H92: 3G | I92: 3L | J92: 3K | K92: E | L92: J | M92: B | N92: C | O92: H | P92: G | Q92: L | R92: K | S92: 69 | T92: 74 | U92: 66 | V92: 67 | W92: 72 | X92: 71 | Y92: 76 | Z92: 75 | AB92: 66 | AC92: 67 | AD92: 69 | AE92: 71 | AF92: 72 | AG92: 74 | AH92: 75 | AI92: 76 | AK92: B | AL92: C | AM92: E | AN92: G | AO92: H | AP92: J | AQ92: K | AR92: L
A93: 92 | B93: BCEGHIKL | C93: 3E | D93: 3G | E93: 3B | F93: 3C | G93: 3I | H93: 3H | I93: 3L | J93: 3K | K93: E | L93: G | M93: B | N93: C | O93: I | P93: H | Q93: L | R93: K | S93: 69 | T93: 71 | U93: 66 | V93: 67 | W93: 73 | X93: 72 | Y93: 76 | Z93: 75 | AB93: 66 | AC93: 67 | AD93: 69 | AE93: 71 | AF93: 72 | AG93: 73 | AH93: 75 | AI93: 76 | AK93: B | AL93: C | AM93: E | AN93: G | AO93: H | AP93: I | AQ93: K | AR93: L
A94: 93 | B94: BCEGHIJL | C94: 3E | D94: 3J | E94: 3B | F94: 3C | G94: 3H | H94: 3G | I94: 3L | J94: 3I | K94: E | L94: J | M94: B | N94: C | O94: H | P94: G | Q94: L | R94: I | S94: 69 | T94: 74 | U94: 66 | V94: 67 | W94: 72 | X94: 71 | Y94: 76 | Z94: 73 | AB94: 66 | AC94: 67 | AD94: 69 | AE94: 71 | AF94: 72 | AG94: 73 | AH94: 74 | AI94: 76 | AK94: B | AL94: C | AM94: E | AN94: G | AO94: H | AP94: I | AQ94: J | AR94: L
A95: 94 | B95: BCEGHIJK | C95: 3E | D95: 3J | E95: 3B | F95: 3C | G95: 3H | H95: 3G | I95: 3I | J95: 3K | K95: E | L95: J | M95: B | N95: C | O95: H | P95: G | Q95: I | R95: K | S95: 69 | T95: 74 | U95: 66 | V95: 67 | W95: 72 | X95: 71 | Y95: 73 | Z95: 75 | AB95: 66 | AC95: 67 | AD95: 69 | AE95: 71 | AF95: 72 | AG95: 73 | AH95: 74 | AI95: 75 | AK95: B | AL95: C | AM95: E | AN95: G | AO95: H | AP95: I | AQ95: J | AR95: K
A96: 95 | B96: BCEFIJKL | C96: 3E | D96: 3J | E96: 3B | F96: 3C | G96: 3I | H96: 3F | I96: 3L | J96: 3K | K96: E | L96: J | M96: B | N96: C | O96: I | P96: F | Q96: L | R96: K | S96: 69 | T96: 74 | U96: 66 | V96: 67 | W96: 73 | X96: 70 | Y96: 76 | Z96: 75 | AB96: 66 | AC96: 67 | AD96: 69 | AE96: 70 | AF96: 73 | AG96: 74 | AH96: 75 | AI96: 76 | AK96: B | AL96: C | AM96: E | AN96: F | AO96: I | AP96: J | AQ96: K | AR96: L
A97: 96 | B97: BCEFHJKL | C97: 3E | D97: 3J | E97: 3B | F97: 3C | G97: 3H | H97: 3F | I97: 3L | J97: 3K | K97: E | L97: J | M97: B | N97: C | O97: H | P97: F | Q97: L | R97: K | S97: 69 | T97: 74 | U97: 66 | V97: 67 | W97: 72 | X97: 70 | Y97: 76 | Z97: 75 | AB97: 66 | AC97: 67 | AD97: 69 | AE97: 70 | AF97: 72 | AG97: 74 | AH97: 75 | AI97: 76 | AK97: B | AL97: C | AM97: E | AN97: F | AO97: H | AP97: J | AQ97: K | AR97: L
A98: 97 | B98: BCEFHIKL | C98: 3E | D98: 3I | E98: 3B | F98: 3C | G98: 3H | H98: 3F | I98: 3L | J98: 3K | K98: E | L98: I | M98: B | N98: C | O98: H | P98: F | Q98: L | R98: K | S98: 69 | T98: 73 | U98: 66 | V98: 67 | W98: 72 | X98: 70 | Y98: 76 | Z98: 75 | AB98: 66 | AC98: 67 | AD98: 69 | AE98: 70 | AF98: 72 | AG98: 73 | AH98: 75 | AI98: 76 | AK98: B | AL98: C | AM98: E | AN98: F | AO98: H | AP98: I | AQ98: K | AR98: L
A99: 98 | B99: BCEFHIJL | C99: 3E | D99: 3J | E99: 3B | F99: 3C | G99: 3H | H99: 3F | I99: 3L | J99: 3I | K99: E | L99: J | M99: B | N99: C | O99: H | P99: F | Q99: L | R99: I | S99: 69 | T99: 74 | U99: 66 | V99: 67 | W99: 72 | X99: 70 | Y99: 76 | Z99: 73 | AB99: 66 | AC99: 67 | AD99: 69 | AE99: 70 | AF99: 72 | AG99: 73 | AH99: 74 | AI99: 76 | AK99: B | AL99: C | AM99: E | AN99: F | AO99: H | AP99: I | AQ99: J | AR99: L
A100: 99 | B100: BCEFHIJK | C100: 3E | D100: 3J | E100: 3B | F100: 3C | G100: 3H | H100: 3F | I100: 3I | J100: 3K | K100: E | L100: J | M100: B | N100: C | O100: H | P100: F | Q100: I | R100: K | S100: 69 | T100: 74 | U100: 66 | V100: 67 | W100: 72 | X100: 70 | Y100: 73 | Z100: 75 | AB100: 66 | AC100: 67 | AD100: 69 | AE100: 70 | AF100: 72 | AG100: 73 | AH100: 74 | AI100: 75 | AK100: B | AL100: C | AM100: E | AN100: F | AO100: H | AP100: I | AQ100: J | AR100: K
A101: 100 | B101: BCEFGJKL | C101: 3E | D101: 3G | E101: 3B | F101: 3C | G101: 3J | H101: 3F | I101: 3L | J101: 3K | K101: E | L101: G | M101: B | N101: C | O101: J | P101: F | Q101: L | R101: K | S101: 69 | T101: 71 | U101: 66 | V101: 67 | W101: 74 | X101: 70 | Y101: 76 | Z101: 75 | AB101: 66 | AC101: 67 | AD101: 69 | AE101: 70 | AF101: 71 | AG101: 74 | AH101: 75 | AI101: 76 | AK101: B | AL101: C | AM101: E | AN101: F | AO101: G | AP101: J | AQ101: K | AR101: L
A102: 101 | B102: BCEFGIKL | C102: 3E | D102: 3G | E102: 3B | F102: 3C | G102: 3I | H102: 3F | I102: 3L | J102: 3K | K102: E | L102: G | M102: B | N102: C | O102: I | P102: F | Q102: L | R102: K | S102: 69 | T102: 71 | U102: 66 | V102: 67 | W102: 73 | X102: 70 | Y102: 76 | Z102: 75 | AB102: 66 | AC102: 67 | AD102: 69 | AE102: 70 | AF102: 71 | AG102: 73 | AH102: 75 | AI102: 76 | AK102: B | AL102: C | AM102: E | AN102: F | AO102: G | AP102: I | AQ102: K | AR102: L
A103: 102 | B103: BCEFGIJL | C103: 3E | D103: 3G | E103: 3B | F103: 3C | G103: 3J | H103: 3F | I103: 3L | J103: 3I | K103: E | L103: G | M103: B | N103: C | O103: J | P103: F | Q103: L | R103: I | S103: 69 | T103: 71 | U103: 66 | V103: 67 | W103: 74 | X103: 70 | Y103: 76 | Z103: 73 | AB103: 66 | AC103: 67 | AD103: 69 | AE103: 70 | AF103: 71 | AG103: 73 | AH103: 74 | AI103: 76 | AK103: B | AL103: C | AM103: E | AN103: F | AO103: G | AP103: I | AQ103: J | AR103: L
A104: 103 | B104: BCEFGIJK | C104: 3E | D104: 3G | E104: 3B | F104: 3C | G104: 3J | H104: 3F | I104: 3I | J104: 3K | K104: E | L104: G | M104: B | N104: C | O104: J | P104: F | Q104: I | R104: K | S104: 69 | T104: 71 | U104: 66 | V104: 67 | W104: 74 | X104: 70 | Y104: 73 | Z104: 75 | AB104: 66 | AC104: 67 | AD104: 69 | AE104: 70 | AF104: 71 | AG104: 73 | AH104: 74 | AI104: 75 | AK104: B | AL104: C | AM104: E | AN104: F | AO104: G | AP104: I | AQ104: J | AR104: K
A105: 104 | B105: BCEFGHKL | C105: 3E | D105: 3G | E105: 3B | F105: 3C | G105: 3H | H105: 3F | I105: 3L | J105: 3K | K105: E | L105: G | M105: B | N105: C | O105: H | P105: F | Q105: L | R105: K | S105: 69 | T105: 71 | U105: 66 | V105: 67 | W105: 72 | X105: 70 | Y105: 76 | Z105: 75 | AB105: 66 | AC105: 67 | AD105: 69 | AE105: 70 | AF105: 71 | AG105: 72 | AH105: 75 | AI105: 76 | AK105: B | AL105: C | AM105: E | AN105: F | AO105: G | AP105: H | AQ105: K | AR105: L
A106: 105 | B106: BCEFGHJL | C106: 3H | D106: 3G | E106: 3B | F106: 3C | G106: 3J | H106: 3F | I106: 3L | J106: 3E | K106: H | L106: G | M106: B | N106: C | O106: J | P106: F | Q106: L | R106: E | S106: 72 | T106: 71 | U106: 66 | V106: 67 | W106: 74 | X106: 70 | Y106: 76 | Z106: 69 | AB106: 66 | AC106: 67 | AD106: 69 | AE106: 70 | AF106: 71 | AG106: 72 | AH106: 74 | AI106: 76 | AK106: B | AL106: C | AM106: E | AN106: F | AO106: G | AP106: H | AQ106: J | AR106: L
A107: 106 | B107: BCEFGHJK | C107: 3H | D107: 3G | E107: 3B | F107: 3C | G107: 3J | H107: 3F | I107: 3E | J107: 3K | K107: H | L107: G | M107: B | N107: C | O107: J | P107: F | Q107: E | R107: K | S107: 72 | T107: 71 | U107: 66 | V107: 67 | W107: 74 | X107: 70 | Y107: 69 | Z107: 75 | AB107: 66 | AC107: 67 | AD107: 69 | AE107: 70 | AF107: 71 | AG107: 72 | AH107: 74 | AI107: 75 | AK107: B | AL107: C | AM107: E | AN107: F | AO107: G | AP107: H | AQ107: J | AR107: K
A108: 107 | B108: BCEFGHIL | C108: 3E | D108: 3G | E108: 3B | F108: 3C | G108: 3H | H108: 3F | I108: 3L | J108: 3I | K108: E | L108: G | M108: B | N108: C | O108: H | P108: F | Q108: L | R108: I | S108: 69 | T108: 71 | U108: 66 | V108: 67 | W108: 72 | X108: 70 | Y108: 76 | Z108: 73 | AB108: 66 | AC108: 67 | AD108: 69 | AE108: 70 | AF108: 71 | AG108: 72 | AH108: 73 | AI108: 76 | AK108: B | AL108: C | AM108: E | AN108: F | AO108: G | AP108: H | AQ108: I | AR108: L
A109: 108 | B109: BCEFGHIK | C109: 3E | D109: 3G | E109: 3B | F109: 3C | G109: 3H | H109: 3F | I109: 3I | J109: 3K | K109: E | L109: G | M109: B | N109: C | O109: H | P109: F | Q109: I | R109: K | S109: 69 | T109: 71 | U109: 66 | V109: 67 | W109: 72 | X109: 70 | Y109: 73 | Z109: 75 | AB109: 66 | AC109: 67 | AD109: 69 | AE109: 70 | AF109: 71 | AG109: 72 | AH109: 73 | AI109: 75 | AK109: B | AL109: C | AM109: E | AN109: F | AO109: G | AP109: H | AQ109: I | AR109: K
A110: 109 | B110: BCEFGHIJ | C110: 3H | D110: 3G | E110: 3B | F110: 3C | G110: 3J | H110: 3F | I110: 3E | J110: 3I | K110: H | L110: G | M110: B | N110: C | O110: J | P110: F | Q110: E | R110: I | S110: 72 | T110: 71 | U110: 66 | V110: 67 | W110: 74 | X110: 70 | Y110: 69 | Z110: 73 | AB110: 66 | AC110: 67 | AD110: 69 | AE110: 70 | AF110: 71 | AG110: 72 | AH110: 73 | AI110: 74 | AK110: B | AL110: C | AM110: E | AN110: F | AO110: G | AP110: H | AQ110: I | AR110: J
A111: 110 | B111: BCDHIJKL | C111: 3H | D111: 3J | E111: 3B | F111: 3C | G111: 3I | H111: 3D | I111: 3L | J111: 3K | K111: H | L111: J | M111: B | N111: C | O111: I | P111: D | Q111: L | R111: K | S111: 72 | T111: 74 | U111: 66 | V111: 67 | W111: 73 | X111: 68 | Y111: 76 | Z111: 75 | AB111: 66 | AC111: 67 | AD111: 68 | AE111: 72 | AF111: 73 | AG111: 74 | AH111: 75 | AI111: 76 | AK111: B | AL111: C | AM111: D | AN111: H | AO111: I | AP111: J | AQ111: K | AR111: L
A112: 111 | B112: BCDGIJKL | C112: 3I | D112: 3G | E112: 3B | F112: 3C | G112: 3J | H112: 3D | I112: 3L | J112: 3K | K112: I | L112: G | M112: B | N112: C | O112: J | P112: D | Q112: L | R112: K | S112: 73 | T112: 71 | U112: 66 | V112: 67 | W112: 74 | X112: 68 | Y112: 76 | Z112: 75 | AB112: 66 | AC112: 67 | AD112: 68 | AE112: 71 | AF112: 73 | AG112: 74 | AH112: 75 | AI112: 76 | AK112: B | AL112: C | AM112: D | AN112: G | AO112: I | AP112: J | AQ112: K | AR112: L
A113: 112 | B113: BCDGHJKL | C113: 3H | D113: 3G | E113: 3B | F113: 3C | G113: 3J | H113: 3D | I113: 3L | J113: 3K | K113: H | L113: G | M113: B | N113: C | O113: J | P113: D | Q113: L | R113: K | S113: 72 | T113: 71 | U113: 66 | V113: 67 | W113: 74 | X113: 68 | Y113: 76 | Z113: 75 | AB113: 66 | AC113: 67 | AD113: 68 | AE113: 71 | AF113: 72 | AG113: 74 | AH113: 75 | AI113: 76 | AK113: B | AL113: C | AM113: D | AN113: G | AO113: H | AP113: J | AQ113: K | AR113: L
A114: 113 | B114: BCDGHIKL | C114: 3H | D114: 3G | E114: 3B | F114: 3C | G114: 3I | H114: 3D | I114: 3L | J114: 3K | K114: H | L114: G | M114: B | N114: C | O114: I | P114: D | Q114: L | R114: K | S114: 72 | T114: 71 | U114: 66 | V114: 67 | W114: 73 | X114: 68 | Y114: 76 | Z114: 75 | AB114: 66 | AC114: 67 | AD114: 68 | AE114: 71 | AF114: 72 | AG114: 73 | AH114: 75 | AI114: 76 | AK114: B | AL114: C | AM114: D | AN114: G | AO114: H | AP114: I | AQ114: K | AR114: L
A115: 114 | B115: BCDGHIJL | C115: 3H | D115: 3G | E115: 3B | F115: 3C | G115: 3J | H115: 3D | I115: 3L | J115: 3I | K115: H | L115: G | M115: B | N115: C | O115: J | P115: D | Q115: L | R115: I | S115: 72 | T115: 71 | U115: 66 | V115: 67 | W115: 74 | X115: 68 | Y115: 76 | Z115: 73 | AB115: 66 | AC115: 67 | AD115: 68 | AE115: 71 | AF115: 72 | AG115: 73 | AH115: 74 | AI115: 76 | AK115: B | AL115: C | AM115: D | AN115: G | AO115: H | AP115: I | AQ115: J | AR115: L
A116: 115 | B116: BCDGHIJK | C116: 3H | D116: 3G | E116: 3B | F116: 3C | G116: 3J | H116: 3D | I116: 3I | J116: 3K | K116: H | L116: G | M116: B | N116: =MID(F116,2,1) -> C | O116: J | P116: D | Q116: I | R116: K | S116: 72 | T116: 71 | U116: 66 | V116: =CODE(N116) -> 67 | W116: 74 | X116: 68 | Y116: 73 | Z116: 75 | AB116: 66 | AC116: 67 | AD116: 68 | AE116: 71 | AF116: 72 | AG116: 73 | AH116: 74 | AI116: 75 | AK116: B | AL116: C | AM116: D | AN116: =CHAR(AE116) -> G | AO116: H | AP116: I | AQ116: J | AR116: K
A117: 116 | B117: BCDFIJKL | C117: 3C | D117: 3J | E117: 3B | F117: 3D | G117: 3I | H117: 3F | I117: 3L | J117: 3K | K117: =MID(C117,2,1) -> C | L117: J | M117: B | N117: D | O117: I | P117: F | Q117: L | R117: K | S117: =CODE(K117) -> 67 | T117: 74 | U117: 66 | V117: 68 | W117: 73 | X117: 70 | Y117: 76 | Z117: 75 | AB117: 66 | AC117: 67 | AD117: 68 | AE117: 70 | AF117: 73 | AG117: 74 | AH117: 75 | AI117: 76 | AK117: =CHAR(AB117) -> B | AL117: C | AM117: D | AN117: F | AO117: I | AP117: J | AQ117: K | AR117: L
A118: 117 | B118: BCDFHJKL | C118: 3C | D118: 3J | E118: 3B | F118: 3D | G118: 3H | H118: 3F | I118: 3L | J118: 3K | K118: C | L118: J | M118: B | N118: D | O118: H | P118: F | Q118: L | R118: K | S118: 67 | T118: 74 | U118: 66 | V118: 68 | W118: 72 | X118: 70 | Y118: 76 | Z118: 75 | AB118: 66 | AC118: 67 | AD118: 68 | AE118: 70 | AF118: 72 | AG118: 74 | AH118: 75 | AI118: 76 | AK118: B | AL118: C | AM118: D | AN118: F | AO118: H | AP118: J | AQ118: K | AR118: L
A119: 118 | B119: BCDFHIKL | C119: 3C | D119: 3I | E119: 3B | F119: 3D | G119: 3H | H119: 3F | I119: 3L | J119: 3K | K119: C | L119: I | M119: B | N119: D | O119: H | P119: F | Q119: L | R119: K | S119: 67 | T119: 73 | U119: 66 | V119: 68 | W119: 72 | X119: 70 | Y119: 76 | Z119: 75 | AB119: 66 | AC119: 67 | AD119: 68 | AE119: 70 | AF119: 72 | AG119: 73 | AH119: 75 | AI119: 76 | AK119: B | AL119: C | AM119: D | AN119: F | AO119: H | AP119: I | AQ119: K | AR119: L
A120: 119 | B120: BCDFHIJL | C120: 3C | D120: 3J | E120: 3B | F120: 3D | G120: 3H | H120: 3F | I120: 3L | J120: 3I | K120: C | L120: J | M120: B | N120: D | O120: H | P120: F | Q120: L | R120: I | S120: 67 | T120: 74 | U120: 66 | V120: 68 | W120: 72 | X120: 70 | Y120: 76 | Z120: 73 | AB120: 66 | AC120: 67 | AD120: 68 | AE120: 70 | AF120: 72 | AG120: 73 | AH120: 74 | AI120: 76 | AK120: B | AL120: C | AM120: D | AN120: F | AO120: H | AP120: I | AQ120: J | AR120: L
A121: 120 | B121: BCDFHIJK | C121: 3C | D121: 3J | E121: 3B | F121: 3D | G121: 3H | H121: 3F | I121: 3I | J121: 3K | K121: C | L121: J | M121: B | N121: D | O121: H | P121: F | Q121: I | R121: K | S121: 67 | T121: 74 | U121: 66 | V121: 68 | W121: 72 | X121: 70 | Y121: 73 | Z121: 75 | AB121: 66 | AC121: 67 | AD121: 68 | AE121: 70 | AF121: 72 | AG121: 73 | AH121: 74 | AI121: 75 | AK121: B | AL121: C | AM121: D | AN121: F | AO121: H | AP121: I | AQ121: J | AR121: K
A122: 121 | B122: BCDFGJKL | C122: 3C | D122: 3G | E122: 3B | F122: 3D | G122: 3J | H122: 3F | I122: 3L | J122: 3K | K122: C | L122: G | M122: B | N122: D | O122: J | P122: F | Q122: L | R122: K | S122: 67 | T122: 71 | U122: 66 | V122: 68 | W122: 74 | X122: 70 | Y122: 76 | Z122: 75 | AB122: 66 | AC122: 67 | AD122: 68 | AE122: 70 | AF122: 71 | AG122: 74 | AH122: 75 | AI122: 76 | AK122: B | AL122: C | AM122: D | AN122: F | AO122: G | AP122: J | AQ122: K | AR122: L
A123: 122 | B123: BCDFGIKL | C123: 3C | D123: 3G | E123: 3B | F123: 3D | G123: 3I | H123: 3F | I123: 3L | J123: 3K | K123: C | L123: G | M123: B | N123: D | O123: I | P123: F | Q123: L | R123: K | S123: 67 | T123: 71 | U123: 66 | V123: 68 | W123: 73 | X123: 70 | Y123: 76 | Z123: 75 | AB123: 66 | AC123: 67 | AD123: 68 | AE123: 70 | AF123: 71 | AG123: 73 | AH123: 75 | AI123: 76 | AK123: B | AL123: C | AM123: D | AN123: F | AO123: G | AP123: I | AQ123: K | AR123: L
A124: 123 | B124: BCDFGIJL | C124: 3C | D124: 3G | E124: 3B | F124: 3D | G124: 3J | H124: 3F | I124: 3L | J124: 3I | K124: C | L124: G | M124: B | N124: D | O124: J | P124: F | Q124: L | R124: I | S124: 67 | T124: 71 | U124: 66 | V124: 68 | W124: 74 | X124: 70 | Y124: 76 | Z124: 73 | AB124: 66 | AC124: 67 | AD124: 68 | AE124: 70 | AF124: 71 | AG124: 73 | AH124: 74 | AI124: 76 | AK124: B | AL124: C | AM124: D | AN124: F | AO124: G | AP124: I | AQ124: J | AR124: L
A125: 124 | B125: BCDFGIJK | C125: 3C | D125: 3G | E125: 3B | F125: 3D | G125: 3J | H125: 3F | I125: 3I | J125: 3K | K125: C | L125: G | M125: B | N125: D | O125: J | P125: F | Q125: I | R125: K | S125: 67 | T125: 71 | U125: 66 | V125: 68 | W125: 74 | X125: 70 | Y125: 73 | Z125: 75 | AB125: 66 | AC125: 67 | AD125: 68 | AE125: 70 | AF125: 71 | AG125: 73 | AH125: 74 | AI125: 75 | AK125: B | AL125: C | AM125: D | AN125: F | AO125: G | AP125: I | AQ125: J | AR125: K
A126: 125 | B126: BCDFGHKL | C126: 3C | D126: 3G | E126: 3B | F126: 3D | G126: 3H | H126: 3F | I126: 3L | J126: 3K | K126: C | L126: G | M126: B | N126: D | O126: H | P126: F | Q126: L | R126: K | S126: 67 | T126: 71 | U126: 66 | V126: 68 | W126: 72 | X126: 70 | Y126: 76 | Z126: 75 | AB126: 66 | AC126: 67 | AD126: 68 | AE126: 70 | AF126: 71 | AG126: 72 | AH126: 75 | AI126: 76 | AK126: B | AL126: C | AM126: D | AN126: F | AO126: G | AP126: H | AQ126: K | AR126: L
A127: 126 | B127: BCDFGHJL | C127: 3C | D127: 3G | E127: 3B | F127: 3D | G127: 3H | H127: 3F | I127: 3L | J127: 3J | K127: C | L127: G | M127: B | N127: D | O127: H | P127: F | Q127: L | R127: J | S127: 67 | T127: 71 | U127: 66 | V127: 68 | W127: 72 | X127: 70 | Y127: 76 | Z127: 74 | AB127: 66 | AC127: 67 | AD127: 68 | AE127: 70 | AF127: 71 | AG127: 72 | AH127: 74 | AI127: 76 | AK127: B | AL127: C | AM127: D | AN127: F | AO127: G | AP127: H | AQ127: J | AR127: L
A128: 127 | B128: BCDFGHJK | C128: 3H | D128: 3G | E128: 3B | F128: 3C | G128: 3J | H128: 3F | I128: 3D | J128: 3K | K128: H | L128: G | M128: B | N128: C | O128: J | P128: F | Q128: D | R128: K | S128: 72 | T128: 71 | U128: 66 | V128: 67 | W128: 74 | X128: 70 | Y128: 68 | Z128: 75 | AB128: 66 | AC128: 67 | AD128: 68 | AE128: 70 | AF128: 71 | AG128: 72 | AH128: 74 | AI128: 75 | AK128: B | AL128: C | AM128: D | AN128: F | AO128: G | AP128: H | AQ128: J | AR128: K
A129: 128 | B129: BCDFGHIL | C129: 3C | D129: 3G | E129: 3B | F129: 3D | G129: 3H | H129: 3F | I129: 3L | J129: 3I | K129: C | L129: G | M129: B | N129: D | O129: H | P129: F | Q129: L | R129: I | S129: 67 | T129: 71 | U129: 66 | V129: 68 | W129: 72 | X129: 70 | Y129: 76 | Z129: 73 | AB129: 66 | AC129: 67 | AD129: 68 | AE129: 70 | AF129: 71 | AG129: 72 | AH129: 73 | AI129: 76 | AK129: B | AL129: C | AM129: D | AN129: F | AO129: G | AP129: H | AQ129: I | AR129: L
A130: 129 | B130: BCDFGHIK | C130: 3C | D130: 3G | E130: 3B | F130: 3D | G130: 3H | H130: 3F | I130: 3I | J130: 3K | K130: C | L130: G | M130: B | N130: D | O130: H | P130: F | Q130: I | R130: K | S130: 67 | T130: 71 | U130: 66 | V130: 68 | W130: 72 | X130: 70 | Y130: 73 | Z130: 75 | AB130: 66 | AC130: 67 | AD130: 68 | AE130: 70 | AF130: 71 | AG130: 72 | AH130: 73 | AI130: 75 | AK130: B | AL130: C | AM130: D | AN130: F | AO130: G | AP130: H | AQ130: I | AR130: K
A131: 130 | B131: =CONCATENATE(AK131,AL131,AM131,AN131,AO131,AP131,AQ131,AR131) -> BCDFGHIJ | C131: 3H | D131: 3G | E131: 3B | F131: 3C | G131: 3J | H131: 3F | I131: 3D | J131: 3I | K131: H | L131: G | M131: B | N131: C | O131: J | P131: F | Q131: D | R131: I | S131: 72 | T131: 71 | U131: 66 | V131: 67 | W131: 74 | X131: 70 | Y131: 68 | Z131: 73 | AB131: =SMALL($S131:$Z131,1) -> 66 | AC131: =SMALL($S131:$Z131,2) -> 67 | AD131: =SMALL($S131:$Z131,3) -> 68 | AE131: =SMALL($S131:$Z131,4) -> 70 | AF131: =SMALL($S131:$Z131,5) -> 71 | AG131: =SMALL($S131:$Z131,6) -> 72 | AH131: =SMALL($S131:$Z131,7) -> 73 | AI131: =SMALL($S131:$Z131,8) -> 74 | AK131: B | AL131: C | AM131: D | AN131: F | AO131: G | AP131: H | AQ131: I | AR131: J
A132: 131 | B132: BCDEIJKL | C132: 3E | D132: 3J | E132: 3B | F132: 3C | G132: 3I | H132: 3D | I132: 3L | J132: 3K | K132: E | L132: J | M132: B | N132: C | O132: I | P132: D | Q132: L | R132: K | S132: 69 | T132: 74 | U132: 66 | V132: 67 | W132: 73 | X132: 68 | Y132: 76 | Z132: 75 | AB132: 66 | AC132: 67 | AD132: 68 | AE132: 69 | AF132: 73 | AG132: 74 | AH132: 75 | AI132: 76 | AK132: B | AL132: C | AM132: D | AN132: E | AO132: I | AP132: J | AQ132: K | AR132: L
A133: 132 | B133: BCDEHJKL | C133: 3E | D133: 3J | E133: 3B | F133: 3C | G133: 3H | H133: 3D | I133: 3L | J133: 3K | K133: E | L133: J | M133: B | N133: C | O133: H | P133: D | Q133: L | R133: K | S133: 69 | T133: 74 | U133: 66 | V133: 67 | W133: 72 | X133: 68 | Y133: 76 | Z133: 75 | AB133: 66 | AC133: 67 | AD133: 68 | AE133: 69 | AF133: 72 | AG133: 74 | AH133: 75 | AI133: 76 | AK133: B | AL133: C | AM133: D | AN133: E | AO133: H | AP133: J | AQ133: K | AR133: L
A134: 133 | B134: BCDEHIKL | C134: 3E | D134: 3I | E134: 3B | F134: 3C | G134: 3H | H134: 3D | I134: 3L | J134: 3K | K134: E | L134: I | M134: B | N134: C | O134: H | P134: D | Q134: L | R134: K | S134: 69 | T134: 73 | U134: 66 | V134: 67 | W134: 72 | X134: 68 | Y134: 76 | Z134: 75 | AB134: 66 | AC134: 67 | AD134: 68 | AE134: 69 | AF134: 72 | AG134: 73 | AH134: 75 | AI134: 76 | AK134: B | AL134: C | AM134: D | AN134: E | AO134: H | AP134: I | AQ134: K | AR134: L
A135: 134 | B135: BCDEHIJL | C135: 3E | D135: 3J | E135: 3B | F135: 3C | G135: 3H | H135: 3D | I135: 3L | J135: 3I | K135: E | L135: J | M135: B | N135: C | O135: H | P135: D | Q135: L | R135: I | S135: 69 | T135: 74 | U135: 66 | V135: 67 | W135: 72 | X135: 68 | Y135: 76 | Z135: 73 | AB135: 66 | AC135: 67 | AD135: 68 | AE135: 69 | AF135: 72 | AG135: 73 | AH135: 74 | AI135: 76 | AK135: B | AL135: C | AM135: D | AN135: E | AO135: H | AP135: I | AQ135: J | AR135: L
A136: 135 | B136: BCDEHIJK | C136: 3E | D136: 3J | E136: 3B | F136: 3C | G136: 3H | H136: 3D | I136: 3I | J136: 3K | K136: E | L136: J | M136: B | N136: C | O136: H | P136: D | Q136: I | R136: K | S136: 69 | T136: 74 | U136: 66 | V136: 67 | W136: 72 | X136: 68 | Y136: 73 | Z136: 75 | AB136: 66 | AC136: 67 | AD136: 68 | AE136: 69 | AF136: 72 | AG136: 73 | AH136: 74 | AI136: 75 | AK136: B | AL136: C | AM136: D | AN136: E | AO136: H | AP136: I | AQ136: J | AR136: K
A137: 136 | B137: BCDEGJKL | C137: 3E | D137: 3G | E137: 3B | F137: 3C | G137: 3J | H137: 3D | I137: 3L | J137: 3K | K137: E | L137: G | M137: B | N137: C | O137: J | P137: D | Q137: L | R137: K | S137: 69 | T137: 71 | U137: 66 | V137: 67 | W137: 74 | X137: 68 | Y137: 76 | Z137: 75 | AB137: 66 | AC137: 67 | AD137: 68 | AE137: 69 | AF137: 71 | AG137: 74 | AH137: 75 | AI137: 76 | AK137: B | AL137: C | AM137: D | AN137: E | AO137: G | AP137: J | AQ137: K | AR137: L
A138: 137 | B138: BCDEGIKL | C138: 3E | D138: 3G | E138: 3B | F138: 3C | G138: 3I | H138: 3D | I138: 3L | J138: 3K | K138: E | L138: G | M138: B | N138: C | O138: I | P138: D | Q138: L | R138: K | S138: 69 | T138: 71 | U138: 66 | V138: 67 | W138: 73 | X138: 68 | Y138: 76 | Z138: 75 | AB138: 66 | AC138: 67 | AD138: 68 | AE138: 69 | AF138: 71 | AG138: 73 | AH138: 75 | AI138: 76 | AK138: B | AL138: C | AM138: D | AN138: E | AO138: G | AP138: I | AQ138: K | AR138: L
A139: 138 | B139: BCDEGIJL | C139: 3E | D139: 3G | E139: 3B | F139: 3C | G139: 3J | H139: 3D | I139: 3L | J139: 3I | K139: E | L139: G | M139: B | N139: C | O139: J | P139: D | Q139: L | R139: I | S139: 69 | T139: 71 | U139: 66 | V139: 67 | W139: 74 | X139: 68 | Y139: 76 | Z139: 73 | AB139: 66 | AC139: 67 | AD139: 68 | AE139: 69 | AF139: 71 | AG139: 73 | AH139: 74 | AI139: 76 | AK139: B | AL139: C | AM139: D | AN139: E | AO139: G | AP139: I | AQ139: J | AR139: L
A140: 139 | B140: BCDEGIJK | C140: 3E | D140: 3G | E140: 3B | F140: 3C | G140: 3J | H140: 3D | I140: 3I | J140: 3K | K140: E | L140: G | M140: B | N140: C | O140: J | P140: D | Q140: I | R140: K | S140: 69 | T140: 71 | U140: 66 | V140: 67 | W140: 74 | X140: 68 | Y140: 73 | Z140: 75 | AB140: 66 | AC140: 67 | AD140: 68 | AE140: 69 | AF140: 71 | AG140: 73 | AH140: 74 | AI140: 75 | AK140: B | AL140: C | AM140: D | AN140: E | AO140: G | AP140: I | AQ140: J | AR140: K
A141: 140 | B141: BCDEGHKL | C141: 3E | D141: 3G | E141: 3B | F141: 3C | G141: 3H | H141: 3D | I141: 3L | J141: 3K | K141: E | L141: G | M141: B | N141: C | O141: H | P141: D | Q141: L | R141: K | S141: 69 | T141: 71 | U141: 66 | V141: 67 | W141: 72 | X141: 68 | Y141: 76 | Z141: 75 | AB141: 66 | AC141: 67 | AD141: 68 | AE141: 69 | AF141: 71 | AG141: 72 | AH141: 75 | AI141: 76 | AK141: B | AL141: C | AM141: D | AN141: E | AO141: G | AP141: H | AQ141: K | AR141: L
A142: 141 | B142: BCDEGHJL | C142: 3H | D142: 3G | E142: 3B | F142: 3C | G142: 3J | H142: 3D | I142: 3L | J142: 3E | K142: H | L142: G | M142: B | N142: C | O142: J | P142: D | Q142: L | R142: E | S142: 72 | T142: 71 | U142: 66 | V142: 67 | W142: 74 | X142: 68 | Y142: 76 | Z142: 69 | AB142: 66 | AC142: 67 | AD142: 68 | AE142: 69 | AF142: 71 | AG142: 72 | AH142: 74 | AI142: 76 | AK142: B | AL142: C | AM142: D | AN142: E | AO142: G | AP142: H | AQ142: J | AR142: L
A143: 142 | B143: BCDEGHJK | C143: 3H | D143: 3G | E143: 3B | F143: 3C | G143: 3J | H143: 3D | I143: 3E | J143: 3K | K143: H | L143: G | M143: B | N143: C | O143: J | P143: D | Q143: E | R143: K | S143: 72 | T143: 71 | U143: 66 | V143: 67 | W143: 74 | X143: 68 | Y143: 69 | Z143: 75 | AB143: 66 | AC143: 67 | AD143: 68 | AE143: 69 | AF143: 71 | AG143: 72 | AH143: 74 | AI143: 75 | AK143: B | AL143: C | AM143: D | AN143: E | AO143: G | AP143: H | AQ143: J | AR143: K
A144: 143 | B144: BCDEGHIL | C144: 3E | D144: 3G | E144: 3B | F144: 3C | G144: 3H | H144: 3D | I144: 3L | J144: 3I | K144: E | L144: G | M144: B | N144: C | O144: H | P144: D | Q144: L | R144: I | S144: 69 | T144: 71 | U144: 66 | V144: 67 | W144: 72 | X144: 68 | Y144: 76 | Z144: 73 | AB144: 66 | AC144: 67 | AD144: 68 | AE144: 69 | AF144: 71 | AG144: 72 | AH144: 73 | AI144: 76 | AK144: B | AL144: C | AM144: D | AN144: E | AO144: G | AP144: H | AQ144: I | AR144: L
A145: 144 | B145: BCDEGHIK | C145: 3E | D145: 3G | E145: 3B | F145: 3C | G145: 3H | H145: 3D | I145: 3I | J145: 3K | K145: E | L145: G | M145: B | N145: C | O145: H | P145: D | Q145: I | R145: K | S145: 69 | T145: 71 | U145: 66 | V145: 67 | W145: 72 | X145: 68 | Y145: 73 | Z145: 75 | AB145: 66 | AC145: 67 | AD145: 68 | AE145: 69 | AF145: 71 | AG145: 72 | AH145: 73 | AI145: 75 | AK145: B | AL145: C | AM145: D | AN145: E | AO145: G | AP145: H | AQ145: I | AR145: K
A146: 145 | B146: BCDEGHIJ | C146: 3H | D146: 3G | E146: 3B | F146: 3C | G146: 3J | H146: 3D | I146: 3E | J146: 3I | K146: H | L146: G | M146: B | N146: C | O146: J | P146: D | Q146: E | R146: I | S146: 72 | T146: 71 | U146: 66 | V146: 67 | W146: 74 | X146: 68 | Y146: 69 | Z146: 73 | AB146: 66 | AC146: 67 | AD146: 68 | AE146: 69 | AF146: 71 | AG146: 72 | AH146: 73 | AI146: 74 | AK146: B | AL146: C | AM146: D | AN146: E | AO146: G | AP146: H | AQ146: I | AR146: J
A147: 146 | B147: BCDEFJKL | C147: 3C | D147: 3J | E147: 3B | F147: 3D | G147: 3E | H147: 3F | I147: 3L | J147: 3K | K147: C | L147: J | M147: B | N147: D | O147: E | P147: F | Q147: L | R147: K | S147: 67 | T147: 74 | U147: 66 | V147: 68 | W147: 69 | X147: 70 | Y147: 76 | Z147: 75 | AB147: 66 | AC147: 67 | AD147: 68 | AE147: 69 | AF147: 70 | AG147: 74 | AH147: 75 | AI147: 76 | AK147: B | AL147: C | AM147: D | AN147: E | AO147: F | AP147: J | AQ147: K | AR147: L
A148: 147 | B148: BCDEFIKL | C148: 3C | D148: 3E | E148: 3B | F148: 3D | G148: 3I | H148: 3F | I148: 3L | J148: 3K | K148: C | L148: E | M148: B | N148: D | O148: I | P148: F | Q148: L | R148: K | S148: 67 | T148: 69 | U148: 66 | V148: 68 | W148: 73 | X148: 70 | Y148: 76 | Z148: 75 | AB148: 66 | AC148: 67 | AD148: 68 | AE148: 69 | AF148: 70 | AG148: 73 | AH148: 75 | AI148: 76 | AK148: B | AL148: C | AM148: D | AN148: E | AO148: F | AP148: I | AQ148: K | AR148: L
A149: 148 | B149: BCDEFIJL | C149: 3C | D149: 3J | E149: 3B | F149: 3D | G149: 3E | H149: 3F | I149: 3L | J149: 3I | K149: C | L149: J | M149: B | N149: D | O149: E | P149: F | Q149: L | R149: I | S149: 67 | T149: 74 | U149: 66 | V149: 68 | W149: 69 | X149: 70 | Y149: 76 | Z149: 73 | AB149: 66 | AC149: 67 | AD149: 68 | AE149: 69 | AF149: 70 | AG149: 73 | AH149: 74 | AI149: 76 | AK149: B | AL149: C | AM149: D | AN149: E | AO149: F | AP149: I | AQ149: J | AR149: L
A150: 149 | B150: BCDEFIJK | C150: 3C | D150: 3J | E150: 3B | F150: 3D | G150: 3E | H150: 3F | I150: 3I | J150: 3K | K150: C | L150: J | M150: B | N150: D | O150: E | P150: F | Q150: I | R150: K | S150: 67 | T150: 74 | U150: 66 | V150: 68 | W150: 69 | X150: 70 | Y150: 73 | Z150: 75 | AB150: 66 | AC150: 67 | AD150: 68 | AE150: 69 | AF150: 70 | AG150: 73 | AH150: 74 | AI150: 75 | AK150: B | AL150: C | AM150: D | AN150: E | AO150: F | AP150: I | AQ150: J | AR150: K
A151: 150 | B151: BCDEFHKL | C151: 3C | D151: 3E | E151: 3B | F151: 3D | G151: 3H | H151: 3F | I151: 3L | J151: 3K | K151: C | L151: E | M151: B | N151: D | O151: H | P151: F | Q151: L | R151: K | S151: 67 | T151: 69 | U151: 66 | V151: 68 | W151: 72 | X151: 70 | Y151: 76 | Z151: 75 | AB151: 66 | AC151: 67 | AD151: 68 | AE151: 69 | AF151: 70 | AG151: 72 | AH151: 75 | AI151: 76 | AK151: B | AL151: C | AM151: D | AN151: E | AO151: F | AP151: H | AQ151: K | AR151: L
A152: 151 | B152: BCDEFHJL | C152: 3C | D152: 3J | E152: 3B | F152: 3D | G152: 3H | H152: 3F | I152: 3L | J152: 3E | K152: C | L152: J | M152: B | N152: D | O152: H | P152: F | Q152: L | R152: E | S152: 67 | T152: 74 | U152: 66 | V152: 68 | W152: 72 | X152: 70 | Y152: 76 | Z152: 69 | AB152: 66 | AC152: 67 | AD152: 68 | AE152: 69 | AF152: 70 | AG152: 72 | AH152: 74 | AI152: 76 | AK152: B | AL152: C | AM152: D | AN152: E | AO152: F | AP152: H | AQ152: J | AR152: L
A153: 152 | B153: BCDEFHJK | C153: 3C | D153: 3J | E153: 3B | F153: 3D | G153: 3H | H153: 3F | I153: 3E | J153: 3K | K153: C | L153: J | M153: B | N153: D | O153: H | P153: F | Q153: E | R153: K | S153: 67 | T153: 74 | U153: 66 | V153: 68 | W153: 72 | X153: 70 | Y153: 69 | Z153: 75 | AB153: 66 | AC153: 67 | AD153: 68 | AE153: 69 | AF153: 70 | AG153: 72 | AH153: 74 | AI153: 75 | AK153: B | AL153: C | AM153: D | AN153: E | AO153: F | AP153: H | AQ153: J | AR153: K
A154: 153 | B154: BCDEFHIL | C154: 3C | D154: 3E | E154: 3B | F154: 3D | G154: 3H | H154: 3F | I154: 3L | J154: 3I | K154: C | L154: E | M154: B | N154: D | O154: H | P154: F | Q154: L | R154: I | S154: 67 | T154: 69 | U154: 66 | V154: 68 | W154: 72 | X154: 70 | Y154: 76 | Z154: 73 | AB154: 66 | AC154: 67 | AD154: 68 | AE154: 69 | AF154: 70 | AG154: 72 | AH154: 73 | AI154: 76 | AK154: B | AL154: C | AM154: D | AN154: E | AO154: F | AP154: H | AQ154: I | AR154: L
A155: 154 | B155: BCDEFHIK | C155: 3C | D155: 3E | E155: 3B | F155: 3D | G155: 3H | H155: 3F | I155: 3I | J155: 3K | K155: C | L155: E | M155: B | N155: D | O155: H | P155: F | Q155: I | R155: K | S155: 67 | T155: 69 | U155: 66 | V155: 68 | W155: 72 | X155: 70 | Y155: 73 | Z155: 75 | AB155: 66 | AC155: 67 | AD155: 68 | AE155: 69 | AF155: 70 | AG155: 72 | AH155: 73 | AI155: 75 | AK155: B | AL155: C | AM155: D | AN155: E | AO155: F | AP155: H | AQ155: I | AR155: K
A156: 155 | B156: BCDEFHIJ | C156: 3C | D156: 3J | E156: 3B | F156: 3D | G156: 3H | H156: 3F | I156: 3E | J156: 3I | K156: C | L156: J | M156: B | N156: D | O156: H | P156: F | Q156: E | R156: I | S156: 67 | T156: 74 | U156: 66 | V156: 68 | W156: 72 | X156: 70 | Y156: 69 | Z156: 73 | AB156: 66 | AC156: 67 | AD156: 68 | AE156: 69 | AF156: 70 | AG156: 72 | AH156: 73 | AI156: 74 | AK156: B | AL156: C | AM156: D | AN156: E | AO156: F | AP156: H | AQ156: I | AR156: J
A157: 156 | B157: BCDEFGKL | C157: 3C | D157: 3G | E157: 3B | F157: 3D | G157: 3E | H157: 3F | I157: 3L | J157: 3K | K157: C | L157: G | M157: B | N157: D | O157: E | P157: F | Q157: L | R157: K | S157: 67 | T157: 71 | U157: 66 | V157: 68 | W157: 69 | X157: 70 | Y157: 76 | Z157: 75 | AB157: 66 | AC157: 67 | AD157: 68 | AE157: 69 | AF157: 70 | AG157: 71 | AH157: 75 | AI157: 76 | AK157: B | AL157: C | AM157: D | AN157: E | AO157: F | AP157: G | AQ157: K | AR157: L
A158: 157 | B158: BCDEFGJL | C158: 3C | D158: 3G | E158: 3B | F158: 3D | G158: 3J | H158: 3F | I158: 3L | J158: 3E | K158: C | L158: G | M158: B | N158: D | O158: J | P158: F | Q158: L | R158: E | S158: 67 | T158: 71 | U158: 66 | V158: 68 | W158: 74 | X158: 70 | Y158: 76 | Z158: 69 | AB158: 66 | AC158: 67 | AD158: 68 | AE158: 69 | AF158: 70 | AG158: 71 | AH158: 74 | AI158: 76 | AK158: B | AL158: C | AM158: D | AN158: E | AO158: F | AP158: G | AQ158: J | AR158: L
A159: 158 | B159: BCDEFGJK | C159: 3C | D159: 3G | E159: 3B | F159: 3D | G159: 3J | H159: 3F | I159: 3E | J159: 3K | K159: C | L159: G | M159: B | N159: D | O159: J | P159: F | Q159: E | R159: K | S159: 67 | T159: 71 | U159: 66 | V159: 68 | W159: 74 | X159: 70 | Y159: 69 | Z159: 75 | AB159: 66 | AC159: 67 | AD159: 68 | AE159: 69 | AF159: 70 | AG159: 71 | AH159: 74 | AI159: 75 | AK159: B | AL159: C | AM159: D | AN159: E | AO159: F | AP159: G | AQ159: J | AR159: K
A160: 159 | B160: BCDEFGIL | C160: 3C | D160: 3G | E160: 3B | F160: 3D | G160: 3E | H160: 3F | I160: 3L | J160: 3I | K160: C | L160: G | M160: B | N160: D | O160: E | P160: F | Q160: L | R160: I | S160: 67 | T160: 71 | U160: 66 | V160: 68 | W160: 69 | X160: 70 | Y160: 76 | Z160: 73 | AB160: 66 | AC160: 67 | AD160: 68 | AE160: 69 | AF160: 70 | AG160: 71 | AH160: 73 | AI160: 76 | AK160: B | AL160: C | AM160: D | AN160: E | AO160: F | AP160: G | AQ160: I | AR160: L
A161: 160 | B161: BCDEFGIK | C161: 3C | D161: 3G | E161: 3B | F161: 3D | G161: 3E | H161: 3F | I161: 3I | J161: 3K | K161: C | L161: G | M161: B | N161: D | O161: E | P161: F | Q161: I | R161: K | S161: 67 | T161: 71 | U161: 66 | V161: 68 | W161: 69 | X161: 70 | Y161: 73 | Z161: 75 | AB161: 66 | AC161: 67 | AD161: 68 | AE161: 69 | AF161: 70 | AG161: 71 | AH161: 73 | AI161: 75 | AK161: B | AL161: C | AM161: D | AN161: E | AO161: F | AP161: G | AQ161: I | AR161: K
A162: 161 | B162: BCDEFGIJ | C162: 3C | D162: 3G | E162: 3B | F162: 3D | G162: 3J | H162: 3F | I162: 3E | J162: 3I | K162: C | L162: G | M162: B | N162: D | O162: J | P162: F | Q162: E | R162: I | S162: 67 | T162: 71 | U162: 66 | V162: 68 | W162: 74 | X162: 70 | Y162: 69 | Z162: 73 | AB162: 66 | AC162: 67 | AD162: 68 | AE162: 69 | AF162: 70 | AG162: 71 | AH162: 73 | AI162: 74 | AK162: B | AL162: C | AM162: D | AN162: E | AO162: F | AP162: G | AQ162: I | AR162: J
A163: 162 | B163: BCDEFGHL | C163: 3C | D163: 3G | E163: 3B | F163: 3D | G163: 3H | H163: 3F | I163: 3L | J163: 3E | K163: C | L163: G | M163: B | N163: D | O163: H | P163: F | Q163: L | R163: E | S163: 67 | T163: 71 | U163: 66 | V163: 68 | W163: 72 | X163: 70 | Y163: 76 | Z163: 69 | AB163: 66 | AC163: 67 | AD163: 68 | AE163: 69 | AF163: 70 | AG163: 71 | AH163: 72 | AI163: 76 | AK163: B | AL163: C | AM163: D | AN163: E | AO163: F | AP163: G | AQ163: H | AR163: L
A164: 163 | B164: BCDEFGHK | C164: 3C | D164: 3G | E164: 3B | F164: 3D | G164: 3H | H164: 3F | I164: 3E | J164: 3K | K164: C | L164: G | M164: B | N164: D | O164: H | P164: F | Q164: E | R164: K | S164: 67 | T164: 71 | U164: 66 | V164: 68 | W164: 72 | X164: 70 | Y164: 69 | Z164: 75 | AB164: 66 | AC164: 67 | AD164: 68 | AE164: 69 | AF164: 70 | AG164: 71 | AH164: 72 | AI164: 75 | AK164: B | AL164: C | AM164: D | AN164: E | AO164: F | AP164: G | AQ164: H | AR164: K
A165: 164 | B165: BCDEFGHJ | C165: 3H | D165: 3G | E165: 3B | F165: 3C | G165: 3J | H165: 3F | I165: 3D | J165: 3E | K165: H | L165: G | M165: B | N165: C | O165: J | P165: F | Q165: D | R165: E | S165: 72 | T165: 71 | U165: 66 | V165: 67 | W165: 74 | X165: 70 | Y165: 68 | Z165: 69 | AB165: 66 | AC165: 67 | AD165: 68 | AE165: 69 | AF165: 70 | AG165: 71 | AH165: 72 | AI165: 74 | AK165: B | AL165: C | AM165: D | AN165: E | AO165: F | AP165: G | AQ165: H | AR165: J
A166: 165 | B166: BCDEFGHI | C166: 3C | D166: 3G | E166: 3B | F166: 3D | G166: 3H | H166: 3F | I166: 3E | J166: 3I | K166: C | L166: G | M166: B | N166: D | O166: H | P166: F | Q166: E | R166: I | S166: 67 | T166: 71 | U166: 66 | V166: 68 | W166: 72 | X166: 70 | Y166: 69 | Z166: 73 | AB166: 66 | AC166: 67 | AD166: 68 | AE166: 69 | AF166: 70 | AG166: 71 | AH166: 72 | AI166: 73 | AK166: B | AL166: C | AM166: D | AN166: E | AO166: F | AP166: G | AQ166: H | AR166: I
A167: 166 | B167: AFGHIJKL | C167: 3H | D167: 3J | E167: 3I | F167: 3F | G167: 3A | H167: 3G | I167: 3L | J167: 3K | K167: H | L167: J | M167: I | N167: F | O167: A | P167: G | Q167: L | R167: K | S167: 72 | T167: 74 | U167: 73 | V167: 70 | W167: 65 | X167: 71 | Y167: 76 | Z167: 75 | AB167: 65 | AC167: 70 | AD167: 71 | AE167: 72 | AF167: 73 | AG167: 74 | AH167: 75 | AI167: 76 | AK167: A | AL167: F | AM167: G | AN167: H | AO167: I | AP167: J | AQ167: K | AR167: L
A168: 167 | B168: AEGHIJKL | C168: 3E | D168: 3J | E168: 3I | F168: 3A | G168: 3H | H168: 3G | I168: 3L | J168: 3K | K168: E | L168: J | M168: I | N168: A | O168: H | P168: G | Q168: L | R168: K | S168: 69 | T168: 74 | U168: 73 | V168: 65 | W168: 72 | X168: 71 | Y168: 76 | Z168: 75 | AB168: 65 | AC168: 69 | AD168: 71 | AE168: 72 | AF168: 73 | AG168: 74 | AH168: 75 | AI168: 76 | AK168: A | AL168: E | AM168: G | AN168: H | AO168: I | AP168: J | AQ168: K | AR168: L
A169: 168 | B169: AEFHIJKL | C169: 3E | D169: 3J | E169: 3I | F169: 3F | G169: 3A | H169: 3H | I169: 3L | J169: 3K | K169: E | L169: J | M169: I | N169: F | O169: A | P169: H | Q169: L | R169: K | S169: 69 | T169: 74 | U169: 73 | V169: 70 | W169: 65 | X169: 72 | Y169: 76 | Z169: 75 | AB169: 65 | AC169: 69 | AD169: 70 | AE169: 72 | AF169: 73 | AG169: 74 | AH169: 75 | AI169: 76 | AK169: A | AL169: E | AM169: F | AN169: H | AO169: I | AP169: J | AQ169: K | AR169: L
A170: 169 | B170: AEFGIJKL | C170: 3E | D170: 3J | E170: 3I | F170: 3F | G170: 3A | H170: 3G | I170: 3L | J170: 3K | K170: E | L170: J | M170: I | N170: F | O170: A | P170: G | Q170: L | R170: K | S170: 69 | T170: 74 | U170: 73 | V170: 70 | W170: 65 | X170: 71 | Y170: 76 | Z170: 75 | AB170: 65 | AC170: 69 | AD170: 70 | AE170: 71 | AF170: 73 | AG170: 74 | AH170: 75 | AI170: 76 | AK170: A | AL170: E | AM170: F | AN170: G | AO170: I | AP170: J | AQ170: K | AR170: L
A171: 170 | B171: AEFGHJKL | C171: 3E | D171: 3G | E171: 3J | F171: 3F | G171: 3A | H171: 3H | I171: 3L | J171: 3K | K171: E | L171: G | M171: J | N171: F | O171: A | P171: H | Q171: L | R171: K | S171: 69 | T171: 71 | U171: 74 | V171: 70 | W171: 65 | X171: 72 | Y171: 76 | Z171: 75 | AB171: 65 | AC171: 69 | AD171: 70 | AE171: 71 | AF171: 72 | AG171: 74 | AH171: 75 | AI171: 76 | AK171: A | AL171: E | AM171: F | AN171: G | AO171: H | AP171: J | AQ171: K | AR171: L
A172: 171 | B172: AEFGHIKL | C172: 3E | D172: 3G | E172: 3I | F172: 3F | G172: 3A | H172: 3H | I172: 3L | J172: 3K | K172: E | L172: G | M172: I | N172: F | O172: A | P172: =MID(H172,2,1) -> H | Q172: L | R172: K | S172: 69 | T172: 71 | U172: 73 | V172: 70 | W172: 65 | X172: =CODE(P172) -> 72 | Y172: 76 | Z172: 75 | AB172: 65 | AC172: 69 | AD172: 70 | AE172: 71 | AF172: 72 | AG172: 73 | AH172: 75 | AI172: 76 | AK172: A | AL172: E | AM172: F | AN172: G | AO172: H | AP172: =CHAR(AG172) -> I | AQ172: K | AR172: L
A173: 172 | B173: AEFGHIJL | C173: 3E | D173: 3G | E173: 3J | F173: 3F | G173: 3A | H173: 3H | I173: 3L | J173: 3I | K173: E | L173: G | M173: J | N173: F | O173: A | P173: H | Q173: L | R173: I | S173: 69 | T173: 71 | U173: 74 | V173: 70 | W173: 65 | X173: 72 | Y173: 76 | Z173: 73 | AB173: 65 | AC173: 69 | AD173: 70 | AE173: 71 | AF173: 72 | AG173: 73 | AH173: 74 | AI173: 76 | AK173: A | AL173: E | AM173: F | AN173: G | AO173: H | AP173: I | AQ173: J | AR173: L
A174: 173 | B174: AEFGHIJK | C174: 3E | D174: 3G | E174: 3J | F174: 3F | G174: 3A | H174: 3H | I174: 3I | J174: 3K | K174: E | L174: G | M174: J | N174: F | O174: A | P174: H | Q174: I | R174: K | S174: 69 | T174: 71 | U174: 74 | V174: 70 | W174: 65 | X174: 72 | Y174: 73 | Z174: 75 | AB174: 65 | AC174: 69 | AD174: 70 | AE174: 71 | AF174: 72 | AG174: 73 | AH174: 74 | AI174: 75 | AK174: A | AL174: E | AM174: F | AN174: G | AO174: H | AP174: I | AQ174: J | AR174: K
A175: 174 | B175: ADGHIJKL | C175: 3H | D175: 3J | E175: 3I | F175: 3D | G175: 3A | H175: 3G | I175: 3L | J175: 3K | K175: H | L175: J | M175: I | N175: D | O175: A | P175: G | Q175: L | R175: K | S175: 72 | T175: 74 | U175: 73 | V175: 68 | W175: 65 | X175: 71 | Y175: 76 | Z175: 75 | AB175: 65 | AC175: 68 | AD175: 71 | AE175: 72 | AF175: 73 | AG175: 74 | AH175: 75 | AI175: 76 | AK175: A | AL175: D | AM175: G | AN175: H | AO175: I | AP175: J | AQ175: K | AR175: L
A176: 175 | B176: ADFHIJKL | C176: 3H | D176: 3J | E176: 3I | F176: 3D | G176: 3A | H176: 3F | I176: 3L | J176: 3K | K176: H | L176: J | M176: I | N176: D | O176: A | P176: F | Q176: L | R176: K | S176: 72 | T176: 74 | U176: 73 | V176: 68 | W176: 65 | X176: 70 | Y176: 76 | Z176: 75 | AB176: 65 | AC176: 68 | AD176: 70 | AE176: 72 | AF176: 73 | AG176: 74 | AH176: 75 | AI176: 76 | AK176: A | AL176: D | AM176: F | AN176: H | AO176: I | AP176: J | AQ176: K | AR176: L
A177: 176 | B177: ADFGIJKL | C177: 3I | D177: 3G | E177: 3J | F177: 3D | G177: 3A | H177: 3F | I177: 3L | J177: 3K | K177: I | L177: G | M177: J | N177: D | O177: A | P177: F | Q177: L | R177: K | S177: 73 | T177: 71 | U177: 74 | V177: 68 | W177: 65 | X177: 70 | Y177: 76 | Z177: 75 | AB177: 65 | AC177: 68 | AD177: 70 | AE177: 71 | AF177: 73 | AG177: 74 | AH177: 75 | AI177: 76 | AK177: A | AL177: D | AM177: F | AN177: G | AO177: I | AP177: J | AQ177: K | AR177: L
A178: 177 | B178: ADFGHJKL | C178: 3H | D178: 3G | E178: 3J | F178: 3D | G178: 3A | H178: 3F | I178: 3L | J178: 3K | K178: H | L178: G | M178: J | N178: D | O178: A | P178: F | Q178: L | R178: K | S178: 72 | T178: 71 | U178: 74 | V178: 68 | W178: 65 | X178: 70 | Y178: 76 | Z178: 75 | AB178: 65 | AC178: 68 | AD178: 70 | AE178: 71 | AF178: 72 | AG178: 74 | AH178: 75 | AI178: 76 | AK178: A | AL178: D | AM178: F | AN178: G | AO178: H | AP178: J | AQ178: K | AR178: L
A179: 178 | B179: ADFGHIKL | C179: 3H | D179: 3G | E179: 3I | F179: 3D | G179: 3A | H179: 3F | I179: 3L | J179: 3K | K179: H | L179: G | M179: I | N179: D | O179: A | P179: F | Q179: L | R179: K | S179: 72 | T179: 71 | U179: 73 | V179: 68 | W179: 65 | X179: 70 | Y179: 76 | Z179: 75 | AB179: 65 | AC179: 68 | AD179: 70 | AE179: 71 | AF179: 72 | AG179: 73 | AH179: 75 | AI179: 76 | AK179: A | AL179: D | AM179: F | AN179: G | AO179: H | AP179: I | AQ179: K | AR179: L
A180: 179 | B180: ADFGHIJL | C180: 3H | D180: 3G | E180: 3J | F180: 3D | G180: 3A | H180: 3F | I180: 3L | J180: 3I | K180: H | L180: G | M180: J | N180: D | O180: A | P180: F | Q180: L | R180: I | S180: 72 | T180: 71 | U180: 74 | V180: 68 | W180: 65 | X180: 70 | Y180: 76 | Z180: 73 | AB180: 65 | AC180: 68 | AD180: 70 | AE180: 71 | AF180: 72 | AG180: 73 | AH180: 74 | AI180: 76 | AK180: A | AL180: D | AM180: F | AN180: G | AO180: H | AP180: I | AQ180: J | AR180: L
A181: 180 | B181: ADFGHIJK | C181: 3H | D181: 3G | E181: 3J | F181: 3D | G181: 3A | H181: 3F | I181: 3I | J181: 3K | K181: =MID(C181,2,1) -> H | L181: G | M181: J | N181: D | O181: A | P181: F | Q181: I | R181: K | S181: =CODE(K181) -> 72 | T181: 71 | U181: 74 | V181: 68 | W181: 65 | X181: 70 | Y181: 73 | Z181: 75 | AB181: 65 | AC181: 68 | AD181: 70 | AE181: 71 | AF181: 72 | AG181: 73 | AH181: 74 | AI181: 75 | AK181: =CHAR(AB181) -> A | AL181: D | AM181: F | AN181: G | AO181: H | AP181: I | AQ181: J | AR181: K
A182: 181 | B182: ADEHIJKL | C182: 3E | D182: 3J | E182: 3I | F182: 3D | G182: 3A | H182: 3H | I182: 3L | J182: 3K | K182: E | L182: J | M182: I | N182: D | O182: A | P182: H | Q182: L | R182: K | S182: 69 | T182: 74 | U182: 73 | V182: 68 | W182: 65 | X182: 72 | Y182: 76 | Z182: 75 | AB182: 65 | AC182: 68 | AD182: 69 | AE182: 72 | AF182: 73 | AG182: 74 | AH182: 75 | AI182: 76 | AK182: A | AL182: D | AM182: E | AN182: H | AO182: I | AP182: J | AQ182: K | AR182: L
A183: 182 | B183: ADEGIJKL | C183: 3E | D183: 3J | E183: 3I | F183: 3D | G183: 3A | H183: 3G | I183: 3L | J183: 3K | K183: E | L183: J | M183: I | N183: D | O183: A | P183: G | Q183: L | R183: K | S183: 69 | T183: 74 | U183: 73 | V183: 68 | W183: 65 | X183: 71 | Y183: 76 | Z183: 75 | AB183: 65 | AC183: 68 | AD183: 69 | AE183: 71 | AF183: 73 | AG183: 74 | AH183: 75 | AI183: 76 | AK183: A | AL183: D | AM183: E | AN183: G | AO183: I | AP183: J | AQ183: K | AR183: L
A184: 183 | B184: ADEGHJKL | C184: 3E | D184: 3G | E184: 3J | F184: 3D | G184: 3A | H184: 3H | I184: 3L | J184: 3K | K184: E | L184: G | M184: J | N184: D | O184: A | P184: H | Q184: L | R184: K | S184: 69 | T184: 71 | U184: 74 | V184: 68 | W184: 65 | X184: 72 | Y184: 76 | Z184: 75 | AB184: 65 | AC184: 68 | AD184: 69 | AE184: 71 | AF184: 72 | AG184: 74 | AH184: 75 | AI184: 76 | AK184: A | AL184: D | AM184: E | AN184: G | AO184: H | AP184: J | AQ184: K | AR184: L
A185: 184 | B185: ADEGHIKL | C185: 3E | D185: 3G | E185: 3I | F185: 3D | G185: 3A | H185: 3H | I185: 3L | J185: 3K | K185: E | L185: G | M185: I | N185: D | O185: A | P185: H | Q185: L | R185: K | S185: 69 | T185: 71 | U185: 73 | V185: 68 | W185: 65 | X185: 72 | Y185: 76 | Z185: 75 | AB185: 65 | AC185: 68 | AD185: 69 | AE185: 71 | AF185: 72 | AG185: 73 | AH185: 75 | AI185: 76 | AK185: A | AL185: D | AM185: E | AN185: G | AO185: H | AP185: I | AQ185: K | AR185: L
A186: 185 | B186: ADEGHIJL | C186: 3E | D186: 3G | E186: 3J | F186: 3D | G186: 3A | H186: 3H | I186: 3L | J186: 3I | K186: E | L186: G | M186: J | N186: D | O186: A | P186: H | Q186: L | R186: I | S186: 69 | T186: 71 | U186: 74 | V186: 68 | W186: 65 | X186: 72 | Y186: 76 | Z186: 73 | AB186: 65 | AC186: 68 | AD186: 69 | AE186: 71 | AF186: 72 | AG186: 73 | AH186: 74 | AI186: 76 | AK186: A | AL186: D | AM186: E | AN186: G | AO186: H | AP186: I | AQ186: J | AR186: L
A187: 186 | B187: ADEGHIJK | C187: 3E | D187: 3G | E187: 3J | F187: 3D | G187: 3A | H187: 3H | I187: 3I | J187: 3K | K187: E | L187: G | M187: J | N187: D | O187: A | P187: H | Q187: I | R187: K | S187: 69 | T187: 71 | U187: 74 | V187: 68 | W187: 65 | X187: 72 | Y187: 73 | Z187: 75 | AB187: 65 | AC187: 68 | AD187: 69 | AE187: 71 | AF187: 72 | AG187: 73 | AH187: 74 | AI187: 75 | AK187: A | AL187: D | AM187: E | AN187: G | AO187: H | AP187: I | AQ187: J | AR187: K
A188: 187 | B188: ADEFIJKL | C188: 3E | D188: 3J | E188: 3I | F188: 3D | G188: 3A | H188: 3F | I188: 3L | J188: 3K | K188: E | L188: J | M188: I | N188: D | O188: A | P188: F | Q188: L | R188: K | S188: 69 | T188: 74 | U188: 73 | V188: 68 | W188: 65 | X188: 70 | Y188: 76 | Z188: 75 | AB188: 65 | AC188: 68 | AD188: 69 | AE188: 70 | AF188: 73 | AG188: 74 | AH188: 75 | AI188: 76 | AK188: A | AL188: D | AM188: E | AN188: F | AO188: I | AP188: J | AQ188: K | AR188: L
A189: 188 | B189: ADEFHJKL | C189: 3H | D189: 3J | E189: 3E | F189: 3D | G189: 3A | H189: 3F | I189: 3L | J189: 3K | K189: H | L189: J | M189: E | N189: D | O189: A | P189: F | Q189: L | R189: K | S189: 72 | T189: 74 | U189: 69 | V189: 68 | W189: 65 | X189: 70 | Y189: 76 | Z189: 75 | AB189: 65 | AC189: 68 | AD189: 69 | AE189: 70 | AF189: 72 | AG189: 74 | AH189: 75 | AI189: 76 | AK189: A | AL189: D | AM189: E | AN189: F | AO189: H | AP189: J | AQ189: K | AR189: L
A190: 189 | B190: ADEFHIKL | C190: 3H | D190: 3E | E190: 3I | F190: 3D | G190: 3A | H190: 3F | I190: 3L | J190: 3K | K190: H | L190: E | M190: I | N190: D | O190: A | P190: F | Q190: L | R190: K | S190: 72 | T190: 69 | U190: 73 | V190: 68 | W190: 65 | X190: 70 | Y190: 76 | Z190: 75 | AB190: 65 | AC190: 68 | AD190: 69 | AE190: 70 | AF190: 72 | AG190: 73 | AH190: 75 | AI190: 76 | AK190: A | AL190: D | AM190: E | AN190: F | AO190: H | AP190: I | AQ190: K | AR190: L
A191: 190 | B191: ADEFHIJL | C191: 3H | D191: 3J | E191: 3E | F191: 3D | G191: 3A | H191: 3F | I191: 3L | J191: 3I | K191: H | L191: J | M191: E | N191: D | O191: A | P191: F | Q191: L | R191: I | S191: 72 | T191: 74 | U191: 69 | V191: 68 | W191: 65 | X191: 70 | Y191: 76 | Z191: 73 | AB191: 65 | AC191: 68 | AD191: 69 | AE191: 70 | AF191: 72 | AG191: 73 | AH191: 74 | AI191: 76 | AK191: A | AL191: D | AM191: E | AN191: F | AO191: H | AP191: I | AQ191: J | AR191: L
A192: 191 | B192: ADEFHIJK | C192: 3H | D192: 3J | E192: 3E | F192: 3D | G192: 3A | H192: 3F | I192: 3I | J192: 3K | K192: H | L192: J | M192: E | N192: D | O192: A | P192: F | Q192: I | R192: K | S192: 72 | T192: 74 | U192: 69 | V192: 68 | W192: 65 | X192: 70 | Y192: 73 | Z192: 75 | AB192: 65 | AC192: 68 | AD192: 69 | AE192: 70 | AF192: 72 | AG192: 73 | AH192: 74 | AI192: 75 | AK192: A | AL192: D | AM192: E | AN192: F | AO192: H | AP192: I | AQ192: J | AR192: K
A193: 192 | B193: ADEFGJKL | C193: 3E | D193: 3G | E193: 3J | F193: 3D | G193: 3A | H193: 3F | I193: 3L | J193: 3K | K193: E | L193: G | M193: J | N193: D | O193: A | P193: F | Q193: L | R193: K | S193: 69 | T193: 71 | U193: 74 | V193: 68 | W193: 65 | X193: 70 | Y193: 76 | Z193: 75 | AB193: 65 | AC193: 68 | AD193: 69 | AE193: 70 | AF193: 71 | AG193: 74 | AH193: 75 | AI193: 76 | AK193: A | AL193: D | AM193: E | AN193: F | AO193: G | AP193: J | AQ193: K | AR193: L
A194: 193 | B194: ADEFGIKL | C194: 3E | D194: 3G | E194: 3I | F194: 3D | G194: 3A | H194: 3F | I194: 3L | J194: 3K | K194: E | L194: G | M194: I | N194: D | O194: A | P194: F | Q194: L | R194: K | S194: 69 | T194: 71 | U194: 73 | V194: 68 | W194: 65 | X194: 70 | Y194: 76 | Z194: 75 | AB194: 65 | AC194: 68 | AD194: 69 | AE194: 70 | AF194: 71 | AG194: 73 | AH194: 75 | AI194: 76 | AK194: A | AL194: D | AM194: E | AN194: F | AO194: G | AP194: I | AQ194: K | AR194: L
A195: 194 | B195: =CONCATENATE(AK195,AL195,AM195,AN195,AO195,AP195,AQ195,AR195) -> ADEFGIJL | C195: 3E | D195: 3G | E195: 3J | F195: 3D | G195: 3A | H195: 3F | I195: 3L | J195: 3I | K195: E | L195: G | M195: J | N195: D | O195: A | P195: F | Q195: L | R195: I | S195: 69 | T195: 71 | U195: 74 | V195: 68 | W195: 65 | X195: 70 | Y195: 76 | Z195: 73 | AB195: =SMALL($S195:$Z195,1) -> 65 | AC195: =SMALL($S195:$Z195,2) -> 68 | AD195: =SMALL($S195:$Z195,3) -> 69 | AE195: =SMALL($S195:$Z195,4) -> 70 | AF195: =SMALL($S195:$Z195,5) -> 71 | AG195: =SMALL($S195:$Z195,6) -> 73 | AH195: =SMALL($S195:$Z195,7) -> 74 | AI195: =SMALL($S195:$Z195,8) -> 76 | AK195: A | AL195: D | AM195: E | AN195: F | AO195: G | AP195: I | AQ195: J | AR195: L
A196: 195 | B196: ADEFGIJK | C196: 3E | D196: 3G | E196: 3J | F196: 3D | G196: 3A | H196: 3F | I196: 3I | J196: 3K | K196: E | L196: G | M196: J | N196: D | O196: A | P196: F | Q196: I | R196: K | S196: 69 | T196: 71 | U196: 74 | V196: 68 | W196: 65 | X196: 70 | Y196: 73 | Z196: 75 | AB196: 65 | AC196: 68 | AD196: 69 | AE196: 70 | AF196: 71 | AG196: 73 | AH196: 74 | AI196: 75 | AK196: A | AL196: D | AM196: E | AN196: F | AO196: G | AP196: I | AQ196: J | AR196: K
A197: 196 | B197: ADEFGHKL | C197: 3H | D197: 3G | E197: 3E | F197: 3D | G197: 3A | H197: 3F | I197: 3L | J197: 3K | K197: H | L197: G | M197: E | N197: D | O197: A | P197: F | Q197: L | R197: K | S197: 72 | T197: 71 | U197: 69 | V197: 68 | W197: 65 | X197: 70 | Y197: 76 | Z197: 75 | AB197: 65 | AC197: 68 | AD197: 69 | AE197: 70 | AF197: 71 | AG197: 72 | AH197: 75 | AI197: 76 | AK197: A | AL197: D | AM197: E | AN197: F | AO197: G | AP197: H | AQ197: K | AR197: L
A198: 197 | B198: ADEFGHJL | C198: 3H | D198: 3G | E198: 3J | F198: 3D | G198: 3A | H198: 3F | I198: 3L | J198: 3E | K198: H | L198: G | M198: J | N198: D | O198: A | P198: F | Q198: L | R198: E | S198: 72 | T198: 71 | U198: 74 | V198: 68 | W198: 65 | X198: 70 | Y198: 76 | Z198: 69 | AB198: 65 | AC198: 68 | AD198: 69 | AE198: 70 | AF198: 71 | AG198: 72 | AH198: 74 | AI198: 76 | AK198: A | AL198: D | AM198: E | AN198: F | AO198: G | AP198: H | AQ198: J | AR198: L
A199: 198 | B199: ADEFGHJK | C199: 3H | D199: 3G | E199: 3J | F199: 3D | G199: 3A | H199: 3F | I199: 3E | J199: 3K | K199: H | L199: G | M199: J | N199: D | O199: A | P199: F | Q199: E | R199: K | S199: 72 | T199: 71 | U199: 74 | V199: 68 | W199: 65 | X199: 70 | Y199: 69 | Z199: 75 | AB199: 65 | AC199: 68 | AD199: 69 | AE199: 70 | AF199: 71 | AG199: 72 | AH199: 74 | AI199: 75 | AK199: A | AL199: D | AM199: E | AN199: F | AO199: G | AP199: H | AQ199: J | AR199: K
A200: 199 | B200: ADEFGHIL | C200: 3H | D200: 3G | E200: 3E | F200: 3D | G200: 3A | H200: 3F | I200: 3L | J200: 3I | K200: H | L200: G | M200: E | N200: D | O200: A | P200: F | Q200: L | R200: I | S200: 72 | T200: 71 | U200: 69 | V200: 68 | W200: 65 | X200: 70 | Y200: 76 | Z200: 73 | AB200: 65 | AC200: 68 | AD200: 69 | AE200: 70 | AF200: 71 | AG200: 72 | AH200: 73 | AI200: 76 | AK200: A | AL200: D | AM200: E | AN200: F | AO200: G | AP200: H | AQ200: I | AR200: L
... 792 more rows

Sheet WM2026-48
A1: SP | B1: Vorrunde | C1: Gruppe A | M1: Tabelle | N1: P | O1: T+ | P1: T- | Q1: T+/- | X1: G | Y1: Berechnungen | Z1: P | AA1: T+ | AB1: T- | AC1: T+/- | AE1: L0 | AF1: DV | AJ1: S1 | AK1: L1 | AL1: DV-TD | AP1: S2 | AQ1: DV-Tore | AU1: S3 | AV1: L4 | AX1: Info | BB1: Vorrunde | BC1: Gruppe D | BM1: Tabelle | BN1: P | BO1: T+ | BP1: T- | BQ1: T+/- | BX1: G | BY1: Berechnungen | BZ1: P | CA1: T+ | CB1: T- | CC1: T+/- | CE1: L0 | CF1: DV | CJ1: S1 | CK1: L1 | CL1: DV-TD | CP1: S2 | CQ1: DV-Tore | CU1: S3 | CV1: L4 | CX1: Info
B2: Datum/Zeit | C2: Spielort | M2: =VLOOKUP(1,$X$2:$AC$5,2,FALSE) -> A4 | N2: =VLOOKUP(1,$X$2:$AC$5,3,FALSE) -> 6 | O2: =VLOOKUP(1,$X$2:$AC$5,4,FALSE) -> 2 | P2: =VLOOKUP(1,$X$2:$AC$5,5,FALSE) -> 1 | Q2: =VLOOKUP(1,$X$2:$AC$5,6,FALSE) -> 1 | T2: =IF(H3="",0,IF(K3=$B$98,IF(H3>J3,3,IF(H3=J3,1,0)),0)) -> 3 | U2: =IF(H5="",0,IF(K5=$B$98,IF(H5>J5,3,IF(H5=J5,1,0)),0)) -> 3 | V2: =IF(J7="",0,IF(K8=$B$98,IF(H7<J7,3,IF(H7=J7,1,0)),0)) -> 0 | X2: =RANK(AD2,$AD$2:$AD$5) -> 2 | Y2: A1 | Z2: =SUM(S2:V2) -> 6 | AA2: =SUM(S6:V6) -> 2 | AB2: =SUM(S6:S9) -> 1 | AC2: =AA2-AB2 -> 1 | AD2: =IF(P$8="",(((((((AE2*10+Z2)*100+AC2)*100+AA2)*10+AK2)*10+AJ2)*100+AP2)*100+AU2)*10+AV2,(((((((AE2*10+Z2)*10+AK2)*10+AJ2)*100+AP2)*100+AU2)*100+AC2)*100+AA2)*10+AV2) -> 596990001024 | AG2: =IF($Z2=$Z3,$T2-$S3,0) -> 0 | AH2: =IF($Z2=$Z4,$U2-$S4,0) -> 0 | AI2: =IF($Z2=$Z5,$V2-$S5,0) -> -3 | AJ2: =SUM(AF2:AI2) -> -3 | AM2: =IF($Z2=$Z3,$T6-$S7,0) -> 0 | AN2: =IF($Z2=$Z4,$U6-$S8,0) -> 0 | AO2: =IF($Z2=$Z5,$V6-$S9,0) -> -1 | AP2: =SUM(AL2:AO2) -> -1 | AR2: =IF($Z2=$Z3,$T6,0) -> 0 | AS2: =IF($Z2=$Z4,$U6,0) -> 0 | AT2: =IF($Z2=$Z5,$V6,0) -> 0 | AU2: =SUM(AQ2:AT2) -> 0 | AV2: 4 | BB2: Datum/Zeit | BC2: Spielort | BM2: =VLOOKUP(1,$BX$2:$CC$5,2,FALSE) -> D4 | BN2: =VLOOKUP(1,$BX$2:$CC$5,3,FALSE) -> 6 | BO2: =VLOOKUP(1,$BX$2:$CC$5,4,FALSE) -> 2 | BP2: =VLOOKUP(1,$BX$2:$CC$5,5,FALSE) -> 1 | BQ2: =VLOOKUP(1,$BX$2:$CC$5,6,FALSE) -> 1 | BT2: =IF(BH3="",0,IF(BK3=$B$98,IF(BH3>BJ3,3,IF(BH3=BJ3,1,0)),0)) -> 3 | BU2: =IF(BH5="",0,IF(BK5=$B$98,IF(BH5>BJ5,3,IF(BH5=BJ5,1,0)),0)) -> 3 | BV2: =IF(BJ7="",0,IF(BK8=$B$98,IF(BH7<BJ7,3,IF(BH7=BJ7,1,0)),0)) -> 0 | BX2: =RANK(CD2,$CD$2:$CD$5) -> 2 | BY2: D1 | BZ2: =SUM(BS2:BV2) -> 6 | CA2: =SUM(BS6:BV6) -> 2 | CB2: =SUM(BS6:BS9) -> 1 | CC2: =CA2-CB2 -> 1 | CD2: =IF(BP$8="",(((((((CE2*10+BZ2)*100+CC2)*100+CA2)*10+CK2)*10+CJ2)*100+CP2)*100+CU2)*10+CV2,(((((((CE2*10+BZ2)*10+CK2)*10+CJ2)*100+CP2)*100+CU2)*100+CC2)*100+CA2)*10+CV2) -> 596990001024 | CG2: =IF($BZ2=$BZ3,$BT2-$BS3,0) -> 0 | CH2: =IF($BZ2=$BZ4,$BU2-$BS4,0) -> 0 | CI2: =IF($BZ2=$BZ5,$BV2-$BS5,0) -> -3 | CJ2: =SUM(CF2:CI2) -> -3 | CM2: =IF($BZ2=$BZ3,$BT6-$BS7,0) -> 0 | CN2: =IF($BZ2=$BZ4,$BU6-$BS8,0) -> 0 | CO2: =IF($BZ2=$BZ5,$BV6-$BS9,0) -> -1 | CP2: =SUM(CL2:CO2) -> -1 | CR2: =IF($BZ2=$BZ3,$BT6,0) -> 0 | CS2: =IF($BZ2=$BZ4,$BU6,0) -> 0 | CT2: =IF($BZ2=$BZ5,$BV6,0) -> 0 | CU2: =SUM(CQ2:CT2) -> 0 | CV2: 4
A3: 1 | B3: =VLOOKUP(A3,Spiele!$A$1:$L$116,2,FALSE) -> 2026-06-11T14:00:00 | C3: =VLOOKUP(A3,Spiele!$A$1:$L$116,9,FALSE) -> Mexico City | D3: =Y2 -> A1 | E3: - | F3: =Y3 -> A2 | H3: =IF($B$99="",1,INT(RAND()*5)+INT(RAND()*3)*INT(RAND()*2)) -> 1 | I3: : | J3: =IF($B$99="",0,INT(RAND()*5)+INT(RAND()*3)*INT(RAND()*2)) -> 0 | K3: ok | M3: =VLOOKUP(2,$X$2:$AC$5,2,FALSE) -> A1 | N3: =VLOOKUP(2,$X$2:$AC$5,3,FALSE) -> 6 | O3: =VLOOKUP(2,$X$2:$AC$5,4,FALSE) -> 2 | P3: =VLOOKUP(2,$X$2:$AC$5,5,FALSE) -> 1 | Q3: =VLOOKUP(2,$X$2:$AC$5,6,FALSE) -> 1 | S3: =IF(J3="",0,IF(K3=$B$98,IF(H3<J3,3,IF(H3=J3,1,0)),0)) -> 0 | U3: =IF(H8="",0,IF(K7=$B$98,IF(H8>J8,3,IF(H8=J8,1,0)),0)) -> 3 | V3: =IF(J6="",0,IF(K6=$B$98,IF(J6>H6,3,IF(J6=H6,1,0)),0)) -> 0 | X3: =RANK(AD3,$AD$2:$AD$5) -> 3 | Y3: A2 | Z3: =SUM(S3:V3) -> 3 | AA3: =SUM(S7:V7) -> 1 | AB3: =SUM(T6:T9) -> 2 | AC3: =AA3-AB3 -> -1 | AD3: =IF(P$8="",(((((((AE3*10+Z3)*100+AC3)*100+AA3)*10+AK3)*10+AJ3)*100+AP3)*100+AU3)*10+AV3,(((((((AE3*10+Z3)*10+AK3)*10+AJ3)*100+AP3)*100+AU3)*100+AC3)*100+AA3)*10+AV3) -> 303010099013 | AF3: =IF($Z3=$Z2,$S3-$T2,0) -> 0 | AH3: =IF($Z3=$Z4,$U3-$T4,0) -> 3 | AI3: =IF($Z3=$Z5,$V3-$T5,0) -> 0 | AJ3: =SUM(AF3:AI3) -> 3 | AL3: =IF($Z3=$Z2,$S7-$T6,0) -> 0 | AN3: =IF($Z3=$Z4,$U7-$T8,0) -> 1 | AO3: =IF($Z3=$Z5,$V7-$T9,0) -> 0 | AP3: =SUM(AL3:AO3) -> 1 | AQ3: =IF($Z3=$Z2,$S7,0) -> 0 | AS3: =IF($Z3=$Z4,$U7,0) -> 1 | AT3: =IF($Z3=$Z5,$V7,0) -> 0 | AU3: =SUM(AQ3:AT3) -> 1 | AV3: 3 | AX3: =VLOOKUP(A3,Spiele!$A$1:$L$116,10,FALSE) -> A1-A2 | BA3: 4 | BB3: =VLOOKUP(BA3,Spiele!$A$1:$L$116,2,FALSE) -> 2026-06-12T18:00:00 | BC3: =VLOOKUP(BA3,Spiele!$A$1:$L$116,9,FALSE) -> Los Angeles | BD3: =BY2 -> D1 | BE3: - | BF3: =BY3 -> D2 | BH3: =IF($B$99="",1,INT(RAND()*5)+INT(RAND()*3)*INT(RAND()*2)) -> 1 | BI3: : | BJ3: =IF($B$99="",0,INT(RAND()*5)+INT(RAND()*3)*INT(RAND()*2)) -> 0 | BK3: ok | BM3: =VLOOKUP(2,$BX$2:$CC$5,2,FALSE) -> D1 | BN3: =VLOOKUP(2,$BX$2:$CC$5,3,FALSE) -> 6 | BO3: =VLOOKUP(2,$BX$2:$CC$5,4,FALSE) -> 2 | BP3: =VLOOKUP(2,$BX$2:$CC$5,5,FALSE) -> 1 | BQ3: =VLOOKUP(2,$BX$2:$CC$5,6,FALSE) -> 1 | BS3: =IF(BJ3="",0,IF(BK3=$B$98,IF(BH3<BJ3,3,IF(BH3=BJ3,1,0)),0)) -> 0 | BU3: =IF(BH8="",0,IF(BK7=$B$98,IF(BH8>BJ8,3,IF(BH8=BJ8,1,0)),0)) -> 3 | BV3: =IF(BJ6="",0,IF(BK6=$B$98,IF(BJ6>BH6,3,IF(BJ6=BH6,1,0)),0)) -> 0 | BX3: =RANK(CD3,$CD$2:$CD$5) -> 3 | BY3: D2 | BZ3: =SUM(BS3:BV3) -> 3 | CA3: =SUM(BS7:BV7) -> 1 | CB3: =SUM(BT6:BT9) -> 2 | CC3: =CA3-CB3 -> -1 | CD3: =IF(BP$8="",(((((((CE3*10+BZ3)*100+CC3)*100+CA3)*10+CK3)*10+CJ3)*100+CP3)*100+CU3)*10+CV3,(((((((CE3*10+BZ3)*10+CK3)*10+CJ3)*100+CP3)*100+CU3)*100+CC3)*100+CA3)*10+CV3) -> 303010099013 | CF3: =IF($BZ3=$BZ2,$BS3-$BT2,0) -> 0 | CH3: =IF($BZ3=$BZ4,$BU3-$BT4,0) -> 3 | CI3: =IF($BZ3=$BZ5,$BV3-$BT5,0) -> 0 | CJ3: =SUM(CF3:CI3) -> 3 | CL3: =IF($BZ3=$BZ2,$BS7-$BT6,0) -> 0 | CN3: =IF($BZ3=$BZ4,$BU7-$BT8,0) -> 1 | CO3: =IF($BZ3=$BZ5,$BV7-$BT9,0) -> 0 | CP3: =SUM(CL3:CO3) -> 1 | CQ3: =IF($BZ3=$BZ2,$BS7,0) -> 0 | CS3: =IF($BZ3=$BZ4,$BU7,0) -> 1 | CT3: =IF($BZ3=$BZ5,$BV7,0) -> 0 | CU3: =SUM(CQ3:CT3) -> 1 | CV3: 3 | CX3: =VLOOKUP(BA3,Spiele!$A$1:$L$116,10,FALSE) -> D1-D2
A4: 2 | B4: =VLOOKUP(A4,Spiele!$A$1:$L$116,2,FALSE) -> 2026-06-11T21:00:00 | C4: =VLOOKUP(A4,Spiele!$A$1:$L$116,9,FALSE) -> Guadalajara | D4: =Y4 -> A3 | E4: - | F4: =Y5 -> A4 | H4: 1 | I4: : | J4: 0 | K4: ok | M4: =VLOOKUP(3,$X$2:$AC$5,2,FALSE) -> A2 | N4: =VLOOKUP(3,$X$2:$AC$5,3,FALSE) -> 3 | O4: =VLOOKUP(3,$X$2:$AC$5,4,FALSE) -> 1 | P4: =VLOOKUP(3,$X$2:$AC$5,5,FALSE) -> 2 | Q4: =VLOOKUP(3,$X$2:$AC$5,6,FALSE) -> -1 | S4: =IF(J5="",0,IF(K5=$B$98,IF(H5<J5,3,IF(H5=J5,1,0)),0)) -> 0 | T4: =IF(J8="",0,IF(K7=$B$98,IF(H8<J8,3,IF(H8=J8,1,0)),0)) -> 0 | V4: =IF(H4="",0,IF(K4=$B$98,IF(H4>J4,3,IF(H4=J4,1,0)),0)) -> 3 | X4: =RANK(AD4,$AD$2:$AD$5) -> 4 | Y4: A3 | Z4: =SUM(S4:V4) -> 3 | AA4: =SUM(S8:V8) -> 1 | AB4: =SUM(U6:U9) -> 2 | AC4: =AA4-AB4 -> -1 | AD4: =IF(P$8="",(((((((AE4*10+Z4)*100+AC4)*100+AA4)*10+AK4)*10+AJ4)*100+AP4)*100+AU4)*10+AV4,(((((((AE4*10+Z4)*10+AK4)*10+AJ4)*100+AP4)*100+AU4)*100+AC4)*100+AA4)*10+AV4) -> 296989999012 | AF4: =IF($Z4=$Z2,$S4-$U2,0) -> 0 | AG4: =IF($Z4=$Z3,$T4-$U3,0) -> -3 | AI4: =IF($Z4=$Z5,$V4-$U5,0) -> 0 | AJ4: =SUM(AF4:AI4) -> -3 | AL4: =IF($Z4=$Z2,$S8-$U6,0) -> 0 | AM4: =IF($Z4=$Z3,$T8-$U7,0) -> -1 | AO4: =IF($Z4=$Z5,$V8-$U9,0) -> 0 | AP4: =SUM(AL4:AO4) -> -1 | AQ4: =IF($Z4=$Z2,$S8,0) -> 0 | AR4: =IF($Z4=$Z3,$T8,0) -> 0 | AT4: =IF($Z4=$Z5,$V8,0) -> 0 | AU4: =SUM(AQ4:AT4) -> 0 | AV4: 2 | AX4: =VLOOKUP(A4,Spiele!$A$1:$L$116,10,FALSE) -> A3-A4 | BA4: 6 | BB4: =VLOOKUP(BA4,Spiele!$A$1:$L$116,2,FALSE) -> 2026-06-13T21:00:00 | BC4: =VLOOKUP(BA4,Spiele!$A$1:$L$116,9,FALSE) -> Vancouver | BD4: =BY4 -> D3 | BE4: - | BF4: =BY5 -> D4 | BH4: 1 | BI4: : | BJ4: 0 | BK4: ok | BM4: =VLOOKUP(3,$BX$2:$CC$5,2,FALSE) -> D2 | BN4: =VLOOKUP(3,$BX$2:$CC$5,3,FALSE) -> 3 | BO4: =VLOOKUP(3,$BX$2:$CC$5,4,FALSE) -> 1 | BP4: =VLOOKUP(3,$BX$2:$CC$5,5,FALSE) -> 2 | BQ4: =VLOOKUP(3,$BX$2:$CC$5,6,FALSE) -> -1 | BS4: =IF(BJ5="",0,IF(BK5=$B$98,IF(BH5<BJ5,3,IF(BH5=BJ5,1,0)),0)) -> 0 | BT4: =IF(BJ8="",0,IF(BK7=$B$98,IF(BH8<BJ8,3,IF(BH8=BJ8,1,0)),0)) -> 0 | BV4: =IF(BH4="",0,IF(BK4=$B$98,IF(BH4>BJ4,3,IF(BH4=BJ4,1,0)),0)) -> 3 | BX4: =RANK(CD4,$CD$2:$CD$5) -> 4 | BY4: D3 | BZ4: =SUM(BS4:BV4) -> 3 | CA4: =SUM(BS8:BV8) -> 1 | CB4: =SUM(BU6:BU9) -> 2 | CC4: =CA4-CB4 -> -1 | CD4: =IF(BP$8="",(((((((CE4*10+BZ4)*100+CC4)*100+CA4)*10+CK4)*10+CJ4)*100+CP4)*100+CU4)*10+CV4,(((((((CE4*10+BZ4)*10+CK4)*10+CJ4)*100+CP4)*100+CU4)*100+CC4)*100+CA4)*10+CV4) -> 296989999012 | CF4: =IF($BZ4=$BZ2,$BS4-$BU2,0) -> 0 | CG4: =IF($BZ4=$BZ3,$BT4-$BU3,0) -> -3 | CI4: =IF($BZ4=$BZ5,$BV4-$BU5,0) -> 0 | CJ4: =SUM(CF4:CI4) -> -3 | CL4: =IF($BZ4=$BZ2,$BS8-$BU6,0) -> 0 | CM4: =IF($BZ4=$BZ3,$BT8-$BU7,0) -> -1 | CO4: =IF($BZ4=$BZ5,$BV8-$BU9,0) -> 0 | CP4: =SUM(CL4:CO4) -> -1 | CQ4: =IF($BZ4=$BZ2,$BS8,0) -> 0 | CR4: =IF($BZ4=$BZ3,$BT8,0) -> 0 | CT4: =IF($BZ4=$BZ5,$BV8,0) -> 0 | CU4: =SUM(CQ4:CT4) -> 0 | CV4: 2 | CX4: =VLOOKUP(BA4,Spiele!$A$1:$L$116,10,FALSE) -> D3-D4
A5: 28 | B5: =VLOOKUP(A5,Spiele!$A$1:$L$116,2,FALSE) -> 2026-06-18T20:00:00 | C5: =VLOOKUP(A5,Spiele!$A$1:$L$116,9,FALSE) -> Guadalajara | D5: =Y2 -> A1 | E5: - | F5: =Y4 -> A3 | H5: 1 | I5: : | J5: 0 | K5: ok | M5: =VLOOKUP(4,$X$2:$AC$5,2,FALSE) -> A3 | N5: =VLOOKUP(4,$X$2:$AC$5,3,FALSE) -> 3 | O5: =VLOOKUP(4,$X$2:$AC$5,4,FALSE) -> 1 | P5: =VLOOKUP(4,$X$2:$AC$5,5,FALSE) -> 2 | Q5: =VLOOKUP(4,$X$2:$AC$5,6,FALSE) -> -1 | S5: =IF(H7="",0,IF(K8=$B$98,IF(H7>J7,3,IF(H7=J7,1,0)),0)) -> 3 | T5: =IF(H6="",0,IF(K6=$B$98,IF(J6<H6,3,IF(J6=H6,1,0)),0)) -> 3 | U5: =IF(J4="",0,IF(K4=$B$98,IF(H4<J4,3,IF(H4=J4,1,0)),0)) -> 0 | X5: =RANK(AD5,$AD$2:$AD$5) -> 1 | Y5: A4 | Z5: =SUM(S5:V5) -> 6 | AA5: =SUM(S9:V9) -> 2 | AB5: =SUM(V6:V9) -> 1 | AC5: =AA5-AB5 -> 1 | AD5: =IF(P$8="",(((((((AE5*10+Z5)*100+AC5)*100+AA5)*10+AK5)*10+AJ5)*100+AP5)*100+AU5)*10+AV5,(((((((AE5*10+Z5)*10+AK5)*10+AJ5)*100+AP5)*100+AU5)*100+AC5)*100+AA5)*10+AV5) -> 603010101021 | AF5: =IF($Z5=$Z2,$S5-$V2,0) -> 3 | AG5: =IF($Z5=$Z3,$T5-$V3,0) -> 0 | AH5: =IF($Z5=$Z4,$U5-$V4,0) -> 0 | AJ5: =SUM(AF5:AI5) -> 3 | AL5: =IF($Z5=$Z2,$S9-$V6,0) -> 1 | AM5: =IF($Z5=$Z3,$T9-$V7,0) -> 0 | AN5: =IF($Z5=$Z4,$U9-$V8,0) -> 0 | AP5: =SUM(AL5:AO5) -> 1 | AQ5: =IF($Z5=$Z2,$S9,0) -> 1 | AR5: =IF($Z5=$Z3,$T9,0) -> 0 | AS5: =IF($Z5=$Z4,$U9,0) -> 0 | AU5: =SUM(AQ5:AT5) -> 1 | AV5: 1 | AX5: =VLOOKUP(A5,Spiele!$A$1:$L$116,10,FALSE) -> A1-A3 | BA5: 32 | BB5: =VLOOKUP(BA5,Spiele!$A$1:$L$116,2,FALSE) -> 2026-06-19T12:00:00 | BC5: =VLOOKUP(BA5,Spiele!$A$1:$L$116,9,FALSE) -> Seattle | BD5: =BY2 -> D1 | BE5: - | BF5: =BY4 -> D3 | BH5: 1 | BI5: : | BJ5: 0 | BK5: ok | BM5: =VLOOKUP(4,$BX$2:$CC$5,2,FALSE) -> D3 | BN5: =VLOOKUP(4,$BX$2:$CC$5,3,FALSE) -> 3 | BO5: =VLOOKUP(4,$BX$2:$CC$5,4,FALSE) -> 1 | BP5: =VLOOKUP(4,$BX$2:$CC$5,5,FALSE) -> 2 | BQ5: =VLOOKUP(4,$BX$2:$CC$5,6,FALSE) -> -1 | BS5: =IF(BH7="",0,IF(BK8=$B$98,IF(BH7>BJ7,3,IF(BH7=BJ7,1,0)),0)) -> 3 | BT5: =IF(BH6="",0,IF(BK6=$B$98,IF(BJ6<BH6,3,IF(BJ6=BH6,1,0)),0)) -> 3 | BU5: =IF(BJ4="",0,IF(BK4=$B$98,IF(BH4<BJ4,3,IF(BH4=BJ4,1,0)),0)) -> 0 | BX5: =RANK(CD5,$CD$2:$CD$5) -> 1 | BY5: D4 | BZ5: =SUM(BS5:BV5) -> 6 | CA5: =SUM(BS9:BV9) -> 2 | CB5: =SUM(BV6:BV9) -> 1 | CC5: =CA5-CB5 -> 1 | CD5: =IF(BP$8="",(((((((CE5*10+BZ5)*100+CC5)*100+CA5)*10+CK5)*10+CJ5)*100+CP5)*100+CU5)*10+CV5,(((((((CE5*10+BZ5)*10+CK5)*10+CJ5)*100+CP5)*100+CU5)*100+CC5)*100+CA5)*10+CV5) -> 603010101021 | CF5: =IF($BZ5=$BZ2,$BS5-$BV2,0) -> 3 | CG5: =IF($BZ5=$BZ3,$BT5-$BV3,0) -> 0 | CH5: =IF($BZ5=$BZ4,$BU5-$BV4,0) -> 0 | CJ5: =SUM(CF5:CI5) -> 3 | CL5: =IF($BZ5=$BZ2,$BS9-$BV6,0) -> 1 | CM5: =IF($BZ5=$BZ3,$BT9-$BV7,0) -> 0 | CN5: =IF($BZ5=$BZ4,$BU9-$BV8,0) -> 0 | CP5: =SUM(CL5:CO5) -> 1 | CQ5: =IF($BZ5=$BZ2,$BS9,0) -> 1 | CR5: =IF($BZ5=$BZ3,$BT9,0) -> 0 | CS5: =IF($BZ5=$BZ4,$BU9,0) -> 0 | CU5: =SUM(CQ5:CT5) -> 1 | CV5: 1 | CX5: =VLOOKUP(BA5,Spiele!$A$1:$L$116,10,FALSE) -> D1-D3
A6: 25 | B6: =VLOOKUP(A6,Spiele!$A$1:$L$116,2,FALSE) -> 2026-06-18T12:00:00 | C6: =VLOOKUP(A6,Spiele!$A$1:$L$116,9,FALSE) -> Atlanta | D6: =Y5 -> A4 | E6: - | F6: =Y3 -> A2 | H6: 1 | I6: : | J6: 0 | K6: ok | T6: =IF(K3=$B$98,H3,0) -> 1 | U6: =IF(K5=$B$98,H5,0) -> 1 | V6: =IF(K8=$B$98,J7,0) -> 0 | AX6: =VLOOKUP(A6,Spiele!$A$1:$L$116,10,FALSE) -> A4-A2 | BA6: 31 | BB6: =VLOOKUP(BA6,Spiele!$A$1:$L$116,2,FALSE) -> 2026-06-19T21:00:00 | BC6: =VLOOKUP(BA6,Spiele!$A$1:$L$116,9,FALSE) -> San Francisco | BD6: =BY5 -> D4 | BE6: - | BF6: =BY3 -> D2 | BH6: 1 | BI6: : | BJ6: 0 | BK6: ok | BT6: =IF(BK3=$B$98,BH3,0) -> 1 | BU6: =IF(BK5=$B$98,BH5,0) -> 1 | BV6: =IF(BK8=$B$98,BJ7,0) -> 0 | CX6: =VLOOKUP(BA6,Spiele!$A$1:$L$116,10,FALSE) -> D4-D2
